Workbook

Sheet BusGenMatching

Sheet ADS v2.1 GeneratorList
A1: \ | E1: =SUBTOTAL(102,GeneratorListADSv2.1[Num Rows in Gen Dist]) -> 3847 | F1: Rows showing
E2: =COUNTIF(GeneratorListADSv2.1[Num Rows in Gen Dist],">0") -> 1014 | F2: Rows Distributed
E3: =SUBTOTAL(109,GeneratorListADSv2.1[Num Rows in Gen Dist]) -> 50 | F3: Units dist'd to
E4: Sum of Abs of Differences | F4: =SUM(ABS(GeneratorListADSv2.1[Visible]*GeneratorListADSv2.1[Difference ADS PCM - PF Max])) -> 10453.88383 | G4: =SUM(ABS(GeneratorListADSv2.1[Visible]*GeneratorListADSv2.1[Diff, ADS PCM - Max (L&R Nameplate, Summer, Winter)])) -> 23800.74483 | X4: # Found:
B5: GENERATORLIST | E5: Max: | F5: =SUBTOTAL(104,GeneratorListADSv2.1[Difference ADS PCM - PF Max]) -> 192.1 | G5: =SUBTOTAL(104,GeneratorListADSv2.1[Diff, ADS PCM - Max (L&R Nameplate, Summer, Winter)]) -> 518 | H5: =SUBTOTAL(109,GeneratorListADSv2.1[ADS PCM Max Cap]) -> 225322.163 | I5: =SUBTOTAL(109,GeneratorListADSv2.1[PF Pmax]) -> 228661.019 | J5: =SUBTOTAL(109,GeneratorListADSv2.1[L&R Update Summer Cap]) -> 165545.2258 | K5: =SUBTOTAL(109,GeneratorListADSv2.1[L&R Update Winter Cap]) -> 162927.471 | L5: =SUBTOTAL(109,GeneratorListADSv2.1[L&R Update Nameplate]) -> 213702.022 | M5: =SUBTOTAL(109,GeneratorListADSv2.1[L&R Summer Cap]) -> 165400.2258 | N5: =SUBTOTAL(109,GeneratorListADSv2.1[L&R Winter Cap]) -> 162892.471 | O5: =SUBTOTAL(109,GeneratorListADSv2.1[L&R Nameplate Capacity]) -> 213686.022 | X5: =COUNTIF(GeneratorListADSv2.1[Index in L&R Update Mapping],">0") -> 4030 | Y5: =COUNTIF(GeneratorListADSv2.1[Index in L&R Mapping],">0") -> 4029 | Z5: =COUNTIF(GeneratorListADSv2.1[Index in PF Table v7],">0") -> 4380
B6: 2032 ADS v2.1 | E6: Min: | F6: =SUBTOTAL(105,GeneratorListADSv2.1[Difference ADS PCM - PF Max]) -> -153.76 | G6: =SUBTOTAL(105,GeneratorListADSv2.1[Diff, ADS PCM - Max (L&R Nameplate, Summer, Winter)]) -> -316 | AB6: 2032
B7: EIA Plant Code | C7: EIA Unit ID | D7: Visible | E7: Num Rows in Gen Dist | F7: Difference ADS PCM - PF Max | G7: Diff, ADS PCM - Max (L&R Nameplate, Summer, Winter) | H7: ADS PCM Max Cap | I7: PF Pmax | J7: L&R Update Summer Cap | K7: L&R Update Winter Cap | L7: L&R Update Nameplate | M7: L&R Summer Cap | N7: L&R Winter Cap | O7: L&R Nameplate Capacity | P7: Plant Lat | Q7: Plant Lon | R7: EIA Substation ID | S7: Sub Lat | T7: Sub Lon | U7: Bus Lat | V7: Bus Lon | W7: Index in Bus Mapping | X7: Index in L&R Update Mapping | Y7: Index in L&R Mapping | Z7: Index in PF Table v7 | AA7: BusNo-UnitID | AB7: In Service in 2032 ADS | AC7: Name Length | AD7: GeneratorKey | AE7: Name | AF7: Bus ID | AG7: Bus Name | AH7: Bus KV | AI7: Unit ID | AJ7: Generator TypeID | AK7: SubType | AL7: Long ID | AM7: Long Name | AN7: Service Status | AO7: Commission Date | AP7: Retirement Date | AQ7: DevStatus | AR7: Area Name | AS7: Region Name | AT7: MinCap (MW) | AU7: MaxCap (MW) | AV7: InitialDispatch(MW) | AW7: Save To Binary | AX7: State | AY7: County | AZ7: City | BA7: Zipcode | BB7: FuelType | BC7: Technology | BD7: BTM | BE7: InternalID
D8: =IF(SUBTOTAL(103,GeneratorListADSv2.1[[#This Row],[Name]])=1,1,0) -> 0 | E8: =COUNTIF(GenDistnADSv2.1[Unit Name],GeneratorListADSv2.1[[#This Row],[Name]]) -> 0 | F8: =GeneratorListADSv2.1[[#This Row],[ADS PCM Max Cap]]-GeneratorListADSv2.1[[#This Row],[PF Pmax]] -> 4 | G8: =GeneratorListADSv2.1[[#This Row],[ADS PCM Max Cap]]-MAX(GeneratorListADSv2.1[[#This Row],[L&R Update Summer Cap]:[L&R Update Nameplate]]) -> 1200 | H8: =GeneratorListADSv2.1[[#This Row],[MaxCap (MW)]] -> 1200 | I8: =IF(GeneratorListADSv2.1[[#This Row],[Index in PF Table v7]]=0,0,INDEX(ADS32HS1PFv7[PMAX],GeneratorListADSv2.1[[#This Row],[Index in PF Table v7]])) -> 1196 | J8: =IFERROR(IF(GeneratorListADSv2.1[[#This Row],[Index in L&R Update Mapping]]>0,1*INDEX(LnRUpdate[Summer Cap (MW)],GeneratorListADSv2.1[[#This Row],[Index in L&R Update Mapping]]),0),1*INDEX(LnRUpdate[L&R Nameplate (MW)],GeneratorListADSv2.1[[#This Row],[Index in L&R Update Mapping]])) -> 0 | K8: =IFERROR(IF(GeneratorListADSv2.1[[#This Row],[Index in L&R Update Mapping]]>0,1*INDEX(LnRUpdate[Winter Cap (MW)],GeneratorListADSv2.1[[#This Row],[Index in L&R Update Mapping]]),0),1*INDEX(LnRUpdate[L&R Nameplate (MW)],GeneratorListADSv2.1[[#This Row],[Index in L&R Update Mapping]])) -> 0 | L8: =IF(GeneratorListADSv2.1[[#This Row],[Index in L&R Update Mapping]]>0,1*INDEX(LnRUpdate[L&R Nameplate (MW)],GeneratorListADSv2.1[[#This Row],[Index in L&R Update Mapping]]),0) -> 0 | M8: =IFERROR(IF(GeneratorListADSv2.1[[#This Row],[Index in L&R Mapping]]>0,1*INDEX(MappingLandR[Summer Cap (MW)],GeneratorListADSv2.1[[#This Row],[Index in L&R Mapping]]),0),1*INDEX(MappingLandR[L&R Nameplate (MW)],GeneratorListADSv2.1[[#This Row],[Index in L&R Mapping]])) -> 0 | N8: =IFERROR(IF(GeneratorListADSv2.1[[#This Row],[Index in L&R Mapping]]>0,1*INDEX(MappingLandR[Winter Cap (MW)],GeneratorListADSv2.1[[#This Row],[Index in L&R Mapping]]),0),1*INDEX(MappingLandR[L&R Nameplate (MW)],GeneratorListADSv2.1[[#This Row],[Index in L&R Mapping]])) -> 0 | O8: =IF(GeneratorListADSv2.1[[#This Row],[Index in L&R Mapping]]>0,1*INDEX(MappingLandR[L&R Nameplate (MW)],GeneratorListADSv2.1[[#This Row],[Index in L&R Mapping]]),0) -> 0 | W8: =IFERROR(MATCH(GeneratorListADSv2.1[[#This Row],[Bus ID]],Buses32HS1[BUS-NO],0),0) -> 8354 | X8: =IFERROR(MATCH(GeneratorListADSv2.1[[#This Row],[Name]],LnRUpdate[2032 ADS PCM Generator Name],0),0) -> 0 | Y8: =IFERROR(MATCH(GeneratorListADSv2.1[[#This Row],[Name]],MappingLandR[2032 ADS PCM Generator Name],0),0) -> 0 | Z8: =IFERROR(MATCH(GeneratorListADSv2.1[[#This Row],[BusNo-UnitID]],ADS32HS1PFv7[BusNo-UnitID],0),0) -> 3136 | AA8: =GeneratorListADSv2.1[[#This Row],[Bus ID]] & "_" & MID(GeneratorListADSv2.1[[#This Row],[Unit ID]],2,10) -> 36411_RT | AB8: =AND(GeneratorListADSv2.1[[#This Row],[Service Status]],GeneratorListADSv2.1[[#This Row],[Commission Date]]<DATEVALUE("1/1/2033"),GeneratorListADSv2.1[[#This Row],[Retirement Date]]>DATEVALUE("12/31/2031")) -> FALSE | AC8: =LEN(GeneratorListADSv2.1[[#This Row],[Name]]) -> 13 | AD8: 1248 | AE8: DiabloCanyon1 | AF8: 36411 | AG8: DIABLO 1 | AH8: 25 | AI8: 'RT | AJ8: 1 | AK8: ST-Nuclear | AL8: CA-6099-1 | AM8: Diablo Canyon-1 | AN8: TRUE | AO8: 1985-01-01 | AP8: 2024-11-02 | AQ8: Existing | AR8: CIPV | AS8: CA_CISO | AT8: 941 | AU8: 1200 | AV8: 1190 | AW8: YES | AX8: CA | AY8: NA | AZ8: NA | BA8: NA | BB8: Uranium | BC8: N/A | BD8: FALSE | BE8: NA
D9: =IF(SUBTOTAL(103,GeneratorListADSv2.1[[#This Row],[Name]])=1,1,0) -> 0 | E9: =COUNTIF(GenDistnADSv2.1[Unit Name],GeneratorListADSv2.1[[#This Row],[Name]]) -> 0 | F9: =GeneratorListADSv2.1[[#This Row],[ADS PCM Max Cap]]-GeneratorListADSv2.1[[#This Row],[PF Pmax]] -> -4 | G9: =GeneratorListADSv2.1[[#This Row],[ADS PCM Max Cap]]-MAX(GeneratorListADSv2.1[[#This Row],[L&R Update Summer Cap]:[L&R Update Nameplate]]) -> 1200 | H9: =GeneratorListADSv2.1[[#This Row],[MaxCap (MW)]] -> 1200 | I9: =IF(GeneratorListADSv2.1[[#This Row],[Index in PF Table v7]]=0,0,INDEX(ADS32HS1PFv7[PMAX],GeneratorListADSv2.1[[#This Row],[Index in PF Table v7]])) -> 1204 | J9: =IFERROR(IF(GeneratorListADSv2.1[[#This Row],[Index in L&R Update Mapping]]>0,1*INDEX(LnRUpdate[Summer Cap (MW)],GeneratorListADSv2.1[[#This Row],[Index in L&R Update Mapping]]),0),1*INDEX(LnRUpdate[L&R Nameplate (MW)],GeneratorListADSv2.1[[#This Row],[Index in L&R Update Mapping]])) -> 0 | K9: =IFERROR(IF(GeneratorListADSv2.1[[#This Row],[Index in L&R Update Mapping]]>0,1*INDEX(LnRUpdate[Winter Cap (MW)],GeneratorListADSv2.1[[#This Row],[Index in L&R Update Mapping]]),0),1*INDEX(LnRUpdate[L&R Nameplate (MW)],GeneratorListADSv2.1[[#This Row],[Index in L&R Update Mapping]])) -> 0 | L9: =IF(GeneratorListADSv2.1[[#This Row],[Index in L&R Update Mapping]]>0,1*INDEX(LnRUpdate[L&R Nameplate (MW)],GeneratorListADSv2.1[[#This Row],[Index in L&R Update Mapping]]),0) -> 0 | M9: =IFERROR(IF(GeneratorListADSv2.1[[#This Row],[Index in L&R Mapping]]>0,1*INDEX(MappingLandR[Summer Cap (MW)],GeneratorListADSv2.1[[#This Row],[Index in L&R Mapping]]),0),1*INDEX(MappingLandR[L&R Nameplate (MW)],GeneratorListADSv2.1[[#This Row],[Index in L&R Mapping]])) -> 0 | N9: =IFERROR(IF(GeneratorListADSv2.1[[#This Row],[Index in L&R Mapping]]>0,1*INDEX(MappingLandR[Winter Cap (MW)],GeneratorListADSv2.1[[#This Row],[Index in L&R Mapping]]),0),1*INDEX(MappingLandR[L&R Nameplate (MW)],GeneratorListADSv2.1[[#This Row],[Index in L&R Mapping]])) -> 0 | O9: =IF(GeneratorListADSv2.1[[#This Row],[Index in L&R Mapping]]>0,1*INDEX(MappingLandR[L&R Nameplate (MW)],GeneratorListADSv2.1[[#This Row],[Index in L&R Mapping]]),0) -> 0 | W9: =IFERROR(MATCH(GeneratorListADSv2.1[[#This Row],[Bus ID]],Buses32HS1[BUS-NO],0),0) -> 8355 | X9: =IFERROR(MATCH(GeneratorListADSv2.1[[#This Row],[Name]],LnRUpdate[2032 ADS PCM Generator Name],0),0) -> 0 | Y9: =IFERROR(MATCH(GeneratorListADSv2.1[[#This Row],[Name]],MappingLandR[2032 ADS PCM Generator Name],0),0) -> 0 | Z9: =IFERROR(MATCH(GeneratorListADSv2.1[[#This Row],[BusNo-UnitID]],ADS32HS1PFv7[BusNo-UnitID],0),0) -> 3137 | AA9: =GeneratorListADSv2.1[[#This Row],[Bus ID]] & "_" & MID(GeneratorListADSv2.1[[#This Row],[Unit ID]],2,10) -> 36412_RT | AB9: =AND(GeneratorListADSv2.1[[#This Row],[Service Status]],GeneratorListADSv2.1[[#This Row],[Commission Date]]<DATEVALUE("1/1/2033"),GeneratorListADSv2.1[[#This Row],[Retirement Date]]>DATEVALUE("12/31/2031")) -> FALSE | AC9: =LEN(GeneratorListADSv2.1[[#This Row],[Name]]) -> 13 | AD9: 1249 | AE9: DiabloCanyon2 | AF9: 36412 | AG9: DIABLO 2 | AH9: 25 | AI9: 'RT | AJ9: 1 | AK9: ST-Nuclear | AL9: CA-6099-2 | AM9: Diablo Canyon-2 | AN9: TRUE | AO9: 1986-01-01 | AP9: 2025-08-26 | AQ9: Existing | AR9: CIPV | AS9: CA_CISO | AT9: 941 | AU9: 1200 | AV9: 1190 | AW9: YES | AX9: CA | AY9: NA | AZ9: NA | BA9: NA | BB9: Uranium | BC9: N/A | BD9: FALSE | BE9: NA
D10: =IF(SUBTOTAL(103,GeneratorListADSv2.1[[#This Row],[Name]])=1,1,0) -> 0 | E10: =COUNTIF(GenDistnADSv2.1[Unit Name],GeneratorListADSv2.1[[#This Row],[Name]]) -> 24 | F10: =GeneratorListADSv2.1[[#This Row],[ADS PCM Max Cap]]-GeneratorListADSv2.1[[#This Row],[PF Pmax]] -> 6028 | G10: =GeneratorListADSv2.1[[#This Row],[ADS PCM Max Cap]]-MAX(GeneratorListADSv2.1[[#This Row],[L&R Update Summer Cap]:[L&R Update Nameplate]]) -> 6135 | H10: =GeneratorListADSv2.1[[#This Row],[MaxCap (MW)]] -> 6735 | I10: =IF(GeneratorListADSv2.1[[#This Row],[Index in PF Table v7]]=0,0,INDEX(ADS32HS1PFv7[PMAX],GeneratorListADSv2.1[[#This Row],[Index in PF Table v7]])) -> 707 | J10: =IFERROR(IF(GeneratorListADSv2.1[[#This Row],[Index in L&R Update Mapping]]>0,1*INDEX(LnRUpdate[Summer Cap (MW)],GeneratorListADSv2.1[[#This Row],[Index in L&R Update Mapping]]),0),1*INDEX(LnRUpdate[L&R Nameplate (MW)],GeneratorListADSv2.1[[#This Row],[Index in L&R Update Mapping]])) -> 493.45 | K10: =IFERROR(IF(GeneratorListADSv2.1[[#This Row],[Index in L&R Update Mapping]]>0,1*INDEX(LnRUpdate[Winter Cap (MW)],GeneratorListADSv2.1[[#This Row],[Index in L&R Update Mapping]]),0),1*INDEX(LnRUpdate[L&R Nameplate (MW)],GeneratorListADSv2.1[[#This Row],[Index in L&R Update Mapping]])) -> 481.12 | L10: =IF(GeneratorListADSv2.1[[#This Row],[Index in L&R Update Mapping]]>0,1*INDEX(LnRUpdate[L&R Nameplate (MW)],GeneratorListADSv2.1[[#This Row],[Index in L&R Update Mapping]]),0) -> 600 | M10: =IFERROR(IF(GeneratorListADSv2.1[[#This Row],[Index in L&R Mapping]]>0,1*INDEX(MappingLandR[Summer Cap (MW)],GeneratorListADSv2.1[[#This Row],[Index in L&R Mapping]]),0),1*INDEX(MappingLandR[L&R Nameplate (MW)],GeneratorListADSv2.1[[#This Row],[Index in L&R Mapping]])) -> 493.45 | N10: =IFERROR(IF(GeneratorListADSv2.1[[#This Row],[Index in L&R Mapping]]>0,1*INDEX(MappingLandR[Winter Cap (MW)],GeneratorListADSv2.1[[#This Row],[Index in L&R Mapping]]),0),1*INDEX(MappingLandR[L&R Nameplate (MW)],GeneratorListADSv2.1[[#This Row],[Index in L&R Mapping]])) -> 481.12 | O10: =IF(GeneratorListADSv2.1[[#This Row],[Index in L&R Mapping]]>0,1*INDEX(MappingLandR[L&R Nameplate (MW)],GeneratorListADSv2.1[[#This Row],[Index in L&R Mapping]]),0) -> 600 | W10: =IFERROR(MATCH(GeneratorListADSv2.1[[#This Row],[Bus ID]],Buses32HS1[BUS-NO],0),0) -> 9166 | X10: =IFERROR(MATCH(GeneratorListADSv2.1[[#This Row],[Name]],LnRUpdate[2032 ADS PCM Generator Name],0),0) -> 2041 | Y10: =IFERROR(MATCH(GeneratorListADSv2.1[[#This Row],[Name]],MappingLandR[2032 ADS PCM Generator Name],0),0) -> 2041 | Z10: =IFERROR(MATCH(GeneratorListADSv2.1[[#This Row],[BusNo-UnitID]],ADS32HS1PFv7[BusNo-UnitID],0),0) -> 1672 | AA10: =GeneratorListADSv2.1[[#This Row],[Bus ID]] & "_" & MID(GeneratorListADSv2.1[[#This Row],[Unit ID]],2,10) -> 40291_1 | AB10: =AND(GeneratorListADSv2.1[[#This Row],[Service Status]],GeneratorListADSv2.1[[#This Row],[Commission Date]]<DATEVALUE("1/1/2033"),GeneratorListADSv2.1[[#This Row],[Retirement Date]]>DATEVALUE("12/31/2031")) -> TRUE | AC10: =LEN(GeneratorListADSv2.1[[#This Row],[Name]]) -> 12 | AD10: 14148 | AE10: Grand Coulee | AF10: 40291 | AG10: GND_COULE_19 | AH10: 15 | AI10: '1 | AJ10: 2 | AK10: Hydro | AL10: WA-6163-Agg Plant | AM10: Grand Coulee | AN10: TRUE | AO10: 1975-09-01 | AP10: 2050-12-31 | AQ10: Existing | AR10: BPAT | AS10: NW_BPAT | AT10: 0 | AU10: 6735 | AV10: 104.7 | AW10: YES | AX10: WA | AY10: NA | AZ10: NA | BA10: NA | BB10: Water | BC10: N/A | BD10: FALSE | BE10: NA
D11: =IF(SUBTOTAL(103,GeneratorListADSv2.1[[#This Row],[Name]])=1,1,0) -> 0 | E11: =COUNTIF(GenDistnADSv2.1[Unit Name],GeneratorListADSv2.1[[#This Row],[Name]]) -> 27 | F11: =GeneratorListADSv2.1[[#This Row],[ADS PCM Max Cap]]-GeneratorListADSv2.1[[#This Row],[PF Pmax]] -> 2526 | G11: =GeneratorListADSv2.1[[#This Row],[ADS PCM Max Cap]]-MAX(GeneratorListADSv2.1[[#This Row],[L&R Update Summer Cap]:[L&R Update Nameplate]]) -> 2525.71 | H11: =GeneratorListADSv2.1[[#This Row],[MaxCap (MW)]] -> 2614 | I11: =IF(GeneratorListADSv2.1[[#This Row],[Index in PF Table v7]]=0,0,INDEX(ADS32HS1PFv7[PMAX],GeneratorListADSv2.1[[#This Row],[Index in PF Table v7]])) -> 88 | J11: =IFERROR(IF(GeneratorListADSv2.1[[#This Row],[Index in L&R Update Mapping]]>0,1*INDEX(LnRUpdate[Summer Cap (MW)],GeneratorListADSv2.1[[#This Row],[Index in L&R Update Mapping]]),0),1*INDEX(LnRUpdate[L&R Nameplate (MW)],GeneratorListADSv2.1[[#This Row],[Index in L&R Update Mapping]])) -> 88.29 | K11: =IFERROR(IF(GeneratorListADSv2.1[[#This Row],[Index in L&R Update Mapping]]>0,1*INDEX(LnRUpdate[Winter Cap (MW)],GeneratorListADSv2.1[[#This Row],[Index in L&R Update Mapping]]),0),1*INDEX(LnRUpdate[L&R Nameplate (MW)],GeneratorListADSv2.1[[#This Row],[Index in L&R Update Mapping]])) -> 88.29 | L11: =IF(GeneratorListADSv2.1[[#This Row],[Index in L&R Update Mapping]]>0,1*INDEX(LnRUpdate[L&R Nameplate (MW)],GeneratorListADSv2.1[[#This Row],[Index in L&R Update Mapping]]),0) -> 88.2 | M11: =IFERROR(IF(GeneratorListADSv2.1[[#This Row],[Index in L&R Mapping]]>0,1*INDEX(MappingLandR[Summer Cap (MW)],GeneratorListADSv2.1[[#This Row],[Index in L&R Mapping]]),0),1*INDEX(MappingLandR[L&R Nameplate (MW)],GeneratorListADSv2.1[[#This Row],[Index in L&R Mapping]])) -> 88.29 | N11: =IFERROR(IF(GeneratorListADSv2.1[[#This Row],[Index in L&R Mapping]]>0,1*INDEX(MappingLandR[Winter Cap (MW)],GeneratorListADSv2.1[[#This Row],[Index in L&R Mapping]]),0),1*INDEX(MappingLandR[L&R Nameplate (MW)],GeneratorListADSv2.1[[#This Row],[Index in L&R Mapping]])) -> 88.29 | O11: =IF(GeneratorListADSv2.1[[#This Row],[Index in L&R Mapping]]>0,1*INDEX(MappingLandR[L&R Nameplate (MW)],GeneratorListADSv2.1[[#This Row],[Index in L&R Mapping]]),0) -> 88.2 | W11: =IFERROR(MATCH(GeneratorListADSv2.1[[#This Row],[Bus ID]],Buses32HS1[BUS-NO],0),0) -> 10844 | X11: =IFERROR(MATCH(GeneratorListADSv2.1[[#This Row],[Name]],LnRUpdate[2032 ADS PCM Generator Name],0),0) -> 2399 | Y11: =IFERROR(MATCH(GeneratorListADSv2.1[[#This Row],[Name]],MappingLandR[2032 ADS PCM Generator Name],0),0) -> 2399 | Z11: =IFERROR(MATCH(GeneratorListADSv2.1[[#This Row],[BusNo-UnitID]],ADS32HS1PFv7[BusNo-UnitID],0),0) -> 1910 | AA11: =GeneratorListADSv2.1[[#This Row],[Bus ID]] & "_" & MID(GeneratorListADSv2.1[[#This Row],[Unit ID]],2,10) -> 44141_1 | AB11: =AND(GeneratorListADSv2.1[[#This Row],[Service Status]],GeneratorListADSv2.1[[#This Row],[Commission Date]]<DATEVALUE("1/1/2033"),GeneratorListADSv2.1[[#This Row],[Retirement Date]]>DATEVALUE("12/31/2031")) -> TRUE | AC11: =LEN(GeneratorListADSv2.1[[#This Row],[Name]]) -> 12 | AD11: 14142 | AE11: Chief Joseph | AF11: 44141 | AG11: CHEF_JO_0102 | AH11: 13.8 | AI11: '1 | AJ11: 2 | AK11: Hydro | AL11: WA-3921-Agg Plant | AM11: Chief Joseph-1 | AN11: TRUE | AO11: 1958-10-01 | AP11: 2050-12-31 | AQ11: Existing | AR11: BPAT | AS11: NW_BPAT | AT11: 0 | AU11: 2614 | AV11: 0 | AW11: YES | AX11: WA | AY11: NA | AZ11: NA | BA11: NA | BB11: Water | BC11: N/A | BD11: FALSE | BE11: NA
D12: =IF(SUBTOTAL(103,GeneratorListADSv2.1[[#This Row],[Name]])=1,1,0) -> 0 | E12: =COUNTIF(GenDistnADSv2.1[Unit Name],GeneratorListADSv2.1[[#This Row],[Name]]) -> 16 | F12: =GeneratorListADSv2.1[[#This Row],[ADS PCM Max Cap]]-GeneratorListADSv2.1[[#This Row],[PF Pmax]] -> 2328 | G12: =GeneratorListADSv2.1[[#This Row],[ADS PCM Max Cap]]-MAX(GeneratorListADSv2.1[[#This Row],[L&R Update Summer Cap]:[L&R Update Nameplate]]) -> 2349 | H12: =GeneratorListADSv2.1[[#This Row],[MaxCap (MW)]] -> 2484 | I12: =IF(GeneratorListADSv2.1[[#This Row],[Index in PF Table v7]]=0,0,INDEX(ADS32HS1PFv7[PMAX],GeneratorListADSv2.1[[#This Row],[Index in PF Table v7]])) -> 156 | J12: =IFERROR(IF(GeneratorListADSv2.1[[#This Row],[Index in L&R Update Mapping]]>0,1*INDEX(LnRUpdate[Summer Cap (MW)],GeneratorListADSv2.1[[#This Row],[Index in L&R Update Mapping]]),0),1*INDEX(LnRUpdate[L&R Nameplate (MW)],GeneratorListADSv2.1[[#This Row],[Index in L&R Update Mapping]])) -> 135 | K12: =IFERROR(IF(GeneratorListADSv2.1[[#This Row],[Index in L&R Update Mapping]]>0,1*INDEX(LnRUpdate[Winter Cap (MW)],GeneratorListADSv2.1[[#This Row],[Index in L&R Update Mapping]]),0),1*INDEX(LnRUpdate[L&R Nameplate (MW)],GeneratorListADSv2.1[[#This Row],[Index in L&R Update Mapping]])) -> 135 | L12: =IF(GeneratorListADSv2.1[[#This Row],[Index in L&R Update Mapping]]>0,1*INDEX(LnRUpdate[L&R Nameplate (MW)],GeneratorListADSv2.1[[#This Row],[Index in L&R Update Mapping]]),0) -> 135 | M12: =IFERROR(IF(GeneratorListADSv2.1[[#This Row],[Index in L&R Mapping]]>0,1*INDEX(MappingLandR[Summer Cap (MW)],GeneratorListADSv2.1[[#This Row],[Index in L&R Mapping]]),0),1*INDEX(MappingLandR[L&R Nameplate (MW)],GeneratorListADSv2.1[[#This Row],[Index in L&R Mapping]])) -> 135 | N12: =IFERROR(IF(GeneratorListADSv2.1[[#This Row],[Index in L&R Mapping]]>0,1*INDEX(MappingLandR[Winter Cap (MW)],GeneratorListADSv2.1[[#This Row],[Index in L&R Mapping]]),0),1*INDEX(MappingLandR[L&R Nameplate (MW)],GeneratorListADSv2.1[[#This Row],[Index in L&R Mapping]])) -> 135 | O12: =IF(GeneratorListADSv2.1[[#This Row],[Index in L&R Mapping]]>0,1*INDEX(MappingLandR[L&R Nameplate (MW)],GeneratorListADSv2.1[[#This Row],[Index in L&R Mapping]]),0) -> 135 | W12: =IFERROR(MATCH(GeneratorListADSv2.1[[#This Row],[Bus ID]],Buses32HS1[BUS-NO],0),0) -> 10800 | X12: =IFERROR(MATCH(GeneratorListADSv2.1[[#This Row],[Name]],LnRUpdate[2032 ADS PCM Generator Name],0),0) -> 2369 | Y12: =IFERROR(MATCH(GeneratorListADSv2.1[[#This Row],[Name]],MappingLandR[2032 ADS PCM Generator Name],0),0) -> 2369 | Z12: =IFERROR(MATCH(GeneratorListADSv2.1[[#This Row],[BusNo-UnitID]],ADS32HS1PFv7[BusNo-UnitID],0),0) -> 1880 | AA12: =GeneratorListADSv2.1[[#This Row],[Bus ID]] & "_" & MID(GeneratorListADSv2.1[[#This Row],[Unit ID]],2,10) -> 44071_1 | AB12: =AND(GeneratorListADSv2.1[[#This Row],[Service Status]],GeneratorListADSv2.1[[#This Row],[Commission Date]]<DATEVALUE("1/1/2033"),GeneratorListADSv2.1[[#This Row],[Retirement Date]]>DATEVALUE("12/31/2031")) -> TRUE | AC12: =LEN(GeneratorListADSv2.1[[#This Row],[Name]]) -> 8 | AD12: 14144 | AE12: John Day | AF12: 44071 | AG12: JOHNDAY_0102 | AH12: 13.8 | AI12: '1 | AJ12: 2 | AK12: Hydro | AL12: OR-3082-Agg Plant | AM12: John Day | AN12: TRUE | AO12: 1968-08-01 | AP12: 2050-12-31 | AQ12: Existing | AR12: BPAT | AS12: NW_BPAT | AT12: 0 | AU12: 2484 | AV12: 0 | AW12: YES | AX12: OR | AY12: NA | AZ12: NA | BA12: NA | BB12: Water | BC12: N/A | BD12: FALSE | BE12: NA
D13: =IF(SUBTOTAL(103,GeneratorListADSv2.1[[#This Row],[Name]])=1,1,0) -> 0 | E13: =COUNTIF(GenDistnADSv2.1[Unit Name],GeneratorListADSv2.1[[#This Row],[Name]]) -> 0 | F13: =GeneratorListADSv2.1[[#This Row],[ADS PCM Max Cap]]-GeneratorListADSv2.1[[#This Row],[PF Pmax]] -> 16 | G13: =GeneratorListADSv2.1[[#This Row],[ADS PCM Max Cap]]-MAX(GeneratorListADSv2.1[[#This Row],[L&R Update Summer Cap]:[L&R Update Nameplate]]) -> 411 | H13: =GeneratorListADSv2.1[[#This Row],[MaxCap (MW)]] -> 411 | I13: =IF(GeneratorListADSv2.1[[#This Row],[Index in PF Table v7]]=0,0,INDEX(ADS32HS1PFv7[PMAX],GeneratorListADSv2.1[[#This Row],[Index in PF Table v7]])) -> 395 | J13: =IFERROR(IF(GeneratorListADSv2.1[[#This Row],[Index in L&R Update Mapping]]>0,1*INDEX(LnRUpdate[Summer Cap (MW)],GeneratorListADSv2.1[[#This Row],[Index in L&R Update Mapping]]),0),1*INDEX(LnRUpdate[L&R Nameplate (MW)],GeneratorListADSv2.1[[#This Row],[Index in L&R Update Mapping]])) -> 0 | K13: =IFERROR(IF(GeneratorListADSv2.1[[#This Row],[Index in L&R Update Mapping]]>0,1*INDEX(LnRUpdate[Winter Cap (MW)],GeneratorListADSv2.1[[#This Row],[Index in L&R Update Mapping]]),0),1*INDEX(LnRUpdate[L&R Nameplate (MW)],GeneratorListADSv2.1[[#This Row],[Index in L&R Update Mapping]])) -> 0 | L13: =IF(GeneratorListADSv2.1[[#This Row],[Index in L&R Update Mapping]]>0,1*INDEX(LnRUpdate[L&R Nameplate (MW)],GeneratorListADSv2.1[[#This Row],[Index in L&R Update Mapping]]),0) -> 0 | M13: =IFERROR(IF(GeneratorListADSv2.1[[#This Row],[Index in L&R Mapping]]>0,1*INDEX(MappingLandR[Summer Cap (MW)],GeneratorListADSv2.1[[#This Row],[Index in L&R Mapping]]),0),1*INDEX(MappingLandR[L&R Nameplate (MW)],GeneratorListADSv2.1[[#This Row],[Index in L&R Mapping]])) -> 0 | N13: =IFERROR(IF(GeneratorListADSv2.1[[#This Row],[Index in L&R Mapping]]>0,1*INDEX(MappingLandR[Winter Cap (MW)],GeneratorListADSv2.1[[#This Row],[Index in L&R Mapping]]),0),1*INDEX(MappingLandR[L&R Nameplate (MW)],GeneratorListADSv2.1[[#This Row],[Index in L&R Mapping]])) -> 0 | O13: =IF(GeneratorListADSv2.1[[#This Row],[Index in L&R Mapping]]>0,1*INDEX(MappingLandR[L&R Nameplate (MW)],GeneratorListADSv2.1[[#This Row],[Index in L&R Mapping]]),0) -> 0 | W13: =IFERROR(MATCH(GeneratorListADSv2.1[[#This Row],[Bus ID]],Buses32HS1[BUS-NO],0),0) -> 25079 | X13: =IFERROR(MATCH(GeneratorListADSv2.1[[#This Row],[Name]],LnRUpdate[2032 ADS PCM Generator Name],0),0) -> 0 | Y13: =IFERROR(MATCH(GeneratorListADSv2.1[[#This Row],[Name]],MappingLandR[2032 ADS PCM Generator Name],0),0) -> 0 | Z13: =IFERROR(MATCH(GeneratorListADSv2.1[[#This Row],[BusNo-UnitID]],ADS32HS1PFv7[BusNo-UnitID],0),0) -> 447 | AA13: =GeneratorListADSv2.1[[#This Row],[Bus ID]] & "_" & MID(GeneratorListADSv2.1[[#This Row],[Unit ID]],2,10) -> 570007_G1 | AB13: =AND(GeneratorListADSv2.1[[#This Row],[Service Status]],GeneratorListADSv2.1[[#This Row],[Commission Date]]<DATEVALUE("1/1/2033"),GeneratorListADSv2.1[[#This Row],[Retirement Date]]>DATEVALUE("12/31/2031")) -> FALSE | AC13: =LEN(GeneratorListADSv2.1[[#This Row],[Name]]) -> 14 | AD13: 15660 | AE13: Keephills1_Gas | AF13: 570007 | AG13: KEEP#1GN | AH13: 19 | AI13: 'G1 | AJ13: 1 | AK13: ST-NatGas | AL13: AB-N/A-N/A | AM13: PFnoLAR_CoolwtrCC3 (Total CC Plant) | AN13: FALSE | AO13: 2021-12-30 | AP13: 2022-01-01 | AQ13: Retired | AR13: AESO | AS13: AB_AESO | AT13: 164.4 | AU13: 411 | AV13: 38.9 | AW13: YES | AX13: AB | AY13: NA | AZ13: NA | BA13: NA | BB13: NG | BC13: Industrial | BD13: FALSE | BE13: NA
D14: =IF(SUBTOTAL(103,GeneratorListADSv2.1[[#This Row],[Name]])=1,1,0) -> 0 | E14: =COUNTIF(GenDistnADSv2.1[Unit Name],GeneratorListADSv2.1[[#This Row],[Name]]) -> 0 | F14: =GeneratorListADSv2.1[[#This Row],[ADS PCM Max Cap]]-GeneratorListADSv2.1[[#This Row],[PF Pmax]] -> -11 | G14: =GeneratorListADSv2.1[[#This Row],[ADS PCM Max Cap]]-MAX(GeneratorListADSv2.1[[#This Row],[L&R Update Summer Cap]:[L&R Update Nameplate]]) -> 395 | H14: =GeneratorListADSv2.1[[#This Row],[MaxCap (MW)]] -> 395 | I14: =IF(GeneratorListADSv2.1[[#This Row],[Index in PF Table v7]]=0,0,INDEX(ADS32HS1PFv7[PMAX],GeneratorListADSv2.1[[#This Row],[Index in PF Table v7]])) -> 406 | J14: =IFERROR(IF(GeneratorListADSv2.1[[#This Row],[Index in L&R Update Mapping]]>0,1*INDEX(LnRUpdate[Summer Cap (MW)],GeneratorListADSv2.1[[#This Row],[Index in L&R Update Mapping]]),0),1*INDEX(LnRUpdate[L&R Nameplate (MW)],GeneratorListADSv2.1[[#This Row],[Index in L&R Update Mapping]])) -> 0 | K14: =IFERROR(IF(GeneratorListADSv2.1[[#This Row],[Index in L&R Update Mapping]]>0,1*INDEX(LnRUpdate[Winter Cap (MW)],GeneratorListADSv2.1[[#This Row],[Index in L&R Update Mapping]]),0),1*INDEX(LnRUpdate[L&R Nameplate (MW)],GeneratorListADSv2.1[[#This Row],[Index in L&R Update Mapping]])) -> 0 | L14: =IF(GeneratorListADSv2.1[[#This Row],[Index in L&R Update Mapping]]>0,1*INDEX(LnRUpdate[L&R Nameplate (MW)],GeneratorListADSv2.1[[#This Row],[Index in L&R Update Mapping]]),0) -> 0 | M14: =IFERROR(IF(GeneratorListADSv2.1[[#This Row],[Index in L&R Mapping]]>0,1*INDEX(MappingLandR[Summer Cap (MW)],GeneratorListADSv2.1[[#This Row],[Index in L&R Mapping]]),0),1*INDEX(MappingLandR[L&R Nameplate (MW)],GeneratorListADSv2.1[[#This Row],[Index in L&R Mapping]])) -> 0 | N14: =IFERROR(IF(GeneratorListADSv2.1[[#This Row],[Index in L&R Mapping]]>0,1*INDEX(MappingLandR[Winter Cap (MW)],GeneratorListADSv2.1[[#This Row],[Index in L&R Mapping]]),0),1*INDEX(MappingLandR[L&R Nameplate (MW)],GeneratorListADSv2.1[[#This Row],[Index in L&R Mapping]])) -> 0 | O14: =IF(GeneratorListADSv2.1[[#This Row],[Index in L&R Mapping]]>0,1*INDEX(MappingLandR[L&R Nameplate (MW)],GeneratorListADSv2.1[[#This Row],[Index in L&R Mapping]]),0) -> 0 | W14: =IFERROR(MATCH(GeneratorListADSv2.1[[#This Row],[Bus ID]],Buses32HS1[BUS-NO],0),0) -> 15981 | X14: =IFERROR(MATCH(GeneratorListADSv2.1[[#This Row],[Name]],LnRUpdate[2032 ADS PCM Generator Name],0),0) -> 0 | Y14: =IFERROR(MATCH(GeneratorListADSv2.1[[#This Row],[Name]],MappingLandR[2032 ADS PCM Generator Name],0),0) -> 0 | Z14: =IFERROR(MATCH(GeneratorListADSv2.1[[#This Row],[BusNo-UnitID]],ADS32HS1PFv7[BusNo-UnitID],0),0) -> 139 | AA14: =GeneratorListADSv2.1[[#This Row],[Bus ID]] & "_" & MID(GeneratorListADSv2.1[[#This Row],[Unit ID]],2,10) -> 56003_G4 | AB14: =AND(GeneratorListADSv2.1[[#This Row],[Service Status]],GeneratorListADSv2.1[[#This Row],[Commission Date]]<DATEVALUE("1/1/2033"),GeneratorListADSv2.1[[#This Row],[Retirement Date]]>DATEVALUE("12/31/2031")) -> FALSE | AC14: =LEN(GeneratorListADSv2.1[[#This Row],[Name]]) -> 17 | AD14: 16894 | AE14: Sundance AB 4 Gas | AF14: 56003 | AG14: SUND#4GN | AH14: 20 | AI14: 'G4 | AJ14: 1 | AK14: ST-NatGas | AL14: NA | AM14: Sundance AB 4 Gas | AN14: TRUE | AO14: 2022-01-01 | AP14: 2022-04-01 | AQ14: Retired | AR14: AESO | AS14: AB_AESO | AT14: 155.5 | AU14: 395 | AV14: 0 | AW14: YES | AX14: AB | AY14: NA | AZ14: NA | BA14: NA | BB14: NG | BC14: N/A | BD14: FALSE | BE14: NA
D15: =IF(SUBTOTAL(103,GeneratorListADSv2.1[[#This Row],[Name]])=1,1,0) -> 0 | E15: =COUNTIF(GenDistnADSv2.1[Unit Name],GeneratorListADSv2.1[[#This Row],[Name]]) -> 0 | F15: =GeneratorListADSv2.1[[#This Row],[ADS PCM Max Cap]]-GeneratorListADSv2.1[[#This Row],[PF Pmax]] -> 0 | G15: =GeneratorListADSv2.1[[#This Row],[ADS PCM Max Cap]]-MAX(GeneratorListADSv2.1[[#This Row],[L&R Update Summer Cap]:[L&R Update Nameplate]]) -> 385 | H15: =GeneratorListADSv2.1[[#This Row],[MaxCap (MW)]] -> 385 | I15: =IF(GeneratorListADSv2.1[[#This Row],[Index in PF Table v7]]=0,0,INDEX(ADS32HS1PFv7[PMAX],GeneratorListADSv2.1[[#This Row],[Index in PF Table v7]])) -> 385 | J15: =IFERROR(IF(GeneratorListADSv2.1[[#This Row],[Index in L&R Update Mapping]]>0,1*INDEX(LnRUpdate[Summer Cap (MW)],GeneratorListADSv2.1[[#This Row],[Index in L&R Update Mapping]]),0),1*INDEX(LnRUpdate[L&R Nameplate (MW)],GeneratorListADSv2.1[[#This Row],[Index in L&R Update Mapping]])) -> 0 | K15: =IFERROR(IF(GeneratorListADSv2.1[[#This Row],[Index in L&R Update Mapping]]>0,1*INDEX(LnRUpdate[Winter Cap (MW)],GeneratorListADSv2.1[[#This Row],[Index in L&R Update Mapping]]),0),1*INDEX(LnRUpdate[L&R Nameplate (MW)],GeneratorListADSv2.1[[#This Row],[Index in L&R Update Mapping]])) -> 0 | L15: =IF(GeneratorListADSv2.1[[#This Row],[Index in L&R Update Mapping]]>0,1*INDEX(LnRUpdate[L&R Nameplate (MW)],GeneratorListADSv2.1[[#This Row],[Index in L&R Update Mapping]]),0) -> 0 | M15: =IFERROR(IF(GeneratorListADSv2.1[[#This Row],[Index in L&R Mapping]]>0,1*INDEX(MappingLandR[Summer Cap (MW)],GeneratorListADSv2.1[[#This Row],[Index in L&R Mapping]]),0),1*INDEX(MappingLandR[L&R Nameplate (MW)],GeneratorListADSv2.1[[#This Row],[Index in L&R Mapping]])) -> 0 | N15: =IFERROR(IF(GeneratorListADSv2.1[[#This Row],[Index in L&R Mapping]]>0,1*INDEX(MappingLandR[Winter Cap (MW)],GeneratorListADSv2.1[[#This Row],[Index in L&R Mapping]]),0),1*INDEX(MappingLandR[L&R Nameplate (MW)],GeneratorListADSv2.1[[#This Row],[Index in L&R Mapping]])) -> 0 | O15: =IF(GeneratorListADSv2.1[[#This Row],[Index in L&R Mapping]]>0,1*INDEX(MappingLandR[L&R Nameplate (MW)],GeneratorListADSv2.1[[#This Row],[Index in L&R Mapping]]),0) -> 0 | W15: =IFERROR(MATCH(GeneratorListADSv2.1[[#This Row],[Bus ID]],Buses32HS1[BUS-NO],0),0) -> 16536 | X15: =IFERROR(MATCH(GeneratorListADSv2.1[[#This Row],[Name]],LnRUpdate[2032 ADS PCM Generator Name],0),0) -> 0 | Y15: =IFERROR(MATCH(GeneratorListADSv2.1[[#This Row],[Name]],MappingLandR[2032 ADS PCM Generator Name],0),0) -> 0 | Z15: =IFERROR(MATCH(GeneratorListADSv2.1[[#This Row],[BusNo-UnitID]],ADS32HS1PFv7[BusNo-UnitID],0),0) -> 377 | AA15: =GeneratorListADSv2.1[[#This Row],[Bus ID]] & "_" & MID(GeneratorListADSv2.1[[#This Row],[Unit ID]],2,10) -> 59973_G5 | AB15: =AND(GeneratorListADSv2.1[[#This Row],[Service Status]],GeneratorListADSv2.1[[#This Row],[Commission Date]]<DATEVALUE("1/1/2033"),GeneratorListADSv2.1[[#This Row],[Retirement Date]]>DATEVALUE("12/31/2031")) -> FALSE | AC15: =LEN(GeneratorListADSv2.1[[#This Row],[Name]]) -> 18 | AD15: 16891 | AE15: Battle River 5 Gas | AF15: 59973 | AG15: BAT #5 | AH15: 21 | AI15: 'G5 | AJ15: 1 | AK15: ST-NatGas | AL15: AB-N/A-N/A | AM15: Battle River 5 Gas | AN15: TRUE | AO15: 2020-12-01 | AP15: 2021-01-01 | AQ15: Existing | AR15: AESO | AS15: AB_AESO | AT15: 154 | AU15: 385 | AV15: 0 | AW15: YES | AX15: AB | AY15: NA | AZ15: NA | BA15: NA | BB15: NG | BC15: Industrial | BD15: FALSE | BE15: NA
D16: =IF(SUBTOTAL(103,GeneratorListADSv2.1[[#This Row],[Name]])=1,1,0) -> 0 | E16: =COUNTIF(GenDistnADSv2.1[Unit Name],GeneratorListADSv2.1[[#This Row],[Name]]) -> 17 | F16: =GeneratorListADSv2.1[[#This Row],[ADS PCM Max Cap]]-GeneratorListADSv2.1[[#This Row],[PF Pmax]] -> 2265.535 | G16: =GeneratorListADSv2.1[[#This Row],[ADS PCM Max Cap]]-MAX(GeneratorListADSv2.1[[#This Row],[L&R Update Summer Cap]:[L&R Update Nameplate]]) -> 2265.535 | H16: =GeneratorListADSv2.1[[#This Row],[MaxCap (MW)]] -> 2265.535 | I16: =IF(GeneratorListADSv2.1[[#This Row],[Index in PF Table v7]]=0,0,INDEX(ADS32HS1PFv7[PMAX],GeneratorListADSv2.1[[#This Row],[Index in PF Table v7]])) -> 0 | J16: =IFERROR(IF(GeneratorListADSv2.1[[#This Row],[Index in L&R Update Mapping]]>0,1*INDEX(LnRUpdate[Summer Cap (MW)],GeneratorListADSv2.1[[#This Row],[Index in L&R Update Mapping]]),0),1*INDEX(LnRUpdate[L&R Nameplate (MW)],GeneratorListADSv2.1[[#This Row],[Index in L&R Update Mapping]])) -> 0 | K16: =IFERROR(IF(GeneratorListADSv2.1[[#This Row],[Index in L&R Update Mapping]]>0,1*INDEX(LnRUpdate[Winter Cap (MW)],GeneratorListADSv2.1[[#This Row],[Index in L&R Update Mapping]]),0),1*INDEX(LnRUpdate[L&R Nameplate (MW)],GeneratorListADSv2.1[[#This Row],[Index in L&R Update Mapping]])) -> 0 | L16: =IF(GeneratorListADSv2.1[[#This Row],[Index in L&R Update Mapping]]>0,1*INDEX(LnRUpdate[L&R Nameplate (MW)],GeneratorListADSv2.1[[#This Row],[Index in L&R Update Mapping]]),0) -> 0 | M16: =IFERROR(IF(GeneratorListADSv2.1[[#This Row],[Index in L&R Mapping]]>0,1*INDEX(MappingLandR[Summer Cap (MW)],GeneratorListADSv2.1[[#This Row],[Index in L&R Mapping]]),0),1*INDEX(MappingLandR[L&R Nameplate (MW)],GeneratorListADSv2.1[[#This Row],[Index in L&R Mapping]])) -> 0 | N16: =IFERROR(IF(GeneratorListADSv2.1[[#This Row],[Index in L&R Mapping]]>0,1*INDEX(MappingLandR[Winter Cap (MW)],GeneratorListADSv2.1[[#This Row],[Index in L&R Mapping]]),0),1*INDEX(MappingLandR[L&R Nameplate (MW)],GeneratorListADSv2.1[[#This Row],[Index in L&R Mapping]])) -> 0 | O16: =IF(GeneratorListADSv2.1[[#This Row],[Index in L&R Mapping]]>0,1*INDEX(MappingLandR[L&R Nameplate (MW)],GeneratorListADSv2.1[[#This Row],[Index in L&R Mapping]]),0) -> 0 | W16: =IFERROR(MATCH(GeneratorListADSv2.1[[#This Row],[Bus ID]],Buses32HS1[BUS-NO],0),0) -> 3308 | X16: =IFERROR(MATCH(GeneratorListADSv2.1[[#This Row],[Name]],LnRUpdate[2032 ADS PCM Generator Name],0),0) -> 0 | Y16: =IFERROR(MATCH(GeneratorListADSv2.1[[#This Row],[Name]],MappingLandR[2032 ADS PCM Generator Name],0),0) -> 0 | Z16: =IFERROR(MATCH(GeneratorListADSv2.1[[#This Row],[BusNo-UnitID]],ADS32HS1PFv7[BusNo-UnitID],0),0) -> 0 | AA16: =GeneratorListADSv2.1[[#This Row],[Bus ID]] & "_" & MID(GeneratorListADSv2.1[[#This Row],[Unit ID]],2,10) -> 24028_J8 | AB16: =AND(GeneratorListADSv2.1[[#This Row],[Service Status]],GeneratorListADSv2.1[[#This Row],[Commission Date]]<DATEVALUE("1/1/2033"),GeneratorListADSv2.1[[#This Row],[Retirement Date]]>DATEVALUE("12/31/2031")) -> TRUE | AC16: =LEN(GeneratorListADSv2.1[[#This Row],[Name]]) -> 26 | AD16: 18746 | AE16: DG-BTM_CISC_CA_Los Angeles | AF16: 24028 | AG16: DELAMO | AH16: 66 | AI16: 'J8 | AJ16: 4 | AK16: DG-BTM | AL16: G0-- | AM16: DG-BTM_CISC_CA_Los Angeles | AN16: TRUE | AO16: 2023-04-15 | AP16: 2050-01-01 | AQ16: Future-Conceptual | AR16: CISC | AS16: CA_CISO | AT16: 0 | AU16: 2265.535 | AV16: 0 | AW16: YES | AX16: ID | AY16: NA | AZ16: NA | BA16: NA | BB16: Solar | BC16: N/A | BD16: TRUE | BE16: NA
D17: =IF(SUBTOTAL(103,GeneratorListADSv2.1[[#This Row],[Name]])=1,1,0) -> 0 | E17: =COUNTIF(GenDistnADSv2.1[Unit Name],GeneratorListADSv2.1[[#This Row],[Name]]) -> 374 | F17: =GeneratorListADSv2.1[[#This Row],[ADS PCM Max Cap]]-GeneratorListADSv2.1[[#This Row],[PF Pmax]] -> 1985.339 | G17: =GeneratorListADSv2.1[[#This Row],[ADS PCM Max Cap]]-MAX(GeneratorListADSv2.1[[#This Row],[L&R Update Summer Cap]:[L&R Update Nameplate]]) -> 1985.339 | H17: =GeneratorListADSv2.1[[#This Row],[MaxCap (MW)]] -> 1985.339 | I17: =IF(GeneratorListADSv2.1[[#This Row],[Index in PF Table v7]]=0,0,INDEX(ADS32HS1PFv7[PMAX],GeneratorListADSv2.1[[#This Row],[Index in PF Table v7]])) -> 0 | J17: =IFERROR(IF(GeneratorListADSv2.1[[#This Row],[Index in L&R Update Mapping]]>0,1*INDEX(LnRUpdate[Summer Cap (MW)],GeneratorListADSv2.1[[#This Row],[Index in L&R Update Mapping]]),0),1*INDEX(LnRUpdate[L&R Nameplate (MW)],GeneratorListADSv2.1[[#This Row],[Index in L&R Update Mapping]])) -> 0 | K17: =IFERROR(IF(GeneratorListADSv2.1[[#This Row],[Index in L&R Update Mapping]]>0,1*INDEX(LnRUpdate[Winter Cap (MW)],GeneratorListADSv2.1[[#This Row],[Index in L&R Update Mapping]]),0),1*INDEX(LnRUpdate[L&R Nameplate (MW)],GeneratorListADSv2.1[[#This Row],[Index in L&R Update Mapping]])) -> 0 | L17: =IF(GeneratorListADSv2.1[[#This Row],[Index in L&R Update Mapping]]>0,1*INDEX(LnRUpdate[L&R Nameplate (MW)],GeneratorListADSv2.1[[#This Row],[Index in L&R Update Mapping]]),0) -> 0 | M17: =IFERROR(IF(GeneratorListADSv2.1[[#This Row],[Index in L&R Mapping]]>0,1*INDEX(MappingLandR[Summer Cap (MW)],GeneratorListADSv2.1[[#This Row],[Index in L&R Mapping]]),0),1*INDEX(MappingLandR[L&R Nameplate (MW)],GeneratorListADSv2.1[[#This Row],[Index in L&R Mapping]])) -> 0 | N17: =IFERROR(IF(GeneratorListADSv2.1[[#This Row],[Index in L&R Mapping]]>0,1*INDEX(MappingLandR[Winter Cap (MW)],GeneratorListADSv2.1[[#This Row],[Index in L&R Mapping]]),0),1*INDEX(MappingLandR[L&R Nameplate (MW)],GeneratorListADSv2.1[[#This Row],[Index in L&R Mapping]])) -> 0 | O17: =IF(GeneratorListADSv2.1[[#This Row],[Index in L&R Mapping]]>0,1*INDEX(MappingLandR[L&R Nameplate (MW)],GeneratorListADSv2.1[[#This Row],[Index in L&R Mapping]]),0) -> 0 | W17: =IFERROR(MATCH(GeneratorListADSv2.1[[#This Row],[Bus ID]],Buses32HS1[BUS-NO],0),0) -> 23048 | X17: =IFERROR(MATCH(GeneratorListADSv2.1[[#This Row],[Name]],LnRUpdate[2032 ADS PCM Generator Name],0),0) -> 0 | Y17: =IFERROR(MATCH(GeneratorListADSv2.1[[#This Row],[Name]],MappingLandR[2032 ADS PCM Generator Name],0),0) -> 0 | Z17: =IFERROR(MATCH(GeneratorListADSv2.1[[#This Row],[BusNo-UnitID]],ADS32HS1PFv7[BusNo-UnitID],0),0) -> 0 | AA17: =GeneratorListADSv2.1[[#This Row],[Bus ID]] & "_" & MID(GeneratorListADSv2.1[[#This Row],[Unit ID]],2,10) -> 85439_X3 | AB17: =AND(GeneratorListADSv2.1[[#This Row],[Service Status]],GeneratorListADSv2.1[[#This Row],[Commission Date]]<DATEVALUE("1/1/2033"),GeneratorListADSv2.1[[#This Row],[Retirement Date]]>DATEVALUE("12/31/2031")) -> TRUE | AC17: =LEN(GeneratorListADSv2.1[[#This Row],[Name]]) -> 23 | AD17: 18611 | AE17: DG-BTM_AZPS_AZ_Maricopa | AF17: 85439 | AG17: FLORES | AH17: 12.5 | AI17: 'X3 | AJ17: 4 | AK17: DG-BTM | AL17: G0-- | AM17: DG-BTM_AZPS_AZ_Maricopa | AN17: TRUE | AO17: 2023-04-15 | AP17: 2050-01-01 | AQ17: Future-Conceptual | AR17: AZPS | AS17: SW_AZPS | AT17: 0 | AU17: 1985.339 | AV17: 0 | AW17: YES | AX17: ID | AY17: NA | AZ17: NA | BA17: NA | BB17: Solar | BC17: N/A | BD17: TRUE | BE17: NA
D18: =IF(SUBTOTAL(103,GeneratorListADSv2.1[[#This Row],[Name]])=1,1,0) -> 0 | E18: =COUNTIF(GenDistnADSv2.1[Unit Name],GeneratorListADSv2.1[[#This Row],[Name]]) -> 24 | F18: =GeneratorListADSv2.1[[#This Row],[ADS PCM Max Cap]]-GeneratorListADSv2.1[[#This Row],[PF Pmax]] -> 1953.58 | G18: =GeneratorListADSv2.1[[#This Row],[ADS PCM Max Cap]]-MAX(GeneratorListADSv2.1[[#This Row],[L&R Update Summer Cap]:[L&R Update Nameplate]]) -> 1970 | H18: =GeneratorListADSv2.1[[#This Row],[MaxCap (MW)]] -> 2048 | I18: =IF(GeneratorListADSv2.1[[#This Row],[Index in PF Table v7]]=0,0,INDEX(ADS32HS1PFv7[PMAX],GeneratorListADSv2.1[[#This Row],[Index in PF Table v7]])) -> 94.42 | J18: =IFERROR(IF(GeneratorListADSv2.1[[#This Row],[Index in L&R Update Mapping]]>0,1*INDEX(LnRUpdate[Summer Cap (MW)],GeneratorListADSv2.1[[#This Row],[Index in L&R Update Mapping]]),0),1*INDEX(LnRUpdate[L&R Nameplate (MW)],GeneratorListADSv2.1[[#This Row],[Index in L&R Update Mapping]])) -> 78 | K18: =IFERROR(IF(GeneratorListADSv2.1[[#This Row],[Index in L&R Update Mapping]]>0,1*INDEX(LnRUpdate[Winter Cap (MW)],GeneratorListADSv2.1[[#This Row],[Index in L&R Update Mapping]]),0),1*INDEX(LnRUpdate[L&R Nameplate (MW)],GeneratorListADSv2.1[[#This Row],[Index in L&R Update Mapping]])) -> 78 | L18: =IF(GeneratorListADSv2.1[[#This Row],[Index in L&R Update Mapping]]>0,1*INDEX(LnRUpdate[L&R Nameplate (MW)],GeneratorListADSv2.1[[#This Row],[Index in L&R Update Mapping]]),0) -> 78 | M18: =IFERROR(IF(GeneratorListADSv2.1[[#This Row],[Index in L&R Mapping]]>0,1*INDEX(MappingLandR[Summer Cap (MW)],GeneratorListADSv2.1[[#This Row],[Index in L&R Mapping]]),0),1*INDEX(MappingLandR[L&R Nameplate (MW)],GeneratorListADSv2.1[[#This Row],[Index in L&R Mapping]])) -> 78 | N18: =IFERROR(IF(GeneratorListADSv2.1[[#This Row],[Index in L&R Mapping]]>0,1*INDEX(MappingLandR[Winter Cap (MW)],GeneratorListADSv2.1[[#This Row],[Index in L&R Mapping]]),0),1*INDEX(MappingLandR[L&R Nameplate (MW)],GeneratorListADSv2.1[[#This Row],[Index in L&R Mapping]])) -> 78 | O18: =IF(GeneratorListADSv2.1[[#This Row],[Index in L&R Mapping]]>0,1*INDEX(MappingLandR[L&R Nameplate (MW)],GeneratorListADSv2.1[[#This Row],[Index in L&R Mapping]]),0) -> 78 | W18: =IFERROR(MATCH(GeneratorListADSv2.1[[#This Row],[Bus ID]],Buses32HS1[BUS-NO],0),0) -> 10782 | X18: =IFERROR(MATCH(GeneratorListADSv2.1[[#This Row],[Name]],LnRUpdate[2032 ADS PCM Generator Name],0),0) -> 2344 | Y18: =IFERROR(MATCH(GeneratorListADSv2.1[[#This Row],[Name]],MappingLandR[2032 ADS PCM Generator Name],0),0) -> 2344 | Z18: =IFERROR(MATCH(GeneratorListADSv2.1[[#This Row],[BusNo-UnitID]],ADS32HS1PFv7[BusNo-UnitID],0),0) -> 1856 | AA18: =GeneratorListADSv2.1[[#This Row],[Bus ID]] & "_" & MID(GeneratorListADSv2.1[[#This Row],[Unit ID]],2,10) -> 44041_1 | AB18: =AND(GeneratorListADSv2.1[[#This Row],[Service Status]],GeneratorListADSv2.1[[#This Row],[Commission Date]]<DATEVALUE("1/1/2033"),GeneratorListADSv2.1[[#This Row],[Retirement Date]]>DATEVALUE("12/31/2031")) -> TRUE | AC18: =LEN(GeneratorListADSv2.1[[#This Row],[Name]]) -> 10 | AD18: 14145 | AE18: The Dalles | AF18: 44041 | AG18: T_DALES_0102 | AH18: 13.8 | AI18: '1 | AJ18: 2 | AK18: Hydro | AL18: OR-3895-Agg Plant | AM18: The Dalles | AN18: TRUE | AO18: 1957-10-01 | AP18: 2050-12-31 | AQ18: Existing | AR18: BPAT | AS18: NW_BPAT | AT18: 0 | AU18: 2048 | AV18: 77.7 | AW18: YES | AX18: OR | AY18: NA | AZ18: NA | BA18: NA | BB18: Water | BC18: N/A | BD18: FALSE | BE18: NA
D19: =IF(SUBTOTAL(103,GeneratorListADSv2.1[[#This Row],[Name]])=1,1,0) -> 0 | E19: =COUNTIF(GenDistnADSv2.1[Unit Name],GeneratorListADSv2.1[[#This Row],[Name]]) -> 0 | F19: =GeneratorListADSv2.1[[#This Row],[ADS PCM Max Cap]]-GeneratorListADSv2.1[[#This Row],[PF Pmax]] -> -8 | G19: =GeneratorListADSv2.1[[#This Row],[ADS PCM Max Cap]]-MAX(GeneratorListADSv2.1[[#This Row],[L&R Update Summer Cap]:[L&R Update Nameplate]]) -> 222 | H19: =GeneratorListADSv2.1[[#This Row],[MaxCap (MW)]] -> 222 | I19: =IF(GeneratorListADSv2.1[[#This Row],[Index in PF Table v7]]=0,0,INDEX(ADS32HS1PFv7[PMAX],GeneratorListADSv2.1[[#This Row],[Index in PF Table v7]])) -> 230 | J19: =IFERROR(IF(GeneratorListADSv2.1[[#This Row],[Index in L&R Update Mapping]]>0,1*INDEX(LnRUpdate[Summer Cap (MW)],GeneratorListADSv2.1[[#This Row],[Index in L&R Update Mapping]]),0),1*INDEX(LnRUpdate[L&R Nameplate (MW)],GeneratorListADSv2.1[[#This Row],[Index in L&R Update Mapping]])) -> 0 | K19: =IFERROR(IF(GeneratorListADSv2.1[[#This Row],[Index in L&R Update Mapping]]>0,1*INDEX(LnRUpdate[Winter Cap (MW)],GeneratorListADSv2.1[[#This Row],[Index in L&R Update Mapping]]),0),1*INDEX(LnRUpdate[L&R Nameplate (MW)],GeneratorListADSv2.1[[#This Row],[Index in L&R Update Mapping]])) -> 0 | L19: =IF(GeneratorListADSv2.1[[#This Row],[Index in L&R Update Mapping]]>0,1*INDEX(LnRUpdate[L&R Nameplate (MW)],GeneratorListADSv2.1[[#This Row],[Index in L&R Update Mapping]]),0) -> 0 | M19: =IFERROR(IF(GeneratorListADSv2.1[[#This Row],[Index in L&R Mapping]]>0,1*INDEX(MappingLandR[Summer Cap (MW)],GeneratorListADSv2.1[[#This Row],[Index in L&R Mapping]]),0),1*INDEX(MappingLandR[L&R Nameplate (MW)],GeneratorListADSv2.1[[#This Row],[Index in L&R Mapping]])) -> 0 | N19: =IFERROR(IF(GeneratorListADSv2.1[[#This Row],[Index in L&R Mapping]]>0,1*INDEX(MappingLandR[Winter Cap (MW)],GeneratorListADSv2.1[[#This Row],[Index in L&R Mapping]]),0),1*INDEX(MappingLandR[L&R Nameplate (MW)],GeneratorListADSv2.1[[#This Row],[Index in L&R Mapping]])) -> 0 | O19: =IF(GeneratorListADSv2.1[[#This Row],[Index in L&R Mapping]]>0,1*INDEX(MappingLandR[L&R Nameplate (MW)],GeneratorListADSv2.1[[#This Row],[Index in L&R Mapping]]),0) -> 0 | W19: =IFERROR(MATCH(GeneratorListADSv2.1[[#This Row],[Bus ID]],Buses32HS1[BUS-NO],0),0) -> 4509 | X19: =IFERROR(MATCH(GeneratorListADSv2.1[[#This Row],[Name]],LnRUpdate[2032 ADS PCM Generator Name],0),0) -> 0 | Y19: =IFERROR(MATCH(GeneratorListADSv2.1[[#This Row],[Name]],MappingLandR[2032 ADS PCM Generator Name],0),0) -> 0 | Z19: =IFERROR(MATCH(GeneratorListADSv2.1[[#This Row],[BusNo-UnitID]],ADS32HS1PFv7[BusNo-UnitID],0),0) -> 1238 | AA19: =GeneratorListADSv2.1[[#This Row],[Bus ID]] & "_" & MID(GeneratorListADSv2.1[[#This Row],[Unit ID]],2,10) -> 26027_2 | AB19: =AND(GeneratorListADSv2.1[[#This Row],[Service Status]],GeneratorListADSv2.1[[#This Row],[Commission Date]]<DATEVALUE("1/1/2033"),GeneratorListADSv2.1[[#This Row],[Retirement Date]]>DATEVALUE("12/31/2031")) -> FALSE | AC19: =LEN(GeneratorListADSv2.1[[#This Row],[Name]]) -> 8 | AD19: 13594 | AE19: Haynes 2 | AF19: 26027 | AG19: HAYNES2G | AH19: 18 | AI19: '2 | AJ19: 1 | AK19: ST-NatGas | AL19: CA-400-2 | AM19: PFnoLAR_CoolwtrCC3 (Total CC Plant) | AN19: FALSE | AO19: 1963-04-01 | AP19: 2029-12-31 | AQ19: Existing | AR19: LDWP | AS19: CA_LDWP | AT19: 45 | AU19: 222 | AV19: 0 | AW19: YES | AX19: CA | AY19: Los Angeles | AZ19: Long Beach | BA19: NA | BB19: NG | BC19: N/A | BD19: FALSE | BE19: NA
D20: =IF(SUBTOTAL(103,GeneratorListADSv2.1[[#This Row],[Name]])=1,1,0) -> 0 | E20: =COUNTIF(GenDistnADSv2.1[Unit Name],GeneratorListADSv2.1[[#This Row],[Name]]) -> 0 | F20: =GeneratorListADSv2.1[[#This Row],[ADS PCM Max Cap]]-GeneratorListADSv2.1[[#This Row],[PF Pmax]] -> 0 | G20: =GeneratorListADSv2.1[[#This Row],[ADS PCM Max Cap]]-MAX(GeneratorListADSv2.1[[#This Row],[L&R Update Summer Cap]:[L&R Update Nameplate]]) -> 220 | H20: =GeneratorListADSv2.1[[#This Row],[MaxCap (MW)]] -> 220 | I20: =IF(GeneratorListADSv2.1[[#This Row],[Index in PF Table v7]]=0,0,INDEX(ADS32HS1PFv7[PMAX],GeneratorListADSv2.1[[#This Row],[Index in PF Table v7]])) -> 220 | J20: =IFERROR(IF(GeneratorListADSv2.1[[#This Row],[Index in L&R Update Mapping]]>0,1*INDEX(LnRUpdate[Summer Cap (MW)],GeneratorListADSv2.1[[#This Row],[Index in L&R Update Mapping]]),0),1*INDEX(LnRUpdate[L&R Nameplate (MW)],GeneratorListADSv2.1[[#This Row],[Index in L&R Update Mapping]])) -> 0 | K20: =IFERROR(IF(GeneratorListADSv2.1[[#This Row],[Index in L&R Update Mapping]]>0,1*INDEX(LnRUpdate[Winter Cap (MW)],GeneratorListADSv2.1[[#This Row],[Index in L&R Update Mapping]]),0),1*INDEX(LnRUpdate[L&R Nameplate (MW)],GeneratorListADSv2.1[[#This Row],[Index in L&R Update Mapping]])) -> 0 | L20: =IF(GeneratorListADSv2.1[[#This Row],[Index in L&R Update Mapping]]>0,1*INDEX(LnRUpdate[L&R Nameplate (MW)],GeneratorListADSv2.1[[#This Row],[Index in L&R Update Mapping]]),0) -> 0 | M20: =IFERROR(IF(GeneratorListADSv2.1[[#This Row],[Index in L&R Mapping]]>0,1*INDEX(MappingLandR[Summer Cap (MW)],GeneratorListADSv2.1[[#This Row],[Index in L&R Mapping]]),0),1*INDEX(MappingLandR[L&R Nameplate (MW)],GeneratorListADSv2.1[[#This Row],[Index in L&R Mapping]])) -> 0 | N20: =IFERROR(IF(GeneratorListADSv2.1[[#This Row],[Index in L&R Mapping]]>0,1*INDEX(MappingLandR[Winter Cap (MW)],GeneratorListADSv2.1[[#This Row],[Index in L&R Mapping]]),0),1*INDEX(MappingLandR[L&R Nameplate (MW)],GeneratorListADSv2.1[[#This Row],[Index in L&R Mapping]])) -> 0 | O20: =IF(GeneratorListADSv2.1[[#This Row],[Index in L&R Mapping]]>0,1*INDEX(MappingLandR[L&R Nameplate (MW)],GeneratorListADSv2.1[[#This Row],[Index in L&R Mapping]]),0) -> 0 | W20: =IFERROR(MATCH(GeneratorListADSv2.1[[#This Row],[Bus ID]],Buses32HS1[BUS-NO],0),0) -> 19663 | X20: =IFERROR(MATCH(GeneratorListADSv2.1[[#This Row],[Name]],LnRUpdate[2032 ADS PCM Generator Name],0),0) -> 0 | Y20: =IFERROR(MATCH(GeneratorListADSv2.1[[#This Row],[Name]],MappingLandR[2032 ADS PCM Generator Name],0),0) -> 0 | Z20: =IFERROR(MATCH(GeneratorListADSv2.1[[#This Row],[BusNo-UnitID]],ADS32HS1PFv7[BusNo-UnitID],0),0) -> 3462 | AA20: =GeneratorListADSv2.1[[#This Row],[Bus ID]] & "_" & MID(GeneratorListADSv2.1[[#This Row],[Unit ID]],2,10) -> 70823_W1 | AB20: =AND(GeneratorListADSv2.1[[#This Row],[Service Status]],GeneratorListADSv2.1[[#This Row],[Commission Date]]<DATEVALUE("1/1/2033"),GeneratorListADSv2.1[[#This Row],[Retirement Date]]>DATEVALUE("12/31/2031")) -> FALSE | AC20: =LEN(GeneratorListADSv2.1[[#This Row],[Name]]) -> 14 | AD20: 13889 | AE20: Cedar Creek 1A | AF20: 70823 | AG20: CEDARCK_1A | AH20: 34.5 | AI20: 'W1 | AJ20: 4 | AK20: WT-Onshore | AL20: CO-56371-1 | AM20: Cedar Creek Wind Project 1A | AN20: TRUE | AO20: 2007-11-20 | AP20: 2027-11-19 | AQ20: Existing | AR20: PSCO | AS20: RM_PSCO | AT20: 0 | AU20: 220 | AV20: 46.2 | AW20: YES | AX20: CO | AY20: Weld | AZ20: NA | BA20: NA | BB20: Wind | BC20: Onshore | BD20: FALSE | BE20: NA
D21: =IF(SUBTOTAL(103,GeneratorListADSv2.1[[#This Row],[Name]])=1,1,0) -> 0 | E21: =COUNTIF(GenDistnADSv2.1[Unit Name],GeneratorListADSv2.1[[#This Row],[Name]]) -> 16 | F21: =GeneratorListADSv2.1[[#This Row],[ADS PCM Max Cap]]-GeneratorListADSv2.1[[#This Row],[PF Pmax]] -> 1939.547 | G21: =GeneratorListADSv2.1[[#This Row],[ADS PCM Max Cap]]-MAX(GeneratorListADSv2.1[[#This Row],[L&R Update Summer Cap]:[L&R Update Nameplate]]) -> 1939.547 | H21: =GeneratorListADSv2.1[[#This Row],[MaxCap (MW)]] -> 1939.547 | I21: =IF(GeneratorListADSv2.1[[#This Row],[Index in PF Table v7]]=0,0,INDEX(ADS32HS1PFv7[PMAX],GeneratorListADSv2.1[[#This Row],[Index in PF Table v7]])) -> 0 | J21: =IFERROR(IF(GeneratorListADSv2.1[[#This Row],[Index in L&R Update Mapping]]>0,1*INDEX(LnRUpdate[Summer Cap (MW)],GeneratorListADSv2.1[[#This Row],[Index in L&R Update Mapping]]),0),1*INDEX(LnRUpdate[L&R Nameplate (MW)],GeneratorListADSv2.1[[#This Row],[Index in L&R Update Mapping]])) -> 0 | K21: =IFERROR(IF(GeneratorListADSv2.1[[#This Row],[Index in L&R Update Mapping]]>0,1*INDEX(LnRUpdate[Winter Cap (MW)],GeneratorListADSv2.1[[#This Row],[Index in L&R Update Mapping]]),0),1*INDEX(LnRUpdate[L&R Nameplate (MW)],GeneratorListADSv2.1[[#This Row],[Index in L&R Update Mapping]])) -> 0 | L21: =IF(GeneratorListADSv2.1[[#This Row],[Index in L&R Update Mapping]]>0,1*INDEX(LnRUpdate[L&R Nameplate (MW)],GeneratorListADSv2.1[[#This Row],[Index in L&R Update Mapping]]),0) -> 0 | M21: =IFERROR(IF(GeneratorListADSv2.1[[#This Row],[Index in L&R Mapping]]>0,1*INDEX(MappingLandR[Summer Cap (MW)],GeneratorListADSv2.1[[#This Row],[Index in L&R Mapping]]),0),1*INDEX(MappingLandR[L&R Nameplate (MW)],GeneratorListADSv2.1[[#This Row],[Index in L&R Mapping]])) -> 0 | N21: =IFERROR(IF(GeneratorListADSv2.1[[#This Row],[Index in L&R Mapping]]>0,1*INDEX(MappingLandR[Winter Cap (MW)],GeneratorListADSv2.1[[#This Row],[Index in L&R Mapping]]),0),1*INDEX(MappingLandR[L&R Nameplate (MW)],GeneratorListADSv2.1[[#This Row],[Index in L&R Mapping]])) -> 0 | O21: =IF(GeneratorListADSv2.1[[#This Row],[Index in L&R Mapping]]>0,1*INDEX(MappingLandR[L&R Nameplate (MW)],GeneratorListADSv2.1[[#This Row],[Index in L&R Mapping]]),0) -> 0 | W21: =IFERROR(MATCH(GeneratorListADSv2.1[[#This Row],[Bus ID]],Buses32HS1[BUS-NO],0),0) -> 4366 | X21: =IFERROR(MATCH(GeneratorListADSv2.1[[#This Row],[Name]],LnRUpdate[2032 ADS PCM Generator Name],0),0) -> 0 | Y21: =IFERROR(MATCH(GeneratorListADSv2.1[[#This Row],[Name]],MappingLandR[2032 ADS PCM Generator Name],0),0) -> 0 | Z21: =IFERROR(MATCH(GeneratorListADSv2.1[[#This Row],[BusNo-UnitID]],ADS32HS1PFv7[BusNo-UnitID],0),0) -> 0 | AA21: =GeneratorListADSv2.1[[#This Row],[Bus ID]] & "_" & MID(GeneratorListADSv2.1[[#This Row],[Unit ID]],2,10) -> 25688_J4 | AB21: =AND(GeneratorListADSv2.1[[#This Row],[Service Status]],GeneratorListADSv2.1[[#This Row],[Commission Date]]<DATEVALUE("1/1/2033"),GeneratorListADSv2.1[[#This Row],[Retirement Date]]>DATEVALUE("12/31/2031")) -> TRUE | AC21: =LEN(GeneratorListADSv2.1[[#This Row],[Name]]) -> 29 | AD21: 18750 | AE21: DG-BTM_CISC_CA_San Bernardino | AF21: 25688 | AG21: ROADWAY 12 | AH21: 12.47 | AI21: 'J4 | AJ21: 4 | AK21: DG-BTM | AL21: G0-- | AM21: DG-BTM_CISC_CA_San Bernardino | AN21: TRUE | AO21: 2023-04-15 | AP21: 2050-01-01 | AQ21: Future-Conceptual | AR21: CISC | AS21: CA_CISO | AT21: 0 | AU21: 1939.547 | AV21: 0 | AW21: YES | AX21: ID | AY21: NA | AZ21: NA | BA21: NA | BB21: Solar | BC21: N/A | BD21: TRUE | BE21: NA
D22: =IF(SUBTOTAL(103,GeneratorListADSv2.1[[#This Row],[Name]])=1,1,0) -> 0 | E22: =COUNTIF(GenDistnADSv2.1[Unit Name],GeneratorListADSv2.1[[#This Row],[Name]]) -> 356 | F22: =GeneratorListADSv2.1[[#This Row],[ADS PCM Max Cap]]-GeneratorListADSv2.1[[#This Row],[PF Pmax]] -> 1204.547 | G22: =GeneratorListADSv2.1[[#This Row],[ADS PCM Max Cap]]-MAX(GeneratorListADSv2.1[[#This Row],[L&R Update Summer Cap]:[L&R Update Nameplate]]) -> 1204.547 | H22: =GeneratorListADSv2.1[[#This Row],[MaxCap (MW)]] -> 1204.547 | I22: =IF(GeneratorListADSv2.1[[#This Row],[Index in PF Table v7]]=0,0,INDEX(ADS32HS1PFv7[PMAX],GeneratorListADSv2.1[[#This Row],[Index in PF Table v7]])) -> 0 | J22: =IFERROR(IF(GeneratorListADSv2.1[[#This Row],[Index in L&R Update Mapping]]>0,1*INDEX(LnRUpdate[Summer Cap (MW)],GeneratorListADSv2.1[[#This Row],[Index in L&R Update Mapping]]),0),1*INDEX(LnRUpdate[L&R Nameplate (MW)],GeneratorListADSv2.1[[#This Row],[Index in L&R Update Mapping]])) -> 0 | K22: =IFERROR(IF(GeneratorListADSv2.1[[#This Row],[Index in L&R Update Mapping]]>0,1*INDEX(LnRUpdate[Winter Cap (MW)],GeneratorListADSv2.1[[#This Row],[Index in L&R Update Mapping]]),0),1*INDEX(LnRUpdate[L&R Nameplate (MW)],GeneratorListADSv2.1[[#This Row],[Index in L&R Update Mapping]])) -> 0 | L22: =IF(GeneratorListADSv2.1[[#This Row],[Index in L&R Update Mapping]]>0,1*INDEX(LnRUpdate[L&R Nameplate (MW)],GeneratorListADSv2.1[[#This Row],[Index in L&R Update Mapping]]),0) -> 0 | M22: =IFERROR(IF(GeneratorListADSv2.1[[#This Row],[Index in L&R Mapping]]>0,1*INDEX(MappingLandR[Summer Cap (MW)],GeneratorListADSv2.1[[#This Row],[Index in L&R Mapping]]),0),1*INDEX(MappingLandR[L&R Nameplate (MW)],GeneratorListADSv2.1[[#This Row],[Index in L&R Mapping]])) -> 0 | N22: =IFERROR(IF(GeneratorListADSv2.1[[#This Row],[Index in L&R Mapping]]>0,1*INDEX(MappingLandR[Winter Cap (MW)],GeneratorListADSv2.1[[#This Row],[Index in L&R Mapping]]),0),1*INDEX(MappingLandR[L&R Nameplate (MW)],GeneratorListADSv2.1[[#This Row],[Index in L&R Mapping]])) -> 0 | O22: =IF(GeneratorListADSv2.1[[#This Row],[Index in L&R Mapping]]>0,1*INDEX(MappingLandR[L&R Nameplate (MW)],GeneratorListADSv2.1[[#This Row],[Index in L&R Mapping]]),0) -> 0 | W22: =IFERROR(MATCH(GeneratorListADSv2.1[[#This Row],[Bus ID]],Buses32HS1[BUS-NO],0),0) -> 24121 | X22: =IFERROR(MATCH(GeneratorListADSv2.1[[#This Row],[Name]],LnRUpdate[2032 ADS PCM Generator Name],0),0) -> 0 | Y22: =IFERROR(MATCH(GeneratorListADSv2.1[[#This Row],[Name]],MappingLandR[2032 ADS PCM Generator Name],0),0) -> 0 | Z22: =IFERROR(MATCH(GeneratorListADSv2.1[[#This Row],[BusNo-UnitID]],ADS32HS1PFv7[BusNo-UnitID],0),0) -> 0 | AA22: =GeneratorListADSv2.1[[#This Row],[Bus ID]] & "_" & MID(GeneratorListADSv2.1[[#This Row],[Unit ID]],2,10) -> 180130_D6 | AB22: =AND(GeneratorListADSv2.1[[#This Row],[Service Status]],GeneratorListADSv2.1[[#This Row],[Commission Date]]<DATEVALUE("1/1/2033"),GeneratorListADSv2.1[[#This Row],[Retirement Date]]>DATEVALUE("12/31/2031")) -> TRUE | AC22: =LEN(GeneratorListADSv2.1[[#This Row],[Name]]) -> 20 | AD22: 18808 | AE22: DG-BTM_NEVP_NV_Clark | AF22: 180130 | AG22: RANGER1 | AH22: 12.5 | AI22: 'D6 | AJ22: 4 | AK22: DG-BTM | AL22: G0-- | AM22: DG-BTM_NEVP_NV_Clark | AN22: TRUE | AO22: 2023-04-15 | AP22: 2050-01-01 | AQ22: Future-Conceptual | AR22: NEVP | AS22: SW_NVE | AT22: 0 | AU22: 1204.547 | AV22: 0 | AW22: YES | AX22: ID | AY22: NA | AZ22: NA | BA22: NA | BB22: Solar | BC22: N/A | BD22: TRUE | BE22: NA
D23: =IF(SUBTOTAL(103,GeneratorListADSv2.1[[#This Row],[Name]])=1,1,0) -> 0 | E23: =COUNTIF(GenDistnADSv2.1[Unit Name],GeneratorListADSv2.1[[#This Row],[Name]]) -> 20 | F23: =GeneratorListADSv2.1[[#This Row],[ADS PCM Max Cap]]-GeneratorListADSv2.1[[#This Row],[PF Pmax]] -> 1138.9 | G23: =GeneratorListADSv2.1[[#This Row],[ADS PCM Max Cap]]-MAX(GeneratorListADSv2.1[[#This Row],[L&R Update Summer Cap]:[L&R Update Nameplate]]) -> 1202.9 | H23: =GeneratorListADSv2.1[[#This Row],[MaxCap (MW)]] -> 1216 | I23: =IF(GeneratorListADSv2.1[[#This Row],[Index in PF Table v7]]=0,0,INDEX(ADS32HS1PFv7[PMAX],GeneratorListADSv2.1[[#This Row],[Index in PF Table v7]])) -> 77.1 | J23: =IFERROR(IF(GeneratorListADSv2.1[[#This Row],[Index in L&R Update Mapping]]>0,1*INDEX(LnRUpdate[Summer Cap (MW)],GeneratorListADSv2.1[[#This Row],[Index in L&R Update Mapping]]),0),1*INDEX(LnRUpdate[L&R Nameplate (MW)],GeneratorListADSv2.1[[#This Row],[Index in L&R Update Mapping]])) -> 13.1 | K23: =IFERROR(IF(GeneratorListADSv2.1[[#This Row],[Index in L&R Update Mapping]]>0,1*INDEX(LnRUpdate[Winter Cap (MW)],GeneratorListADSv2.1[[#This Row],[Index in L&R Update Mapping]]),0),1*INDEX(LnRUpdate[L&R Nameplate (MW)],GeneratorListADSv2.1[[#This Row],[Index in L&R Update Mapping]])) -> 13.1 | L23: =IF(GeneratorListADSv2.1[[#This Row],[Index in L&R Update Mapping]]>0,1*INDEX(LnRUpdate[L&R Nameplate (MW)],GeneratorListADSv2.1[[#This Row],[Index in L&R Update Mapping]]),0) -> 13.1 | M23: =IFERROR(IF(GeneratorListADSv2.1[[#This Row],[Index in L&R Mapping]]>0,1*INDEX(MappingLandR[Summer Cap (MW)],GeneratorListADSv2.1[[#This Row],[Index in L&R Mapping]]),0),1*INDEX(MappingLandR[L&R Nameplate (MW)],GeneratorListADSv2.1[[#This Row],[Index in L&R Mapping]])) -> 13.1 | N23: =IFERROR(IF(GeneratorListADSv2.1[[#This Row],[Index in L&R Mapping]]>0,1*INDEX(MappingLandR[Winter Cap (MW)],GeneratorListADSv2.1[[#This Row],[Index in L&R Mapping]]),0),1*INDEX(MappingLandR[L&R Nameplate (MW)],GeneratorListADSv2.1[[#This Row],[Index in L&R Mapping]])) -> 13.1 | O23: =IF(GeneratorListADSv2.1[[#This Row],[Index in L&R Mapping]]>0,1*INDEX(MappingLandR[L&R Nameplate (MW)],GeneratorListADSv2.1[[#This Row],[Index in L&R Mapping]]),0) -> 13.1 | W23: =IFERROR(MATCH(GeneratorListADSv2.1[[#This Row],[Bus ID]],Buses32HS1[BUS-NO],0),0) -> 10771 | X23: =IFERROR(MATCH(GeneratorListADSv2.1[[#This Row],[Name]],LnRUpdate[2032 ADS PCM Generator Name],0),0) -> 2322 | Y23: =IFERROR(MATCH(GeneratorListADSv2.1[[#This Row],[Name]],MappingLandR[2032 ADS PCM Generator Name],0),0) -> 2322 | Z23: =IFERROR(MATCH(GeneratorListADSv2.1[[#This Row],[BusNo-UnitID]],ADS32HS1PFv7[BusNo-UnitID],0),0) -> 1849 | AA23: =GeneratorListADSv2.1[[#This Row],[Bus ID]] & "_" & MID(GeneratorListADSv2.1[[#This Row],[Unit ID]],2,10) -> 44008_15 | AB23: =AND(GeneratorListADSv2.1[[#This Row],[Service Status]],GeneratorListADSv2.1[[#This Row],[Commission Date]]<DATEVALUE("1/1/2033"),GeneratorListADSv2.1[[#This Row],[Retirement Date]]>DATEVALUE("12/31/2031")) -> TRUE | AC23: =LEN(GeneratorListADSv2.1[[#This Row],[Name]]) -> 10 | AD23: 14146 | AE23: Bonneville | AF23: 44008 | AG23: BONVILE_1516 | AH23: 13.8 | AI23: '15 | AJ23: 2 | AK23: Hydro | AL23: OR-3075-Agg Plant | AM23: Bonneville | AN23: TRUE | AO23: 1982-01-01 | AP23: 2050-12-31 | AQ23: Existing | AR23: BPAT | AS23: NW_BPAT | AT23: 0 | AU23: 1216 | AV23: 40.9 | AW23: YES | AX23: OR | AY23: NA | AZ23: NA | BA23: NA | BB23: Water | BC23: N/A | BD23: FALSE | BE23: NA
D24: =IF(SUBTOTAL(103,GeneratorListADSv2.1[[#This Row],[Name]])=1,1,0) -> 0 | E24: =COUNTIF(GenDistnADSv2.1[Unit Name],GeneratorListADSv2.1[[#This Row],[Name]]) -> 11 | F24: =GeneratorListADSv2.1[[#This Row],[ADS PCM Max Cap]]-GeneratorListADSv2.1[[#This Row],[PF Pmax]] -> 1173 | G24: =GeneratorListADSv2.1[[#This Row],[ADS PCM Max Cap]]-MAX(GeneratorListADSv2.1[[#This Row],[L&R Update Summer Cap]:[L&R Update Nameplate]]) -> 1173 | H24: =GeneratorListADSv2.1[[#This Row],[MaxCap (MW)]] -> 1254 | I24: =IF(GeneratorListADSv2.1[[#This Row],[Index in PF Table v7]]=0,0,INDEX(ADS32HS1PFv7[PMAX],GeneratorListADSv2.1[[#This Row],[Index in PF Table v7]])) -> 81 | J24: =IFERROR(IF(GeneratorListADSv2.1[[#This Row],[Index in L&R Update Mapping]]>0,1*INDEX(LnRUpdate[Summer Cap (MW)],GeneratorListADSv2.1[[#This Row],[Index in L&R Update Mapping]]),0),1*INDEX(LnRUpdate[L&R Nameplate (MW)],GeneratorListADSv2.1[[#This Row],[Index in L&R Update Mapping]])) -> 81 | K24: =IFERROR(IF(GeneratorListADSv2.1[[#This Row],[Index in L&R Update Mapping]]>0,1*INDEX(LnRUpdate[Winter Cap (MW)],GeneratorListADSv2.1[[#This Row],[Index in L&R Update Mapping]]),0),1*INDEX(LnRUpdate[L&R Nameplate (MW)],GeneratorListADSv2.1[[#This Row],[Index in L&R Update Mapping]])) -> 81 | L24: =IF(GeneratorListADSv2.1[[#This Row],[Index in L&R Update Mapping]]>0,1*INDEX(LnRUpdate[L&R Nameplate (MW)],GeneratorListADSv2.1[[#This Row],[Index in L&R Update Mapping]]),0) -> 81 | M24: =IFERROR(IF(GeneratorListADSv2.1[[#This Row],[Index in L&R Mapping]]>0,1*INDEX(MappingLandR[Summer Cap (MW)],GeneratorListADSv2.1[[#This Row],[Index in L&R Mapping]]),0),1*INDEX(MappingLandR[L&R Nameplate (MW)],GeneratorListADSv2.1[[#This Row],[Index in L&R Mapping]])) -> 81 | N24: =IFERROR(IF(GeneratorListADSv2.1[[#This Row],[Index in L&R Mapping]]>0,1*INDEX(MappingLandR[Winter Cap (MW)],GeneratorListADSv2.1[[#This Row],[Index in L&R Mapping]]),0),1*INDEX(MappingLandR[L&R Nameplate (MW)],GeneratorListADSv2.1[[#This Row],[Index in L&R Mapping]])) -> 81 | O24: =IF(GeneratorListADSv2.1[[#This Row],[Index in L&R Mapping]]>0,1*INDEX(MappingLandR[L&R Nameplate (MW)],GeneratorListADSv2.1[[#This Row],[Index in L&R Mapping]]),0) -> 81 | W24: =IFERROR(MATCH(GeneratorListADSv2.1[[#This Row],[Bus ID]],Buses32HS1[BUS-NO],0),0) -> 12103 | X24: =IFERROR(MATCH(GeneratorListADSv2.1[[#This Row],[Name]],LnRUpdate[2032 ADS PCM Generator Name],0),0) -> 2688 | Y24: =IFERROR(MATCH(GeneratorListADSv2.1[[#This Row],[Name]],MappingLandR[2032 ADS PCM Generator Name],0),0) -> 2688 | Z24: =IFERROR(MATCH(GeneratorListADSv2.1[[#This Row],[BusNo-UnitID]],ADS32HS1PFv7[BusNo-UnitID],0),0) -> 4875 | AA24: =GeneratorListADSv2.1[[#This Row],[Bus ID]] & "_" & MID(GeneratorListADSv2.1[[#This Row],[Unit ID]],2,10) -> 46832_X0 | AB24: =AND(GeneratorListADSv2.1[[#This Row],[Service Status]],GeneratorListADSv2.1[[#This Row],[Commission Date]]<DATEVALUE("1/1/2033"),GeneratorListADSv2.1[[#This Row],[Retirement Date]]>DATEVALUE("12/31/2031")) -> TRUE | AC24: =LEN(GeneratorListADSv2.1[[#This Row],[Name]]) -> 11 | AD24: 14138 | AE24: Rocky Reach | AF24: 46832 | AG24: ROCKYRH2 | AH24: 230 | AI24: 'X0 | AJ24: 2 | AK24: Hydro | AL24: WA-3883-Agg Plant | AM24: Rocky Reach-C-1 | AN24: TRUE | AO24: 1961-06-01 | AP24: 2050-12-31 | AQ24: Existing | AR24: CHPD | AS24: NW_CHPD | AT24: 0 | AU24: 1254 | AV24: 99 | AW24: YES | AX24: WA | AY24: NA | AZ24: NA | BA24: NA | BB24: Water | BC24: N/A | BD24: FALSE | BE24: NA
D25: =IF(SUBTOTAL(103,GeneratorListADSv2.1[[#This Row],[Name]])=1,1,0) -> 0 | E25: =COUNTIF(GenDistnADSv2.1[Unit Name],GeneratorListADSv2.1[[#This Row],[Name]]) -> 14 | F25: =GeneratorListADSv2.1[[#This Row],[ADS PCM Max Cap]]-GeneratorListADSv2.1[[#This Row],[PF Pmax]] -> 1048.5 | G25: =GeneratorListADSv2.1[[#This Row],[ADS PCM Max Cap]]-MAX(GeneratorListADSv2.1[[#This Row],[L&R Update Summer Cap]:[L&R Update Nameplate]]) -> 1057 | H25: =GeneratorListADSv2.1[[#This Row],[MaxCap (MW)]] -> 1127 | I25: =IF(GeneratorListADSv2.1[[#This Row],[Index in PF Table v7]]=0,0,INDEX(ADS32HS1PFv7[PMAX],GeneratorListADSv2.1[[#This Row],[Index in PF Table v7]])) -> 78.5 | J25: =IFERROR(IF(GeneratorListADSv2.1[[#This Row],[Index in L&R Update Mapping]]>0,1*INDEX(LnRUpdate[Summer Cap (MW)],GeneratorListADSv2.1[[#This Row],[Index in L&R Update Mapping]]),0),1*INDEX(LnRUpdate[L&R Nameplate (MW)],GeneratorListADSv2.1[[#This Row],[Index in L&R Update Mapping]])) -> 70 | K25: =IFERROR(IF(GeneratorListADSv2.1[[#This Row],[Index in L&R Update Mapping]]>0,1*INDEX(LnRUpdate[Winter Cap (MW)],GeneratorListADSv2.1[[#This Row],[Index in L&R Update Mapping]]),0),1*INDEX(LnRUpdate[L&R Nameplate (MW)],GeneratorListADSv2.1[[#This Row],[Index in L&R Update Mapping]])) -> 70 | L25: =IF(GeneratorListADSv2.1[[#This Row],[Index in L&R Update Mapping]]>0,1*INDEX(LnRUpdate[L&R Nameplate (MW)],GeneratorListADSv2.1[[#This Row],[Index in L&R Update Mapping]]),0) -> 70 | M25: =IFERROR(IF(GeneratorListADSv2.1[[#This Row],[Index in L&R Mapping]]>0,1*INDEX(MappingLandR[Summer Cap (MW)],GeneratorListADSv2.1[[#This Row],[Index in L&R Mapping]]),0),1*INDEX(MappingLandR[L&R Nameplate (MW)],GeneratorListADSv2.1[[#This Row],[Index in L&R Mapping]])) -> 70 | N25: =IFERROR(IF(GeneratorListADSv2.1[[#This Row],[Index in L&R Mapping]]>0,1*INDEX(MappingLandR[Winter Cap (MW)],GeneratorListADSv2.1[[#This Row],[Index in L&R Mapping]]),0),1*INDEX(MappingLandR[L&R Nameplate (MW)],GeneratorListADSv2.1[[#This Row],[Index in L&R Mapping]])) -> 70 | O25: =IF(GeneratorListADSv2.1[[#This Row],[Index in L&R Mapping]]>0,1*INDEX(MappingLandR[L&R Nameplate (MW)],GeneratorListADSv2.1[[#This Row],[Index in L&R Mapping]]),0) -> 70 | W25: =IFERROR(MATCH(GeneratorListADSv2.1[[#This Row],[Bus ID]],Buses32HS1[BUS-NO],0),0) -> 10816 | X25: =IFERROR(MATCH(GeneratorListADSv2.1[[#This Row],[Name]],LnRUpdate[2032 ADS PCM Generator Name],0),0) -> 2385 | Y25: =IFERROR(MATCH(GeneratorListADSv2.1[[#This Row],[Name]],MappingLandR[2032 ADS PCM Generator Name],0),0) -> 2385 | Z25: =IFERROR(MATCH(GeneratorListADSv2.1[[#This Row],[BusNo-UnitID]],ADS32HS1PFv7[BusNo-UnitID],0),0) -> 1896 | AA25: =GeneratorListADSv2.1[[#This Row],[Bus ID]] & "_" & MID(GeneratorListADSv2.1[[#This Row],[Unit ID]],2,10) -> 44101_1 | AB25: =AND(GeneratorListADSv2.1[[#This Row],[Service Status]],GeneratorListADSv2.1[[#This Row],[Commission Date]]<DATEVALUE("1/1/2033"),GeneratorListADSv2.1[[#This Row],[Retirement Date]]>DATEVALUE("12/31/2031")) -> TRUE | AC25: =LEN(GeneratorListADSv2.1[[#This Row],[Name]]) -> 6 | AD25: 14143 | AE25: McNary | AF25: 44101 | AG25: MCNARY_01 | AH25: 13.8 | AI25: '1 | AJ25: 2 | AK25: Hydro | AL25: OR-3084-Agg Plant | AM25: McNary-1 | AN25: TRUE | AO25: 1997-11-01 | AP25: 2050-12-31 | AQ25: Existing | AR25: BPAT | AS25: NW_BPAT | AT25: 0 | AU25: 1127 | AV25: 0 | AW25: YES | AX25: OR | AY25: NA | AZ25: NA | BA25: NA | BB25: Water | BC25: N/A | BD25: FALSE | BE25: NA
D26: =IF(SUBTOTAL(103,GeneratorListADSv2.1[[#This Row],[Name]])=1,1,0) -> 0 | E26: =COUNTIF(GenDistnADSv2.1[Unit Name],GeneratorListADSv2.1[[#This Row],[Name]]) -> 10 | F26: =GeneratorListADSv2.1[[#This Row],[ADS PCM Max Cap]]-GeneratorListADSv2.1[[#This Row],[PF Pmax]] -> 1055 | G26: =GeneratorListADSv2.1[[#This Row],[ADS PCM Max Cap]]-MAX(GeneratorListADSv2.1[[#This Row],[L&R Update Summer Cap]:[L&R Update Nameplate]]) -> 1052.8 | H26: =GeneratorListADSv2.1[[#This Row],[MaxCap (MW)]] -> 1175 | I26: =IF(GeneratorListADSv2.1[[#This Row],[Index in PF Table v7]]=0,0,INDEX(ADS32HS1PFv7[PMAX],GeneratorListADSv2.1[[#This Row],[Index in PF Table v7]])) -> 120 | J26: =IFERROR(IF(GeneratorListADSv2.1[[#This Row],[Index in L&R Update Mapping]]>0,1*INDEX(LnRUpdate[Summer Cap (MW)],GeneratorListADSv2.1[[#This Row],[Index in L&R Update Mapping]]),0),1*INDEX(LnRUpdate[L&R Nameplate (MW)],GeneratorListADSv2.1[[#This Row],[Index in L&R Update Mapping]])) -> 101.09 | K26: =IFERROR(IF(GeneratorListADSv2.1[[#This Row],[Index in L&R Update Mapping]]>0,1*INDEX(LnRUpdate[Winter Cap (MW)],GeneratorListADSv2.1[[#This Row],[Index in L&R Update Mapping]]),0),1*INDEX(LnRUpdate[L&R Nameplate (MW)],GeneratorListADSv2.1[[#This Row],[Index in L&R Update Mapping]])) -> 101.09 | L26: =IF(GeneratorListADSv2.1[[#This Row],[Index in L&R Update Mapping]]>0,1*INDEX(LnRUpdate[L&R Nameplate (MW)],GeneratorListADSv2.1[[#This Row],[Index in L&R Update Mapping]]),0) -> 122.2 | M26: =IFERROR(IF(GeneratorListADSv2.1[[#This Row],[Index in L&R Mapping]]>0,1*INDEX(MappingLandR[Summer Cap (MW)],GeneratorListADSv2.1[[#This Row],[Index in L&R Mapping]]),0),1*INDEX(MappingLandR[L&R Nameplate (MW)],GeneratorListADSv2.1[[#This Row],[Index in L&R Mapping]])) -> 101.09 | N26: =IFERROR(IF(GeneratorListADSv2.1[[#This Row],[Index in L&R Mapping]]>0,1*INDEX(MappingLandR[Winter Cap (MW)],GeneratorListADSv2.1[[#This Row],[Index in L&R Mapping]]),0),1*INDEX(MappingLandR[L&R Nameplate (MW)],GeneratorListADSv2.1[[#This Row],[Index in L&R Mapping]])) -> 101.09 | O26: =IF(GeneratorListADSv2.1[[#This Row],[Index in L&R Mapping]]>0,1*INDEX(MappingLandR[L&R Nameplate (MW)],GeneratorListADSv2.1[[#This Row],[Index in L&R Mapping]]),0) -> 122.2 | W26: =IFERROR(MATCH(GeneratorListADSv2.1[[#This Row],[Bus ID]],Buses32HS1[BUS-NO],0),0) -> 11806 | X26: =IFERROR(MATCH(GeneratorListADSv2.1[[#This Row],[Name]],LnRUpdate[2032 ADS PCM Generator Name],0),0) -> 2616 | Y26: =IFERROR(MATCH(GeneratorListADSv2.1[[#This Row],[Name]],MappingLandR[2032 ADS PCM Generator Name],0),0) -> 2616 | Z26: =IFERROR(MATCH(GeneratorListADSv2.1[[#This Row],[BusNo-UnitID]],ADS32HS1PFv7[BusNo-UnitID],0),0) -> 2074 | AA26: =GeneratorListADSv2.1[[#This Row],[Bus ID]] & "_" & MID(GeneratorListADSv2.1[[#This Row],[Unit ID]],2,10) -> 46180_1 | AB26: =AND(GeneratorListADSv2.1[[#This Row],[Service Status]],GeneratorListADSv2.1[[#This Row],[Commission Date]]<DATEVALUE("1/1/2033"),GeneratorListADSv2.1[[#This Row],[Retirement Date]]>DATEVALUE("12/31/2031")) -> TRUE | AC26: =LEN(GeneratorListADSv2.1[[#This Row],[Name]]) -> 7 | AD26: 14149 | AE26: Wanapum | AF26: 46180 | AG26: WANAPM01 | AH26: 13.2 | AI26: '1 | AJ26: 2 | AK26: Hydro | AL26: WA-3888-Agg Plant | AM26: Wanapum-1 | AN26: TRUE | AO26: 2013-11-01 | AP26: 2050-12-31 | AQ26: Existing | AR26: GCPD | AS26: NW_GCPD | AT26: 0 | AU26: 1175 | AV26: 94.7 | AW26: YES | AX26: WA | AY26: NA | AZ26: NA | BA26: NA | BB26: Water | BC26: N/A | BD26: FALSE | BE26: NA
D27: =IF(SUBTOTAL(103,GeneratorListADSv2.1[[#This Row],[Name]])=1,1,0) -> 0 | E27: =COUNTIF(GenDistnADSv2.1[Unit Name],GeneratorListADSv2.1[[#This Row],[Name]]) -> 102 | F27: =GeneratorListADSv2.1[[#This Row],[ADS PCM Max Cap]]-GeneratorListADSv2.1[[#This Row],[PF Pmax]] -> 1027.718 | G27: =GeneratorListADSv2.1[[#This Row],[ADS PCM Max Cap]]-MAX(GeneratorListADSv2.1[[#This Row],[L&R Update Summer Cap]:[L&R Update Nameplate]]) -> 1027.718 | H27: =GeneratorListADSv2.1[[#This Row],[MaxCap (MW)]] -> 1027.718 | I27: =IF(GeneratorListADSv2.1[[#This Row],[Index in PF Table v7]]=0,0,INDEX(ADS32HS1PFv7[PMAX],GeneratorListADSv2.1[[#This Row],[Index in PF Table v7]])) -> 0 | J27: =IFERROR(IF(GeneratorListADSv2.1[[#This Row],[Index in L&R Update Mapping]]>0,1*INDEX(LnRUpdate[Summer Cap (MW)],GeneratorListADSv2.1[[#This Row],[Index in L&R Update Mapping]]),0),1*INDEX(LnRUpdate[L&R Nameplate (MW)],GeneratorListADSv2.1[[#This Row],[Index in L&R Update Mapping]])) -> 0 | K27: =IFERROR(IF(GeneratorListADSv2.1[[#This Row],[Index in L&R Update Mapping]]>0,1*INDEX(LnRUpdate[Winter Cap (MW)],GeneratorListADSv2.1[[#This Row],[Index in L&R Update Mapping]]),0),1*INDEX(LnRUpdate[L&R Nameplate (MW)],GeneratorListADSv2.1[[#This Row],[Index in L&R Update Mapping]])) -> 0 | L27: =IF(GeneratorListADSv2.1[[#This Row],[Index in L&R Update Mapping]]>0,1*INDEX(LnRUpdate[L&R Nameplate (MW)],GeneratorListADSv2.1[[#This Row],[Index in L&R Update Mapping]]),0) -> 0 | M27: =IFERROR(IF(GeneratorListADSv2.1[[#This Row],[Index in L&R Mapping]]>0,1*INDEX(MappingLandR[Summer Cap (MW)],GeneratorListADSv2.1[[#This Row],[Index in L&R Mapping]]),0),1*INDEX(MappingLandR[L&R Nameplate (MW)],GeneratorListADSv2.1[[#This Row],[Index in L&R Mapping]])) -> 0 | N27: =IFERROR(IF(GeneratorListADSv2.1[[#This Row],[Index in L&R Mapping]]>0,1*INDEX(MappingLandR[Winter Cap (MW)],GeneratorListADSv2.1[[#This Row],[Index in L&R Mapping]]),0),1*INDEX(MappingLandR[L&R Nameplate (MW)],GeneratorListADSv2.1[[#This Row],[Index in L&R Mapping]])) -> 0 | O27: =IF(GeneratorListADSv2.1[[#This Row],[Index in L&R Mapping]]>0,1*INDEX(MappingLandR[L&R Nameplate (MW)],GeneratorListADSv2.1[[#This Row],[Index in L&R Mapping]]),0) -> 0 | W27: =IFERROR(MATCH(GeneratorListADSv2.1[[#This Row],[Bus ID]],Buses32HS1[BUS-NO],0),0) -> 2966 | X27: =IFERROR(MATCH(GeneratorListADSv2.1[[#This Row],[Name]],LnRUpdate[2032 ADS PCM Generator Name],0),0) -> 0 | Y27: =IFERROR(MATCH(GeneratorListADSv2.1[[#This Row],[Name]],MappingLandR[2032 ADS PCM Generator Name],0),0) -> 0 | Z27: =IFERROR(MATCH(GeneratorListADSv2.1[[#This Row],[BusNo-UnitID]],ADS32HS1PFv7[BusNo-UnitID],0),0) -> 0 | AA27: =GeneratorListADSv2.1[[#This Row],[Bus ID]] & "_" & MID(GeneratorListADSv2.1[[#This Row],[Unit ID]],2,10) -> 22416_I7 | AB27: =AND(GeneratorListADSv2.1[[#This Row],[Service Status]],GeneratorListADSv2.1[[#This Row],[Commission Date]]<DATEVALUE("1/1/2033"),GeneratorListADSv2.1[[#This Row],[Retirement Date]]>DATEVALUE("12/31/2031")) -> TRUE | AC27: =LEN(GeneratorListADSv2.1[[#This Row],[Name]]) -> 24 | AD27: 18757 | AE27: DG-BTM_CISD_CA_San Diego | AF27: 22416 | AG27: LOVELAND | AH27: 69 | AI27: 'I7 | AJ27: 4 | AK27: DG-BTM | AL27: G0-- | AM27: DG-BTM_CISD_CA_San Diego | AN27: TRUE | AO27: 2023-04-15 | AP27: 2050-01-01 | AQ27: Future-Conceptual | AR27: CISD | AS27: CA_CISO | AT27: 0 | AU27: 1027.718 | AV27: 0 | AW27: YES | AX27: ID | AY27: NA | AZ27: NA | BA27: NA | BB27: Solar | BC27: N/A | BD27: TRUE | BE27: NA
D28: =IF(SUBTOTAL(103,GeneratorListADSv2.1[[#This Row],[Name]])=1,1,0) -> 0 | E28: =COUNTIF(GenDistnADSv2.1[Unit Name],GeneratorListADSv2.1[[#This Row],[Name]]) -> 2 | F28: =GeneratorListADSv2.1[[#This Row],[ADS PCM Max Cap]]-GeneratorListADSv2.1[[#This Row],[PF Pmax]] -> 987.4777 | G28: =GeneratorListADSv2.1[[#This Row],[ADS PCM Max Cap]]-MAX(GeneratorListADSv2.1[[#This Row],[L&R Update Summer Cap]:[L&R Update Nameplate]]) -> 987.4777 | H28: =GeneratorListADSv2.1[[#This Row],[MaxCap (MW)]] -> 987.4777 | I28: =IF(GeneratorListADSv2.1[[#This Row],[Index in PF Table v7]]=0,0,INDEX(ADS32HS1PFv7[PMAX],GeneratorListADSv2.1[[#This Row],[Index in PF Table v7]])) -> 0 | J28: =IFERROR(IF(GeneratorListADSv2.1[[#This Row],[Index in L&R Update Mapping]]>0,1*INDEX(LnRUpdate[Summer Cap (MW)],GeneratorListADSv2.1[[#This Row],[Index in L&R Update Mapping]]),0),1*INDEX(LnRUpdate[L&R Nameplate (MW)],GeneratorListADSv2.1[[#This Row],[Index in L&R Update Mapping]])) -> 0 | K28: =IFERROR(IF(GeneratorListADSv2.1[[#This Row],[Index in L&R Update Mapping]]>0,1*INDEX(LnRUpdate[Winter Cap (MW)],GeneratorListADSv2.1[[#This Row],[Index in L&R Update Mapping]]),0),1*INDEX(LnRUpdate[L&R Nameplate (MW)],GeneratorListADSv2.1[[#This Row],[Index in L&R Update Mapping]])) -> 0 | L28: =IF(GeneratorListADSv2.1[[#This Row],[Index in L&R Update Mapping]]>0,1*INDEX(LnRUpdate[L&R Nameplate (MW)],GeneratorListADSv2.1[[#This Row],[Index in L&R Update Mapping]]),0) -> 0 | M28: =IFERROR(IF(GeneratorListADSv2.1[[#This Row],[Index in L&R Mapping]]>0,1*INDEX(MappingLandR[Summer Cap (MW)],GeneratorListADSv2.1[[#This Row],[Index in L&R Mapping]]),0),1*INDEX(MappingLandR[L&R Nameplate (MW)],GeneratorListADSv2.1[[#This Row],[Index in L&R Mapping]])) -> 0 | N28: =IFERROR(IF(GeneratorListADSv2.1[[#This Row],[Index in L&R Mapping]]>0,1*INDEX(MappingLandR[Winter Cap (MW)],GeneratorListADSv2.1[[#This Row],[Index in L&R Mapping]]),0),1*INDEX(MappingLandR[L&R Nameplate (MW)],GeneratorListADSv2.1[[#This Row],[Index in L&R Mapping]])) -> 0 | O28: =IF(GeneratorListADSv2.1[[#This Row],[Index in L&R Mapping]]>0,1*INDEX(MappingLandR[L&R Nameplate (MW)],GeneratorListADSv2.1[[#This Row],[Index in L&R Mapping]]),0) -> 0 | W28: =IFERROR(MATCH(GeneratorListADSv2.1[[#This Row],[Bus ID]],Buses32HS1[BUS-NO],0),0) -> 3389 | X28: =IFERROR(MATCH(GeneratorListADSv2.1[[#This Row],[Name]],LnRUpdate[2032 ADS PCM Generator Name],0),0) -> 0 | Y28: =IFERROR(MATCH(GeneratorListADSv2.1[[#This Row],[Name]],MappingLandR[2032 ADS PCM Generator Name],0),0) -> 0 | Z28: =IFERROR(MATCH(GeneratorListADSv2.1[[#This Row],[BusNo-UnitID]],ADS32HS1PFv7[BusNo-UnitID],0),0) -> 0 | AA28: =GeneratorListADSv2.1[[#This Row],[Bus ID]] & "_" & MID(GeneratorListADSv2.1[[#This Row],[Unit ID]],2,10) -> 24127_J0 | AB28: =AND(GeneratorListADSv2.1[[#This Row],[Service Status]],GeneratorListADSv2.1[[#This Row],[Commission Date]]<DATEVALUE("1/1/2033"),GeneratorListADSv2.1[[#This Row],[Retirement Date]]>DATEVALUE("12/31/2031")) -> TRUE | AC28: =LEN(GeneratorListADSv2.1[[#This Row],[Name]]) -> 22 | AD28: 18754 | AE28: DG-BTM_CISC_CA_Ventura | AF28: 24127 | AG28: S.CLARA | AH28: 66 | AI28: 'J0 | AJ28: 4 | AK28: DG-BTM | AL28: G0-- | AM28: DG-BTM_CISC_CA_Ventura | AN28: TRUE | AO28: 2023-04-15 | AP28: 2050-01-01 | AQ28: Future-Conceptual | AR28: CISC | AS28: CA_CISO | AT28: 0 | AU28: 987.4777 | AV28: 0 | AW28: YES | AX28: ID | AY28: NA | AZ28: NA | BA28: NA | BB28: Solar | BC28: N/A | BD28: TRUE | BE28: NA
D29: =IF(SUBTOTAL(103,GeneratorListADSv2.1[[#This Row],[Name]])=1,1,0) -> 0 | E29: =COUNTIF(GenDistnADSv2.1[Unit Name],GeneratorListADSv2.1[[#This Row],[Name]]) -> 1 | F29: =GeneratorListADSv2.1[[#This Row],[ADS PCM Max Cap]]-GeneratorListADSv2.1[[#This Row],[PF Pmax]] -> 980.7 | G29: =GeneratorListADSv2.1[[#This Row],[ADS PCM Max Cap]]-MAX(GeneratorListADSv2.1[[#This Row],[L&R Update Summer Cap]:[L&R Update Nameplate]]) -> 980.7 | H29: =GeneratorListADSv2.1[[#This Row],[MaxCap (MW)]] -> 980.7 | I29: =IF(GeneratorListADSv2.1[[#This Row],[Index in PF Table v7]]=0,0,INDEX(ADS32HS1PFv7[PMAX],GeneratorListADSv2.1[[#This Row],[Index in PF Table v7]])) -> 0 | J29: =IFERROR(IF(GeneratorListADSv2.1[[#This Row],[Index in L&R Update Mapping]]>0,1*INDEX(LnRUpdate[Summer Cap (MW)],GeneratorListADSv2.1[[#This Row],[Index in L&R Update Mapping]]),0),1*INDEX(LnRUpdate[L&R Nameplate (MW)],GeneratorListADSv2.1[[#This Row],[Index in L&R Update Mapping]])) -> 0 | K29: =IFERROR(IF(GeneratorListADSv2.1[[#This Row],[Index in L&R Update Mapping]]>0,1*INDEX(LnRUpdate[Winter Cap (MW)],GeneratorListADSv2.1[[#This Row],[Index in L&R Update Mapping]]),0),1*INDEX(LnRUpdate[L&R Nameplate (MW)],GeneratorListADSv2.1[[#This Row],[Index in L&R Update Mapping]])) -> 0 | L29: =IF(GeneratorListADSv2.1[[#This Row],[Index in L&R Update Mapping]]>0,1*INDEX(LnRUpdate[L&R Nameplate (MW)],GeneratorListADSv2.1[[#This Row],[Index in L&R Update Mapping]]),0) -> 0 | M29: =IFERROR(IF(GeneratorListADSv2.1[[#This Row],[Index in L&R Mapping]]>0,1*INDEX(MappingLandR[Summer Cap (MW)],GeneratorListADSv2.1[[#This Row],[Index in L&R Mapping]]),0),1*INDEX(MappingLandR[L&R Nameplate (MW)],GeneratorListADSv2.1[[#This Row],[Index in L&R Mapping]])) -> 0 | N29: =IFERROR(IF(GeneratorListADSv2.1[[#This Row],[Index in L&R Mapping]]>0,1*INDEX(MappingLandR[Winter Cap (MW)],GeneratorListADSv2.1[[#This Row],[Index in L&R Mapping]]),0),1*INDEX(MappingLandR[L&R Nameplate (MW)],GeneratorListADSv2.1[[#This Row],[Index in L&R Mapping]])) -> 0 | O29: =IF(GeneratorListADSv2.1[[#This Row],[Index in L&R Mapping]]>0,1*INDEX(MappingLandR[L&R Nameplate (MW)],GeneratorListADSv2.1[[#This Row],[Index in L&R Mapping]]),0) -> 0 | W29: =IFERROR(MATCH(GeneratorListADSv2.1[[#This Row],[Bus ID]],Buses32HS1[BUS-NO],0),0) -> 3282 | X29: =IFERROR(MATCH(GeneratorListADSv2.1[[#This Row],[Name]],LnRUpdate[2032 ADS PCM Generator Name],0),0) -> 0 | Y29: =IFERROR(MATCH(GeneratorListADSv2.1[[#This Row],[Name]],MappingLandR[2032 ADS PCM Generator Name],0),0) -> 0 | Z29: =IFERROR(MATCH(GeneratorListADSv2.1[[#This Row],[BusNo-UnitID]],ADS32HS1PFv7[BusNo-UnitID],0),0) -> 0 | AA29: =GeneratorListADSv2.1[[#This Row],[Bus ID]] & "_" & MID(GeneratorListADSv2.1[[#This Row],[Unit ID]],2,10) -> 24001_DR | AB29: =AND(GeneratorListADSv2.1[[#This Row],[Service Status]],GeneratorListADSv2.1[[#This Row],[Commission Date]]<DATEVALUE("1/1/2033"),GeneratorListADSv2.1[[#This Row],[Retirement Date]]>DATEVALUE("12/31/2031")) -> TRUE | AC29: =LEN(GeneratorListADSv2.1[[#This Row],[Name]]) -> 9 | AD29: 12944 | AE29: DR_CISC-1 | AF29: 24001 | AG29: ALAMT1 G | AH29: 18 | AI29: 'DR | AJ29: 4 | AK29: DR | AL29: CA-- | AM29: CISC Demand Response (1of3) | AN29: TRUE | AO29: 2023-04-15 | AP29: 2050-01-01 | AQ29: Future-Conceptual | AR29: CISC | AS29: CA_CISO | AT29: 0 | AU29: 980.7 | AV29: 0 | AW29: YES | AX29: CA | AY29: NA | AZ29: NA | BA29: NA | BB29: Electricity | BC29: N/A | BD29: TRUE | BE29: NA
D30: =IF(SUBTOTAL(103,GeneratorListADSv2.1[[#This Row],[Name]])=1,1,0) -> 0 | E30: =COUNTIF(GenDistnADSv2.1[Unit Name],GeneratorListADSv2.1[[#This Row],[Name]]) -> 8 | F30: =GeneratorListADSv2.1[[#This Row],[ADS PCM Max Cap]]-GeneratorListADSv2.1[[#This Row],[PF Pmax]] -> 969.2767 | G30: =GeneratorListADSv2.1[[#This Row],[ADS PCM Max Cap]]-MAX(GeneratorListADSv2.1[[#This Row],[L&R Update Summer Cap]:[L&R Update Nameplate]]) -> 969.2767 | H30: =GeneratorListADSv2.1[[#This Row],[MaxCap (MW)]] -> 969.2767 | I30: =IF(GeneratorListADSv2.1[[#This Row],[Index in PF Table v7]]=0,0,INDEX(ADS32HS1PFv7[PMAX],GeneratorListADSv2.1[[#This Row],[Index in PF Table v7]])) -> 0 | J30: =IFERROR(IF(GeneratorListADSv2.1[[#This Row],[Index in L&R Update Mapping]]>0,1*INDEX(LnRUpdate[Summer Cap (MW)],GeneratorListADSv2.1[[#This Row],[Index in L&R Update Mapping]]),0),1*INDEX(LnRUpdate[L&R Nameplate (MW)],GeneratorListADSv2.1[[#This Row],[Index in L&R Update Mapping]])) -> 0 | K30: =IFERROR(IF(GeneratorListADSv2.1[[#This Row],[Index in L&R Update Mapping]]>0,1*INDEX(LnRUpdate[Winter Cap (MW)],GeneratorListADSv2.1[[#This Row],[Index in L&R Update Mapping]]),0),1*INDEX(LnRUpdate[L&R Nameplate (MW)],GeneratorListADSv2.1[[#This Row],[Index in L&R Update Mapping]])) -> 0 | L30: =IF(GeneratorListADSv2.1[[#This Row],[Index in L&R Update Mapping]]>0,1*INDEX(LnRUpdate[L&R Nameplate (MW)],GeneratorListADSv2.1[[#This Row],[Index in L&R Update Mapping]]),0) -> 0 | M30: =IFERROR(IF(GeneratorListADSv2.1[[#This Row],[Index in L&R Mapping]]>0,1*INDEX(MappingLandR[Summer Cap (MW)],GeneratorListADSv2.1[[#This Row],[Index in L&R Mapping]]),0),1*INDEX(MappingLandR[L&R Nameplate (MW)],GeneratorListADSv2.1[[#This Row],[Index in L&R Mapping]])) -> 0 | N30: =IFERROR(IF(GeneratorListADSv2.1[[#This Row],[Index in L&R Mapping]]>0,1*INDEX(MappingLandR[Winter Cap (MW)],GeneratorListADSv2.1[[#This Row],[Index in L&R Mapping]]),0),1*INDEX(MappingLandR[L&R Nameplate (MW)],GeneratorListADSv2.1[[#This Row],[Index in L&R Mapping]])) -> 0 | O30: =IF(GeneratorListADSv2.1[[#This Row],[Index in L&R Mapping]]>0,1*INDEX(MappingLandR[L&R Nameplate (MW)],GeneratorListADSv2.1[[#This Row],[Index in L&R Mapping]]),0) -> 0 | W30: =IFERROR(MATCH(GeneratorListADSv2.1[[#This Row],[Bus ID]],Buses32HS1[BUS-NO],0),0) -> 3288 | X30: =IFERROR(MATCH(GeneratorListADSv2.1[[#This Row],[Name]],LnRUpdate[2032 ADS PCM Generator Name],0),0) -> 0 | Y30: =IFERROR(MATCH(GeneratorListADSv2.1[[#This Row],[Name]],MappingLandR[2032 ADS PCM Generator Name],0),0) -> 0 | Z30: =IFERROR(MATCH(GeneratorListADSv2.1[[#This Row],[BusNo-UnitID]],ADS32HS1PFv7[BusNo-UnitID],0),0) -> 0 | AA30: =GeneratorListADSv2.1[[#This Row],[Bus ID]] & "_" & MID(GeneratorListADSv2.1[[#This Row],[Unit ID]],2,10) -> 24007_J6 | AB30: =AND(GeneratorListADSv2.1[[#This Row],[Service Status]],GeneratorListADSv2.1[[#This Row],[Commission Date]]<DATEVALUE("1/1/2033"),GeneratorListADSv2.1[[#This Row],[Retirement Date]]>DATEVALUE("12/31/2031")) -> TRUE | AC30: =LEN(GeneratorListADSv2.1[[#This Row],[Name]]) -> 21 | AD30: 18748 | AE30: DG-BTM_CISC_CA_Orange | AF30: 24007 | AG30: ALMITOSW | AH30: 66 | AI30: 'J6 | AJ30: 4 | AK30: DG-BTM | AL30: G0-- | AM30: DG-BTM_CISC_CA_Orange | AN30: TRUE | AO30: 2023-04-15 | AP30: 2050-01-01 | AQ30: Future-Conceptual | AR30: CISC | AS30: CA_CISO | AT30: 0 | AU30: 969.2767 | AV30: 0 | AW30: YES | AX30: ID | AY30: NA | AZ30: NA | BA30: NA | BB30: Solar | BC30: N/A | BD30: TRUE | BE30: NA
D31: =IF(SUBTOTAL(103,GeneratorListADSv2.1[[#This Row],[Name]])=1,1,0) -> 0 | E31: =COUNTIF(GenDistnADSv2.1[Unit Name],GeneratorListADSv2.1[[#This Row],[Name]]) -> 14 | F31: =GeneratorListADSv2.1[[#This Row],[ADS PCM Max Cap]]-GeneratorListADSv2.1[[#This Row],[PF Pmax]] -> 840 | G31: =GeneratorListADSv2.1[[#This Row],[ADS PCM Max Cap]]-MAX(GeneratorListADSv2.1[[#This Row],[L&R Update Summer Cap]:[L&R Update Nameplate]]) -> 840 | H31: =GeneratorListADSv2.1[[#This Row],[MaxCap (MW)]] -> 840 | I31: =IF(GeneratorListADSv2.1[[#This Row],[Index in PF Table v7]]=0,0,INDEX(ADS32HS1PFv7[PMAX],GeneratorListADSv2.1[[#This Row],[Index in PF Table v7]])) -> 0 | J31: =IFERROR(IF(GeneratorListADSv2.1[[#This Row],[Index in L&R Update Mapping]]>0,1*INDEX(LnRUpdate[Summer Cap (MW)],GeneratorListADSv2.1[[#This Row],[Index in L&R Update Mapping]]),0),1*INDEX(LnRUpdate[L&R Nameplate (MW)],GeneratorListADSv2.1[[#This Row],[Index in L&R Update Mapping]])) -> 0 | K31: =IFERROR(IF(GeneratorListADSv2.1[[#This Row],[Index in L&R Update Mapping]]>0,1*INDEX(LnRUpdate[Winter Cap (MW)],GeneratorListADSv2.1[[#This Row],[Index in L&R Update Mapping]]),0),1*INDEX(LnRUpdate[L&R Nameplate (MW)],GeneratorListADSv2.1[[#This Row],[Index in L&R Update Mapping]])) -> 0 | L31: =IF(GeneratorListADSv2.1[[#This Row],[Index in L&R Update Mapping]]>0,1*INDEX(LnRUpdate[L&R Nameplate (MW)],GeneratorListADSv2.1[[#This Row],[Index in L&R Update Mapping]]),0) -> 0 | M31: =IFERROR(IF(GeneratorListADSv2.1[[#This Row],[Index in L&R Mapping]]>0,1*INDEX(MappingLandR[Summer Cap (MW)],GeneratorListADSv2.1[[#This Row],[Index in L&R Mapping]]),0),1*INDEX(MappingLandR[L&R Nameplate (MW)],GeneratorListADSv2.1[[#This Row],[Index in L&R Mapping]])) -> 0 | N31: =IFERROR(IF(GeneratorListADSv2.1[[#This Row],[Index in L&R Mapping]]>0,1*INDEX(MappingLandR[Winter Cap (MW)],GeneratorListADSv2.1[[#This Row],[Index in L&R Mapping]]),0),1*INDEX(MappingLandR[L&R Nameplate (MW)],GeneratorListADSv2.1[[#This Row],[Index in L&R Mapping]])) -> 0 | O31: =IF(GeneratorListADSv2.1[[#This Row],[Index in L&R Mapping]]>0,1*INDEX(MappingLandR[L&R Nameplate (MW)],GeneratorListADSv2.1[[#This Row],[Index in L&R Mapping]]),0) -> 0 | W31: =IFERROR(MATCH(GeneratorListADSv2.1[[#This Row],[Bus ID]],Buses32HS1[BUS-NO],0),0) -> 4304 | X31: =IFERROR(MATCH(GeneratorListADSv2.1[[#This Row],[Name]],LnRUpdate[2032 ADS PCM Generator Name],0),0) -> 0 | Y31: =IFERROR(MATCH(GeneratorListADSv2.1[[#This Row],[Name]],MappingLandR[2032 ADS PCM Generator Name],0),0) -> 0 | Z31: =IFERROR(MATCH(GeneratorListADSv2.1[[#This Row],[BusNo-UnitID]],ADS32HS1PFv7[BusNo-UnitID],0),0) -> 3970 | AA31: =GeneratorListADSv2.1[[#This Row],[Bus ID]] & "_" & MID(GeneratorListADSv2.1[[#This Row],[Unit ID]],2,10) -> 25605_1 | AB31: =AND(GeneratorListADSv2.1[[#This Row],[Service Status]],GeneratorListADSv2.1[[#This Row],[Commission Date]]<DATEVALUE("1/1/2033"),GeneratorListADSv2.1[[#This Row],[Retirement Date]]>DATEVALUE("12/31/2031")) -> TRUE | AC31: =LEN(GeneratorListADSv2.1[[#This Row],[Name]]) -> 19 | AD31: 4540 | AE31: EdmonstonPump-Total | AF31: 25605 | AG31: EDMON1AP | AH31: 14.4 | AI31: '1 | AJ31: 4 | AK31: MotorLoad | AL31: CA-- | AM31: EdmonstonPump Total | AN31: TRUE | AO31: 1980-01-01 | AP31: 2050-01-01 | AQ31: Existing | AR31: CISC | AS31: CA_CISO | AT31: -60 | AU31: 840 | AV31: 0 | AW31: YES | AX31: CA | AY31: NA | AZ31: NA | BA31: NA | BB31: Electricity | BC31: N/A | BD31: FALSE | BE31: NA
D32: =IF(SUBTOTAL(103,GeneratorListADSv2.1[[#This Row],[Name]])=1,1,0) -> 0 | E32: =COUNTIF(GenDistnADSv2.1[Unit Name],GeneratorListADSv2.1[[#This Row],[Name]]) -> 79 | F32: =GeneratorListADSv2.1[[#This Row],[ADS PCM Max Cap]]-GeneratorListADSv2.1[[#This Row],[PF Pmax]] -> 796.5273 | G32: =GeneratorListADSv2.1[[#This Row],[ADS PCM Max Cap]]-MAX(GeneratorListADSv2.1[[#This Row],[L&R Update Summer Cap]:[L&R Update Nameplate]]) -> 796.5273 | H32: =GeneratorListADSv2.1[[#This Row],[MaxCap (MW)]] -> 796.5273 | I32: =IF(GeneratorListADSv2.1[[#This Row],[Index in PF Table v7]]=0,0,INDEX(ADS32HS1PFv7[PMAX],GeneratorListADSv2.1[[#This Row],[Index in PF Table v7]])) -> 0 | J32: =IFERROR(IF(GeneratorListADSv2.1[[#This Row],[Index in L&R Update Mapping]]>0,1*INDEX(LnRUpdate[Summer Cap (MW)],GeneratorListADSv2.1[[#This Row],[Index in L&R Update Mapping]]),0),1*INDEX(LnRUpdate[L&R Nameplate (MW)],GeneratorListADSv2.1[[#This Row],[Index in L&R Update Mapping]])) -> 0 | K32: =IFERROR(IF(GeneratorListADSv2.1[[#This Row],[Index in L&R Update Mapping]]>0,1*INDEX(LnRUpdate[Winter Cap (MW)],GeneratorListADSv2.1[[#This Row],[Index in L&R Update Mapping]]),0),1*INDEX(LnRUpdate[L&R Nameplate (MW)],GeneratorListADSv2.1[[#This Row],[Index in L&R Update Mapping]])) -> 0 | L32: =IF(GeneratorListADSv2.1[[#This Row],[Index in L&R Update Mapping]]>0,1*INDEX(LnRUpdate[L&R Nameplate (MW)],GeneratorListADSv2.1[[#This Row],[Index in L&R Update Mapping]]),0) -> 0 | M32: =IFERROR(IF(GeneratorListADSv2.1[[#This Row],[Index in L&R Mapping]]>0,1*INDEX(MappingLandR[Summer Cap (MW)],GeneratorListADSv2.1[[#This Row],[Index in L&R Mapping]]),0),1*INDEX(MappingLandR[L&R Nameplate (MW)],GeneratorListADSv2.1[[#This Row],[Index in L&R Mapping]])) -> 0 | N32: =IFERROR(IF(GeneratorListADSv2.1[[#This Row],[Index in L&R Mapping]]>0,1*INDEX(MappingLandR[Winter Cap (MW)],GeneratorListADSv2.1[[#This Row],[Index in L&R Mapping]]),0),1*INDEX(MappingLandR[L&R Nameplate (MW)],GeneratorListADSv2.1[[#This Row],[Index in L&R Mapping]])) -> 0 | O32: =IF(GeneratorListADSv2.1[[#This Row],[Index in L&R Mapping]]>0,1*INDEX(MappingLandR[L&R Nameplate (MW)],GeneratorListADSv2.1[[#This Row],[Index in L&R Mapping]]),0) -> 0 | W32: =IFERROR(MATCH(GeneratorListADSv2.1[[#This Row],[Bus ID]],Buses32HS1[BUS-NO],0),0) -> 4911 | X32: =IFERROR(MATCH(GeneratorListADSv2.1[[#This Row],[Name]],LnRUpdate[2032 ADS PCM Generator Name],0),0) -> 0 | Y32: =IFERROR(MATCH(GeneratorListADSv2.1[[#This Row],[Name]],MappingLandR[2032 ADS PCM Generator Name],0),0) -> 0 | Z32: =IFERROR(MATCH(GeneratorListADSv2.1[[#This Row],[BusNo-UnitID]],ADS32HS1PFv7[BusNo-UnitID],0),0) -> 0 | AA32: =GeneratorListADSv2.1[[#This Row],[Bus ID]] & "_" & MID(GeneratorListADSv2.1[[#This Row],[Unit ID]],2,10) -> 27243_D8 | AB32: =AND(GeneratorListADSv2.1[[#This Row],[Service Status]],GeneratorListADSv2.1[[#This Row],[Commission Date]]<DATEVALUE("1/1/2033"),GeneratorListADSv2.1[[#This Row],[Retirement Date]]>DATEVALUE("12/31/2031")) -> TRUE | AC32: =LEN(GeneratorListADSv2.1[[#This Row],[Name]]) -> 26 | AD32: 18806 | AE32: DG-BTM_LDWP_CA_Los Angeles | AF32: 27243 | AG32: VALLEY34 | AH32: 34.5 | AI32: 'D8 | AJ32: 4 | AK32: DG-BTM | AL32: G0-- | AM32: DG-BTM_LDWP_CA_Los Angeles | AN32: TRUE | AO32: 2023-04-15 | AP32: 2050-01-01 | AQ32: Future-Conceptual | AR32: LDWP | AS32: CA_LDWP | AT32: 0 | AU32: 796.5273 | AV32: 0 | AW32: YES | AX32: ID | AY32: NA | AZ32: NA | BA32: NA | BB32: Solar | BC32: N/A | BD32: TRUE | BE32: NA
D33: =IF(SUBTOTAL(103,GeneratorListADSv2.1[[#This Row],[Name]])=1,1,0) -> 0 | E33: =COUNTIF(GenDistnADSv2.1[Unit Name],GeneratorListADSv2.1[[#This Row],[Name]]) -> 10 | F33: =GeneratorListADSv2.1[[#This Row],[ADS PCM Max Cap]]-GeneratorListADSv2.1[[#This Row],[PF Pmax]] -> 795.6226 | G33: =GeneratorListADSv2.1[[#This Row],[ADS PCM Max Cap]]-MAX(GeneratorListADSv2.1[[#This Row],[L&R Update Summer Cap]:[L&R Update Nameplate]]) -> 795.6226 | H33: =GeneratorListADSv2.1[[#This Row],[MaxCap (MW)]] -> 795.6226 | I33: =IF(GeneratorListADSv2.1[[#This Row],[Index in PF Table v7]]=0,0,INDEX(ADS32HS1PFv7[PMAX],GeneratorListADSv2.1[[#This Row],[Index in PF Table v7]])) -> 0 | J33: =IFERROR(IF(GeneratorListADSv2.1[[#This Row],[Index in L&R Update Mapping]]>0,1*INDEX(LnRUpdate[Summer Cap (MW)],GeneratorListADSv2.1[[#This Row],[Index in L&R Update Mapping]]),0),1*INDEX(LnRUpdate[L&R Nameplate (MW)],GeneratorListADSv2.1[[#This Row],[Index in L&R Update Mapping]])) -> 0 | K33: =IFERROR(IF(GeneratorListADSv2.1[[#This Row],[Index in L&R Update Mapping]]>0,1*INDEX(LnRUpdate[Winter Cap (MW)],GeneratorListADSv2.1[[#This Row],[Index in L&R Update Mapping]]),0),1*INDEX(LnRUpdate[L&R Nameplate (MW)],GeneratorListADSv2.1[[#This Row],[Index in L&R Update Mapping]])) -> 0 | L33: =IF(GeneratorListADSv2.1[[#This Row],[Index in L&R Update Mapping]]>0,1*INDEX(LnRUpdate[L&R Nameplate (MW)],GeneratorListADSv2.1[[#This Row],[Index in L&R Update Mapping]]),0) -> 0 | M33: =IFERROR(IF(GeneratorListADSv2.1[[#This Row],[Index in L&R Mapping]]>0,1*INDEX(MappingLandR[Summer Cap (MW)],GeneratorListADSv2.1[[#This Row],[Index in L&R Mapping]]),0),1*INDEX(MappingLandR[L&R Nameplate (MW)],GeneratorListADSv2.1[[#This Row],[Index in L&R Mapping]])) -> 0 | N33: =IFERROR(IF(GeneratorListADSv2.1[[#This Row],[Index in L&R Mapping]]>0,1*INDEX(MappingLandR[Winter Cap (MW)],GeneratorListADSv2.1[[#This Row],[Index in L&R Mapping]]),0),1*INDEX(MappingLandR[L&R Nameplate (MW)],GeneratorListADSv2.1[[#This Row],[Index in L&R Mapping]])) -> 0 | O33: =IF(GeneratorListADSv2.1[[#This Row],[Index in L&R Mapping]]>0,1*INDEX(MappingLandR[L&R Nameplate (MW)],GeneratorListADSv2.1[[#This Row],[Index in L&R Mapping]]),0) -> 0 | W33: =IFERROR(MATCH(GeneratorListADSv2.1[[#This Row],[Bus ID]],Buses32HS1[BUS-NO],0),0) -> 4347 | X33: =IFERROR(MATCH(GeneratorListADSv2.1[[#This Row],[Name]],LnRUpdate[2032 ADS PCM Generator Name],0),0) -> 0 | Y33: =IFERROR(MATCH(GeneratorListADSv2.1[[#This Row],[Name]],MappingLandR[2032 ADS PCM Generator Name],0),0) -> 0 | Z33: =IFERROR(MATCH(GeneratorListADSv2.1[[#This Row],[BusNo-UnitID]],ADS32HS1PFv7[BusNo-UnitID],0),0) -> 0 | AA33: =GeneratorListADSv2.1[[#This Row],[Bus ID]] & "_" & MID(GeneratorListADSv2.1[[#This Row],[Unit ID]],2,10) -> 25667_J5 | AB33: =AND(GeneratorListADSv2.1[[#This Row],[Service Status]],GeneratorListADSv2.1[[#This Row],[Commission Date]]<DATEVALUE("1/1/2033"),GeneratorListADSv2.1[[#This Row],[Retirement Date]]>DATEVALUE("12/31/2031")) -> TRUE | AC33: =LEN(GeneratorListADSv2.1[[#This Row],[Name]]) -> 24 | AD33: 18749 | AE33: DG-BTM_CISC_CA_Riverside | AF33: 25667 | AG33: EL CASCO | AH33: 115 | AI33: 'J5 | AJ33: 4 | AK33: DG-BTM | AL33: G0-- | AM33: DG-BTM_CISC_CA_Riverside | AN33: TRUE | AO33: 2023-04-15 | AP33: 2050-01-01 | AQ33: Future-Conceptual | AR33: CISC | AS33: CA_CISO | AT33: 0 | AU33: 795.6226 | AV33: 0 | AW33: YES | AX33: ID | AY33: NA | AZ33: NA | BA33: NA | BB33: Solar | BC33: N/A | BD33: TRUE | BE33: NA
D34: =IF(SUBTOTAL(103,GeneratorListADSv2.1[[#This Row],[Name]])=1,1,0) -> 0 | E34: =COUNTIF(GenDistnADSv2.1[Unit Name],GeneratorListADSv2.1[[#This Row],[Name]]) -> 6 | F34: =GeneratorListADSv2.1[[#This Row],[ADS PCM Max Cap]]-GeneratorListADSv2.1[[#This Row],[PF Pmax]] -> 796.47 | G34: =GeneratorListADSv2.1[[#This Row],[ADS PCM Max Cap]]-MAX(GeneratorListADSv2.1[[#This Row],[L&R Update Summer Cap]:[L&R Update Nameplate]]) -> 795 | H34: =GeneratorListADSv2.1[[#This Row],[MaxCap (MW)]] -> 930 | I34: =IF(GeneratorListADSv2.1[[#This Row],[Index in PF Table v7]]=0,0,INDEX(ADS32HS1PFv7[PMAX],GeneratorListADSv2.1[[#This Row],[Index in PF Table v7]])) -> 133.53 | J34: =IFERROR(IF(GeneratorListADSv2.1[[#This Row],[Index in L&R Update Mapping]]>0,1*INDEX(LnRUpdate[Summer Cap (MW)],GeneratorListADSv2.1[[#This Row],[Index in L&R Update Mapping]]),0),1*INDEX(LnRUpdate[L&R Nameplate (MW)],GeneratorListADSv2.1[[#This Row],[Index in L&R Update Mapping]])) -> 135 | K34: =IFERROR(IF(GeneratorListADSv2.1[[#This Row],[Index in L&R Update Mapping]]>0,1*INDEX(LnRUpdate[Winter Cap (MW)],GeneratorListADSv2.1[[#This Row],[Index in L&R Update Mapping]]),0),1*INDEX(LnRUpdate[L&R Nameplate (MW)],GeneratorListADSv2.1[[#This Row],[Index in L&R Update Mapping]])) -> 135 | L34: =IF(GeneratorListADSv2.1[[#This Row],[Index in L&R Update Mapping]]>0,1*INDEX(LnRUpdate[L&R Nameplate (MW)],GeneratorListADSv2.1[[#This Row],[Index in L&R Update Mapping]]),0) -> 135 | M34: =IFERROR(IF(GeneratorListADSv2.1[[#This Row],[Index in L&R Mapping]]>0,1*INDEX(MappingLandR[Summer Cap (MW)],GeneratorListADSv2.1[[#This Row],[Index in L&R Mapping]]),0),1*INDEX(MappingLandR[L&R Nameplate (MW)],GeneratorListADSv2.1[[#This Row],[Index in L&R Mapping]])) -> 135 | N34: =IFERROR(IF(GeneratorListADSv2.1[[#This Row],[Index in L&R Mapping]]>0,1*INDEX(MappingLandR[Winter Cap (MW)],GeneratorListADSv2.1[[#This Row],[Index in L&R Mapping]]),0),1*INDEX(MappingLandR[L&R Nameplate (MW)],GeneratorListADSv2.1[[#This Row],[Index in L&R Mapping]])) -> 135 | O34: =IF(GeneratorListADSv2.1[[#This Row],[Index in L&R Mapping]]>0,1*INDEX(MappingLandR[L&R Nameplate (MW)],GeneratorListADSv2.1[[#This Row],[Index in L&R Mapping]]),0) -> 135 | W34: =IFERROR(MATCH(GeneratorListADSv2.1[[#This Row],[Bus ID]],Buses32HS1[BUS-NO],0),0) -> 10896 | X34: =IFERROR(MATCH(GeneratorListADSv2.1[[#This Row],[Name]],LnRUpdate[2032 ADS PCM Generator Name],0),0) -> 2443 | Y34: =IFERROR(MATCH(GeneratorListADSv2.1[[#This Row],[Name]],MappingLandR[2032 ADS PCM Generator Name],0),0) -> 2443 | Z34: =IFERROR(MATCH(GeneratorListADSv2.1[[#This Row],[BusNo-UnitID]],ADS32HS1PFv7[BusNo-UnitID],0),0) -> 1954 | AA34: =GeneratorListADSv2.1[[#This Row],[Bus ID]] & "_" & MID(GeneratorListADSv2.1[[#This Row],[Unit ID]],2,10) -> 44251_1 | AB34: =AND(GeneratorListADSv2.1[[#This Row],[Service Status]],GeneratorListADSv2.1[[#This Row],[Commission Date]]<DATEVALUE("1/1/2033"),GeneratorListADSv2.1[[#This Row],[Retirement Date]]>DATEVALUE("12/31/2031")) -> TRUE | AC34: =LEN(GeneratorListADSv2.1[[#This Row],[Name]]) -> 16 | AD34: 14136 | AE34: Lower Monumental | AF34: 44251 | AG34: LOW_MON_0102 | AH34: 13.8 | AI34: '1 | AJ34: 2 | AK34: Hydro | AL34: WA-3927-Agg Plant | AM34: Lower Monumental | AN34: TRUE | AO34: 1969-06-01 | AP34: 2050-12-31 | AQ34: Existing | AR34: BPAT | AS34: NW_BPAT | AT34: 0 | AU34: 930 | AV34: 0 | AW34: YES | AX34: WA | AY34: NA | AZ34: NA | BA34: NA | BB34: Water | BC34: N/A | BD34: FALSE | BE34: NA
D35: =IF(SUBTOTAL(103,GeneratorListADSv2.1[[#This Row],[Name]])=1,1,0) -> 0 | E35: =COUNTIF(GenDistnADSv2.1[Unit Name],GeneratorListADSv2.1[[#This Row],[Name]]) -> 6 | F35: =GeneratorListADSv2.1[[#This Row],[ADS PCM Max Cap]]-GeneratorListADSv2.1[[#This Row],[PF Pmax]] -> 774.75 | G35: =GeneratorListADSv2.1[[#This Row],[ADS PCM Max Cap]]-MAX(GeneratorListADSv2.1[[#This Row],[L&R Update Summer Cap]:[L&R Update Nameplate]]) -> 795 | H35: =GeneratorListADSv2.1[[#This Row],[MaxCap (MW)]] -> 930 | I35: =IF(GeneratorListADSv2.1[[#This Row],[Index in PF Table v7]]=0,0,INDEX(ADS32HS1PFv7[PMAX],GeneratorListADSv2.1[[#This Row],[Index in PF Table v7]])) -> 155.25 | J35: =IFERROR(IF(GeneratorListADSv2.1[[#This Row],[Index in L&R Update Mapping]]>0,1*INDEX(LnRUpdate[Summer Cap (MW)],GeneratorListADSv2.1[[#This Row],[Index in L&R Update Mapping]]),0),1*INDEX(LnRUpdate[L&R Nameplate (MW)],GeneratorListADSv2.1[[#This Row],[Index in L&R Update Mapping]])) -> 135 | K35: =IFERROR(IF(GeneratorListADSv2.1[[#This Row],[Index in L&R Update Mapping]]>0,1*INDEX(LnRUpdate[Winter Cap (MW)],GeneratorListADSv2.1[[#This Row],[Index in L&R Update Mapping]]),0),1*INDEX(LnRUpdate[L&R Nameplate (MW)],GeneratorListADSv2.1[[#This Row],[Index in L&R Update Mapping]])) -> 135 | L35: =IF(GeneratorListADSv2.1[[#This Row],[Index in L&R Update Mapping]]>0,1*INDEX(LnRUpdate[L&R Nameplate (MW)],GeneratorListADSv2.1[[#This Row],[Index in L&R Update Mapping]]),0) -> 135 | M35: =IFERROR(IF(GeneratorListADSv2.1[[#This Row],[Index in L&R Mapping]]>0,1*INDEX(MappingLandR[Summer Cap (MW)],GeneratorListADSv2.1[[#This Row],[Index in L&R Mapping]]),0),1*INDEX(MappingLandR[L&R Nameplate (MW)],GeneratorListADSv2.1[[#This Row],[Index in L&R Mapping]])) -> 135 | N35: =IFERROR(IF(GeneratorListADSv2.1[[#This Row],[Index in L&R Mapping]]>0,1*INDEX(MappingLandR[Winter Cap (MW)],GeneratorListADSv2.1[[#This Row],[Index in L&R Mapping]]),0),1*INDEX(MappingLandR[L&R Nameplate (MW)],GeneratorListADSv2.1[[#This Row],[Index in L&R Mapping]])) -> 135 | O35: =IF(GeneratorListADSv2.1[[#This Row],[Index in L&R Mapping]]>0,1*INDEX(MappingLandR[L&R Nameplate (MW)],GeneratorListADSv2.1[[#This Row],[Index in L&R Mapping]]),0) -> 135 | W35: =IFERROR(MATCH(GeneratorListADSv2.1[[#This Row],[Bus ID]],Buses32HS1[BUS-NO],0),0) -> 10882 | X35: =IFERROR(MATCH(GeneratorListADSv2.1[[#This Row],[Name]],LnRUpdate[2032 ADS PCM Generator Name],0),0) -> 2431 | Y35: =IFERROR(MATCH(GeneratorListADSv2.1[[#This Row],[Name]],MappingLandR[2032 ADS PCM Generator Name],0),0) -> 2431 | Z35: =IFERROR(MATCH(GeneratorListADSv2.1[[#This Row],[BusNo-UnitID]],ADS32HS1PFv7[BusNo-UnitID],0),0) -> 1942 | AA35: =GeneratorListADSv2.1[[#This Row],[Bus ID]] & "_" & MID(GeneratorListADSv2.1[[#This Row],[Unit ID]],2,10) -> 44211_1 | AB35: =AND(GeneratorListADSv2.1[[#This Row],[Service Status]],GeneratorListADSv2.1[[#This Row],[Commission Date]]<DATEVALUE("1/1/2033"),GeneratorListADSv2.1[[#This Row],[Retirement Date]]>DATEVALUE("12/31/2031")) -> TRUE | AC35: =LEN(GeneratorListADSv2.1[[#This Row],[Name]]) -> 12 | AD35: 14141 | AE35: Little Goose | AF35: 44211 | AG35: LIT_GOS_0102 | AH35: 13.8 | AI35: '1 | AJ35: 2 | AK35: Hydro | AL35: WA-3926-Agg Plant | AM35: Little Goose | AN35: TRUE | AO35: 1970-04-01 | AP35: 2050-12-31 | AQ35: Existing | AR35: BPAT | AS35: NW_BPAT | AT35: 0 | AU35: 930 | AV35: 139 | AW35: YES | AX35: WA | AY35: NA | AZ35: NA | BA35: NA | BB35: Water | BC35: N/A | BD35: FALSE | BE35: NA
D36: =IF(SUBTOTAL(103,GeneratorListADSv2.1[[#This Row],[Name]])=1,1,0) -> 0 | E36: =COUNTIF(GenDistnADSv2.1[Unit Name],GeneratorListADSv2.1[[#This Row],[Name]]) -> 9 | F36: =GeneratorListADSv2.1[[#This Row],[ADS PCM Max Cap]]-GeneratorListADSv2.1[[#This Row],[PF Pmax]] -> 766.0013 | G36: =GeneratorListADSv2.1[[#This Row],[ADS PCM Max Cap]]-MAX(GeneratorListADSv2.1[[#This Row],[L&R Update Summer Cap]:[L&R Update Nameplate]]) -> 766.0013 | H36: =GeneratorListADSv2.1[[#This Row],[MaxCap (MW)]] -> 766.0013 | I36: =IF(GeneratorListADSv2.1[[#This Row],[Index in PF Table v7]]=0,0,INDEX(ADS32HS1PFv7[PMAX],GeneratorListADSv2.1[[#This Row],[Index in PF Table v7]])) -> 0 | J36: =IFERROR(IF(GeneratorListADSv2.1[[#This Row],[Index in L&R Update Mapping]]>0,1*INDEX(LnRUpdate[Summer Cap (MW)],GeneratorListADSv2.1[[#This Row],[Index in L&R Update Mapping]]),0),1*INDEX(LnRUpdate[L&R Nameplate (MW)],GeneratorListADSv2.1[[#This Row],[Index in L&R Update Mapping]])) -> 0 | K36: =IFERROR(IF(GeneratorListADSv2.1[[#This Row],[Index in L&R Update Mapping]]>0,1*INDEX(LnRUpdate[Winter Cap (MW)],GeneratorListADSv2.1[[#This Row],[Index in L&R Update Mapping]]),0),1*INDEX(LnRUpdate[L&R Nameplate (MW)],GeneratorListADSv2.1[[#This Row],[Index in L&R Update Mapping]])) -> 0 | L36: =IF(GeneratorListADSv2.1[[#This Row],[Index in L&R Update Mapping]]>0,1*INDEX(LnRUpdate[L&R Nameplate (MW)],GeneratorListADSv2.1[[#This Row],[Index in L&R Update Mapping]]),0) -> 0 | M36: =IFERROR(IF(GeneratorListADSv2.1[[#This Row],[Index in L&R Mapping]]>0,1*INDEX(MappingLandR[Summer Cap (MW)],GeneratorListADSv2.1[[#This Row],[Index in L&R Mapping]]),0),1*INDEX(MappingLandR[L&R Nameplate (MW)],GeneratorListADSv2.1[[#This Row],[Index in L&R Mapping]])) -> 0 | N36: =IFERROR(IF(GeneratorListADSv2.1[[#This Row],[Index in L&R Mapping]]>0,1*INDEX(MappingLandR[Winter Cap (MW)],GeneratorListADSv2.1[[#This Row],[Index in L&R Mapping]]),0),1*INDEX(MappingLandR[L&R Nameplate (MW)],GeneratorListADSv2.1[[#This Row],[Index in L&R Mapping]])) -> 0 | O36: =IF(GeneratorListADSv2.1[[#This Row],[Index in L&R Mapping]]>0,1*INDEX(MappingLandR[L&R Nameplate (MW)],GeneratorListADSv2.1[[#This Row],[Index in L&R Mapping]]),0) -> 0 | W36: =IFERROR(MATCH(GeneratorListADSv2.1[[#This Row],[Bus ID]],Buses32HS1[BUS-NO],0),0) -> 2969 | X36: =IFERROR(MATCH(GeneratorListADSv2.1[[#This Row],[Name]],LnRUpdate[2032 ADS PCM Generator Name],0),0) -> 0 | Y36: =IFERROR(MATCH(GeneratorListADSv2.1[[#This Row],[Name]],MappingLandR[2032 ADS PCM Generator Name],0),0) -> 0 | Z36: =IFERROR(MATCH(GeneratorListADSv2.1[[#This Row],[BusNo-UnitID]],ADS32HS1PFv7[BusNo-UnitID],0),0) -> 0 | AA36: =GeneratorListADSv2.1[[#This Row],[Bus ID]] & "_" & MID(GeneratorListADSv2.1[[#This Row],[Unit ID]],2,10) -> 22432_I8 | AB36: =AND(GeneratorListADSv2.1[[#This Row],[Service Status]],GeneratorListADSv2.1[[#This Row],[Commission Date]]<DATEVALUE("1/1/2033"),GeneratorListADSv2.1[[#This Row],[Retirement Date]]>DATEVALUE("12/31/2031")) -> TRUE | AC36: =LEN(GeneratorListADSv2.1[[#This Row],[Name]]) -> 21 | AD36: 18756 | AE36: DG-BTM_CISD_CA_Orange | AF36: 22432 | AG36: MARGARTA | AH36: 138 | AI36: 'I8 | AJ36: 4 | AK36: DG-BTM | AL36: G0-- | AM36: DG-BTM_CISD_CA_Orange | AN36: TRUE | AO36: 2023-04-15 | AP36: 2050-01-01 | AQ36: Future-Conceptual | AR36: CISD | AS36: CA_CISO | AT36: 0 | AU36: 766.0013 | AV36: 0 | AW36: YES | AX36: ID | AY36: NA | AZ36: NA | BA36: NA | BB36: Solar | BC36: N/A | BD36: TRUE | BE36: NA
D37: =IF(SUBTOTAL(103,GeneratorListADSv2.1[[#This Row],[Name]])=1,1,0) -> 0 | E37: =COUNTIF(GenDistnADSv2.1[Unit Name],GeneratorListADSv2.1[[#This Row],[Name]]) -> 10 | F37: =GeneratorListADSv2.1[[#This Row],[ADS PCM Max Cap]]-GeneratorListADSv2.1[[#This Row],[PF Pmax]] -> 754.5 | G37: =GeneratorListADSv2.1[[#This Row],[ADS PCM Max Cap]]-MAX(GeneratorListADSv2.1[[#This Row],[L&R Update Summer Cap]:[L&R Update Nameplate]]) -> 756 | H37: =GeneratorListADSv2.1[[#This Row],[MaxCap (MW)]] -> 840 | I37: =IF(GeneratorListADSv2.1[[#This Row],[Index in PF Table v7]]=0,0,INDEX(ADS32HS1PFv7[PMAX],GeneratorListADSv2.1[[#This Row],[Index in PF Table v7]])) -> 85.5 | J37: =IFERROR(IF(GeneratorListADSv2.1[[#This Row],[Index in L&R Update Mapping]]>0,1*INDEX(LnRUpdate[Summer Cap (MW)],GeneratorListADSv2.1[[#This Row],[Index in L&R Update Mapping]]),0),1*INDEX(LnRUpdate[L&R Nameplate (MW)],GeneratorListADSv2.1[[#This Row],[Index in L&R Update Mapping]])) -> 84 | K37: =IFERROR(IF(GeneratorListADSv2.1[[#This Row],[Index in L&R Update Mapping]]>0,1*INDEX(LnRUpdate[Winter Cap (MW)],GeneratorListADSv2.1[[#This Row],[Index in L&R Update Mapping]]),0),1*INDEX(LnRUpdate[L&R Nameplate (MW)],GeneratorListADSv2.1[[#This Row],[Index in L&R Update Mapping]])) -> 84 | L37: =IF(GeneratorListADSv2.1[[#This Row],[Index in L&R Update Mapping]]>0,1*INDEX(LnRUpdate[L&R Nameplate (MW)],GeneratorListADSv2.1[[#This Row],[Index in L&R Update Mapping]]),0) -> 84 | M37: =IFERROR(IF(GeneratorListADSv2.1[[#This Row],[Index in L&R Mapping]]>0,1*INDEX(MappingLandR[Summer Cap (MW)],GeneratorListADSv2.1[[#This Row],[Index in L&R Mapping]]),0),1*INDEX(MappingLandR[L&R Nameplate (MW)],GeneratorListADSv2.1[[#This Row],[Index in L&R Mapping]])) -> 84 | N37: =IFERROR(IF(GeneratorListADSv2.1[[#This Row],[Index in L&R Mapping]]>0,1*INDEX(MappingLandR[Winter Cap (MW)],GeneratorListADSv2.1[[#This Row],[Index in L&R Mapping]]),0),1*INDEX(MappingLandR[L&R Nameplate (MW)],GeneratorListADSv2.1[[#This Row],[Index in L&R Mapping]])) -> 84 | O37: =IF(GeneratorListADSv2.1[[#This Row],[Index in L&R Mapping]]>0,1*INDEX(MappingLandR[L&R Nameplate (MW)],GeneratorListADSv2.1[[#This Row],[Index in L&R Mapping]]),0) -> 84 | W37: =IFERROR(MATCH(GeneratorListADSv2.1[[#This Row],[Bus ID]],Buses32HS1[BUS-NO],0),0) -> 12301 | X37: =IFERROR(MATCH(GeneratorListADSv2.1[[#This Row],[Name]],LnRUpdate[2032 ADS PCM Generator Name],0),0) -> 2723 | Y37: =IFERROR(MATCH(GeneratorListADSv2.1[[#This Row],[Name]],MappingLandR[2032 ADS PCM Generator Name],0),0) -> 2723 | Z37: =IFERROR(MATCH(GeneratorListADSv2.1[[#This Row],[BusNo-UnitID]],ADS32HS1PFv7[BusNo-UnitID],0),0) -> 2168 | AA37: =GeneratorListADSv2.1[[#This Row],[Bus ID]] & "_" & MID(GeneratorListADSv2.1[[#This Row],[Unit ID]],2,10) -> 47104_1 | AB37: =AND(GeneratorListADSv2.1[[#This Row],[Service Status]],GeneratorListADSv2.1[[#This Row],[Commission Date]]<DATEVALUE("1/1/2033"),GeneratorListADSv2.1[[#This Row],[Retirement Date]]>DATEVALUE("12/31/2031")) -> TRUE | AC37: =LEN(GeneratorListADSv2.1[[#This Row],[Name]]) -> 5 | AD37: 14140 | AE37: Wells | AF37: 47104 | AG37: WELLS T1 | AH37: 14.4 | AI37: '1 | AJ37: 2 | AK37: Hydro | AL37: WA-3886-Agg Plant | AM37: Wells-U-1 | AN37: TRUE | AO37: 1967-09-01 | AP37: 2050-12-31 | AQ37: Existing | AR37: DOPD | AS37: NW_DOPD | AT37: 50 | AU37: 840 | AV37: 80 | AW37: YES | AX37: WA | AY37: NA | AZ37: NA | BA37: NA | BB37: Water | BC37: N/A | BD37: FALSE | BE37: NA
D38: =IF(SUBTOTAL(103,GeneratorListADSv2.1[[#This Row],[Name]])=1,1,0) -> 0 | E38: =COUNTIF(GenDistnADSv2.1[Unit Name],GeneratorListADSv2.1[[#This Row],[Name]]) -> 1 | F38: =GeneratorListADSv2.1[[#This Row],[ADS PCM Max Cap]]-GeneratorListADSv2.1[[#This Row],[PF Pmax]] -> 679.2 | G38: =GeneratorListADSv2.1[[#This Row],[ADS PCM Max Cap]]-MAX(GeneratorListADSv2.1[[#This Row],[L&R Update Summer Cap]:[L&R Update Nameplate]]) -> 679.2 | H38: =GeneratorListADSv2.1[[#This Row],[MaxCap (MW)]] -> 679.2 | I38: =IF(GeneratorListADSv2.1[[#This Row],[Index in PF Table v7]]=0,0,INDEX(ADS32HS1PFv7[PMAX],GeneratorListADSv2.1[[#This Row],[Index in PF Table v7]])) -> 0 | J38: =IFERROR(IF(GeneratorListADSv2.1[[#This Row],[Index in L&R Update Mapping]]>0,1*INDEX(LnRUpdate[Summer Cap (MW)],GeneratorListADSv2.1[[#This Row],[Index in L&R Update Mapping]]),0),1*INDEX(LnRUpdate[L&R Nameplate (MW)],GeneratorListADSv2.1[[#This Row],[Index in L&R Update Mapping]])) -> 0 | K38: =IFERROR(IF(GeneratorListADSv2.1[[#This Row],[Index in L&R Update Mapping]]>0,1*INDEX(LnRUpdate[Winter Cap (MW)],GeneratorListADSv2.1[[#This Row],[Index in L&R Update Mapping]]),0),1*INDEX(LnRUpdate[L&R Nameplate (MW)],GeneratorListADSv2.1[[#This Row],[Index in L&R Update Mapping]])) -> 0 | L38: =IF(GeneratorListADSv2.1[[#This Row],[Index in L&R Update Mapping]]>0,1*INDEX(LnRUpdate[L&R Nameplate (MW)],GeneratorListADSv2.1[[#This Row],[Index in L&R Update Mapping]]),0) -> 0 | M38: =IFERROR(IF(GeneratorListADSv2.1[[#This Row],[Index in L&R Mapping]]>0,1*INDEX(MappingLandR[Summer Cap (MW)],GeneratorListADSv2.1[[#This Row],[Index in L&R Mapping]]),0),1*INDEX(MappingLandR[L&R Nameplate (MW)],GeneratorListADSv2.1[[#This Row],[Index in L&R Mapping]])) -> 0 | N38: =IFERROR(IF(GeneratorListADSv2.1[[#This Row],[Index in L&R Mapping]]>0,1*INDEX(MappingLandR[Winter Cap (MW)],GeneratorListADSv2.1[[#This Row],[Index in L&R Mapping]]),0),1*INDEX(MappingLandR[L&R Nameplate (MW)],GeneratorListADSv2.1[[#This Row],[Index in L&R Mapping]])) -> 0 | O38: =IF(GeneratorListADSv2.1[[#This Row],[Index in L&R Mapping]]>0,1*INDEX(MappingLandR[L&R Nameplate (MW)],GeneratorListADSv2.1[[#This Row],[Index in L&R Mapping]]),0) -> 0 | W38: =IFERROR(MATCH(GeneratorListADSv2.1[[#This Row],[Bus ID]],Buses32HS1[BUS-NO],0),0) -> 19016 | X38: =IFERROR(MATCH(GeneratorListADSv2.1[[#This Row],[Name]],LnRUpdate[2032 ADS PCM Generator Name],0),0) -> 0 | Y38: =IFERROR(MATCH(GeneratorListADSv2.1[[#This Row],[Name]],MappingLandR[2032 ADS PCM Generator Name],0),0) -> 0 | Z38: =IFERROR(MATCH(GeneratorListADSv2.1[[#This Row],[BusNo-UnitID]],ADS32HS1PFv7[BusNo-UnitID],0),0) -> 0 | AA38: =GeneratorListADSv2.1[[#This Row],[Bus ID]] & "_" & MID(GeneratorListADSv2.1[[#This Row],[Unit ID]],2,10) -> 70002_DR | AB38: =AND(GeneratorListADSv2.1[[#This Row],[Service Status]],GeneratorListADSv2.1[[#This Row],[Commission Date]]<DATEVALUE("1/1/2033"),GeneratorListADSv2.1[[#This Row],[Retirement Date]]>DATEVALUE("12/31/2031")) -> TRUE | AC38: =LEN(GeneratorListADSv2.1[[#This Row],[Name]]) -> 10 | AD38: 12978 | AE38: DR_PSCO-01 | AF38: 70002 | AG38: BURNTMIL | AH38: 115 | AI38: 'DR | AJ38: 4 | AK38: DR | AL38: CO-- | AM38: PSCO Demand Response (1of20) | AN38: TRUE | AO38: 2023-04-15 | AP38: 2050-01-01 | AQ38: Future-Conceptual | AR38: PSCO | AS38: RM_PSCO | AT38: 0 | AU38: 679.2 | AV38: 0 | AW38: YES | AX38: CO | AY38: NA | AZ38: NA | BA38: NA | BB38: Electricity | BC38: N/A | BD38: TRUE | BE38: NA
D39: =IF(SUBTOTAL(103,GeneratorListADSv2.1[[#This Row],[Name]])=1,1,0) -> 0 | E39: =COUNTIF(GenDistnADSv2.1[Unit Name],GeneratorListADSv2.1[[#This Row],[Name]]) -> 6 | F39: =GeneratorListADSv2.1[[#This Row],[ADS PCM Max Cap]]-GeneratorListADSv2.1[[#This Row],[PF Pmax]] -> 655 | G39: =GeneratorListADSv2.1[[#This Row],[ADS PCM Max Cap]]-MAX(GeneratorListADSv2.1[[#This Row],[L&R Update Summer Cap]:[L&R Update Nameplate]]) -> 675 | H39: =GeneratorListADSv2.1[[#This Row],[MaxCap (MW)]] -> 810 | I39: =IF(GeneratorListADSv2.1[[#This Row],[Index in PF Table v7]]=0,0,INDEX(ADS32HS1PFv7[PMAX],GeneratorListADSv2.1[[#This Row],[Index in PF Table v7]])) -> 155 | J39: =IFERROR(IF(GeneratorListADSv2.1[[#This Row],[Index in L&R Update Mapping]]>0,1*INDEX(LnRUpdate[Summer Cap (MW)],GeneratorListADSv2.1[[#This Row],[Index in L&R Update Mapping]]),0),1*INDEX(LnRUpdate[L&R Nameplate (MW)],GeneratorListADSv2.1[[#This Row],[Index in L&R Update Mapping]])) -> 135 | K39: =IFERROR(IF(GeneratorListADSv2.1[[#This Row],[Index in L&R Update Mapping]]>0,1*INDEX(LnRUpdate[Winter Cap (MW)],GeneratorListADSv2.1[[#This Row],[Index in L&R Update Mapping]]),0),1*INDEX(LnRUpdate[L&R Nameplate (MW)],GeneratorListADSv2.1[[#This Row],[Index in L&R Update Mapping]])) -> 135 | L39: =IF(GeneratorListADSv2.1[[#This Row],[Index in L&R Update Mapping]]>0,1*INDEX(LnRUpdate[L&R Nameplate (MW)],GeneratorListADSv2.1[[#This Row],[Index in L&R Update Mapping]]),0) -> 135 | M39: =IFERROR(IF(GeneratorListADSv2.1[[#This Row],[Index in L&R Mapping]]>0,1*INDEX(MappingLandR[Summer Cap (MW)],GeneratorListADSv2.1[[#This Row],[Index in L&R Mapping]]),0),1*INDEX(MappingLandR[L&R Nameplate (MW)],GeneratorListADSv2.1[[#This Row],[Index in L&R Mapping]])) -> 135 | N39: =IFERROR(IF(GeneratorListADSv2.1[[#This Row],[Index in L&R Mapping]]>0,1*INDEX(MappingLandR[Winter Cap (MW)],GeneratorListADSv2.1[[#This Row],[Index in L&R Mapping]]),0),1*INDEX(MappingLandR[L&R Nameplate (MW)],GeneratorListADSv2.1[[#This Row],[Index in L&R Mapping]])) -> 135 | O39: =IF(GeneratorListADSv2.1[[#This Row],[Index in L&R Mapping]]>0,1*INDEX(MappingLandR[L&R Nameplate (MW)],GeneratorListADSv2.1[[#This Row],[Index in L&R Mapping]]),0) -> 135 | W39: =IFERROR(MATCH(GeneratorListADSv2.1[[#This Row],[Bus ID]],Buses32HS1[BUS-NO],0),0) -> 10889 | X39: =IFERROR(MATCH(GeneratorListADSv2.1[[#This Row],[Name]],LnRUpdate[2032 ADS PCM Generator Name],0),0) -> 2437 | Y39: =IFERROR(MATCH(GeneratorListADSv2.1[[#This Row],[Name]],MappingLandR[2032 ADS PCM Generator Name],0),0) -> 2437 | Z39: =IFERROR(MATCH(GeneratorListADSv2.1[[#This Row],[BusNo-UnitID]],ADS32HS1PFv7[BusNo-UnitID],0),0) -> 1948 | AA39: =GeneratorListADSv2.1[[#This Row],[Bus ID]] & "_" & MID(GeneratorListADSv2.1[[#This Row],[Unit ID]],2,10) -> 44231_1 | AB39: =AND(GeneratorListADSv2.1[[#This Row],[Service Status]],GeneratorListADSv2.1[[#This Row],[Commission Date]]<DATEVALUE("1/1/2033"),GeneratorListADSv2.1[[#This Row],[Retirement Date]]>DATEVALUE("12/31/2031")) -> TRUE | AC39: =LEN(GeneratorListADSv2.1[[#This Row],[Name]]) -> 13 | AD39: 14135 | AE39: Lower Granite | AF39: 44231 | AG39: LOW_GRN_0102 | AH39: 13.8 | AI39: '1 | AJ39: 2 | AK39: Hydro | AL39: WA-6175-Agg Plant | AM39: Lower Granite | AN39: TRUE | AO39: 1975-04-01 | AP39: 2050-12-31 | AQ39: Existing | AR39: BPAT | AS39: NW_BPAT | AT39: 0 | AU39: 810 | AV39: 0 | AW39: YES | AX39: WA | AY39: NA | AZ39: NA | BA39: NA | BB39: Water | BC39: N/A | BD39: FALSE | BE39: NA
D40: =IF(SUBTOTAL(103,GeneratorListADSv2.1[[#This Row],[Name]])=1,1,0) -> 0 | E40: =COUNTIF(GenDistnADSv2.1[Unit Name],GeneratorListADSv2.1[[#This Row],[Name]]) -> 10 | F40: =GeneratorListADSv2.1[[#This Row],[ADS PCM Max Cap]]-GeneratorListADSv2.1[[#This Row],[PF Pmax]] -> 648 | G40: =GeneratorListADSv2.1[[#This Row],[ADS PCM Max Cap]]-MAX(GeneratorListADSv2.1[[#This Row],[L&R Update Summer Cap]:[L&R Update Nameplate]]) -> 648 | H40: =GeneratorListADSv2.1[[#This Row],[MaxCap (MW)]] -> 858 | I40: =IF(GeneratorListADSv2.1[[#This Row],[Index in PF Table v7]]=0,0,INDEX(ADS32HS1PFv7[PMAX],GeneratorListADSv2.1[[#This Row],[Index in PF Table v7]])) -> 210 | J40: =IFERROR(IF(GeneratorListADSv2.1[[#This Row],[Index in L&R Update Mapping]]>0,1*INDEX(LnRUpdate[Summer Cap (MW)],GeneratorListADSv2.1[[#This Row],[Index in L&R Update Mapping]]),0),1*INDEX(LnRUpdate[L&R Nameplate (MW)],GeneratorListADSv2.1[[#This Row],[Index in L&R Update Mapping]])) -> 210 | K40: =IFERROR(IF(GeneratorListADSv2.1[[#This Row],[Index in L&R Update Mapping]]>0,1*INDEX(LnRUpdate[Winter Cap (MW)],GeneratorListADSv2.1[[#This Row],[Index in L&R Update Mapping]]),0),1*INDEX(LnRUpdate[L&R Nameplate (MW)],GeneratorListADSv2.1[[#This Row],[Index in L&R Update Mapping]])) -> 210 | L40: =IF(GeneratorListADSv2.1[[#This Row],[Index in L&R Update Mapping]]>0,1*INDEX(LnRUpdate[L&R Nameplate (MW)],GeneratorListADSv2.1[[#This Row],[Index in L&R Update Mapping]]),0) -> 210 | M40: =IFERROR(IF(GeneratorListADSv2.1[[#This Row],[Index in L&R Mapping]]>0,1*INDEX(MappingLandR[Summer Cap (MW)],GeneratorListADSv2.1[[#This Row],[Index in L&R Mapping]]),0),1*INDEX(MappingLandR[L&R Nameplate (MW)],GeneratorListADSv2.1[[#This Row],[Index in L&R Mapping]])) -> 210 | N40: =IFERROR(IF(GeneratorListADSv2.1[[#This Row],[Index in L&R Mapping]]>0,1*INDEX(MappingLandR[Winter Cap (MW)],GeneratorListADSv2.1[[#This Row],[Index in L&R Mapping]]),0),1*INDEX(MappingLandR[L&R Nameplate (MW)],GeneratorListADSv2.1[[#This Row],[Index in L&R Mapping]])) -> 210 | O40: =IF(GeneratorListADSv2.1[[#This Row],[Index in L&R Mapping]]>0,1*INDEX(MappingLandR[L&R Nameplate (MW)],GeneratorListADSv2.1[[#This Row],[Index in L&R Mapping]]),0) -> 210 | W40: =IFERROR(MATCH(GeneratorListADSv2.1[[#This Row],[Bus ID]],Buses32HS1[BUS-NO],0),0) -> 11791 | X40: =IFERROR(MATCH(GeneratorListADSv2.1[[#This Row],[Name]],LnRUpdate[2032 ADS PCM Generator Name],0),0) -> 2604 | Y40: =IFERROR(MATCH(GeneratorListADSv2.1[[#This Row],[Name]],MappingLandR[2032 ADS PCM Generator Name],0),0) -> 2604 | Z40: =IFERROR(MATCH(GeneratorListADSv2.1[[#This Row],[BusNo-UnitID]],ADS32HS1PFv7[BusNo-UnitID],0),0) -> 4874 | AA40: =GeneratorListADSv2.1[[#This Row],[Bus ID]] & "_" & MID(GeneratorListADSv2.1[[#This Row],[Unit ID]],2,10) -> 46165_X0 | AB40: =AND(GeneratorListADSv2.1[[#This Row],[Service Status]],GeneratorListADSv2.1[[#This Row],[Commission Date]]<DATEVALUE("1/1/2033"),GeneratorListADSv2.1[[#This Row],[Retirement Date]]>DATEVALUE("12/31/2031")) -> TRUE | AC40: =LEN(GeneratorListADSv2.1[[#This Row],[Name]]) -> 13 | AD40: 14137 | AE40: Priest Rapids | AF40: 46165 | AG40: PRIESTRT | AH40: 230 | AI40: 'X0 | AJ40: 2 | AK40: Hydro | AL40: WA-3887-Agg Plant | AM40: Priest Rapids-1 | AN40: TRUE | AO40: 1959-10-01 | AP40: 2050-12-31 | AQ40: Existing | AR40: GCPD | AS40: NW_GCPD | AT40: 0 | AU40: 858 | AV40: 87.7 | AW40: YES | AX40: WA | AY40: NA | AZ40: NA | BA40: NA | BB40: Water | BC40: N/A | BD40: FALSE | BE40: NA
D41: =IF(SUBTOTAL(103,GeneratorListADSv2.1[[#This Row],[Name]])=1,1,0) -> 0 | E41: =COUNTIF(GenDistnADSv2.1[Unit Name],GeneratorListADSv2.1[[#This Row],[Name]]) -> 89 | F41: =GeneratorListADSv2.1[[#This Row],[ADS PCM Max Cap]]-GeneratorListADSv2.1[[#This Row],[PF Pmax]] -> 646.8316 | G41: =GeneratorListADSv2.1[[#This Row],[ADS PCM Max Cap]]-MAX(GeneratorListADSv2.1[[#This Row],[L&R Update Summer Cap]:[L&R Update Nameplate]]) -> 646.8316 | H41: =GeneratorListADSv2.1[[#This Row],[MaxCap (MW)]] -> 646.8316 | I41: =IF(GeneratorListADSv2.1[[#This Row],[Index in PF Table v7]]=0,0,INDEX(ADS32HS1PFv7[PMAX],GeneratorListADSv2.1[[#This Row],[Index in PF Table v7]])) -> 0 | J41: =IFERROR(IF(GeneratorListADSv2.1[[#This Row],[Index in L&R Update Mapping]]>0,1*INDEX(LnRUpdate[Summer Cap (MW)],GeneratorListADSv2.1[[#This Row],[Index in L&R Update Mapping]]),0),1*INDEX(LnRUpdate[L&R Nameplate (MW)],GeneratorListADSv2.1[[#This Row],[Index in L&R Update Mapping]])) -> 0 | K41: =IFERROR(IF(GeneratorListADSv2.1[[#This Row],[Index in L&R Update Mapping]]>0,1*INDEX(LnRUpdate[Winter Cap (MW)],GeneratorListADSv2.1[[#This Row],[Index in L&R Update Mapping]]),0),1*INDEX(LnRUpdate[L&R Nameplate (MW)],GeneratorListADSv2.1[[#This Row],[Index in L&R Update Mapping]])) -> 0 | L41: =IF(GeneratorListADSv2.1[[#This Row],[Index in L&R Update Mapping]]>0,1*INDEX(LnRUpdate[L&R Nameplate (MW)],GeneratorListADSv2.1[[#This Row],[Index in L&R Update Mapping]]),0) -> 0 | M41: =IFERROR(IF(GeneratorListADSv2.1[[#This Row],[Index in L&R Mapping]]>0,1*INDEX(MappingLandR[Summer Cap (MW)],GeneratorListADSv2.1[[#This Row],[Index in L&R Mapping]]),0),1*INDEX(MappingLandR[L&R Nameplate (MW)],GeneratorListADSv2.1[[#This Row],[Index in L&R Mapping]])) -> 0 | N41: =IFERROR(IF(GeneratorListADSv2.1[[#This Row],[Index in L&R Mapping]]>0,1*INDEX(MappingLandR[Winter Cap (MW)],GeneratorListADSv2.1[[#This Row],[Index in L&R Mapping]]),0),1*INDEX(MappingLandR[L&R Nameplate (MW)],GeneratorListADSv2.1[[#This Row],[Index in L&R Mapping]])) -> 0 | O41: =IF(GeneratorListADSv2.1[[#This Row],[Index in L&R Mapping]]>0,1*INDEX(MappingLandR[L&R Nameplate (MW)],GeneratorListADSv2.1[[#This Row],[Index in L&R Mapping]]),0) -> 0 | W41: =IFERROR(MATCH(GeneratorListADSv2.1[[#This Row],[Bus ID]],Buses32HS1[BUS-NO],0),0) -> 6843 | X41: =IFERROR(MATCH(GeneratorListADSv2.1[[#This Row],[Name]],LnRUpdate[2032 ADS PCM Generator Name],0),0) -> 0 | Y41: =IFERROR(MATCH(GeneratorListADSv2.1[[#This Row],[Name]],MappingLandR[2032 ADS PCM Generator Name],0),0) -> 0 | Z41: =IFERROR(MATCH(GeneratorListADSv2.1[[#This Row],[BusNo-UnitID]],ADS32HS1PFv7[BusNo-UnitID],0),0) -> 0 | AA41: =GeneratorListADSv2.1[[#This Row],[Bus ID]] & "_" & MID(GeneratorListADSv2.1[[#This Row],[Unit ID]],2,10) -> 33377_O4 | AB41: =AND(GeneratorListADSv2.1[[#This Row],[Service Status]],GeneratorListADSv2.1[[#This Row],[Commission Date]]<DATEVALUE("1/1/2033"),GeneratorListADSv2.1[[#This Row],[Retirement Date]]>DATEVALUE("12/31/2031")) -> TRUE | AC41: =LEN(GeneratorListADSv2.1[[#This Row],[Name]]) -> 26 | AD41: 18700 | AE41: DG-BTM_CIPB_CA_Santa Clara | AF41: 33377 | AG41: EMRLD LE | AH41: 60 | AI41: 'O4 | AJ41: 4 | AK41: DG-BTM | AL41: G0-- | AM41: DG-BTM_CIPB_CA_Santa Clara | AN41: TRUE | AO41: 2023-04-15 | AP41: 2050-01-01 | AQ41: Future-Conceptual | AR41: CIPB | AS41: CA_CISO | AT41: 0 | AU41: 646.8316 | AV41: 0 | AW41: YES | AX41: ID | AY41: NA | AZ41: NA | BA41: NA | BB41: Solar | BC41: N/A | BD41: TRUE | BE41: NA
D42: =IF(SUBTOTAL(103,GeneratorListADSv2.1[[#This Row],[Name]])=1,1,0) -> 0 | E42: =COUNTIF(GenDistnADSv2.1[Unit Name],GeneratorListADSv2.1[[#This Row],[Name]]) -> 36 | F42: =GeneratorListADSv2.1[[#This Row],[ADS PCM Max Cap]]-GeneratorListADSv2.1[[#This Row],[PF Pmax]] -> 599.4974 | G42: =GeneratorListADSv2.1[[#This Row],[ADS PCM Max Cap]]-MAX(GeneratorListADSv2.1[[#This Row],[L&R Update Summer Cap]:[L&R Update Nameplate]]) -> 599.4974 | H42: =GeneratorListADSv2.1[[#This Row],[MaxCap (MW)]] -> 599.4974 | I42: =IF(GeneratorListADSv2.1[[#This Row],[Index in PF Table v7]]=0,0,INDEX(ADS32HS1PFv7[PMAX],GeneratorListADSv2.1[[#This Row],[Index in PF Table v7]])) -> 0 | J42: =IFERROR(IF(GeneratorListADSv2.1[[#This Row],[Index in L&R Update Mapping]]>0,1*INDEX(LnRUpdate[Summer Cap (MW)],GeneratorListADSv2.1[[#This Row],[Index in L&R Update Mapping]]),0),1*INDEX(LnRUpdate[L&R Nameplate (MW)],GeneratorListADSv2.1[[#This Row],[Index in L&R Update Mapping]])) -> 0 | K42: =IFERROR(IF(GeneratorListADSv2.1[[#This Row],[Index in L&R Update Mapping]]>0,1*INDEX(LnRUpdate[Winter Cap (MW)],GeneratorListADSv2.1[[#This Row],[Index in L&R Update Mapping]]),0),1*INDEX(LnRUpdate[L&R Nameplate (MW)],GeneratorListADSv2.1[[#This Row],[Index in L&R Update Mapping]])) -> 0 | L42: =IF(GeneratorListADSv2.1[[#This Row],[Index in L&R Update Mapping]]>0,1*INDEX(LnRUpdate[L&R Nameplate (MW)],GeneratorListADSv2.1[[#This Row],[Index in L&R Update Mapping]]),0) -> 0 | M42: =IFERROR(IF(GeneratorListADSv2.1[[#This Row],[Index in L&R Mapping]]>0,1*INDEX(MappingLandR[Summer Cap (MW)],GeneratorListADSv2.1[[#This Row],[Index in L&R Mapping]]),0),1*INDEX(MappingLandR[L&R Nameplate (MW)],GeneratorListADSv2.1[[#This Row],[Index in L&R Mapping]])) -> 0 | N42: =IFERROR(IF(GeneratorListADSv2.1[[#This Row],[Index in L&R Mapping]]>0,1*INDEX(MappingLandR[Winter Cap (MW)],GeneratorListADSv2.1[[#This Row],[Index in L&R Mapping]]),0),1*INDEX(MappingLandR[L&R Nameplate (MW)],GeneratorListADSv2.1[[#This Row],[Index in L&R Mapping]])) -> 0 | O42: =IF(GeneratorListADSv2.1[[#This Row],[Index in L&R Mapping]]>0,1*INDEX(MappingLandR[L&R Nameplate (MW)],GeneratorListADSv2.1[[#This Row],[Index in L&R Mapping]]),0) -> 0 | W42: =IFERROR(MATCH(GeneratorListADSv2.1[[#This Row],[Bus ID]],Buses32HS1[BUS-NO],0),0) -> 8529 | X42: =IFERROR(MATCH(GeneratorListADSv2.1[[#This Row],[Name]],LnRUpdate[2032 ADS PCM Generator Name],0),0) -> 0 | Y42: =IFERROR(MATCH(GeneratorListADSv2.1[[#This Row],[Name]],MappingLandR[2032 ADS PCM Generator Name],0),0) -> 0 | Z42: =IFERROR(MATCH(GeneratorListADSv2.1[[#This Row],[BusNo-UnitID]],ADS32HS1PFv7[BusNo-UnitID],0),0) -> 0 | AA42: =GeneratorListADSv2.1[[#This Row],[Bus ID]] & "_" & MID(GeneratorListADSv2.1[[#This Row],[Unit ID]],2,10) -> 37221_W3 | AB42: =AND(GeneratorListADSv2.1[[#This Row],[Service Status]],GeneratorListADSv2.1[[#This Row],[Commission Date]]<DATEVALUE("1/1/2033"),GeneratorListADSv2.1[[#This Row],[Retirement Date]]>DATEVALUE("12/31/2031")) -> TRUE | AC42: =LEN(GeneratorListADSv2.1[[#This Row],[Name]]) -> 25 | AD42: 18621 | AE42: DG-BTM_BANC_CA_Sacramento | AF42: 37221 | AG42: STA. H 1 | AH42: 21 | AI42: 'W3 | AJ42: 4 | AK42: DG-BTM | AL42: G0-- | AM42: DG-BTM_BANC_CA_Sacramento | AN42: TRUE | AO42: 2023-04-15 | AP42: 2050-01-01 | AQ42: Future-Conceptual | AR42: BANC | AS42: CA_BANC | AT42: 0 | AU42: 599.4974 | AV42: 0 | AW42: YES | AX42: ID | AY42: NA | AZ42: NA | BA42: NA | BB42: Solar | BC42: N/A | BD42: TRUE | BE42: NA
D43: =IF(SUBTOTAL(103,GeneratorListADSv2.1[[#This Row],[Name]])=1,1,0) -> 0 | E43: =COUNTIF(GenDistnADSv2.1[Unit Name],GeneratorListADSv2.1[[#This Row],[Name]]) -> 85 | F43: =GeneratorListADSv2.1[[#This Row],[ADS PCM Max Cap]]-GeneratorListADSv2.1[[#This Row],[PF Pmax]] -> 595.0814 | G43: =GeneratorListADSv2.1[[#This Row],[ADS PCM Max Cap]]-MAX(GeneratorListADSv2.1[[#This Row],[L&R Update Summer Cap]:[L&R Update Nameplate]]) -> 595.0814 | H43: =GeneratorListADSv2.1[[#This Row],[MaxCap (MW)]] -> 595.0814 | I43: =IF(GeneratorListADSv2.1[[#This Row],[Index in PF Table v7]]=0,0,INDEX(ADS32HS1PFv7[PMAX],GeneratorListADSv2.1[[#This Row],[Index in PF Table v7]])) -> 0 | J43: =IFERROR(IF(GeneratorListADSv2.1[[#This Row],[Index in L&R Update Mapping]]>0,1*INDEX(LnRUpdate[Summer Cap (MW)],GeneratorListADSv2.1[[#This Row],[Index in L&R Update Mapping]]),0),1*INDEX(LnRUpdate[L&R Nameplate (MW)],GeneratorListADSv2.1[[#This Row],[Index in L&R Update Mapping]])) -> 0 | K43: =IFERROR(IF(GeneratorListADSv2.1[[#This Row],[Index in L&R Update Mapping]]>0,1*INDEX(LnRUpdate[Winter Cap (MW)],GeneratorListADSv2.1[[#This Row],[Index in L&R Update Mapping]]),0),1*INDEX(LnRUpdate[L&R Nameplate (MW)],GeneratorListADSv2.1[[#This Row],[Index in L&R Update Mapping]])) -> 0 | L43: =IF(GeneratorListADSv2.1[[#This Row],[Index in L&R Update Mapping]]>0,1*INDEX(LnRUpdate[L&R Nameplate (MW)],GeneratorListADSv2.1[[#This Row],[Index in L&R Update Mapping]]),0) -> 0 | M43: =IFERROR(IF(GeneratorListADSv2.1[[#This Row],[Index in L&R Mapping]]>0,1*INDEX(MappingLandR[Summer Cap (MW)],GeneratorListADSv2.1[[#This Row],[Index in L&R Mapping]]),0),1*INDEX(MappingLandR[L&R Nameplate (MW)],GeneratorListADSv2.1[[#This Row],[Index in L&R Mapping]])) -> 0 | N43: =IFERROR(IF(GeneratorListADSv2.1[[#This Row],[Index in L&R Mapping]]>0,1*INDEX(MappingLandR[Winter Cap (MW)],GeneratorListADSv2.1[[#This Row],[Index in L&R Mapping]]),0),1*INDEX(MappingLandR[L&R Nameplate (MW)],GeneratorListADSv2.1[[#This Row],[Index in L&R Mapping]])) -> 0 | O43: =IF(GeneratorListADSv2.1[[#This Row],[Index in L&R Mapping]]>0,1*INDEX(MappingLandR[L&R Nameplate (MW)],GeneratorListADSv2.1[[#This Row],[Index in L&R Mapping]]),0) -> 0 | W43: =IFERROR(MATCH(GeneratorListADSv2.1[[#This Row],[Bus ID]],Buses32HS1[BUS-NO],0),0) -> 7503 | X43: =IFERROR(MATCH(GeneratorListADSv2.1[[#This Row],[Name]],LnRUpdate[2032 ADS PCM Generator Name],0),0) -> 0 | Y43: =IFERROR(MATCH(GeneratorListADSv2.1[[#This Row],[Name]],MappingLandR[2032 ADS PCM Generator Name],0),0) -> 0 | Z43: =IFERROR(MATCH(GeneratorListADSv2.1[[#This Row],[BusNo-UnitID]],ADS32HS1PFv7[BusNo-UnitID],0),0) -> 0 | AA43: =GeneratorListADSv2.1[[#This Row],[Bus ID]] & "_" & MID(GeneratorListADSv2.1[[#This Row],[Unit ID]],2,10) -> 34485_N4 | AB43: =AND(GeneratorListADSv2.1[[#This Row],[Service Status]],GeneratorListADSv2.1[[#This Row],[Commission Date]]<DATEVALUE("1/1/2033"),GeneratorListADSv2.1[[#This Row],[Retirement Date]]>DATEVALUE("12/31/2031")) -> TRUE | AC43: =LEN(GeneratorListADSv2.1[[#This Row],[Name]]) -> 21 | AD43: 18710 | AE43: DG-BTM_CIPV_CA_Fresno | AF43: 34485 | AG43: FRESNOWW | AH43: 12.47 | AI43: 'N4 | AJ43: 4 | AK43: DG-BTM | AL43: G0-- | AM43: DG-BTM_CIPV_CA_Fresno | AN43: TRUE | AO43: 2023-04-15 | AP43: 2050-01-01 | AQ43: Future-Conceptual | AR43: CIPV | AS43: CA_CISO | AT43: 0 | AU43: 595.0814 | AV43: 0 | AW43: YES | AX43: ID | AY43: NA | AZ43: NA | BA43: NA | BB43: Solar | BC43: N/A | BD43: TRUE | BE43: NA
D44: =IF(SUBTOTAL(103,GeneratorListADSv2.1[[#This Row],[Name]])=1,1,0) -> 0 | E44: =COUNTIF(GenDistnADSv2.1[Unit Name],GeneratorListADSv2.1[[#This Row],[Name]]) -> 76 | F44: =GeneratorListADSv2.1[[#This Row],[ADS PCM Max Cap]]-GeneratorListADSv2.1[[#This Row],[PF Pmax]] -> 590.688 | G44: =GeneratorListADSv2.1[[#This Row],[ADS PCM Max Cap]]-MAX(GeneratorListADSv2.1[[#This Row],[L&R Update Summer Cap]:[L&R Update Nameplate]]) -> 590.688 | H44: =GeneratorListADSv2.1[[#This Row],[MaxCap (MW)]] -> 590.688 | I44: =IF(GeneratorListADSv2.1[[#This Row],[Index in PF Table v7]]=0,0,INDEX(ADS32HS1PFv7[PMAX],GeneratorListADSv2.1[[#This Row],[Index in PF Table v7]])) -> 0 | J44: =IFERROR(IF(GeneratorListADSv2.1[[#This Row],[Index in L&R Update Mapping]]>0,1*INDEX(LnRUpdate[Summer Cap (MW)],GeneratorListADSv2.1[[#This Row],[Index in L&R Update Mapping]]),0),1*INDEX(LnRUpdate[L&R Nameplate (MW)],GeneratorListADSv2.1[[#This Row],[Index in L&R Update Mapping]])) -> 0 | K44: =IFERROR(IF(GeneratorListADSv2.1[[#This Row],[Index in L&R Update Mapping]]>0,1*INDEX(LnRUpdate[Winter Cap (MW)],GeneratorListADSv2.1[[#This Row],[Index in L&R Update Mapping]]),0),1*INDEX(LnRUpdate[L&R Nameplate (MW)],GeneratorListADSv2.1[[#This Row],[Index in L&R Update Mapping]])) -> 0 | L44: =IF(GeneratorListADSv2.1[[#This Row],[Index in L&R Update Mapping]]>0,1*INDEX(LnRUpdate[L&R Nameplate (MW)],GeneratorListADSv2.1[[#This Row],[Index in L&R Update Mapping]]),0) -> 0 | M44: =IFERROR(IF(GeneratorListADSv2.1[[#This Row],[Index in L&R Mapping]]>0,1*INDEX(MappingLandR[Summer Cap (MW)],GeneratorListADSv2.1[[#This Row],[Index in L&R Mapping]]),0),1*INDEX(MappingLandR[L&R Nameplate (MW)],GeneratorListADSv2.1[[#This Row],[Index in L&R Mapping]])) -> 0 | N44: =IFERROR(IF(GeneratorListADSv2.1[[#This Row],[Index in L&R Mapping]]>0,1*INDEX(MappingLandR[Winter Cap (MW)],GeneratorListADSv2.1[[#This Row],[Index in L&R Mapping]]),0),1*INDEX(MappingLandR[L&R Nameplate (MW)],GeneratorListADSv2.1[[#This Row],[Index in L&R Mapping]])) -> 0 | O44: =IF(GeneratorListADSv2.1[[#This Row],[Index in L&R Mapping]]>0,1*INDEX(MappingLandR[L&R Nameplate (MW)],GeneratorListADSv2.1[[#This Row],[Index in L&R Mapping]]),0) -> 0 | W44: =IFERROR(MATCH(GeneratorListADSv2.1[[#This Row],[Bus ID]],Buses32HS1[BUS-NO],0),0) -> 5628 | X44: =IFERROR(MATCH(GeneratorListADSv2.1[[#This Row],[Name]],LnRUpdate[2032 ADS PCM Generator Name],0),0) -> 0 | Y44: =IFERROR(MATCH(GeneratorListADSv2.1[[#This Row],[Name]],MappingLandR[2032 ADS PCM Generator Name],0),0) -> 0 | Z44: =IFERROR(MATCH(GeneratorListADSv2.1[[#This Row],[BusNo-UnitID]],ADS32HS1PFv7[BusNo-UnitID],0),0) -> 0 | AA44: =GeneratorListADSv2.1[[#This Row],[Bus ID]] & "_" & MID(GeneratorListADSv2.1[[#This Row],[Unit ID]],2,10) -> 30622_L8 | AB44: =AND(GeneratorListADSv2.1[[#This Row],[Service Status]],GeneratorListADSv2.1[[#This Row],[Commission Date]]<DATEVALUE("1/1/2033"),GeneratorListADSv2.1[[#This Row],[Retirement Date]]>DATEVALUE("12/31/2031")) -> TRUE | AC44: =LEN(GeneratorListADSv2.1[[#This Row],[Name]]) -> 26 | AD44: 18726 | AE44: DG-BTM_CIPV_CA_San Joaquin | AF44: 30622 | AG44: EIGHT MI | AH44: 230 | AI44: 'L8 | AJ44: 4 | AK44: DG-BTM | AL44: G0-- | AM44: DG-BTM_CIPV_CA_San Joaquin | AN44: TRUE | AO44: 2023-04-15 | AP44: 2050-01-01 | AQ44: Future-Conceptual | AR44: CIPV | AS44: CA_CISO | AT44: 0 | AU44: 590.688 | AV44: 0 | AW44: YES | AX44: ID | AY44: NA | AZ44: NA | BA44: NA | BB44: Solar | BC44: N/A | BD44: TRUE | BE44: NA
D45: =IF(SUBTOTAL(103,GeneratorListADSv2.1[[#This Row],[Name]])=1,1,0) -> 0 | E45: =COUNTIF(GenDistnADSv2.1[Unit Name],GeneratorListADSv2.1[[#This Row],[Name]]) -> 45 | F45: =GeneratorListADSv2.1[[#This Row],[ADS PCM Max Cap]]-GeneratorListADSv2.1[[#This Row],[PF Pmax]] -> 575.0029 | G45: =GeneratorListADSv2.1[[#This Row],[ADS PCM Max Cap]]-MAX(GeneratorListADSv2.1[[#This Row],[L&R Update Summer Cap]:[L&R Update Nameplate]]) -> 575.0029 | H45: =GeneratorListADSv2.1[[#This Row],[MaxCap (MW)]] -> 575.0029 | I45: =IF(GeneratorListADSv2.1[[#This Row],[Index in PF Table v7]]=0,0,INDEX(ADS32HS1PFv7[PMAX],GeneratorListADSv2.1[[#This Row],[Index in PF Table v7]])) -> 0 | J45: =IFERROR(IF(GeneratorListADSv2.1[[#This Row],[Index in L&R Update Mapping]]>0,1*INDEX(LnRUpdate[Summer Cap (MW)],GeneratorListADSv2.1[[#This Row],[Index in L&R Update Mapping]]),0),1*INDEX(LnRUpdate[L&R Nameplate (MW)],GeneratorListADSv2.1[[#This Row],[Index in L&R Update Mapping]])) -> 0 | K45: =IFERROR(IF(GeneratorListADSv2.1[[#This Row],[Index in L&R Update Mapping]]>0,1*INDEX(LnRUpdate[Winter Cap (MW)],GeneratorListADSv2.1[[#This Row],[Index in L&R Update Mapping]]),0),1*INDEX(LnRUpdate[L&R Nameplate (MW)],GeneratorListADSv2.1[[#This Row],[Index in L&R Update Mapping]])) -> 0 | L45: =IF(GeneratorListADSv2.1[[#This Row],[Index in L&R Update Mapping]]>0,1*INDEX(LnRUpdate[L&R Nameplate (MW)],GeneratorListADSv2.1[[#This Row],[Index in L&R Update Mapping]]),0) -> 0 | M45: =IFERROR(IF(GeneratorListADSv2.1[[#This Row],[Index in L&R Mapping]]>0,1*INDEX(MappingLandR[Summer Cap (MW)],GeneratorListADSv2.1[[#This Row],[Index in L&R Mapping]]),0),1*INDEX(MappingLandR[L&R Nameplate (MW)],GeneratorListADSv2.1[[#This Row],[Index in L&R Mapping]])) -> 0 | N45: =IFERROR(IF(GeneratorListADSv2.1[[#This Row],[Index in L&R Mapping]]>0,1*INDEX(MappingLandR[Winter Cap (MW)],GeneratorListADSv2.1[[#This Row],[Index in L&R Mapping]]),0),1*INDEX(MappingLandR[L&R Nameplate (MW)],GeneratorListADSv2.1[[#This Row],[Index in L&R Mapping]])) -> 0 | O45: =IF(GeneratorListADSv2.1[[#This Row],[Index in L&R Mapping]]>0,1*INDEX(MappingLandR[L&R Nameplate (MW)],GeneratorListADSv2.1[[#This Row],[Index in L&R Mapping]]),0) -> 0 | W45: =IFERROR(MATCH(GeneratorListADSv2.1[[#This Row],[Bus ID]],Buses32HS1[BUS-NO],0),0) -> 7998 | X45: =IFERROR(MATCH(GeneratorListADSv2.1[[#This Row],[Name]],LnRUpdate[2032 ADS PCM Generator Name],0),0) -> 0 | Y45: =IFERROR(MATCH(GeneratorListADSv2.1[[#This Row],[Name]],MappingLandR[2032 ADS PCM Generator Name],0),0) -> 0 | Z45: =IFERROR(MATCH(GeneratorListADSv2.1[[#This Row],[BusNo-UnitID]],ADS32HS1PFv7[BusNo-UnitID],0),0) -> 0 | AA45: =GeneratorListADSv2.1[[#This Row],[Bus ID]] & "_" & MID(GeneratorListADSv2.1[[#This Row],[Unit ID]],2,10) -> 35116_P2 | AB45: =AND(GeneratorListADSv2.1[[#This Row],[Service Status]],GeneratorListADSv2.1[[#This Row],[Commission Date]]<DATEVALUE("1/1/2033"),GeneratorListADSv2.1[[#This Row],[Retirement Date]]>DATEVALUE("12/31/2031")) -> TRUE | AC45: =LEN(GeneratorListADSv2.1[[#This Row],[Name]]) -> 22 | AD45: 18692 | AE45: DG-BTM_CIPB_CA_Alameda | AF45: 35116 | AG45: CRYOGEN | AH45: 115 | AI45: 'P2 | AJ45: 4 | AK45: DG-BTM | AL45: G0-- | AM45: DG-BTM_CIPB_CA_Alameda | AN45: TRUE | AO45: 2023-04-15 | AP45: 2050-01-01 | AQ45: Future-Conceptual | AR45: CIPB | AS45: CA_CISO | AT45: 0 | AU45: 575.0029 | AV45: 0 | AW45: YES | AX45: ID | AY45: NA | AZ45: NA | BA45: NA | BB45: Solar | BC45: N/A | BD45: TRUE | BE45: NA
D46: =IF(SUBTOTAL(103,GeneratorListADSv2.1[[#This Row],[Name]])=1,1,0) -> 0 | E46: =COUNTIF(GenDistnADSv2.1[Unit Name],GeneratorListADSv2.1[[#This Row],[Name]]) -> 103 | F46: =GeneratorListADSv2.1[[#This Row],[ADS PCM Max Cap]]-GeneratorListADSv2.1[[#This Row],[PF Pmax]] -> 567.0001 | G46: =GeneratorListADSv2.1[[#This Row],[ADS PCM Max Cap]]-MAX(GeneratorListADSv2.1[[#This Row],[L&R Update Summer Cap]:[L&R Update Nameplate]]) -> 567.0001 | H46: =GeneratorListADSv2.1[[#This Row],[MaxCap (MW)]] -> 567.0001 | I46: =IF(GeneratorListADSv2.1[[#This Row],[Index in PF Table v7]]=0,0,INDEX(ADS32HS1PFv7[PMAX],GeneratorListADSv2.1[[#This Row],[Index in PF Table v7]])) -> 0 | J46: =IFERROR(IF(GeneratorListADSv2.1[[#This Row],[Index in L&R Update Mapping]]>0,1*INDEX(LnRUpdate[Summer Cap (MW)],GeneratorListADSv2.1[[#This Row],[Index in L&R Update Mapping]]),0),1*INDEX(LnRUpdate[L&R Nameplate (MW)],GeneratorListADSv2.1[[#This Row],[Index in L&R Update Mapping]])) -> 0 | K46: =IFERROR(IF(GeneratorListADSv2.1[[#This Row],[Index in L&R Update Mapping]]>0,1*INDEX(LnRUpdate[Winter Cap (MW)],GeneratorListADSv2.1[[#This Row],[Index in L&R Update Mapping]]),0),1*INDEX(LnRUpdate[L&R Nameplate (MW)],GeneratorListADSv2.1[[#This Row],[Index in L&R Update Mapping]])) -> 0 | L46: =IF(GeneratorListADSv2.1[[#This Row],[Index in L&R Update Mapping]]>0,1*INDEX(LnRUpdate[L&R Nameplate (MW)],GeneratorListADSv2.1[[#This Row],[Index in L&R Update Mapping]]),0) -> 0 | M46: =IFERROR(IF(GeneratorListADSv2.1[[#This Row],[Index in L&R Mapping]]>0,1*INDEX(MappingLandR[Summer Cap (MW)],GeneratorListADSv2.1[[#This Row],[Index in L&R Mapping]]),0),1*INDEX(MappingLandR[L&R Nameplate (MW)],GeneratorListADSv2.1[[#This Row],[Index in L&R Mapping]])) -> 0 | N46: =IFERROR(IF(GeneratorListADSv2.1[[#This Row],[Index in L&R Mapping]]>0,1*INDEX(MappingLandR[Winter Cap (MW)],GeneratorListADSv2.1[[#This Row],[Index in L&R Mapping]]),0),1*INDEX(MappingLandR[L&R Nameplate (MW)],GeneratorListADSv2.1[[#This Row],[Index in L&R Mapping]])) -> 0 | O46: =IF(GeneratorListADSv2.1[[#This Row],[Index in L&R Mapping]]>0,1*INDEX(MappingLandR[L&R Nameplate (MW)],GeneratorListADSv2.1[[#This Row],[Index in L&R Mapping]]),0) -> 0 | W46: =IFERROR(MATCH(GeneratorListADSv2.1[[#This Row],[Bus ID]],Buses32HS1[BUS-NO],0),0) -> 7709 | X46: =IFERROR(MATCH(GeneratorListADSv2.1[[#This Row],[Name]],LnRUpdate[2032 ADS PCM Generator Name],0),0) -> 0 | Y46: =IFERROR(MATCH(GeneratorListADSv2.1[[#This Row],[Name]],MappingLandR[2032 ADS PCM Generator Name],0),0) -> 0 | Z46: =IFERROR(MATCH(GeneratorListADSv2.1[[#This Row],[BusNo-UnitID]],ADS32HS1PFv7[BusNo-UnitID],0),0) -> 0 | AA46: =GeneratorListADSv2.1[[#This Row],[Bus ID]] & "_" & MID(GeneratorListADSv2.1[[#This Row],[Unit ID]],2,10) -> 34739_N1 | AB46: =AND(GeneratorListADSv2.1[[#This Row],[Service Status]],GeneratorListADSv2.1[[#This Row],[Commission Date]]<DATEVALUE("1/1/2033"),GeneratorListADSv2.1[[#This Row],[Retirement Date]]>DATEVALUE("12/31/2031")) -> TRUE | AC46: =LEN(GeneratorListADSv2.1[[#This Row],[Name]]) -> 19 | AD46: 18713 | AE46: DG-BTM_CIPV_CA_Kern | AF46: 34739 | AG46: GRIMWAY | AH46: 115 | AI46: 'N1 | AJ46: 4 | AK46: DG-BTM | AL46: G0-- | AM46: DG-BTM_CIPV_CA_Kern | AN46: TRUE | AO46: 2023-04-15 | AP46: 2050-01-01 | AQ46: Future-Conceptual | AR46: CIPV | AS46: CA_CISO | AT46: 0 | AU46: 567.0001 | AV46: 0 | AW46: YES | AX46: ID | AY46: NA | AZ46: NA | BA46: NA | BB46: Solar | BC46: N/A | BD46: TRUE | BE46: NA
D47: =IF(SUBTOTAL(103,GeneratorListADSv2.1[[#This Row],[Name]])=1,1,0) -> 0 | E47: =COUNTIF(GenDistnADSv2.1[Unit Name],GeneratorListADSv2.1[[#This Row],[Name]]) -> 6 | F47: =GeneratorListADSv2.1[[#This Row],[ADS PCM Max Cap]]-GeneratorListADSv2.1[[#This Row],[PF Pmax]] -> 543.6 | G47: =GeneratorListADSv2.1[[#This Row],[ADS PCM Max Cap]]-MAX(GeneratorListADSv2.1[[#This Row],[L&R Update Summer Cap]:[L&R Update Nameplate]]) -> 556.6 | H47: =GeneratorListADSv2.1[[#This Row],[MaxCap (MW)]] -> 646.6 | I47: =IF(GeneratorListADSv2.1[[#This Row],[Index in PF Table v7]]=0,0,INDEX(ADS32HS1PFv7[PMAX],GeneratorListADSv2.1[[#This Row],[Index in PF Table v7]])) -> 103 | J47: =IFERROR(IF(GeneratorListADSv2.1[[#This Row],[Index in L&R Update Mapping]]>0,1*INDEX(LnRUpdate[Summer Cap (MW)],GeneratorListADSv2.1[[#This Row],[Index in L&R Update Mapping]]),0),1*INDEX(LnRUpdate[L&R Nameplate (MW)],GeneratorListADSv2.1[[#This Row],[Index in L&R Update Mapping]])) -> 90 | K47: =IFERROR(IF(GeneratorListADSv2.1[[#This Row],[Index in L&R Update Mapping]]>0,1*INDEX(LnRUpdate[Winter Cap (MW)],GeneratorListADSv2.1[[#This Row],[Index in L&R Update Mapping]]),0),1*INDEX(LnRUpdate[L&R Nameplate (MW)],GeneratorListADSv2.1[[#This Row],[Index in L&R Update Mapping]])) -> 90 | L47: =IF(GeneratorListADSv2.1[[#This Row],[Index in L&R Update Mapping]]>0,1*INDEX(LnRUpdate[L&R Nameplate (MW)],GeneratorListADSv2.1[[#This Row],[Index in L&R Update Mapping]]),0) -> 90 | M47: =IFERROR(IF(GeneratorListADSv2.1[[#This Row],[Index in L&R Mapping]]>0,1*INDEX(MappingLandR[Summer Cap (MW)],GeneratorListADSv2.1[[#This Row],[Index in L&R Mapping]]),0),1*INDEX(MappingLandR[L&R Nameplate (MW)],GeneratorListADSv2.1[[#This Row],[Index in L&R Mapping]])) -> 90 | N47: =IFERROR(IF(GeneratorListADSv2.1[[#This Row],[Index in L&R Mapping]]>0,1*INDEX(MappingLandR[Winter Cap (MW)],GeneratorListADSv2.1[[#This Row],[Index in L&R Mapping]]),0),1*INDEX(MappingLandR[L&R Nameplate (MW)],GeneratorListADSv2.1[[#This Row],[Index in L&R Mapping]])) -> 90 | O47: =IF(GeneratorListADSv2.1[[#This Row],[Index in L&R Mapping]]>0,1*INDEX(MappingLandR[L&R Nameplate (MW)],GeneratorListADSv2.1[[#This Row],[Index in L&R Mapping]]),0) -> 90 | W47: =IFERROR(MATCH(GeneratorListADSv2.1[[#This Row],[Bus ID]],Buses32HS1[BUS-NO],0),0) -> 9329 | X47: =IFERROR(MATCH(GeneratorListADSv2.1[[#This Row],[Name]],LnRUpdate[2032 ADS PCM Generator Name],0),0) -> 2074 | Y47: =IFERROR(MATCH(GeneratorListADSv2.1[[#This Row],[Name]],MappingLandR[2032 ADS PCM Generator Name],0),0) -> 2074 | Z47: =IFERROR(MATCH(GeneratorListADSv2.1[[#This Row],[BusNo-UnitID]],ADS32HS1PFv7[BusNo-UnitID],0),0) -> 1691 | AA47: =GeneratorListADSv2.1[[#This Row],[Bus ID]] & "_" & MID(GeneratorListADSv2.1[[#This Row],[Unit ID]],2,10) -> 40559_1 | AB47: =AND(GeneratorListADSv2.1[[#This Row],[Service Status]],GeneratorListADSv2.1[[#This Row],[Commission Date]]<DATEVALUE("1/1/2033"),GeneratorListADSv2.1[[#This Row],[Retirement Date]]>DATEVALUE("12/31/2031")) -> TRUE | AC47: =LEN(GeneratorListADSv2.1[[#This Row],[Name]]) -> 10 | AD47: 14147 | AE47: Ice Harbor | AF47: 40559 | AG47: ICE_HARBR1_1 | AH47: 13.8 | AI47: '1 | AJ47: 2 | AK47: Hydro | AL47: WA-3925-Agg Plant | AM47: Ice Harbor-1 | AN47: TRUE | AO47: 1962-01-01 | AP47: 2050-12-31 | AQ47: Existing | AR47: BPAT | AS47: NW_BPAT | AT47: 0 | AU47: 646.6 | AV47: 91.3 | AW47: YES | AX47: WA | AY47: NA | AZ47: NA | BA47: NA | BB47: Water | BC47: N/A | BD47: FALSE | BE47: NA
D48: =IF(SUBTOTAL(103,GeneratorListADSv2.1[[#This Row],[Name]])=1,1,0) -> 0 | E48: =COUNTIF(GenDistnADSv2.1[Unit Name],GeneratorListADSv2.1[[#This Row],[Name]]) -> 0 | F48: =GeneratorListADSv2.1[[#This Row],[ADS PCM Max Cap]]-GeneratorListADSv2.1[[#This Row],[PF Pmax]] -> 0 | G48: =GeneratorListADSv2.1[[#This Row],[ADS PCM Max Cap]]-MAX(GeneratorListADSv2.1[[#This Row],[L&R Update Summer Cap]:[L&R Update Nameplate]]) -> 126 | H48: =GeneratorListADSv2.1[[#This Row],[MaxCap (MW)]] -> 126 | I48: =IF(GeneratorListADSv2.1[[#This Row],[Index in PF Table v7]]=0,0,INDEX(ADS32HS1PFv7[PMAX],GeneratorListADSv2.1[[#This Row],[Index in PF Table v7]])) -> 126 | J48: =IFERROR(IF(GeneratorListADSv2.1[[#This Row],[Index in L&R Update Mapping]]>0,1*INDEX(LnRUpdate[Summer Cap (MW)],GeneratorListADSv2.1[[#This Row],[Index in L&R Update Mapping]]),0),1*INDEX(LnRUpdate[L&R Nameplate (MW)],GeneratorListADSv2.1[[#This Row],[Index in L&R Update Mapping]])) -> 0 | K48: =IFERROR(IF(GeneratorListADSv2.1[[#This Row],[Index in L&R Update Mapping]]>0,1*INDEX(LnRUpdate[Winter Cap (MW)],GeneratorListADSv2.1[[#This Row],[Index in L&R Update Mapping]]),0),1*INDEX(LnRUpdate[L&R Nameplate (MW)],GeneratorListADSv2.1[[#This Row],[Index in L&R Update Mapping]])) -> 0 | L48: =IF(GeneratorListADSv2.1[[#This Row],[Index in L&R Update Mapping]]>0,1*INDEX(LnRUpdate[L&R Nameplate (MW)],GeneratorListADSv2.1[[#This Row],[Index in L&R Update Mapping]]),0) -> 0 | M48: =IFERROR(IF(GeneratorListADSv2.1[[#This Row],[Index in L&R Mapping]]>0,1*INDEX(MappingLandR[Summer Cap (MW)],GeneratorListADSv2.1[[#This Row],[Index in L&R Mapping]]),0),1*INDEX(MappingLandR[L&R Nameplate (MW)],GeneratorListADSv2.1[[#This Row],[Index in L&R Mapping]])) -> 0 | N48: =IFERROR(IF(GeneratorListADSv2.1[[#This Row],[Index in L&R Mapping]]>0,1*INDEX(MappingLandR[Winter Cap (MW)],GeneratorListADSv2.1[[#This Row],[Index in L&R Mapping]]),0),1*INDEX(MappingLandR[L&R Nameplate (MW)],GeneratorListADSv2.1[[#This Row],[Index in L&R Mapping]])) -> 0 | O48: =IF(GeneratorListADSv2.1[[#This Row],[Index in L&R Mapping]]>0,1*INDEX(MappingLandR[L&R Nameplate (MW)],GeneratorListADSv2.1[[#This Row],[Index in L&R Mapping]]),0) -> 0 | W48: =IFERROR(MATCH(GeneratorListADSv2.1[[#This Row],[Bus ID]],Buses32HS1[BUS-NO],0),0) -> 19587 | X48: =IFERROR(MATCH(GeneratorListADSv2.1[[#This Row],[Name]],LnRUpdate[2032 ADS PCM Generator Name],0),0) -> 0 | Y48: =IFERROR(MATCH(GeneratorListADSv2.1[[#This Row],[Name]],MappingLandR[2032 ADS PCM Generator Name],0),0) -> 0 | Z48: =IFERROR(MATCH(GeneratorListADSv2.1[[#This Row],[BusNo-UnitID]],ADS32HS1PFv7[BusNo-UnitID],0),0) -> 3473 | AA48: =GeneratorListADSv2.1[[#This Row],[Bus ID]] & "_" & MID(GeneratorListADSv2.1[[#This Row],[Unit ID]],2,10) -> 70671_W2 | AB48: =AND(GeneratorListADSv2.1[[#This Row],[Service Status]],GeneratorListADSv2.1[[#This Row],[Commission Date]]<DATEVALUE("1/1/2033"),GeneratorListADSv2.1[[#This Row],[Retirement Date]]>DATEVALUE("12/31/2031")) -> FALSE | AC48: =LEN(GeneratorListADSv2.1[[#This Row],[Name]]) -> 13 | AD48: 16446 | AE48: Cedar Point 2 | AF48: 70671 | AG48: CEDARPT_W2 | AH48: 0.69 | AI48: 'W2 | AJ48: 4 | AK48: WT-Onshore | AL48: CO-57315-1-139 | AM48: Cedar Point | AN48: TRUE | AO48: 2011-11-01 | AP48: 2031-10-31 | AQ48: Existing | AR48: PSCO | AS48: RM_PSCO | AT48: 0 | AU48: 126 | AV48: 26.46 | AW48: YES | AX48: CO | AY48: NA | AZ48: NA | BA48: NA | BB48: Wind | BC48: Onshore | BD48: FALSE | BE48: NA
D49: =IF(SUBTOTAL(103,GeneratorListADSv2.1[[#This Row],[Name]])=1,1,0) -> 0 | E49: =COUNTIF(GenDistnADSv2.1[Unit Name],GeneratorListADSv2.1[[#This Row],[Name]]) -> 2 | F49: =GeneratorListADSv2.1[[#This Row],[ADS PCM Max Cap]]-GeneratorListADSv2.1[[#This Row],[PF Pmax]] -> 551 | G49: =GeneratorListADSv2.1[[#This Row],[ADS PCM Max Cap]]-MAX(GeneratorListADSv2.1[[#This Row],[L&R Update Summer Cap]:[L&R Update Nameplate]]) -> 551 | H49: =GeneratorListADSv2.1[[#This Row],[MaxCap (MW)]] -> 551 | I49: =IF(GeneratorListADSv2.1[[#This Row],[Index in PF Table v7]]=0,0,INDEX(ADS32HS1PFv7[PMAX],GeneratorListADSv2.1[[#This Row],[Index in PF Table v7]])) -> 0 | J49: =IFERROR(IF(GeneratorListADSv2.1[[#This Row],[Index in L&R Update Mapping]]>0,1*INDEX(LnRUpdate[Summer Cap (MW)],GeneratorListADSv2.1[[#This Row],[Index in L&R Update Mapping]]),0),1*INDEX(LnRUpdate[L&R Nameplate (MW)],GeneratorListADSv2.1[[#This Row],[Index in L&R Update Mapping]])) -> 0 | K49: =IFERROR(IF(GeneratorListADSv2.1[[#This Row],[Index in L&R Update Mapping]]>0,1*INDEX(LnRUpdate[Winter Cap (MW)],GeneratorListADSv2.1[[#This Row],[Index in L&R Update Mapping]]),0),1*INDEX(LnRUpdate[L&R Nameplate (MW)],GeneratorListADSv2.1[[#This Row],[Index in L&R Update Mapping]])) -> 0 | L49: =IF(GeneratorListADSv2.1[[#This Row],[Index in L&R Update Mapping]]>0,1*INDEX(LnRUpdate[L&R Nameplate (MW)],GeneratorListADSv2.1[[#This Row],[Index in L&R Update Mapping]]),0) -> 0 | M49: =IFERROR(IF(GeneratorListADSv2.1[[#This Row],[Index in L&R Mapping]]>0,1*INDEX(MappingLandR[Summer Cap (MW)],GeneratorListADSv2.1[[#This Row],[Index in L&R Mapping]]),0),1*INDEX(MappingLandR[L&R Nameplate (MW)],GeneratorListADSv2.1[[#This Row],[Index in L&R Mapping]])) -> 0 | N49: =IFERROR(IF(GeneratorListADSv2.1[[#This Row],[Index in L&R Mapping]]>0,1*INDEX(MappingLandR[Winter Cap (MW)],GeneratorListADSv2.1[[#This Row],[Index in L&R Mapping]]),0),1*INDEX(MappingLandR[L&R Nameplate (MW)],GeneratorListADSv2.1[[#This Row],[Index in L&R Mapping]])) -> 0 | O49: =IF(GeneratorListADSv2.1[[#This Row],[Index in L&R Mapping]]>0,1*INDEX(MappingLandR[L&R Nameplate (MW)],GeneratorListADSv2.1[[#This Row],[Index in L&R Mapping]]),0) -> 0 | W49: =IFERROR(MATCH(GeneratorListADSv2.1[[#This Row],[Bus ID]],Buses32HS1[BUS-NO],0),0) -> 4994 | X49: =IFERROR(MATCH(GeneratorListADSv2.1[[#This Row],[Name]],LnRUpdate[2032 ADS PCM Generator Name],0),0) -> 0 | Y49: =IFERROR(MATCH(GeneratorListADSv2.1[[#This Row],[Name]],MappingLandR[2032 ADS PCM Generator Name],0),0) -> 0 | Z49: =IFERROR(MATCH(GeneratorListADSv2.1[[#This Row],[BusNo-UnitID]],ADS32HS1PFv7[BusNo-UnitID],0),0) -> 0 | AA49: =GeneratorListADSv2.1[[#This Row],[Bus ID]] & "_" & MID(GeneratorListADSv2.1[[#This Row],[Unit ID]],2,10) -> 29054_CC | AB49: =AND(GeneratorListADSv2.1[[#This Row],[Service Status]],GeneratorListADSv2.1[[#This Row],[Commission Date]]<DATEVALUE("1/1/2033"),GeneratorListADSv2.1[[#This Row],[Retirement Date]]>DATEVALUE("12/31/2031")) -> TRUE | AC49: =LEN(GeneratorListADSv2.1[[#This Row],[Name]]) -> 17 | AD49: 8213 | AE49: PastoriaCC2-Total | AF49: 29054 | AG49: PSTRIAG3 | AH49: 18 | AI49: 'CC | AJ49: 1 | AK49: CCWhole-NatGas-Industrial | AL49: CA-55656-AG | AM49: PastoriaCC2 (Total CC Plant) | AN49: TRUE | AO49: 2005-05-04 | AP49: 2050-12-31 | AQ49: Existing | AR49: CISC | AS49: CA_CISO | AT49: 146.1 | AU49: 551 | AV49: 0 | AW49: YES | AX49: CA | AY49: NA | AZ49: NA | BA49: NA | BB49: NG | BC49: Industrial | BD49: FALSE | BE49: NA
D50: =IF(SUBTOTAL(103,GeneratorListADSv2.1[[#This Row],[Name]])=1,1,0) -> 0 | E50: =COUNTIF(GenDistnADSv2.1[Unit Name],GeneratorListADSv2.1[[#This Row],[Name]]) -> 32 | F50: =GeneratorListADSv2.1[[#This Row],[ADS PCM Max Cap]]-GeneratorListADSv2.1[[#This Row],[PF Pmax]] -> 544.0579 | G50: =GeneratorListADSv2.1[[#This Row],[ADS PCM Max Cap]]-MAX(GeneratorListADSv2.1[[#This Row],[L&R Update Summer Cap]:[L&R Update Nameplate]]) -> 544.0579 | H50: =GeneratorListADSv2.1[[#This Row],[MaxCap (MW)]] -> 544.0579 | I50: =IF(GeneratorListADSv2.1[[#This Row],[Index in PF Table v7]]=0,0,INDEX(ADS32HS1PFv7[PMAX],GeneratorListADSv2.1[[#This Row],[Index in PF Table v7]])) -> 0 | J50: =IFERROR(IF(GeneratorListADSv2.1[[#This Row],[Index in L&R Update Mapping]]>0,1*INDEX(LnRUpdate[Summer Cap (MW)],GeneratorListADSv2.1[[#This Row],[Index in L&R Update Mapping]]),0),1*INDEX(LnRUpdate[L&R Nameplate (MW)],GeneratorListADSv2.1[[#This Row],[Index in L&R Update Mapping]])) -> 0 | K50: =IFERROR(IF(GeneratorListADSv2.1[[#This Row],[Index in L&R Update Mapping]]>0,1*INDEX(LnRUpdate[Winter Cap (MW)],GeneratorListADSv2.1[[#This Row],[Index in L&R Update Mapping]]),0),1*INDEX(LnRUpdate[L&R Nameplate (MW)],GeneratorListADSv2.1[[#This Row],[Index in L&R Update Mapping]])) -> 0 | L50: =IF(GeneratorListADSv2.1[[#This Row],[Index in L&R Update Mapping]]>0,1*INDEX(LnRUpdate[L&R Nameplate (MW)],GeneratorListADSv2.1[[#This Row],[Index in L&R Update Mapping]]),0) -> 0 | M50: =IFERROR(IF(GeneratorListADSv2.1[[#This Row],[Index in L&R Mapping]]>0,1*INDEX(MappingLandR[Summer Cap (MW)],GeneratorListADSv2.1[[#This Row],[Index in L&R Mapping]]),0),1*INDEX(MappingLandR[L&R Nameplate (MW)],GeneratorListADSv2.1[[#This Row],[Index in L&R Mapping]])) -> 0 | N50: =IFERROR(IF(GeneratorListADSv2.1[[#This Row],[Index in L&R Mapping]]>0,1*INDEX(MappingLandR[Winter Cap (MW)],GeneratorListADSv2.1[[#This Row],[Index in L&R Mapping]]),0),1*INDEX(MappingLandR[L&R Nameplate (MW)],GeneratorListADSv2.1[[#This Row],[Index in L&R Mapping]])) -> 0 | O50: =IF(GeneratorListADSv2.1[[#This Row],[Index in L&R Mapping]]>0,1*INDEX(MappingLandR[L&R Nameplate (MW)],GeneratorListADSv2.1[[#This Row],[Index in L&R Mapping]]),0) -> 0 | W50: =IFERROR(MATCH(GeneratorListADSv2.1[[#This Row],[Bus ID]],Buses32HS1[BUS-NO],0),0) -> 5924 | X50: =IFERROR(MATCH(GeneratorListADSv2.1[[#This Row],[Name]],LnRUpdate[2032 ADS PCM Generator Name],0),0) -> 0 | Y50: =IFERROR(MATCH(GeneratorListADSv2.1[[#This Row],[Name]],MappingLandR[2032 ADS PCM Generator Name],0),0) -> 0 | Z50: =IFERROR(MATCH(GeneratorListADSv2.1[[#This Row],[BusNo-UnitID]],ADS32HS1PFv7[BusNo-UnitID],0),0) -> 0 | AA50: =GeneratorListADSv2.1[[#This Row],[Bus ID]] & "_" & MID(GeneratorListADSv2.1[[#This Row],[Unit ID]],2,10) -> 31375_L0 | AB50: =AND(GeneratorListADSv2.1[[#This Row],[Service Status]],GeneratorListADSv2.1[[#This Row],[Commission Date]]<DATEVALUE("1/1/2033"),GeneratorListADSv2.1[[#This Row],[Retirement Date]]>DATEVALUE("12/31/2031")) -> TRUE | AC50: =LEN(GeneratorListADSv2.1[[#This Row],[Name]]) -> 21 | AD50: 18734 | AE50: DG-BTM_CIPV_CA_Sonoma | AF50: 31375 | AG50: WINDSOR | AH50: 60 | AI50: 'L0 | AJ50: 4 | AK50: DG-BTM | AL50: G0-- | AM50: DG-BTM_CIPV_CA_Sonoma | AN50: TRUE | AO50: 2023-04-15 | AP50: 2050-01-01 | AQ50: Future-Conceptual | AR50: CIPV | AS50: CA_CISO | AT50: 0 | AU50: 544.0579 | AV50: 0 | AW50: YES | AX50: ID | AY50: NA | AZ50: NA | BA50: NA | BB50: Solar | BC50: N/A | BD50: TRUE | BE50: NA
D51: =IF(SUBTOTAL(103,GeneratorListADSv2.1[[#This Row],[Name]])=1,1,0) -> 0 | E51: =COUNTIF(GenDistnADSv2.1[Unit Name],GeneratorListADSv2.1[[#This Row],[Name]]) -> 0 | F51: =GeneratorListADSv2.1[[#This Row],[ADS PCM Max Cap]]-GeneratorListADSv2.1[[#This Row],[PF Pmax]] -> 493.5 | G51: =GeneratorListADSv2.1[[#This Row],[ADS PCM Max Cap]]-MAX(GeneratorListADSv2.1[[#This Row],[L&R Update Summer Cap]:[L&R Update Nameplate]]) -> 48.5 | H51: =GeneratorListADSv2.1[[#This Row],[MaxCap (MW)]] -> 493.5 | I51: =IF(GeneratorListADSv2.1[[#This Row],[Index in PF Table v7]]=0,0,INDEX(ADS32HS1PFv7[PMAX],GeneratorListADSv2.1[[#This Row],[Index in PF Table v7]])) -> 0 | J51: =IFERROR(IF(GeneratorListADSv2.1[[#This Row],[Index in L&R Update Mapping]]>0,1*INDEX(LnRUpdate[Summer Cap (MW)],GeneratorListADSv2.1[[#This Row],[Index in L&R Update Mapping]]),0),1*INDEX(LnRUpdate[L&R Nameplate (MW)],GeneratorListADSv2.1[[#This Row],[Index in L&R Update Mapping]])) -> 435 | K51: =IFERROR(IF(GeneratorListADSv2.1[[#This Row],[Index in L&R Update Mapping]]>0,1*INDEX(LnRUpdate[Winter Cap (MW)],GeneratorListADSv2.1[[#This Row],[Index in L&R Update Mapping]]),0),1*INDEX(LnRUpdate[L&R Nameplate (MW)],GeneratorListADSv2.1[[#This Row],[Index in L&R Update Mapping]])) -> 410 | L51: =IF(GeneratorListADSv2.1[[#This Row],[Index in L&R Update Mapping]]>0,1*INDEX(LnRUpdate[L&R Nameplate (MW)],GeneratorListADSv2.1[[#This Row],[Index in L&R Update Mapping]]),0) -> 445 | M51: =IFERROR(IF(GeneratorListADSv2.1[[#This Row],[Index in L&R Mapping]]>0,1*INDEX(MappingLandR[Summer Cap (MW)],GeneratorListADSv2.1[[#This Row],[Index in L&R Mapping]]),0),1*INDEX(MappingLandR[L&R Nameplate (MW)],GeneratorListADSv2.1[[#This Row],[Index in L&R Mapping]])) -> 435 | N51: =IFERROR(IF(GeneratorListADSv2.1[[#This Row],[Index in L&R Mapping]]>0,1*INDEX(MappingLandR[Winter Cap (MW)],GeneratorListADSv2.1[[#This Row],[Index in L&R Mapping]]),0),1*INDEX(MappingLandR[L&R Nameplate (MW)],GeneratorListADSv2.1[[#This Row],[Index in L&R Mapping]])) -> 410 | O51: =IF(GeneratorListADSv2.1[[#This Row],[Index in L&R Mapping]]>0,1*INDEX(MappingLandR[L&R Nameplate (MW)],GeneratorListADSv2.1[[#This Row],[Index in L&R Mapping]]),0) -> 445 | W51: =IFERROR(MATCH(GeneratorListADSv2.1[[#This Row],[Bus ID]],Buses32HS1[BUS-NO],0),0) -> 13628 | X51: =IFERROR(MATCH(GeneratorListADSv2.1[[#This Row],[Name]],LnRUpdate[2032 ADS PCM Generator Name],0),0) -> 2951 | Y51: =IFERROR(MATCH(GeneratorListADSv2.1[[#This Row],[Name]],MappingLandR[2032 ADS PCM Generator Name],0),0) -> 2951 | Z51: =IFERROR(MATCH(GeneratorListADSv2.1[[#This Row],[BusNo-UnitID]],ADS32HS1PFv7[BusNo-UnitID],0),0) -> 694 | AA51: =GeneratorListADSv2.1[[#This Row],[Bus ID]] & "_" & MID(GeneratorListADSv2.1[[#This Row],[Unit ID]],2,10) -> 50639_3 | AB51: =AND(GeneratorListADSv2.1[[#This Row],[Service Status]],GeneratorListADSv2.1[[#This Row],[Commission Date]]<DATEVALUE("1/1/2033"),GeneratorListADSv2.1[[#This Row],[Retirement Date]]>DATEVALUE("12/31/2031")) -> TRUE | AC51: =LEN(GeneratorListADSv2.1[[#This Row],[Name]]) -> 6 | AD51: 2529 | AE51: Mica_3 | AF51: 50639 | AG51: MCA 16G3 | AH51: 16 | AI51: '3 | AJ51: 2 | AK51: Hydro | AL51: BC-N/A-N/A | AM51: Mica-3_Mica-3_BCH-MCA | AN51: TRUE | AO51: 1975-12-01 | AP51: 2050-12-31 | AQ51: Existing | AR51: BCHA | AS51: BC_BCHA | AT51: 250 | AU51: 493.5 | AV51: 376.634 | AW51: YES | AX51: BC | AY51: NA | AZ51: NA | BA51: NA | BB51: Water | BC51: N/A | BD51: FALSE | BE51: NA
D52: =IF(SUBTOTAL(103,GeneratorListADSv2.1[[#This Row],[Name]])=1,1,0) -> 0 | E52: =COUNTIF(GenDistnADSv2.1[Unit Name],GeneratorListADSv2.1[[#This Row],[Name]]) -> 0 | F52: =GeneratorListADSv2.1[[#This Row],[ADS PCM Max Cap]]-GeneratorListADSv2.1[[#This Row],[PF Pmax]] -> 200 | G52: =GeneratorListADSv2.1[[#This Row],[ADS PCM Max Cap]]-MAX(GeneratorListADSv2.1[[#This Row],[L&R Update Summer Cap]:[L&R Update Nameplate]]) -> -1 | H52: =GeneratorListADSv2.1[[#This Row],[MaxCap (MW)]] -> 200 | I52: =IF(GeneratorListADSv2.1[[#This Row],[Index in PF Table v7]]=0,0,INDEX(ADS32HS1PFv7[PMAX],GeneratorListADSv2.1[[#This Row],[Index in PF Table v7]])) -> 0 | J52: =IFERROR(IF(GeneratorListADSv2.1[[#This Row],[Index in L&R Update Mapping]]>0,1*INDEX(LnRUpdate[Summer Cap (MW)],GeneratorListADSv2.1[[#This Row],[Index in L&R Update Mapping]]),0),1*INDEX(LnRUpdate[L&R Nameplate (MW)],GeneratorListADSv2.1[[#This Row],[Index in L&R Update Mapping]])) -> 200 | K52: =IFERROR(IF(GeneratorListADSv2.1[[#This Row],[Index in L&R Update Mapping]]>0,1*INDEX(LnRUpdate[Winter Cap (MW)],GeneratorListADSv2.1[[#This Row],[Index in L&R Update Mapping]]),0),1*INDEX(LnRUpdate[L&R Nameplate (MW)],GeneratorListADSv2.1[[#This Row],[Index in L&R Update Mapping]])) -> 200 | L52: =IF(GeneratorListADSv2.1[[#This Row],[Index in L&R Update Mapping]]>0,1*INDEX(LnRUpdate[L&R Nameplate (MW)],GeneratorListADSv2.1[[#This Row],[Index in L&R Update Mapping]]),0) -> 201 | M52: =IFERROR(IF(GeneratorListADSv2.1[[#This Row],[Index in L&R Mapping]]>0,1*INDEX(MappingLandR[Summer Cap (MW)],GeneratorListADSv2.1[[#This Row],[Index in L&R Mapping]]),0),1*INDEX(MappingLandR[L&R Nameplate (MW)],GeneratorListADSv2.1[[#This Row],[Index in L&R Mapping]])) -> 200 | N52: =IFERROR(IF(GeneratorListADSv2.1[[#This Row],[Index in L&R Mapping]]>0,1*INDEX(MappingLandR[Winter Cap (MW)],GeneratorListADSv2.1[[#This Row],[Index in L&R Mapping]]),0),1*INDEX(MappingLandR[L&R Nameplate (MW)],GeneratorListADSv2.1[[#This Row],[Index in L&R Mapping]])) -> 200 | O52: =IF(GeneratorListADSv2.1[[#This Row],[Index in L&R Mapping]]>0,1*INDEX(MappingLandR[L&R Nameplate (MW)],GeneratorListADSv2.1[[#This Row],[Index in L&R Mapping]]),0) -> 201 | W52: =IFERROR(MATCH(GeneratorListADSv2.1[[#This Row],[Bus ID]],Buses32HS1[BUS-NO],0),0) -> 19863 | X52: =IFERROR(MATCH(GeneratorListADSv2.1[[#This Row],[Name]],LnRUpdate[2032 ADS PCM Generator Name],0),0) -> 4173 | Y52: =IFERROR(MATCH(GeneratorListADSv2.1[[#This Row],[Name]],MappingLandR[2032 ADS PCM Generator Name],0),0) -> 4174 | Z52: =IFERROR(MATCH(GeneratorListADSv2.1[[#This Row],[BusNo-UnitID]],ADS32HS1PFv7[BusNo-UnitID],0),0) -> 0 | AA52: =GeneratorListADSv2.1[[#This Row],[Bus ID]] & "_" & MID(GeneratorListADSv2.1[[#This Row],[Unit ID]],2,10) -> 72739_W | AB52: =AND(GeneratorListADSv2.1[[#This Row],[Service Status]],GeneratorListADSv2.1[[#This Row],[Commission Date]]<DATEVALUE("1/1/2033"),GeneratorListADSv2.1[[#This Row],[Retirement Date]]>DATEVALUE("12/31/2031")) -> TRUE | AC52: =LEN(GeneratorListADSv2.1[[#This Row],[Name]]) -> 10 | AD52: 20636 | AE52: Niyol Wind | AF52: 72739 | AG52: NIYOL_GEN | AH52: 0.63 | AI52: 'W | AJ52: 4 | AK52: WT-Onshore | AL52: CO-65059-WNIYO | AM52: Niyol Wind, LLC | AN52: TRUE | AO52: 2021-10-29 | AP52: 2050-11-01 | AQ52: Future-Planned | AR52: WACM | AS52: RM_WACM | AT52: 0 | AU52: 200 | AV52: 0 | AW52: YES | AX52: CO | AY52: NA | AZ52: NA | BA52: NA | BB52: Wind | BC52: Onshore | BD52: FALSE | BE52: NA
D53: =IF(SUBTOTAL(103,GeneratorListADSv2.1[[#This Row],[Name]])=1,1,0) -> 0 | E53: =COUNTIF(GenDistnADSv2.1[Unit Name],GeneratorListADSv2.1[[#This Row],[Name]]) -> 1 | F53: =GeneratorListADSv2.1[[#This Row],[ADS PCM Max Cap]]-GeneratorListADSv2.1[[#This Row],[PF Pmax]] -> 510.6 | G53: =GeneratorListADSv2.1[[#This Row],[ADS PCM Max Cap]]-MAX(GeneratorListADSv2.1[[#This Row],[L&R Update Summer Cap]:[L&R Update Nameplate]]) -> 510.6 | H53: =GeneratorListADSv2.1[[#This Row],[MaxCap (MW)]] -> 510.6 | I53: =IF(GeneratorListADSv2.1[[#This Row],[Index in PF Table v7]]=0,0,INDEX(ADS32HS1PFv7[PMAX],GeneratorListADSv2.1[[#This Row],[Index in PF Table v7]])) -> 0 | J53: =IFERROR(IF(GeneratorListADSv2.1[[#This Row],[Index in L&R Update Mapping]]>0,1*INDEX(LnRUpdate[Summer Cap (MW)],GeneratorListADSv2.1[[#This Row],[Index in L&R Update Mapping]]),0),1*INDEX(LnRUpdate[L&R Nameplate (MW)],GeneratorListADSv2.1[[#This Row],[Index in L&R Update Mapping]])) -> 0 | K53: =IFERROR(IF(GeneratorListADSv2.1[[#This Row],[Index in L&R Update Mapping]]>0,1*INDEX(LnRUpdate[Winter Cap (MW)],GeneratorListADSv2.1[[#This Row],[Index in L&R Update Mapping]]),0),1*INDEX(LnRUpdate[L&R Nameplate (MW)],GeneratorListADSv2.1[[#This Row],[Index in L&R Update Mapping]])) -> 0 | L53: =IF(GeneratorListADSv2.1[[#This Row],[Index in L&R Update Mapping]]>0,1*INDEX(LnRUpdate[L&R Nameplate (MW)],GeneratorListADSv2.1[[#This Row],[Index in L&R Update Mapping]]),0) -> 0 | M53: =IFERROR(IF(GeneratorListADSv2.1[[#This Row],[Index in L&R Mapping]]>0,1*INDEX(MappingLandR[Summer Cap (MW)],GeneratorListADSv2.1[[#This Row],[Index in L&R Mapping]]),0),1*INDEX(MappingLandR[L&R Nameplate (MW)],GeneratorListADSv2.1[[#This Row],[Index in L&R Mapping]])) -> 0 | N53: =IFERROR(IF(GeneratorListADSv2.1[[#This Row],[Index in L&R Mapping]]>0,1*INDEX(MappingLandR[Winter Cap (MW)],GeneratorListADSv2.1[[#This Row],[Index in L&R Mapping]]),0),1*INDEX(MappingLandR[L&R Nameplate (MW)],GeneratorListADSv2.1[[#This Row],[Index in L&R Mapping]])) -> 0 | O53: =IF(GeneratorListADSv2.1[[#This Row],[Index in L&R Mapping]]>0,1*INDEX(MappingLandR[L&R Nameplate (MW)],GeneratorListADSv2.1[[#This Row],[Index in L&R Mapping]]),0) -> 0 | W53: =IFERROR(MATCH(GeneratorListADSv2.1[[#This Row],[Bus ID]],Buses32HS1[BUS-NO],0),0) -> 17575 | X53: =IFERROR(MATCH(GeneratorListADSv2.1[[#This Row],[Name]],LnRUpdate[2032 ADS PCM Generator Name],0),0) -> 0 | Y53: =IFERROR(MATCH(GeneratorListADSv2.1[[#This Row],[Name]],MappingLandR[2032 ADS PCM Generator Name],0),0) -> 0 | Z53: =IFERROR(MATCH(GeneratorListADSv2.1[[#This Row],[BusNo-UnitID]],ADS32HS1PFv7[BusNo-UnitID],0),0) -> 0 | AA53: =GeneratorListADSv2.1[[#This Row],[Bus ID]] & "_" & MID(GeneratorListADSv2.1[[#This Row],[Unit ID]],2,10) -> 65135_DR | AB53: =AND(GeneratorListADSv2.1[[#This Row],[Service Status]],GeneratorListADSv2.1[[#This Row],[Commission Date]]<DATEVALUE("1/1/2033"),GeneratorListADSv2.1[[#This Row],[Retirement Date]]>DATEVALUE("12/31/2031")) -> TRUE | AC53: =LEN(GeneratorListADSv2.1[[#This Row],[Name]]) -> 9 | AD53: 12971 | AE53: DR_PAUT-1 | AF53: 65135 | AG53: BENLOMND | AH53: 345 | AI53: 'DR | AJ53: 4 | AK53: DR | AL53: UT-- | AM53: PAUT Demand Response (1of5) | AN53: TRUE | AO53: 2023-04-15 | AP53: 2050-01-01 | AQ53: Future-Conceptual | AR53: PAUT | AS53: BS_PACE | AT53: 0 | AU53: 510.6 | AV53: 0 | AW53: YES | AX53: UT | AY53: NA | AZ53: NA | BA53: NA | BB53: Electricity | BC53: N/A | BD53: TRUE | BE53: NA
D54: =IF(SUBTOTAL(103,GeneratorListADSv2.1[[#This Row],[Name]])=1,1,0) -> 0 | E54: =COUNTIF(GenDistnADSv2.1[Unit Name],GeneratorListADSv2.1[[#This Row],[Name]]) -> 0 | F54: =GeneratorListADSv2.1[[#This Row],[ADS PCM Max Cap]]-GeneratorListADSv2.1[[#This Row],[PF Pmax]] -> 0 | G54: =GeneratorListADSv2.1[[#This Row],[ADS PCM Max Cap]]-MAX(GeneratorListADSv2.1[[#This Row],[L&R Update Summer Cap]:[L&R Update Nameplate]]) -> 124.2 | H54: =GeneratorListADSv2.1[[#This Row],[MaxCap (MW)]] -> 124.2 | I54: =IF(GeneratorListADSv2.1[[#This Row],[Index in PF Table v7]]=0,0,INDEX(ADS32HS1PFv7[PMAX],GeneratorListADSv2.1[[#This Row],[Index in PF Table v7]])) -> 124.2 | J54: =IFERROR(IF(GeneratorListADSv2.1[[#This Row],[Index in L&R Update Mapping]]>0,1*INDEX(LnRUpdate[Summer Cap (MW)],GeneratorListADSv2.1[[#This Row],[Index in L&R Update Mapping]]),0),1*INDEX(LnRUpdate[L&R Nameplate (MW)],GeneratorListADSv2.1[[#This Row],[Index in L&R Update Mapping]])) -> 0 | K54: =IFERROR(IF(GeneratorListADSv2.1[[#This Row],[Index in L&R Update Mapping]]>0,1*INDEX(LnRUpdate[Winter Cap (MW)],GeneratorListADSv2.1[[#This Row],[Index in L&R Update Mapping]]),0),1*INDEX(LnRUpdate[L&R Nameplate (MW)],GeneratorListADSv2.1[[#This Row],[Index in L&R Update Mapping]])) -> 0 | L54: =IF(GeneratorListADSv2.1[[#This Row],[Index in L&R Update Mapping]]>0,1*INDEX(LnRUpdate[L&R Nameplate (MW)],GeneratorListADSv2.1[[#This Row],[Index in L&R Update Mapping]]),0) -> 0 | M54: =IFERROR(IF(GeneratorListADSv2.1[[#This Row],[Index in L&R Mapping]]>0,1*INDEX(MappingLandR[Summer Cap (MW)],GeneratorListADSv2.1[[#This Row],[Index in L&R Mapping]]),0),1*INDEX(MappingLandR[L&R Nameplate (MW)],GeneratorListADSv2.1[[#This Row],[Index in L&R Mapping]])) -> 0 | N54: =IFERROR(IF(GeneratorListADSv2.1[[#This Row],[Index in L&R Mapping]]>0,1*INDEX(MappingLandR[Winter Cap (MW)],GeneratorListADSv2.1[[#This Row],[Index in L&R Mapping]]),0),1*INDEX(MappingLandR[L&R Nameplate (MW)],GeneratorListADSv2.1[[#This Row],[Index in L&R Mapping]])) -> 0 | O54: =IF(GeneratorListADSv2.1[[#This Row],[Index in L&R Mapping]]>0,1*INDEX(MappingLandR[L&R Nameplate (MW)],GeneratorListADSv2.1[[#This Row],[Index in L&R Mapping]]),0) -> 0 | W54: =IFERROR(MATCH(GeneratorListADSv2.1[[#This Row],[Bus ID]],Buses32HS1[BUS-NO],0),0) -> 19586 | X54: =IFERROR(MATCH(GeneratorListADSv2.1[[#This Row],[Name]],LnRUpdate[2032 ADS PCM Generator Name],0),0) -> 0 | Y54: =IFERROR(MATCH(GeneratorListADSv2.1[[#This Row],[Name]],MappingLandR[2032 ADS PCM Generator Name],0),0) -> 0 | Z54: =IFERROR(MATCH(GeneratorListADSv2.1[[#This Row],[BusNo-UnitID]],ADS32HS1PFv7[BusNo-UnitID],0),0) -> 3472 | AA54: =GeneratorListADSv2.1[[#This Row],[Bus ID]] & "_" & MID(GeneratorListADSv2.1[[#This Row],[Unit ID]],2,10) -> 70670_W1 | AB54: =AND(GeneratorListADSv2.1[[#This Row],[Service Status]],GeneratorListADSv2.1[[#This Row],[Commission Date]]<DATEVALUE("1/1/2033"),GeneratorListADSv2.1[[#This Row],[Retirement Date]]>DATEVALUE("12/31/2031")) -> FALSE | AC54: =LEN(GeneratorListADSv2.1[[#This Row],[Name]]) -> 13 | AD54: 16445 | AE54: Cedar Point 1 | AF54: 70670 | AG54: CEDARPT_W1 | AH54: 0.69 | AI54: 'W1 | AJ54: 4 | AK54: WT-Onshore | AL54: CO-57315-1-139 | AM54: Cedar Point | AN54: TRUE | AO54: 2011-11-01 | AP54: 2031-10-31 | AQ54: Existing | AR54: PSCO | AS54: RM_PSCO | AT54: 0 | AU54: 124.2 | AV54: 26.08 | AW54: YES | AX54: CO | AY54: NA | AZ54: NA | BA54: NA | BB54: Wind | BC54: Onshore | BD54: FALSE | BE54: NA
D55: =IF(SUBTOTAL(103,GeneratorListADSv2.1[[#This Row],[Name]])=1,1,0) -> 1 | E55: =COUNTIF(GenDistnADSv2.1[Unit Name],GeneratorListADSv2.1[[#This Row],[Name]]) -> 0 | F55: =GeneratorListADSv2.1[[#This Row],[ADS PCM Max Cap]]-GeneratorListADSv2.1[[#This Row],[PF Pmax]] -> 192.1 | G55: =GeneratorListADSv2.1[[#This Row],[ADS PCM Max Cap]]-MAX(GeneratorListADSv2.1[[#This Row],[L&R Update Summer Cap]:[L&R Update Nameplate]]) -> 94.1 | H55: =GeneratorListADSv2.1[[#This Row],[MaxCap (MW)]] -> 311 | I55: =IF(GeneratorListADSv2.1[[#This Row],[Index in PF Table v7]]=0,0,INDEX(ADS32HS1PFv7[PMAX],GeneratorListADSv2.1[[#This Row],[Index in PF Table v7]])) -> 118.9 | J55: =IFERROR(IF(GeneratorListADSv2.1[[#This Row],[Index in L&R Update Mapping]]>0,1*INDEX(LnRUpdate[Summer Cap (MW)],GeneratorListADSv2.1[[#This Row],[Index in L&R Update Mapping]]),0),1*INDEX(LnRUpdate[L&R Nameplate (MW)],GeneratorListADSv2.1[[#This Row],[Index in L&R Update Mapping]])) -> 206 | K55: =IFERROR(IF(GeneratorListADSv2.1[[#This Row],[Index in L&R Update Mapping]]>0,1*INDEX(LnRUpdate[Winter Cap (MW)],GeneratorListADSv2.1[[#This Row],[Index in L&R Update Mapping]]),0),1*INDEX(LnRUpdate[L&R Nameplate (MW)],GeneratorListADSv2.1[[#This Row],[Index in L&R Update Mapping]])) -> 206 | L55: =IF(GeneratorListADSv2.1[[#This Row],[Index in L&R Update Mapping]]>0,1*INDEX(LnRUpdate[L&R Nameplate (MW)],GeneratorListADSv2.1[[#This Row],[Index in L&R Update Mapping]]),0) -> 216.9 | M55: =IFERROR(IF(GeneratorListADSv2.1[[#This Row],[Index in L&R Mapping]]>0,1*INDEX(MappingLandR[Summer Cap (MW)],GeneratorListADSv2.1[[#This Row],[Index in L&R Mapping]]),0),1*INDEX(MappingLandR[L&R Nameplate (MW)],GeneratorListADSv2.1[[#This Row],[Index in L&R Mapping]])) -> 206 | N55: =IFERROR(IF(GeneratorListADSv2.1[[#This Row],[Index in L&R Mapping]]>0,1*INDEX(MappingLandR[Winter Cap (MW)],GeneratorListADSv2.1[[#This Row],[Index in L&R Mapping]]),0),1*INDEX(MappingLandR[L&R Nameplate (MW)],GeneratorListADSv2.1[[#This Row],[Index in L&R Mapping]])) -> 206 | O55: =IF(GeneratorListADSv2.1[[#This Row],[Index in L&R Mapping]]>0,1*INDEX(MappingLandR[L&R Nameplate (MW)],GeneratorListADSv2.1[[#This Row],[Index in L&R Mapping]]),0) -> 216.9 | W55: =IFERROR(MATCH(GeneratorListADSv2.1[[#This Row],[Bus ID]],Buses32HS1[BUS-NO],0),0) -> 4570 | X55: =IFERROR(MATCH(GeneratorListADSv2.1[[#This Row],[Name]],LnRUpdate[2032 ADS PCM Generator Name],0),0) -> 1078 | Y55: =IFERROR(MATCH(GeneratorListADSv2.1[[#This Row],[Name]],MappingLandR[2032 ADS PCM Generator Name],0),0) -> 1078 | Z55: =IFERROR(MATCH(GeneratorListADSv2.1[[#This Row],[BusNo-UnitID]],ADS32HS1PFv7[BusNo-UnitID],0),0) -> 5504 | AA55: =GeneratorListADSv2.1[[#This Row],[Bus ID]] & "_" & MID(GeneratorListADSv2.1[[#This Row],[Unit ID]],2,10) -> 26112_X0 | AB55: =AND(GeneratorListADSv2.1[[#This Row],[Service Status]],GeneratorListADSv2.1[[#This Row],[Commission Date]]<DATEVALUE("1/1/2033"),GeneratorListADSv2.1[[#This Row],[Retirement Date]]>DATEVALUE("12/31/2031")) -> TRUE | AC55: =LEN(GeneratorListADSv2.1[[#This Row],[Name]]) -> 15 | AD55: 18580 | AE55: Scattergood CC4 | AF55: 26112 | AG55: SCATT1G | AH55: 18 | AI55: 'X0 | AJ55: 1 | AK55: CCWhole-NatGas-Industrial | AL55: CA-404-4 | AM55: Scattergood Repowering CC 4 | AN55: TRUE | AO55: 2029-12-31 | AP55: 2050-12-31 | AQ55: Future-Planned | AR55: LDWP | AS55: CA_LDWP | AT55: 111.685 | AU55: 311 | AV55: 0 | AW55: YES | AX55: CA | AY55: Los Angeles | AZ55: Playa del Rey | BA55: NA | BB55: NG | BC55: Industrial | BD55: FALSE | BE55: NA
D56: =IF(SUBTOTAL(103,GeneratorListADSv2.1[[#This Row],[Name]])=1,1,0) -> 0 | E56: =COUNTIF(GenDistnADSv2.1[Unit Name],GeneratorListADSv2.1[[#This Row],[Name]]) -> 1 | F56: =GeneratorListADSv2.1[[#This Row],[ADS PCM Max Cap]]-GeneratorListADSv2.1[[#This Row],[PF Pmax]] -> 485.9 | G56: =GeneratorListADSv2.1[[#This Row],[ADS PCM Max Cap]]-MAX(GeneratorListADSv2.1[[#This Row],[L&R Update Summer Cap]:[L&R Update Nameplate]]) -> 485.9 | H56: =GeneratorListADSv2.1[[#This Row],[MaxCap (MW)]] -> 485.9 | I56: =IF(GeneratorListADSv2.1[[#This Row],[Index in PF Table v7]]=0,0,INDEX(ADS32HS1PFv7[PMAX],GeneratorListADSv2.1[[#This Row],[Index in PF Table v7]])) -> 0 | J56: =IFERROR(IF(GeneratorListADSv2.1[[#This Row],[Index in L&R Update Mapping]]>0,1*INDEX(LnRUpdate[Summer Cap (MW)],GeneratorListADSv2.1[[#This Row],[Index in L&R Update Mapping]]),0),1*INDEX(LnRUpdate[L&R Nameplate (MW)],GeneratorListADSv2.1[[#This Row],[Index in L&R Update Mapping]])) -> 0 | K56: =IFERROR(IF(GeneratorListADSv2.1[[#This Row],[Index in L&R Update Mapping]]>0,1*INDEX(LnRUpdate[Winter Cap (MW)],GeneratorListADSv2.1[[#This Row],[Index in L&R Update Mapping]]),0),1*INDEX(LnRUpdate[L&R Nameplate (MW)],GeneratorListADSv2.1[[#This Row],[Index in L&R Update Mapping]])) -> 0 | L56: =IF(GeneratorListADSv2.1[[#This Row],[Index in L&R Update Mapping]]>0,1*INDEX(LnRUpdate[L&R Nameplate (MW)],GeneratorListADSv2.1[[#This Row],[Index in L&R Update Mapping]]),0) -> 0 | M56: =IFERROR(IF(GeneratorListADSv2.1[[#This Row],[Index in L&R Mapping]]>0,1*INDEX(MappingLandR[Summer Cap (MW)],GeneratorListADSv2.1[[#This Row],[Index in L&R Mapping]]),0),1*INDEX(MappingLandR[L&R Nameplate (MW)],GeneratorListADSv2.1[[#This Row],[Index in L&R Mapping]])) -> 0 | N56: =IFERROR(IF(GeneratorListADSv2.1[[#This Row],[Index in L&R Mapping]]>0,1*INDEX(MappingLandR[Winter Cap (MW)],GeneratorListADSv2.1[[#This Row],[Index in L&R Mapping]]),0),1*INDEX(MappingLandR[L&R Nameplate (MW)],GeneratorListADSv2.1[[#This Row],[Index in L&R Mapping]])) -> 0 | O56: =IF(GeneratorListADSv2.1[[#This Row],[Index in L&R Mapping]]>0,1*INDEX(MappingLandR[L&R Nameplate (MW)],GeneratorListADSv2.1[[#This Row],[Index in L&R Mapping]]),0) -> 0 | W56: =IFERROR(MATCH(GeneratorListADSv2.1[[#This Row],[Bus ID]],Buses32HS1[BUS-NO],0),0) -> 8696 | X56: =IFERROR(MATCH(GeneratorListADSv2.1[[#This Row],[Name]],LnRUpdate[2032 ADS PCM Generator Name],0),0) -> 0 | Y56: =IFERROR(MATCH(GeneratorListADSv2.1[[#This Row],[Name]],MappingLandR[2032 ADS PCM Generator Name],0),0) -> 0 | Z56: =IFERROR(MATCH(GeneratorListADSv2.1[[#This Row],[BusNo-UnitID]],ADS32HS1PFv7[BusNo-UnitID],0),0) -> 0 | AA56: =GeneratorListADSv2.1[[#This Row],[Bus ID]] & "_" & MID(GeneratorListADSv2.1[[#This Row],[Unit ID]],2,10) -> 38060_D1 | AB56: =AND(GeneratorListADSv2.1[[#This Row],[Service Status]],GeneratorListADSv2.1[[#This Row],[Commission Date]]<DATEVALUE("1/1/2033"),GeneratorListADSv2.1[[#This Row],[Retirement Date]]>DATEVALUE("12/31/2031")) -> TRUE | AC56: =LEN(GeneratorListADSv2.1[[#This Row],[Name]]) -> 9 | AD56: 12926 | AE56: DR_BANC-1 | AF56: 38060 | AG56: INDUSTRL | AH56: 60 | AI56: 'D1 | AJ56: 4 | AK56: DR | AL56: CA-- | AM56: BANC Demand Response (1of3) | AN56: TRUE | AO56: 2023-04-15 | AP56: 2050-01-01 | AQ56: Future-Conceptual | AR56: CIPV | AS56: CA_CISO | AT56: 0 | AU56: 485.9 | AV56: 0 | AW56: YES | AX56: CA | AY56: NA | AZ56: NA | BA56: NA | BB56: Electricity | BC56: N/A | BD56: TRUE | BE56: NA
D57: =IF(SUBTOTAL(103,GeneratorListADSv2.1[[#This Row],[Name]])=1,1,0) -> 0 | E57: =COUNTIF(GenDistnADSv2.1[Unit Name],GeneratorListADSv2.1[[#This Row],[Name]]) -> 51 | F57: =GeneratorListADSv2.1[[#This Row],[ADS PCM Max Cap]]-GeneratorListADSv2.1[[#This Row],[PF Pmax]] -> 481.3049 | G57: =GeneratorListADSv2.1[[#This Row],[ADS PCM Max Cap]]-MAX(GeneratorListADSv2.1[[#This Row],[L&R Update Summer Cap]:[L&R Update Nameplate]]) -> 481.3049 | H57: =GeneratorListADSv2.1[[#This Row],[MaxCap (MW)]] -> 481.3049 | I57: =IF(GeneratorListADSv2.1[[#This Row],[Index in PF Table v7]]=0,0,INDEX(ADS32HS1PFv7[PMAX],GeneratorListADSv2.1[[#This Row],[Index in PF Table v7]])) -> 0 | J57: =IFERROR(IF(GeneratorListADSv2.1[[#This Row],[Index in L&R Update Mapping]]>0,1*INDEX(LnRUpdate[Summer Cap (MW)],GeneratorListADSv2.1[[#This Row],[Index in L&R Update Mapping]]),0),1*INDEX(LnRUpdate[L&R Nameplate (MW)],GeneratorListADSv2.1[[#This Row],[Index in L&R Update Mapping]])) -> 0 | K57: =IFERROR(IF(GeneratorListADSv2.1[[#This Row],[Index in L&R Update Mapping]]>0,1*INDEX(LnRUpdate[Winter Cap (MW)],GeneratorListADSv2.1[[#This Row],[Index in L&R Update Mapping]]),0),1*INDEX(LnRUpdate[L&R Nameplate (MW)],GeneratorListADSv2.1[[#This Row],[Index in L&R Update Mapping]])) -> 0 | L57: =IF(GeneratorListADSv2.1[[#This Row],[Index in L&R Update Mapping]]>0,1*INDEX(LnRUpdate[L&R Nameplate (MW)],GeneratorListADSv2.1[[#This Row],[Index in L&R Update Mapping]]),0) -> 0 | M57: =IFERROR(IF(GeneratorListADSv2.1[[#This Row],[Index in L&R Mapping]]>0,1*INDEX(MappingLandR[Summer Cap (MW)],GeneratorListADSv2.1[[#This Row],[Index in L&R Mapping]]),0),1*INDEX(MappingLandR[L&R Nameplate (MW)],GeneratorListADSv2.1[[#This Row],[Index in L&R Mapping]])) -> 0 | N57: =IFERROR(IF(GeneratorListADSv2.1[[#This Row],[Index in L&R Mapping]]>0,1*INDEX(MappingLandR[Winter Cap (MW)],GeneratorListADSv2.1[[#This Row],[Index in L&R Mapping]]),0),1*INDEX(MappingLandR[L&R Nameplate (MW)],GeneratorListADSv2.1[[#This Row],[Index in L&R Mapping]])) -> 0 | O57: =IF(GeneratorListADSv2.1[[#This Row],[Index in L&R Mapping]]>0,1*INDEX(MappingLandR[L&R Nameplate (MW)],GeneratorListADSv2.1[[#This Row],[Index in L&R Mapping]]),0) -> 0 | W57: =IFERROR(MATCH(GeneratorListADSv2.1[[#This Row],[Bus ID]],Buses32HS1[BUS-NO],0),0) -> 6695 | X57: =IFERROR(MATCH(GeneratorListADSv2.1[[#This Row],[Name]],LnRUpdate[2032 ADS PCM Generator Name],0),0) -> 0 | Y57: =IFERROR(MATCH(GeneratorListADSv2.1[[#This Row],[Name]],MappingLandR[2032 ADS PCM Generator Name],0),0) -> 0 | Z57: =IFERROR(MATCH(GeneratorListADSv2.1[[#This Row],[BusNo-UnitID]],ADS32HS1PFv7[BusNo-UnitID],0),0) -> 0 | AA57: =GeneratorListADSv2.1[[#This Row],[Bus ID]] & "_" & MID(GeneratorListADSv2.1[[#This Row],[Unit ID]],2,10) -> 33001_P1 | AB57: =AND(GeneratorListADSv2.1[[#This Row],[Service Status]],GeneratorListADSv2.1[[#This Row],[Commission Date]]<DATEVALUE("1/1/2033"),GeneratorListADSv2.1[[#This Row],[Retirement Date]]>DATEVALUE("12/31/2031")) -> TRUE | AC57: =LEN(GeneratorListADSv2.1[[#This Row],[Name]]) -> 27 | AD57: 18693 | AE57: DG-BTM_CIPB_CA_Contra Costa | AF57: 33001 | AG57: DOMTAR | AH57: 115 | AI57: 'P1 | AJ57: 4 | AK57: DG-BTM | AL57: G0-- | AM57: DG-BTM_CIPB_CA_Contra Costa | AN57: TRUE | AO57: 2023-04-15 | AP57: 2050-01-01 | AQ57: Future-Conceptual | AR57: CIPB | AS57: CA_CISO | AT57: 0 | AU57: 481.3049 | AV57: 0 | AW57: YES | AX57: ID | AY57: NA | AZ57: NA | BA57: NA | BB57: Solar | BC57: N/A | BD57: TRUE | BE57: NA
D58: =IF(SUBTOTAL(103,GeneratorListADSv2.1[[#This Row],[Name]])=1,1,0) -> 0 | E58: =COUNTIF(GenDistnADSv2.1[Unit Name],GeneratorListADSv2.1[[#This Row],[Name]]) -> 1 | F58: =GeneratorListADSv2.1[[#This Row],[ADS PCM Max Cap]]-GeneratorListADSv2.1[[#This Row],[PF Pmax]] -> 480.5 | G58: =GeneratorListADSv2.1[[#This Row],[ADS PCM Max Cap]]-MAX(GeneratorListADSv2.1[[#This Row],[L&R Update Summer Cap]:[L&R Update Nameplate]]) -> 480.5 | H58: =GeneratorListADSv2.1[[#This Row],[MaxCap (MW)]] -> 480.5 | I58: =IF(GeneratorListADSv2.1[[#This Row],[Index in PF Table v7]]=0,0,INDEX(ADS32HS1PFv7[PMAX],GeneratorListADSv2.1[[#This Row],[Index in PF Table v7]])) -> 0 | J58: =IFERROR(IF(GeneratorListADSv2.1[[#This Row],[Index in L&R Update Mapping]]>0,1*INDEX(LnRUpdate[Summer Cap (MW)],GeneratorListADSv2.1[[#This Row],[Index in L&R Update Mapping]]),0),1*INDEX(LnRUpdate[L&R Nameplate (MW)],GeneratorListADSv2.1[[#This Row],[Index in L&R Update Mapping]])) -> 0 | K58: =IFERROR(IF(GeneratorListADSv2.1[[#This Row],[Index in L&R Update Mapping]]>0,1*INDEX(LnRUpdate[Winter Cap (MW)],GeneratorListADSv2.1[[#This Row],[Index in L&R Update Mapping]]),0),1*INDEX(LnRUpdate[L&R Nameplate (MW)],GeneratorListADSv2.1[[#This Row],[Index in L&R Update Mapping]])) -> 0 | L58: =IF(GeneratorListADSv2.1[[#This Row],[Index in L&R Update Mapping]]>0,1*INDEX(LnRUpdate[L&R Nameplate (MW)],GeneratorListADSv2.1[[#This Row],[Index in L&R Update Mapping]]),0) -> 0 | M58: =IFERROR(IF(GeneratorListADSv2.1[[#This Row],[Index in L&R Mapping]]>0,1*INDEX(MappingLandR[Summer Cap (MW)],GeneratorListADSv2.1[[#This Row],[Index in L&R Mapping]]),0),1*INDEX(MappingLandR[L&R Nameplate (MW)],GeneratorListADSv2.1[[#This Row],[Index in L&R Mapping]])) -> 0 | N58: =IFERROR(IF(GeneratorListADSv2.1[[#This Row],[Index in L&R Mapping]]>0,1*INDEX(MappingLandR[Winter Cap (MW)],GeneratorListADSv2.1[[#This Row],[Index in L&R Mapping]]),0),1*INDEX(MappingLandR[L&R Nameplate (MW)],GeneratorListADSv2.1[[#This Row],[Index in L&R Mapping]])) -> 0 | O58: =IF(GeneratorListADSv2.1[[#This Row],[Index in L&R Mapping]]>0,1*INDEX(MappingLandR[L&R Nameplate (MW)],GeneratorListADSv2.1[[#This Row],[Index in L&R Mapping]]),0) -> 0 | W58: =IFERROR(MATCH(GeneratorListADSv2.1[[#This Row],[Bus ID]],Buses32HS1[BUS-NO],0),0) -> 4626 | X58: =IFERROR(MATCH(GeneratorListADSv2.1[[#This Row],[Name]],LnRUpdate[2032 ADS PCM Generator Name],0),0) -> 0 | Y58: =IFERROR(MATCH(GeneratorListADSv2.1[[#This Row],[Name]],MappingLandR[2032 ADS PCM Generator Name],0),0) -> 0 | Z58: =IFERROR(MATCH(GeneratorListADSv2.1[[#This Row],[BusNo-UnitID]],ADS32HS1PFv7[BusNo-UnitID],0),0) -> 0 | AA58: =GeneratorListADSv2.1[[#This Row],[Bus ID]] & "_" & MID(GeneratorListADSv2.1[[#This Row],[Unit ID]],2,10) -> 26232_DR | AB58: =AND(GeneratorListADSv2.1[[#This Row],[Service Status]],GeneratorListADSv2.1[[#This Row],[Commission Date]]<DATEVALUE("1/1/2033"),GeneratorListADSv2.1[[#This Row],[Retirement Date]]>DATEVALUE("12/31/2031")) -> TRUE | AC58: =LEN(GeneratorListADSv2.1[[#This Row],[Name]]) -> 7 | AD58: 15777 | AE58: DR_LDWP | AF58: 26232 | AG58: APEXGT1A | AH58: 18 | AI58: 'DR | AJ58: 4 | AK58: DR | AL58: CA- | AM58: LDWP | AN58: TRUE | AO58: 2023-04-15 | AP58: 2050-01-01 | AQ58: Future-Conceptual | AR58: LDWP | AS58: CA_LDWP | AT58: 0 | AU58: 480.5 | AV58: 0 | AW58: YES | AX58: CA | AY58: NA | AZ58: NA | BA58: NA | BB58: NA | BC58: NA | BD58: TRUE | BE58: NA
D59: =IF(SUBTOTAL(103,GeneratorListADSv2.1[[#This Row],[Name]])=1,1,0) -> 0 | E59: =COUNTIF(GenDistnADSv2.1[Unit Name],GeneratorListADSv2.1[[#This Row],[Name]]) -> 1 | F59: =GeneratorListADSv2.1[[#This Row],[ADS PCM Max Cap]]-GeneratorListADSv2.1[[#This Row],[PF Pmax]] -> 478.4 | G59: =GeneratorListADSv2.1[[#This Row],[ADS PCM Max Cap]]-MAX(GeneratorListADSv2.1[[#This Row],[L&R Update Summer Cap]:[L&R Update Nameplate]]) -> 478.4 | H59: =GeneratorListADSv2.1[[#This Row],[MaxCap (MW)]] -> 478.4 | I59: =IF(GeneratorListADSv2.1[[#This Row],[Index in PF Table v7]]=0,0,INDEX(ADS32HS1PFv7[PMAX],GeneratorListADSv2.1[[#This Row],[Index in PF Table v7]])) -> 0 | J59: =IFERROR(IF(GeneratorListADSv2.1[[#This Row],[Index in L&R Update Mapping]]>0,1*INDEX(LnRUpdate[Summer Cap (MW)],GeneratorListADSv2.1[[#This Row],[Index in L&R Update Mapping]]),0),1*INDEX(LnRUpdate[L&R Nameplate (MW)],GeneratorListADSv2.1[[#This Row],[Index in L&R Update Mapping]])) -> 0 | K59: =IFERROR(IF(GeneratorListADSv2.1[[#This Row],[Index in L&R Update Mapping]]>0,1*INDEX(LnRUpdate[Winter Cap (MW)],GeneratorListADSv2.1[[#This Row],[Index in L&R Update Mapping]]),0),1*INDEX(LnRUpdate[L&R Nameplate (MW)],GeneratorListADSv2.1[[#This Row],[Index in L&R Update Mapping]])) -> 0 | L59: =IF(GeneratorListADSv2.1[[#This Row],[Index in L&R Update Mapping]]>0,1*INDEX(LnRUpdate[L&R Nameplate (MW)],GeneratorListADSv2.1[[#This Row],[Index in L&R Update Mapping]]),0) -> 0 | M59: =IFERROR(IF(GeneratorListADSv2.1[[#This Row],[Index in L&R Mapping]]>0,1*INDEX(MappingLandR[Summer Cap (MW)],GeneratorListADSv2.1[[#This Row],[Index in L&R Mapping]]),0),1*INDEX(MappingLandR[L&R Nameplate (MW)],GeneratorListADSv2.1[[#This Row],[Index in L&R Mapping]])) -> 0 | N59: =IFERROR(IF(GeneratorListADSv2.1[[#This Row],[Index in L&R Mapping]]>0,1*INDEX(MappingLandR[Winter Cap (MW)],GeneratorListADSv2.1[[#This Row],[Index in L&R Mapping]]),0),1*INDEX(MappingLandR[L&R Nameplate (MW)],GeneratorListADSv2.1[[#This Row],[Index in L&R Mapping]])) -> 0 | O59: =IF(GeneratorListADSv2.1[[#This Row],[Index in L&R Mapping]]>0,1*INDEX(MappingLandR[L&R Nameplate (MW)],GeneratorListADSv2.1[[#This Row],[Index in L&R Mapping]]),0) -> 0 | W59: =IFERROR(MATCH(GeneratorListADSv2.1[[#This Row],[Bus ID]],Buses32HS1[BUS-NO],0),0) -> 17798 | X59: =IFERROR(MATCH(GeneratorListADSv2.1[[#This Row],[Name]],LnRUpdate[2032 ADS PCM Generator Name],0),0) -> 0 | Y59: =IFERROR(MATCH(GeneratorListADSv2.1[[#This Row],[Name]],MappingLandR[2032 ADS PCM Generator Name],0),0) -> 0 | Z59: =IFERROR(MATCH(GeneratorListADSv2.1[[#This Row],[BusNo-UnitID]],ADS32HS1PFv7[BusNo-UnitID],0),0) -> 0 | AA59: =GeneratorListADSv2.1[[#This Row],[Bus ID]] & "_" & MID(GeneratorListADSv2.1[[#This Row],[Unit ID]],2,10) -> 65665_DR | AB59: =AND(GeneratorListADSv2.1[[#This Row],[Service Status]],GeneratorListADSv2.1[[#This Row],[Commission Date]]<DATEVALUE("1/1/2033"),GeneratorListADSv2.1[[#This Row],[Retirement Date]]>DATEVALUE("12/31/2031")) -> TRUE | AC59: =LEN(GeneratorListADSv2.1[[#This Row],[Name]]) -> 9 | AD59: 12969 | AE59: DR_PAID-1 | AF59: 65665 | AG59: GOSHEN | AH59: 345 | AI59: 'DR | AJ59: 4 | AK59: DR | AL59: ID-- | AM59: PAID Demand Response (1of2) | AN59: TRUE | AO59: 2023-04-15 | AP59: 2050-01-01 | AQ59: Future-Conceptual | AR59: PAID | AS59: BS_PACE | AT59: 0 | AU59: 478.4 | AV59: 0 | AW59: YES | AX59: ID | AY59: NA | AZ59: NA | BA59: NA | BB59: Electricity | BC59: N/A | BD59: TRUE | BE59: NA
D60: =IF(SUBTOTAL(103,GeneratorListADSv2.1[[#This Row],[Name]])=1,1,0) -> 0 | E60: =COUNTIF(GenDistnADSv2.1[Unit Name],GeneratorListADSv2.1[[#This Row],[Name]]) -> 1 | F60: =GeneratorListADSv2.1[[#This Row],[ADS PCM Max Cap]]-GeneratorListADSv2.1[[#This Row],[PF Pmax]] -> 456 | G60: =GeneratorListADSv2.1[[#This Row],[ADS PCM Max Cap]]-MAX(GeneratorListADSv2.1[[#This Row],[L&R Update Summer Cap]:[L&R Update Nameplate]]) -> 456 | H60: =GeneratorListADSv2.1[[#This Row],[MaxCap (MW)]] -> 456 | I60: =IF(GeneratorListADSv2.1[[#This Row],[Index in PF Table v7]]=0,0,INDEX(ADS32HS1PFv7[PMAX],GeneratorListADSv2.1[[#This Row],[Index in PF Table v7]])) -> 0 | J60: =IFERROR(IF(GeneratorListADSv2.1[[#This Row],[Index in L&R Update Mapping]]>0,1*INDEX(LnRUpdate[Summer Cap (MW)],GeneratorListADSv2.1[[#This Row],[Index in L&R Update Mapping]]),0),1*INDEX(LnRUpdate[L&R Nameplate (MW)],GeneratorListADSv2.1[[#This Row],[Index in L&R Update Mapping]])) -> 0 | K60: =IFERROR(IF(GeneratorListADSv2.1[[#This Row],[Index in L&R Update Mapping]]>0,1*INDEX(LnRUpdate[Winter Cap (MW)],GeneratorListADSv2.1[[#This Row],[Index in L&R Update Mapping]]),0),1*INDEX(LnRUpdate[L&R Nameplate (MW)],GeneratorListADSv2.1[[#This Row],[Index in L&R Update Mapping]])) -> 0 | L60: =IF(GeneratorListADSv2.1[[#This Row],[Index in L&R Update Mapping]]>0,1*INDEX(LnRUpdate[L&R Nameplate (MW)],GeneratorListADSv2.1[[#This Row],[Index in L&R Update Mapping]]),0) -> 0 | M60: =IFERROR(IF(GeneratorListADSv2.1[[#This Row],[Index in L&R Mapping]]>0,1*INDEX(MappingLandR[Summer Cap (MW)],GeneratorListADSv2.1[[#This Row],[Index in L&R Mapping]]),0),1*INDEX(MappingLandR[L&R Nameplate (MW)],GeneratorListADSv2.1[[#This Row],[Index in L&R Mapping]])) -> 0 | N60: =IFERROR(IF(GeneratorListADSv2.1[[#This Row],[Index in L&R Mapping]]>0,1*INDEX(MappingLandR[Winter Cap (MW)],GeneratorListADSv2.1[[#This Row],[Index in L&R Mapping]]),0),1*INDEX(MappingLandR[L&R Nameplate (MW)],GeneratorListADSv2.1[[#This Row],[Index in L&R Mapping]])) -> 0 | O60: =IF(GeneratorListADSv2.1[[#This Row],[Index in L&R Mapping]]>0,1*INDEX(MappingLandR[L&R Nameplate (MW)],GeneratorListADSv2.1[[#This Row],[Index in L&R Mapping]]),0) -> 0 | W60: =IFERROR(MATCH(GeneratorListADSv2.1[[#This Row],[Bus ID]],Buses32HS1[BUS-NO],0),0) -> 15980 | X60: =IFERROR(MATCH(GeneratorListADSv2.1[[#This Row],[Name]],LnRUpdate[2032 ADS PCM Generator Name],0),0) -> 0 | Y60: =IFERROR(MATCH(GeneratorListADSv2.1[[#This Row],[Name]],MappingLandR[2032 ADS PCM Generator Name],0),0) -> 0 | Z60: =IFERROR(MATCH(GeneratorListADSv2.1[[#This Row],[BusNo-UnitID]],ADS32HS1PFv7[BusNo-UnitID],0),0) -> 0 | AA60: =GeneratorListADSv2.1[[#This Row],[Bus ID]] & "_" & MID(GeneratorListADSv2.1[[#This Row],[Unit ID]],2,10) -> 56002_Z0 | AB60: =AND(GeneratorListADSv2.1[[#This Row],[Service Status]],GeneratorListADSv2.1[[#This Row],[Commission Date]]<DATEVALUE("1/1/2033"),GeneratorListADSv2.1[[#This Row],[Retirement Date]]>DATEVALUE("12/31/2031")) -> TRUE | AC60: =LEN(GeneratorListADSv2.1[[#This Row],[Name]]) -> 11 | AD60: 20612 | AE60: DG-BTM_AESO | AF60: 56002 | AG60: SC34E_01 | AH60: 13.8 | AI60: 'Z0 | AJ60: 4 | AK60: DG-BTM | AL60: G0-- | AM60: DG-BTM_AESO | AN60: TRUE | AO60: 2023-04-15 | AP60: 2050-01-01 | AQ60: Future-Conceptual | AR60: AESO | AS60: AB_AESO | AT60: 0 | AU60: 456 | AV60: 0 | AW60: YES | AX60: AB | AY60: NA | AZ60: NA | BA60: NA | BB60: Solar | BC60: N/A | BD60: FALSE | BE60: NA
D61: =IF(SUBTOTAL(103,GeneratorListADSv2.1[[#This Row],[Name]])=1,1,0) -> 0 | E61: =COUNTIF(GenDistnADSv2.1[Unit Name],GeneratorListADSv2.1[[#This Row],[Name]]) -> 18 | F61: =GeneratorListADSv2.1[[#This Row],[ADS PCM Max Cap]]-GeneratorListADSv2.1[[#This Row],[PF Pmax]] -> 501.78 | G61: =GeneratorListADSv2.1[[#This Row],[ADS PCM Max Cap]]-MAX(GeneratorListADSv2.1[[#This Row],[L&R Update Summer Cap]:[L&R Update Nameplate]]) -> 451.72 | H61: =GeneratorListADSv2.1[[#This Row],[MaxCap (MW)]] -> 503 | I61: =IF(GeneratorListADSv2.1[[#This Row],[Index in PF Table v7]]=0,0,INDEX(ADS32HS1PFv7[PMAX],GeneratorListADSv2.1[[#This Row],[Index in PF Table v7]])) -> 1.22 | J61: =IFERROR(IF(GeneratorListADSv2.1[[#This Row],[Index in L&R Update Mapping]]>0,1*INDEX(LnRUpdate[Summer Cap (MW)],GeneratorListADSv2.1[[#This Row],[Index in L&R Update Mapping]]),0),1*INDEX(LnRUpdate[L&R Nameplate (MW)],GeneratorListADSv2.1[[#This Row],[Index in L&R Update Mapping]])) -> 45.9 | K61: =IFERROR(IF(GeneratorListADSv2.1[[#This Row],[Index in L&R Update Mapping]]>0,1*INDEX(LnRUpdate[Winter Cap (MW)],GeneratorListADSv2.1[[#This Row],[Index in L&R Update Mapping]]),0),1*INDEX(LnRUpdate[L&R Nameplate (MW)],GeneratorListADSv2.1[[#This Row],[Index in L&R Update Mapping]])) -> 45.9 | L61: =IF(GeneratorListADSv2.1[[#This Row],[Index in L&R Update Mapping]]>0,1*INDEX(LnRUpdate[L&R Nameplate (MW)],GeneratorListADSv2.1[[#This Row],[Index in L&R Update Mapping]]),0) -> 51.28 | M61: =IFERROR(IF(GeneratorListADSv2.1[[#This Row],[Index in L&R Mapping]]>0,1*INDEX(MappingLandR[Summer Cap (MW)],GeneratorListADSv2.1[[#This Row],[Index in L&R Mapping]]),0),1*INDEX(MappingLandR[L&R Nameplate (MW)],GeneratorListADSv2.1[[#This Row],[Index in L&R Mapping]])) -> 45.9 | N61: =IFERROR(IF(GeneratorListADSv2.1[[#This Row],[Index in L&R Mapping]]>0,1*INDEX(MappingLandR[Winter Cap (MW)],GeneratorListADSv2.1[[#This Row],[Index in L&R Mapping]]),0),1*INDEX(MappingLandR[L&R Nameplate (MW)],GeneratorListADSv2.1[[#This Row],[Index in L&R Mapping]])) -> 45.9 | O61: =IF(GeneratorListADSv2.1[[#This Row],[Index in L&R Mapping]]>0,1*INDEX(MappingLandR[L&R Nameplate (MW)],GeneratorListADSv2.1[[#This Row],[Index in L&R Mapping]]),0) -> 51.28 | W61: =IFERROR(MATCH(GeneratorListADSv2.1[[#This Row],[Bus ID]],Buses32HS1[BUS-NO],0),0) -> 12088 | X61: =IFERROR(MATCH(GeneratorListADSv2.1[[#This Row],[Name]],LnRUpdate[2032 ADS PCM Generator Name],0),0) -> 2677 | Y61: =IFERROR(MATCH(GeneratorListADSv2.1[[#This Row],[Name]],MappingLandR[2032 ADS PCM Generator Name],0),0) -> 2677 | Z61: =IFERROR(MATCH(GeneratorListADSv2.1[[#This Row],[BusNo-UnitID]],ADS32HS1PFv7[BusNo-UnitID],0),0) -> 4980 | AA61: =GeneratorListADSv2.1[[#This Row],[Bus ID]] & "_" & MID(GeneratorListADSv2.1[[#This Row],[Unit ID]],2,10) -> 46817_X0 | AB61: =AND(GeneratorListADSv2.1[[#This Row],[Service Status]],GeneratorListADSv2.1[[#This Row],[Commission Date]]<DATEVALUE("1/1/2033"),GeneratorListADSv2.1[[#This Row],[Retirement Date]]>DATEVALUE("12/31/2031")) -> TRUE | AC61: =LEN(GeneratorListADSv2.1[[#This Row],[Name]]) -> 11 | AD61: 14139 | AE61: Rock Island | AF61: 46817 | AG61: ROCKIS21 | AH61: 115 | AI61: 'X0 | AJ61: 2 | AK61: Hydro | AL61: WA-6200-Agg Plant | AM61: Rock Island-B-1 | AN61: TRUE | AO61: 1979-08-01 | AP61: 2050-12-31 | AQ61: Existing | AR61: CHPD | AS61: NW_CHPD | AT61: 0 | AU61: 503 | AV61: 0 | AW61: YES | AX61: WA | AY61: NA | AZ61: NA | BA61: NA | BB61: Water | BC61: N/A | BD61: FALSE | BE61: NA
D62: =IF(SUBTOTAL(103,GeneratorListADSv2.1[[#This Row],[Name]])=1,1,0) -> 0 | E62: =COUNTIF(GenDistnADSv2.1[Unit Name],GeneratorListADSv2.1[[#This Row],[Name]]) -> 10 | F62: =GeneratorListADSv2.1[[#This Row],[ADS PCM Max Cap]]-GeneratorListADSv2.1[[#This Row],[PF Pmax]] -> 410 | G62: =GeneratorListADSv2.1[[#This Row],[ADS PCM Max Cap]]-MAX(GeneratorListADSv2.1[[#This Row],[L&R Update Summer Cap]:[L&R Update Nameplate]]) -> 432 | H62: =GeneratorListADSv2.1[[#This Row],[MaxCap (MW)]] -> 510 | I62: =IF(GeneratorListADSv2.1[[#This Row],[Index in PF Table v7]]=0,0,INDEX(ADS32HS1PFv7[PMAX],GeneratorListADSv2.1[[#This Row],[Index in PF Table v7]])) -> 100 | J62: =IFERROR(IF(GeneratorListADSv2.1[[#This Row],[Index in L&R Update Mapping]]>0,1*INDEX(LnRUpdate[Summer Cap (MW)],GeneratorListADSv2.1[[#This Row],[Index in L&R Update Mapping]]),0),1*INDEX(LnRUpdate[L&R Nameplate (MW)],GeneratorListADSv2.1[[#This Row],[Index in L&R Update Mapping]])) -> 78 | K62: =IFERROR(IF(GeneratorListADSv2.1[[#This Row],[Index in L&R Update Mapping]]>0,1*INDEX(LnRUpdate[Winter Cap (MW)],GeneratorListADSv2.1[[#This Row],[Index in L&R Update Mapping]]),0),1*INDEX(LnRUpdate[L&R Nameplate (MW)],GeneratorListADSv2.1[[#This Row],[Index in L&R Update Mapping]])) -> 78 | L62: =IF(GeneratorListADSv2.1[[#This Row],[Index in L&R Update Mapping]]>0,1*INDEX(LnRUpdate[L&R Nameplate (MW)],GeneratorListADSv2.1[[#This Row],[Index in L&R Update Mapping]]),0) -> 78 | M62: =IFERROR(IF(GeneratorListADSv2.1[[#This Row],[Index in L&R Mapping]]>0,1*INDEX(MappingLandR[Summer Cap (MW)],GeneratorListADSv2.1[[#This Row],[Index in L&R Mapping]]),0),1*INDEX(MappingLandR[L&R Nameplate (MW)],GeneratorListADSv2.1[[#This Row],[Index in L&R Mapping]])) -> 78 | N62: =IFERROR(IF(GeneratorListADSv2.1[[#This Row],[Index in L&R Mapping]]>0,1*INDEX(MappingLandR[Winter Cap (MW)],GeneratorListADSv2.1[[#This Row],[Index in L&R Mapping]]),0),1*INDEX(MappingLandR[L&R Nameplate (MW)],GeneratorListADSv2.1[[#This Row],[Index in L&R Mapping]])) -> 78 | O62: =IF(GeneratorListADSv2.1[[#This Row],[Index in L&R Mapping]]>0,1*INDEX(MappingLandR[L&R Nameplate (MW)],GeneratorListADSv2.1[[#This Row],[Index in L&R Mapping]]),0) -> 78 | W62: =IFERROR(MATCH(GeneratorListADSv2.1[[#This Row],[Bus ID]],Buses32HS1[BUS-NO],0),0) -> 16002 | X62: =IFERROR(MATCH(GeneratorListADSv2.1[[#This Row],[Name]],LnRUpdate[2032 ADS PCM Generator Name],0),0) -> 3244 | Y62: =IFERROR(MATCH(GeneratorListADSv2.1[[#This Row],[Name]],MappingLandR[2032 ADS PCM Generator Name],0),0) -> 3244 | Z62: =IFERROR(MATCH(GeneratorListADSv2.1[[#This Row],[BusNo-UnitID]],ADS32HS1PFv7[BusNo-UnitID],0),0) -> 148 | AA62: =GeneratorListADSv2.1[[#This Row],[Bus ID]] & "_" & MID(GeneratorListADSv2.1[[#This Row],[Unit ID]],2,10) -> 56206_2 | AB62: =AND(GeneratorListADSv2.1[[#This Row],[Service Status]],GeneratorListADSv2.1[[#This Row],[Commission Date]]<DATEVALUE("1/1/2033"),GeneratorListADSv2.1[[#This Row],[Retirement Date]]>DATEVALUE("12/31/2031")) -> TRUE | AC62: =LEN(GeneratorListADSv2.1[[#This Row],[Name]]) -> 16 | AD62: 9232 | AE62: SyncrudeCC-Total | AF62: 56206 | AG62: AUR_GTG2 | AH62: 13.8 | AI62: '2 | AJ62: 4 | AK62: CC-AB-Cogen | AL62: AB-- | AM62: SyncrudeCC (Total CC Plant) | AN62: TRUE | AO62: 2005-12-01 | AP62: 2050-12-31 | AQ62: Existing | AR62: AESO | AS62: AB_AESO | AT62: 68.66599 | AU62: 510 | AV62: 0 | AW62: YES | AX62: AB | AY62: NA | AZ62: NA | BA62: NA | BB62: NG | BC62: N/A | BD62: FALSE | BE62: NA
D63: =IF(SUBTOTAL(103,GeneratorListADSv2.1[[#This Row],[Name]])=1,1,0) -> 0 | E63: =COUNTIF(GenDistnADSv2.1[Unit Name],GeneratorListADSv2.1[[#This Row],[Name]]) -> 17 | F63: =GeneratorListADSv2.1[[#This Row],[ADS PCM Max Cap]]-GeneratorListADSv2.1[[#This Row],[PF Pmax]] -> 357.5381 | G63: =GeneratorListADSv2.1[[#This Row],[ADS PCM Max Cap]]-MAX(GeneratorListADSv2.1[[#This Row],[L&R Update Summer Cap]:[L&R Update Nameplate]]) -> 357.5381 | H63: =GeneratorListADSv2.1[[#This Row],[MaxCap (MW)]] -> 357.5381 | I63: =IF(GeneratorListADSv2.1[[#This Row],[Index in PF Table v7]]=0,0,INDEX(ADS32HS1PFv7[PMAX],GeneratorListADSv2.1[[#This Row],[Index in PF Table v7]])) -> 0 | J63: =IFERROR(IF(GeneratorListADSv2.1[[#This Row],[Index in L&R Update Mapping]]>0,1*INDEX(LnRUpdate[Summer Cap (MW)],GeneratorListADSv2.1[[#This Row],[Index in L&R Update Mapping]]),0),1*INDEX(LnRUpdate[L&R Nameplate (MW)],GeneratorListADSv2.1[[#This Row],[Index in L&R Update Mapping]])) -> 0 | K63: =IFERROR(IF(GeneratorListADSv2.1[[#This Row],[Index in L&R Update Mapping]]>0,1*INDEX(LnRUpdate[Winter Cap (MW)],GeneratorListADSv2.1[[#This Row],[Index in L&R Update Mapping]]),0),1*INDEX(LnRUpdate[L&R Nameplate (MW)],GeneratorListADSv2.1[[#This Row],[Index in L&R Update Mapping]])) -> 0 | L63: =IF(GeneratorListADSv2.1[[#This Row],[Index in L&R Update Mapping]]>0,1*INDEX(LnRUpdate[L&R Nameplate (MW)],GeneratorListADSv2.1[[#This Row],[Index in L&R Update Mapping]]),0) -> 0 | M63: =IFERROR(IF(GeneratorListADSv2.1[[#This Row],[Index in L&R Mapping]]>0,1*INDEX(MappingLandR[Summer Cap (MW)],GeneratorListADSv2.1[[#This Row],[Index in L&R Mapping]]),0),1*INDEX(MappingLandR[L&R Nameplate (MW)],GeneratorListADSv2.1[[#This Row],[Index in L&R Mapping]])) -> 0 | N63: =IFERROR(IF(GeneratorListADSv2.1[[#This Row],[Index in L&R Mapping]]>0,1*INDEX(MappingLandR[Winter Cap (MW)],GeneratorListADSv2.1[[#This Row],[Index in L&R Mapping]]),0),1*INDEX(MappingLandR[L&R Nameplate (MW)],GeneratorListADSv2.1[[#This Row],[Index in L&R Mapping]])) -> 0 | O63: =IF(GeneratorListADSv2.1[[#This Row],[Index in L&R Mapping]]>0,1*INDEX(MappingLandR[L&R Nameplate (MW)],GeneratorListADSv2.1[[#This Row],[Index in L&R Mapping]]),0) -> 0 | W63: =IFERROR(MATCH(GeneratorListADSv2.1[[#This Row],[Bus ID]],Buses32HS1[BUS-NO],0),0) -> 8310 | X63: =IFERROR(MATCH(GeneratorListADSv2.1[[#This Row],[Name]],LnRUpdate[2032 ADS PCM Generator Name],0),0) -> 0 | Y63: =IFERROR(MATCH(GeneratorListADSv2.1[[#This Row],[Name]],MappingLandR[2032 ADS PCM Generator Name],0),0) -> 0 | Z63: =IFERROR(MATCH(GeneratorListADSv2.1[[#This Row],[BusNo-UnitID]],ADS32HS1PFv7[BusNo-UnitID],0),0) -> 0 | AA63: =GeneratorListADSv2.1[[#This Row],[Bus ID]] & "_" & MID(GeneratorListADSv2.1[[#This Row],[Unit ID]],2,10) -> 36274_L5 | AB63: =AND(GeneratorListADSv2.1[[#This Row],[Service Status]],GeneratorListADSv2.1[[#This Row],[Commission Date]]<DATEVALUE("1/1/2033"),GeneratorListADSv2.1[[#This Row],[Retirement Date]]>DATEVALUE("12/31/2031")) -> TRUE | AC63: =LEN(GeneratorListADSv2.1[[#This Row],[Name]]) -> 28 | AD63: 18729 | AE63: DG-BTM_CIPV_CA_Santa Barbara | AF63: 36274 | AG63: BUELLTON | AH63: 115 | AI63: 'L5 | AJ63: 4 | AK63: DG-BTM | AL63: G0-- | AM63: DG-BTM_CIPV_CA_Santa Barbara | AN63: TRUE | AO63: 2023-04-15 | AP63: 2050-01-01 | AQ63: Future-Conceptual | AR63: CIPV | AS63: CA_CISO | AT63: 0 | AU63: 357.5381 | AV63: 0 | AW63: YES | AX63: ID | AY63: NA | AZ63: NA | BA63: NA | BB63: Solar | BC63: N/A | BD63: TRUE | BE63: NA
D64: =IF(SUBTOTAL(103,GeneratorListADSv2.1[[#This Row],[Name]])=1,1,0) -> 0 | E64: =COUNTIF(GenDistnADSv2.1[Unit Name],GeneratorListADSv2.1[[#This Row],[Name]]) -> 2 | F64: =GeneratorListADSv2.1[[#This Row],[ADS PCM Max Cap]]-GeneratorListADSv2.1[[#This Row],[PF Pmax]] -> 367 | G64: =GeneratorListADSv2.1[[#This Row],[ADS PCM Max Cap]]-MAX(GeneratorListADSv2.1[[#This Row],[L&R Update Summer Cap]:[L&R Update Nameplate]]) -> 356 | H64: =GeneratorListADSv2.1[[#This Row],[MaxCap (MW)]] -> 526 | I64: =IF(GeneratorListADSv2.1[[#This Row],[Index in PF Table v7]]=0,0,INDEX(ADS32HS1PFv7[PMAX],GeneratorListADSv2.1[[#This Row],[Index in PF Table v7]])) -> 159 | J64: =IFERROR(IF(GeneratorListADSv2.1[[#This Row],[Index in L&R Update Mapping]]>0,1*INDEX(LnRUpdate[Summer Cap (MW)],GeneratorListADSv2.1[[#This Row],[Index in L&R Update Mapping]]),0),1*INDEX(LnRUpdate[L&R Nameplate (MW)],GeneratorListADSv2.1[[#This Row],[Index in L&R Update Mapping]])) -> 153 | K64: =IFERROR(IF(GeneratorListADSv2.1[[#This Row],[Index in L&R Update Mapping]]>0,1*INDEX(LnRUpdate[Winter Cap (MW)],GeneratorListADSv2.1[[#This Row],[Index in L&R Update Mapping]]),0),1*INDEX(LnRUpdate[L&R Nameplate (MW)],GeneratorListADSv2.1[[#This Row],[Index in L&R Update Mapping]])) -> 162.5 | L64: =IF(GeneratorListADSv2.1[[#This Row],[Index in L&R Update Mapping]]>0,1*INDEX(LnRUpdate[L&R Nameplate (MW)],GeneratorListADSv2.1[[#This Row],[Index in L&R Update Mapping]]),0) -> 170 | M64: =IFERROR(IF(GeneratorListADSv2.1[[#This Row],[Index in L&R Mapping]]>0,1*INDEX(MappingLandR[Summer Cap (MW)],GeneratorListADSv2.1[[#This Row],[Index in L&R Mapping]]),0),1*INDEX(MappingLandR[L&R Nameplate (MW)],GeneratorListADSv2.1[[#This Row],[Index in L&R Mapping]])) -> 153 | N64: =IFERROR(IF(GeneratorListADSv2.1[[#This Row],[Index in L&R Mapping]]>0,1*INDEX(MappingLandR[Winter Cap (MW)],GeneratorListADSv2.1[[#This Row],[Index in L&R Mapping]]),0),1*INDEX(MappingLandR[L&R Nameplate (MW)],GeneratorListADSv2.1[[#This Row],[Index in L&R Mapping]])) -> 162.5 | O64: =IF(GeneratorListADSv2.1[[#This Row],[Index in L&R Mapping]]>0,1*INDEX(MappingLandR[L&R Nameplate (MW)],GeneratorListADSv2.1[[#This Row],[Index in L&R Mapping]]),0) -> 170 | W64: =IFERROR(MATCH(GeneratorListADSv2.1[[#This Row],[Bus ID]],Buses32HS1[BUS-NO],0),0) -> 1555 | X64: =IFERROR(MATCH(GeneratorListADSv2.1[[#This Row],[Name]],LnRUpdate[2032 ADS PCM Generator Name],0),0) -> 232 | Y64: =IFERROR(MATCH(GeneratorListADSv2.1[[#This Row],[Name]],MappingLandR[2032 ADS PCM Generator Name],0),0) -> 232 | Z64: =IFERROR(MATCH(GeneratorListADSv2.1[[#This Row],[BusNo-UnitID]],ADS32HS1PFv7[BusNo-UnitID],0),0) -> 4672 | AA64: =GeneratorListADSv2.1[[#This Row],[Bus ID]] & "_" & MID(GeneratorListADSv2.1[[#This Row],[Unit ID]],2,10) -> 15165_1 | AB64: =AND(GeneratorListADSv2.1[[#This Row],[Service Status]],GeneratorListADSv2.1[[#This Row],[Commission Date]]<DATEVALUE("1/1/2033"),GeneratorListADSv2.1[[#This Row],[Retirement Date]]>DATEVALUE("12/31/2031")) -> TRUE | AC64: =LEN(GeneratorListADSv2.1[[#This Row],[Name]]) -> 13 | AD64: 16009 | AE64: Mesquite CC1b | AF64: 15165 | AG64: MES-CT2 | AH64: 18 | AI64: '1 | AJ64: 1 | AK64: CCWhole-NatGas-Industrial | AL64: AZ-58557-AG | AM64: MesquiteCC1 (Total CC Plant) | AN64: TRUE | AO64: 2003-06-01 | AP64: 2050-12-31 | AQ64: Existing | AR64: TH_PV | AS64: SW_TH_PV | AT64: 75 | AU64: 526 | AV64: 0 | AW64: YES | AX64: AZ | AY64: Maricopa | AZ64: Arlington | BA64: NA | BB64: Combined Cycle | BC64: NA | BD64: FALSE | BE64: NA
D65: =IF(SUBTOTAL(103,GeneratorListADSv2.1[[#This Row],[Name]])=1,1,0) -> 0 | E65: =COUNTIF(GenDistnADSv2.1[Unit Name],GeneratorListADSv2.1[[#This Row],[Name]]) -> 2 | F65: =GeneratorListADSv2.1[[#This Row],[ADS PCM Max Cap]]-GeneratorListADSv2.1[[#This Row],[PF Pmax]] -> 335 | G65: =GeneratorListADSv2.1[[#This Row],[ADS PCM Max Cap]]-MAX(GeneratorListADSv2.1[[#This Row],[L&R Update Summer Cap]:[L&R Update Nameplate]]) -> 335 | H65: =GeneratorListADSv2.1[[#This Row],[MaxCap (MW)]] -> 335 | I65: =IF(GeneratorListADSv2.1[[#This Row],[Index in PF Table v7]]=0,0,INDEX(ADS32HS1PFv7[PMAX],GeneratorListADSv2.1[[#This Row],[Index in PF Table v7]])) -> 0 | J65: =IFERROR(IF(GeneratorListADSv2.1[[#This Row],[Index in L&R Update Mapping]]>0,1*INDEX(LnRUpdate[Summer Cap (MW)],GeneratorListADSv2.1[[#This Row],[Index in L&R Update Mapping]]),0),1*INDEX(LnRUpdate[L&R Nameplate (MW)],GeneratorListADSv2.1[[#This Row],[Index in L&R Update Mapping]])) -> 0 | K65: =IFERROR(IF(GeneratorListADSv2.1[[#This Row],[Index in L&R Update Mapping]]>0,1*INDEX(LnRUpdate[Winter Cap (MW)],GeneratorListADSv2.1[[#This Row],[Index in L&R Update Mapping]]),0),1*INDEX(LnRUpdate[L&R Nameplate (MW)],GeneratorListADSv2.1[[#This Row],[Index in L&R Update Mapping]])) -> 0 | L65: =IF(GeneratorListADSv2.1[[#This Row],[Index in L&R Update Mapping]]>0,1*INDEX(LnRUpdate[L&R Nameplate (MW)],GeneratorListADSv2.1[[#This Row],[Index in L&R Update Mapping]]),0) -> 0 | M65: =IFERROR(IF(GeneratorListADSv2.1[[#This Row],[Index in L&R Mapping]]>0,1*INDEX(MappingLandR[Summer Cap (MW)],GeneratorListADSv2.1[[#This Row],[Index in L&R Mapping]]),0),1*INDEX(MappingLandR[L&R Nameplate (MW)],GeneratorListADSv2.1[[#This Row],[Index in L&R Mapping]])) -> 0 | N65: =IFERROR(IF(GeneratorListADSv2.1[[#This Row],[Index in L&R Mapping]]>0,1*INDEX(MappingLandR[Winter Cap (MW)],GeneratorListADSv2.1[[#This Row],[Index in L&R Mapping]]),0),1*INDEX(MappingLandR[L&R Nameplate (MW)],GeneratorListADSv2.1[[#This Row],[Index in L&R Mapping]])) -> 0 | O65: =IF(GeneratorListADSv2.1[[#This Row],[Index in L&R Mapping]]>0,1*INDEX(MappingLandR[L&R Nameplate (MW)],GeneratorListADSv2.1[[#This Row],[Index in L&R Mapping]]),0) -> 0 | W65: =IFERROR(MATCH(GeneratorListADSv2.1[[#This Row],[Bus ID]],Buses32HS1[BUS-NO],0),0) -> 3678 | X65: =IFERROR(MATCH(GeneratorListADSv2.1[[#This Row],[Name]],LnRUpdate[2032 ADS PCM Generator Name],0),0) -> 0 | Y65: =IFERROR(MATCH(GeneratorListADSv2.1[[#This Row],[Name]],MappingLandR[2032 ADS PCM Generator Name],0),0) -> 0 | Z65: =IFERROR(MATCH(GeneratorListADSv2.1[[#This Row],[BusNo-UnitID]],ADS32HS1PFv7[BusNo-UnitID],0),0) -> 0 | AA65: =GeneratorListADSv2.1[[#This Row],[Bus ID]] & "_" & MID(GeneratorListADSv2.1[[#This Row],[Unit ID]],2,10) -> 24576_CC | AB65: =AND(GeneratorListADSv2.1[[#This Row],[Service Status]],GeneratorListADSv2.1[[#This Row],[Commission Date]]<DATEVALUE("1/1/2033"),GeneratorListADSv2.1[[#This Row],[Retirement Date]]>DATEVALUE("12/31/2031")) -> TRUE | AC65: =LEN(GeneratorListADSv2.1[[#This Row],[Name]]) -> 13 | AD65: 15898 | AE65: Alamitos CC1b | AF65: 24576 | AG65: ALAMT CTG2 | AH65: 18 | AI65: 'CC | AJ65: 1 | AK65: CCWhole-NatGas-Industrial | AL65: CA-62115-CC | AM65: AlamitosCC-OTC replacement | AN65: TRUE | AO65: 2019-09-23 | AP65: 2050-12-31 | AQ65: Existing | AR65: CISC | AS65: CA_CISO | AT65: 20 | AU65: 335 | AV65: 0 | AW65: YES | AX65: CA | AY65: NA | AZ65: NA | BA65: NA | BB65: NA | BC65: NA | BD65: FALSE | BE65: NA
D66: =IF(SUBTOTAL(103,GeneratorListADSv2.1[[#This Row],[Name]])=1,1,0) -> 0 | E66: =COUNTIF(GenDistnADSv2.1[Unit Name],GeneratorListADSv2.1[[#This Row],[Name]]) -> 2 | F66: =GeneratorListADSv2.1[[#This Row],[ADS PCM Max Cap]]-GeneratorListADSv2.1[[#This Row],[PF Pmax]] -> 334 | G66: =GeneratorListADSv2.1[[#This Row],[ADS PCM Max Cap]]-MAX(GeneratorListADSv2.1[[#This Row],[L&R Update Summer Cap]:[L&R Update Nameplate]]) -> 334 | H66: =GeneratorListADSv2.1[[#This Row],[MaxCap (MW)]] -> 334 | I66: =IF(GeneratorListADSv2.1[[#This Row],[Index in PF Table v7]]=0,0,INDEX(ADS32HS1PFv7[PMAX],GeneratorListADSv2.1[[#This Row],[Index in PF Table v7]])) -> 0 | J66: =IFERROR(IF(GeneratorListADSv2.1[[#This Row],[Index in L&R Update Mapping]]>0,1*INDEX(LnRUpdate[Summer Cap (MW)],GeneratorListADSv2.1[[#This Row],[Index in L&R Update Mapping]]),0),1*INDEX(LnRUpdate[L&R Nameplate (MW)],GeneratorListADSv2.1[[#This Row],[Index in L&R Update Mapping]])) -> 0 | K66: =IFERROR(IF(GeneratorListADSv2.1[[#This Row],[Index in L&R Update Mapping]]>0,1*INDEX(LnRUpdate[Winter Cap (MW)],GeneratorListADSv2.1[[#This Row],[Index in L&R Update Mapping]]),0),1*INDEX(LnRUpdate[L&R Nameplate (MW)],GeneratorListADSv2.1[[#This Row],[Index in L&R Update Mapping]])) -> 0 | L66: =IF(GeneratorListADSv2.1[[#This Row],[Index in L&R Update Mapping]]>0,1*INDEX(LnRUpdate[L&R Nameplate (MW)],GeneratorListADSv2.1[[#This Row],[Index in L&R Update Mapping]]),0) -> 0 | M66: =IFERROR(IF(GeneratorListADSv2.1[[#This Row],[Index in L&R Mapping]]>0,1*INDEX(MappingLandR[Summer Cap (MW)],GeneratorListADSv2.1[[#This Row],[Index in L&R Mapping]]),0),1*INDEX(MappingLandR[L&R Nameplate (MW)],GeneratorListADSv2.1[[#This Row],[Index in L&R Mapping]])) -> 0 | N66: =IFERROR(IF(GeneratorListADSv2.1[[#This Row],[Index in L&R Mapping]]>0,1*INDEX(MappingLandR[Winter Cap (MW)],GeneratorListADSv2.1[[#This Row],[Index in L&R Mapping]]),0),1*INDEX(MappingLandR[L&R Nameplate (MW)],GeneratorListADSv2.1[[#This Row],[Index in L&R Mapping]])) -> 0 | O66: =IF(GeneratorListADSv2.1[[#This Row],[Index in L&R Mapping]]>0,1*INDEX(MappingLandR[L&R Nameplate (MW)],GeneratorListADSv2.1[[#This Row],[Index in L&R Mapping]]),0) -> 0 | W66: =IFERROR(MATCH(GeneratorListADSv2.1[[#This Row],[Bus ID]],Buses32HS1[BUS-NO],0),0) -> 6219 | X66: =IFERROR(MATCH(GeneratorListADSv2.1[[#This Row],[Name]],LnRUpdate[2032 ADS PCM Generator Name],0),0) -> 0 | Y66: =IFERROR(MATCH(GeneratorListADSv2.1[[#This Row],[Name]],MappingLandR[2032 ADS PCM Generator Name],0),0) -> 0 | Z66: =IFERROR(MATCH(GeneratorListADSv2.1[[#This Row],[BusNo-UnitID]],ADS32HS1PFv7[BusNo-UnitID],0),0) -> 0 | AA66: =GeneratorListADSv2.1[[#This Row],[Bus ID]] & "_" & MID(GeneratorListADSv2.1[[#This Row],[Unit ID]],2,10) -> 31923_CC | AB66: =AND(GeneratorListADSv2.1[[#This Row],[Service Status]],GeneratorListADSv2.1[[#This Row],[Commission Date]]<DATEVALUE("1/1/2033"),GeneratorListADSv2.1[[#This Row],[Retirement Date]]>DATEVALUE("12/31/2031")) -> TRUE | AC66: =LEN(GeneratorListADSv2.1[[#This Row],[Name]]) -> 11 | AD66: 15926 | AE66: Colusa CC1a | AF66: 31923 | AG66: COLUSAPPCTG1 | AH66: 18 | AI66: 'CC | AJ66: 1 | AK66: CCWhole-NatGas-Industrial | AL66: CA-56532-AG | AM66: ColusaCC (Total CC Plant) | AN66: TRUE | AO66: 2010-12-22 | AP66: 2050-12-31 | AQ66: Existing | AR66: CIPV | AS66: CA_CISO | AT66: 142.395 | AU66: 334 | AV66: 0 | AW66: YES | AX66: CA | AY66: NA | AZ66: NA | BA66: NA | BB66: NA | BC66: NA | BD66: FALSE | BE66: NA
D67: =IF(SUBTOTAL(103,GeneratorListADSv2.1[[#This Row],[Name]])=1,1,0) -> 0 | E67: =COUNTIF(GenDistnADSv2.1[Unit Name],GeneratorListADSv2.1[[#This Row],[Name]]) -> 2 | F67: =GeneratorListADSv2.1[[#This Row],[ADS PCM Max Cap]]-GeneratorListADSv2.1[[#This Row],[PF Pmax]] -> 334 | G67: =GeneratorListADSv2.1[[#This Row],[ADS PCM Max Cap]]-MAX(GeneratorListADSv2.1[[#This Row],[L&R Update Summer Cap]:[L&R Update Nameplate]]) -> 334 | H67: =GeneratorListADSv2.1[[#This Row],[MaxCap (MW)]] -> 334 | I67: =IF(GeneratorListADSv2.1[[#This Row],[Index in PF Table v7]]=0,0,INDEX(ADS32HS1PFv7[PMAX],GeneratorListADSv2.1[[#This Row],[Index in PF Table v7]])) -> 0 | J67: =IFERROR(IF(GeneratorListADSv2.1[[#This Row],[Index in L&R Update Mapping]]>0,1*INDEX(LnRUpdate[Summer Cap (MW)],GeneratorListADSv2.1[[#This Row],[Index in L&R Update Mapping]]),0),1*INDEX(LnRUpdate[L&R Nameplate (MW)],GeneratorListADSv2.1[[#This Row],[Index in L&R Update Mapping]])) -> 0 | K67: =IFERROR(IF(GeneratorListADSv2.1[[#This Row],[Index in L&R Update Mapping]]>0,1*INDEX(LnRUpdate[Winter Cap (MW)],GeneratorListADSv2.1[[#This Row],[Index in L&R Update Mapping]]),0),1*INDEX(LnRUpdate[L&R Nameplate (MW)],GeneratorListADSv2.1[[#This Row],[Index in L&R Update Mapping]])) -> 0 | L67: =IF(GeneratorListADSv2.1[[#This Row],[Index in L&R Update Mapping]]>0,1*INDEX(LnRUpdate[L&R Nameplate (MW)],GeneratorListADSv2.1[[#This Row],[Index in L&R Update Mapping]]),0) -> 0 | M67: =IFERROR(IF(GeneratorListADSv2.1[[#This Row],[Index in L&R Mapping]]>0,1*INDEX(MappingLandR[Summer Cap (MW)],GeneratorListADSv2.1[[#This Row],[Index in L&R Mapping]]),0),1*INDEX(MappingLandR[L&R Nameplate (MW)],GeneratorListADSv2.1[[#This Row],[Index in L&R Mapping]])) -> 0 | N67: =IFERROR(IF(GeneratorListADSv2.1[[#This Row],[Index in L&R Mapping]]>0,1*INDEX(MappingLandR[Winter Cap (MW)],GeneratorListADSv2.1[[#This Row],[Index in L&R Mapping]]),0),1*INDEX(MappingLandR[L&R Nameplate (MW)],GeneratorListADSv2.1[[#This Row],[Index in L&R Mapping]])) -> 0 | O67: =IF(GeneratorListADSv2.1[[#This Row],[Index in L&R Mapping]]>0,1*INDEX(MappingLandR[L&R Nameplate (MW)],GeneratorListADSv2.1[[#This Row],[Index in L&R Mapping]]),0) -> 0 | W67: =IFERROR(MATCH(GeneratorListADSv2.1[[#This Row],[Bus ID]],Buses32HS1[BUS-NO],0),0) -> 6220 | X67: =IFERROR(MATCH(GeneratorListADSv2.1[[#This Row],[Name]],LnRUpdate[2032 ADS PCM Generator Name],0),0) -> 0 | Y67: =IFERROR(MATCH(GeneratorListADSv2.1[[#This Row],[Name]],MappingLandR[2032 ADS PCM Generator Name],0),0) -> 0 | Z67: =IFERROR(MATCH(GeneratorListADSv2.1[[#This Row],[BusNo-UnitID]],ADS32HS1PFv7[BusNo-UnitID],0),0) -> 0 | AA67: =GeneratorListADSv2.1[[#This Row],[Bus ID]] & "_" & MID(GeneratorListADSv2.1[[#This Row],[Unit ID]],2,10) -> 31924_CC | AB67: =AND(GeneratorListADSv2.1[[#This Row],[Service Status]],GeneratorListADSv2.1[[#This Row],[Commission Date]]<DATEVALUE("1/1/2033"),GeneratorListADSv2.1[[#This Row],[Retirement Date]]>DATEVALUE("12/31/2031")) -> TRUE | AC67: =LEN(GeneratorListADSv2.1[[#This Row],[Name]]) -> 11 | AD67: 15927 | AE67: Colusa CC1b | AF67: 31924 | AG67: COLUSAPPCTG2 | AH67: 18 | AI67: 'CC | AJ67: 1 | AK67: CCWhole-NatGas-Industrial | AL67: CA-56532-AG | AM67: ColusaCC (Total CC Plant) | AN67: TRUE | AO67: 2010-12-22 | AP67: 2050-12-31 | AQ67: Existing | AR67: CIPV | AS67: CA_CISO | AT67: 142.395 | AU67: 334 | AV67: 0 | AW67: YES | AX67: CA | AY67: NA | AZ67: NA | BA67: NA | BB67: NA | BC67: NA | BD67: FALSE | BE67: NA
D68: =IF(SUBTOTAL(103,GeneratorListADSv2.1[[#This Row],[Name]])=1,1,0) -> 0 | E68: =COUNTIF(GenDistnADSv2.1[Unit Name],GeneratorListADSv2.1[[#This Row],[Name]]) -> 2 | F68: =GeneratorListADSv2.1[[#This Row],[ADS PCM Max Cap]]-GeneratorListADSv2.1[[#This Row],[PF Pmax]] -> 332 | G68: =GeneratorListADSv2.1[[#This Row],[ADS PCM Max Cap]]-MAX(GeneratorListADSv2.1[[#This Row],[L&R Update Summer Cap]:[L&R Update Nameplate]]) -> 332 | H68: =GeneratorListADSv2.1[[#This Row],[MaxCap (MW)]] -> 332 | I68: =IF(GeneratorListADSv2.1[[#This Row],[Index in PF Table v7]]=0,0,INDEX(ADS32HS1PFv7[PMAX],GeneratorListADSv2.1[[#This Row],[Index in PF Table v7]])) -> 0 | J68: =IFERROR(IF(GeneratorListADSv2.1[[#This Row],[Index in L&R Update Mapping]]>0,1*INDEX(LnRUpdate[Summer Cap (MW)],GeneratorListADSv2.1[[#This Row],[Index in L&R Update Mapping]]),0),1*INDEX(LnRUpdate[L&R Nameplate (MW)],GeneratorListADSv2.1[[#This Row],[Index in L&R Update Mapping]])) -> 0 | K68: =IFERROR(IF(GeneratorListADSv2.1[[#This Row],[Index in L&R Update Mapping]]>0,1*INDEX(LnRUpdate[Winter Cap (MW)],GeneratorListADSv2.1[[#This Row],[Index in L&R Update Mapping]]),0),1*INDEX(LnRUpdate[L&R Nameplate (MW)],GeneratorListADSv2.1[[#This Row],[Index in L&R Update Mapping]])) -> 0 | L68: =IF(GeneratorListADSv2.1[[#This Row],[Index in L&R Update Mapping]]>0,1*INDEX(LnRUpdate[L&R Nameplate (MW)],GeneratorListADSv2.1[[#This Row],[Index in L&R Update Mapping]]),0) -> 0 | M68: =IFERROR(IF(GeneratorListADSv2.1[[#This Row],[Index in L&R Mapping]]>0,1*INDEX(MappingLandR[Summer Cap (MW)],GeneratorListADSv2.1[[#This Row],[Index in L&R Mapping]]),0),1*INDEX(MappingLandR[L&R Nameplate (MW)],GeneratorListADSv2.1[[#This Row],[Index in L&R Mapping]])) -> 0 | N68: =IFERROR(IF(GeneratorListADSv2.1[[#This Row],[Index in L&R Mapping]]>0,1*INDEX(MappingLandR[Winter Cap (MW)],GeneratorListADSv2.1[[#This Row],[Index in L&R Mapping]]),0),1*INDEX(MappingLandR[L&R Nameplate (MW)],GeneratorListADSv2.1[[#This Row],[Index in L&R Mapping]])) -> 0 | O68: =IF(GeneratorListADSv2.1[[#This Row],[Index in L&R Mapping]]>0,1*INDEX(MappingLandR[L&R Nameplate (MW)],GeneratorListADSv2.1[[#This Row],[Index in L&R Mapping]]),0) -> 0 | W68: =IFERROR(MATCH(GeneratorListADSv2.1[[#This Row],[Bus ID]],Buses32HS1[BUS-NO],0),0) -> 3677 | X68: =IFERROR(MATCH(GeneratorListADSv2.1[[#This Row],[Name]],LnRUpdate[2032 ADS PCM Generator Name],0),0) -> 0 | Y68: =IFERROR(MATCH(GeneratorListADSv2.1[[#This Row],[Name]],MappingLandR[2032 ADS PCM Generator Name],0),0) -> 0 | Z68: =IFERROR(MATCH(GeneratorListADSv2.1[[#This Row],[BusNo-UnitID]],ADS32HS1PFv7[BusNo-UnitID],0),0) -> 0 | AA68: =GeneratorListADSv2.1[[#This Row],[Bus ID]] & "_" & MID(GeneratorListADSv2.1[[#This Row],[Unit ID]],2,10) -> 24575_CC | AB68: =AND(GeneratorListADSv2.1[[#This Row],[Service Status]],GeneratorListADSv2.1[[#This Row],[Commission Date]]<DATEVALUE("1/1/2033"),GeneratorListADSv2.1[[#This Row],[Retirement Date]]>DATEVALUE("12/31/2031")) -> TRUE | AC68: =LEN(GeneratorListADSv2.1[[#This Row],[Name]]) -> 13 | AD68: 15897 | AE68: Alamitos CC1a | AF68: 24575 | AG68: ALAMT CTG1 | AH68: 18 | AI68: 'CC | AJ68: 1 | AK68: CCWhole-NatGas-Industrial | AL68: CA-62115-CC | AM68: AlamitosCC-OTC replacement | AN68: TRUE | AO68: 2019-09-23 | AP68: 2050-12-31 | AQ68: Existing | AR68: CISC | AS68: CA_CISO | AT68: 18.971 | AU68: 332 | AV68: 0 | AW68: YES | AX68: CA | AY68: NA | AZ68: NA | BA68: NA | BB68: NA | BC68: NA | BD68: FALSE | BE68: NA
D69: =IF(SUBTOTAL(103,GeneratorListADSv2.1[[#This Row],[Name]])=1,1,0) -> 0 | E69: =COUNTIF(GenDistnADSv2.1[Unit Name],GeneratorListADSv2.1[[#This Row],[Name]]) -> 23 | F69: =GeneratorListADSv2.1[[#This Row],[ADS PCM Max Cap]]-GeneratorListADSv2.1[[#This Row],[PF Pmax]] -> 322.8503 | G69: =GeneratorListADSv2.1[[#This Row],[ADS PCM Max Cap]]-MAX(GeneratorListADSv2.1[[#This Row],[L&R Update Summer Cap]:[L&R Update Nameplate]]) -> 322.8503 | H69: =GeneratorListADSv2.1[[#This Row],[MaxCap (MW)]] -> 322.8503 | I69: =IF(GeneratorListADSv2.1[[#This Row],[Index in PF Table v7]]=0,0,INDEX(ADS32HS1PFv7[PMAX],GeneratorListADSv2.1[[#This Row],[Index in PF Table v7]])) -> 0 | J69: =IFERROR(IF(GeneratorListADSv2.1[[#This Row],[Index in L&R Update Mapping]]>0,1*INDEX(LnRUpdate[Summer Cap (MW)],GeneratorListADSv2.1[[#This Row],[Index in L&R Update Mapping]]),0),1*INDEX(LnRUpdate[L&R Nameplate (MW)],GeneratorListADSv2.1[[#This Row],[Index in L&R Update Mapping]])) -> 0 | K69: =IFERROR(IF(GeneratorListADSv2.1[[#This Row],[Index in L&R Update Mapping]]>0,1*INDEX(LnRUpdate[Winter Cap (MW)],GeneratorListADSv2.1[[#This Row],[Index in L&R Update Mapping]]),0),1*INDEX(LnRUpdate[L&R Nameplate (MW)],GeneratorListADSv2.1[[#This Row],[Index in L&R Update Mapping]])) -> 0 | L69: =IF(GeneratorListADSv2.1[[#This Row],[Index in L&R Update Mapping]]>0,1*INDEX(LnRUpdate[L&R Nameplate (MW)],GeneratorListADSv2.1[[#This Row],[Index in L&R Update Mapping]]),0) -> 0 | M69: =IFERROR(IF(GeneratorListADSv2.1[[#This Row],[Index in L&R Mapping]]>0,1*INDEX(MappingLandR[Summer Cap (MW)],GeneratorListADSv2.1[[#This Row],[Index in L&R Mapping]]),0),1*INDEX(MappingLandR[L&R Nameplate (MW)],GeneratorListADSv2.1[[#This Row],[Index in L&R Mapping]])) -> 0 | N69: =IFERROR(IF(GeneratorListADSv2.1[[#This Row],[Index in L&R Mapping]]>0,1*INDEX(MappingLandR[Winter Cap (MW)],GeneratorListADSv2.1[[#This Row],[Index in L&R Mapping]]),0),1*INDEX(MappingLandR[L&R Nameplate (MW)],GeneratorListADSv2.1[[#This Row],[Index in L&R Mapping]])) -> 0 | O69: =IF(GeneratorListADSv2.1[[#This Row],[Index in L&R Mapping]]>0,1*INDEX(MappingLandR[L&R Nameplate (MW)],GeneratorListADSv2.1[[#This Row],[Index in L&R Mapping]]),0) -> 0 | W69: =IFERROR(MATCH(GeneratorListADSv2.1[[#This Row],[Bus ID]],Buses32HS1[BUS-NO],0),0) -> 8312 | X69: =IFERROR(MATCH(GeneratorListADSv2.1[[#This Row],[Name]],LnRUpdate[2032 ADS PCM Generator Name],0),0) -> 0 | Y69: =IFERROR(MATCH(GeneratorListADSv2.1[[#This Row],[Name]],MappingLandR[2032 ADS PCM Generator Name],0),0) -> 0 | Z69: =IFERROR(MATCH(GeneratorListADSv2.1[[#This Row],[BusNo-UnitID]],ADS32HS1PFv7[BusNo-UnitID],0),0) -> 0 | AA69: =GeneratorListADSv2.1[[#This Row],[Bus ID]] & "_" & MID(GeneratorListADSv2.1[[#This Row],[Unit ID]],2,10) -> 36278_L7 | AB69: =AND(GeneratorListADSv2.1[[#This Row],[Service Status]],GeneratorListADSv2.1[[#This Row],[Commission Date]]<DATEVALUE("1/1/2033"),GeneratorListADSv2.1[[#This Row],[Retirement Date]]>DATEVALUE("12/31/2031")) -> TRUE | AC69: =LEN(GeneratorListADSv2.1[[#This Row],[Name]]) -> 30 | AD69: 18727 | AE69: DG-BTM_CIPV_CA_San Luis Obispo | AF69: 36278 | AG69: OCEANO | AH69: 115 | AI69: 'L7 | AJ69: 4 | AK69: DG-BTM | AL69: G0-- | AM69: DG-BTM_CIPV_CA_San Luis Obispo | AN69: TRUE | AO69: 2023-04-15 | AP69: 2050-01-01 | AQ69: Future-Conceptual | AR69: CIPV | AS69: CA_CISO | AT69: 0 | AU69: 322.8503 | AV69: 0 | AW69: YES | AX69: ID | AY69: NA | AZ69: NA | BA69: NA | BB69: Solar | BC69: N/A | BD69: TRUE | BE69: NA
D70: =IF(SUBTOTAL(103,GeneratorListADSv2.1[[#This Row],[Name]])=1,1,0) -> 0 | E70: =COUNTIF(GenDistnADSv2.1[Unit Name],GeneratorListADSv2.1[[#This Row],[Name]]) -> 2 | F70: =GeneratorListADSv2.1[[#This Row],[ADS PCM Max Cap]]-GeneratorListADSv2.1[[#This Row],[PF Pmax]] -> 322 | G70: =GeneratorListADSv2.1[[#This Row],[ADS PCM Max Cap]]-MAX(GeneratorListADSv2.1[[#This Row],[L&R Update Summer Cap]:[L&R Update Nameplate]]) -> 322 | H70: =GeneratorListADSv2.1[[#This Row],[MaxCap (MW)]] -> 322 | I70: =IF(GeneratorListADSv2.1[[#This Row],[Index in PF Table v7]]=0,0,INDEX(ADS32HS1PFv7[PMAX],GeneratorListADSv2.1[[#This Row],[Index in PF Table v7]])) -> 0 | J70: =IFERROR(IF(GeneratorListADSv2.1[[#This Row],[Index in L&R Update Mapping]]>0,1*INDEX(LnRUpdate[Summer Cap (MW)],GeneratorListADSv2.1[[#This Row],[Index in L&R Update Mapping]]),0),1*INDEX(LnRUpdate[L&R Nameplate (MW)],GeneratorListADSv2.1[[#This Row],[Index in L&R Update Mapping]])) -> 0 | K70: =IFERROR(IF(GeneratorListADSv2.1[[#This Row],[Index in L&R Update Mapping]]>0,1*INDEX(LnRUpdate[Winter Cap (MW)],GeneratorListADSv2.1[[#This Row],[Index in L&R Update Mapping]]),0),1*INDEX(LnRUpdate[L&R Nameplate (MW)],GeneratorListADSv2.1[[#This Row],[Index in L&R Update Mapping]])) -> 0 | L70: =IF(GeneratorListADSv2.1[[#This Row],[Index in L&R Update Mapping]]>0,1*INDEX(LnRUpdate[L&R Nameplate (MW)],GeneratorListADSv2.1[[#This Row],[Index in L&R Update Mapping]]),0) -> 0 | M70: =IFERROR(IF(GeneratorListADSv2.1[[#This Row],[Index in L&R Mapping]]>0,1*INDEX(MappingLandR[Summer Cap (MW)],GeneratorListADSv2.1[[#This Row],[Index in L&R Mapping]]),0),1*INDEX(MappingLandR[L&R Nameplate (MW)],GeneratorListADSv2.1[[#This Row],[Index in L&R Mapping]])) -> 0 | N70: =IFERROR(IF(GeneratorListADSv2.1[[#This Row],[Index in L&R Mapping]]>0,1*INDEX(MappingLandR[Winter Cap (MW)],GeneratorListADSv2.1[[#This Row],[Index in L&R Mapping]]),0),1*INDEX(MappingLandR[L&R Nameplate (MW)],GeneratorListADSv2.1[[#This Row],[Index in L&R Mapping]])) -> 0 | O70: =IF(GeneratorListADSv2.1[[#This Row],[Index in L&R Mapping]]>0,1*INDEX(MappingLandR[L&R Nameplate (MW)],GeneratorListADSv2.1[[#This Row],[Index in L&R Mapping]]),0) -> 0 | W70: =IFERROR(MATCH(GeneratorListADSv2.1[[#This Row],[Bus ID]],Buses32HS1[BUS-NO],0),0) -> 3681 | X70: =IFERROR(MATCH(GeneratorListADSv2.1[[#This Row],[Name]],LnRUpdate[2032 ADS PCM Generator Name],0),0) -> 0 | Y70: =IFERROR(MATCH(GeneratorListADSv2.1[[#This Row],[Name]],MappingLandR[2032 ADS PCM Generator Name],0),0) -> 0 | Z70: =IFERROR(MATCH(GeneratorListADSv2.1[[#This Row],[BusNo-UnitID]],ADS32HS1PFv7[BusNo-UnitID],0),0) -> 0 | AA70: =GeneratorListADSv2.1[[#This Row],[Bus ID]] & "_" & MID(GeneratorListADSv2.1[[#This Row],[Unit ID]],2,10) -> 24580_CC | AB70: =AND(GeneratorListADSv2.1[[#This Row],[Service Status]],GeneratorListADSv2.1[[#This Row],[Commission Date]]<DATEVALUE("1/1/2033"),GeneratorListADSv2.1[[#This Row],[Retirement Date]]>DATEVALUE("12/31/2031")) -> TRUE | AC70: =LEN(GeneratorListADSv2.1[[#This Row],[Name]]) -> 21 | AD70: 15977 | AE70: Huntington Beach CC1a | AF70: 24580 | AG70: HUNTBCH CTG1 | AH70: 18 | AI70: 'CC | AJ70: 1 | AK70: CCWhole-NatGas-Industrial | AL70: CA-62116-CC | AM70: HuntingtonBeachCC-OTC replacement | AN70: TRUE | AO70: 2020-02-04 | AP70: 2050-12-31 | AQ70: Existing | AR70: CISC | AS70: CA_CISO | AT70: 96.6 | AU70: 322 | AV70: 0 | AW70: YES | AX70: CA | AY70: NA | AZ70: NA | BA70: NA | BB70: NA | BC70: NA | BD70: FALSE | BE70: NA
D71: =IF(SUBTOTAL(103,GeneratorListADSv2.1[[#This Row],[Name]])=1,1,0) -> 0 | E71: =COUNTIF(GenDistnADSv2.1[Unit Name],GeneratorListADSv2.1[[#This Row],[Name]]) -> 2 | F71: =GeneratorListADSv2.1[[#This Row],[ADS PCM Max Cap]]-GeneratorListADSv2.1[[#This Row],[PF Pmax]] -> 322 | G71: =GeneratorListADSv2.1[[#This Row],[ADS PCM Max Cap]]-MAX(GeneratorListADSv2.1[[#This Row],[L&R Update Summer Cap]:[L&R Update Nameplate]]) -> 322 | H71: =GeneratorListADSv2.1[[#This Row],[MaxCap (MW)]] -> 322 | I71: =IF(GeneratorListADSv2.1[[#This Row],[Index in PF Table v7]]=0,0,INDEX(ADS32HS1PFv7[PMAX],GeneratorListADSv2.1[[#This Row],[Index in PF Table v7]])) -> 0 | J71: =IFERROR(IF(GeneratorListADSv2.1[[#This Row],[Index in L&R Update Mapping]]>0,1*INDEX(LnRUpdate[Summer Cap (MW)],GeneratorListADSv2.1[[#This Row],[Index in L&R Update Mapping]]),0),1*INDEX(LnRUpdate[L&R Nameplate (MW)],GeneratorListADSv2.1[[#This Row],[Index in L&R Update Mapping]])) -> 0 | K71: =IFERROR(IF(GeneratorListADSv2.1[[#This Row],[Index in L&R Update Mapping]]>0,1*INDEX(LnRUpdate[Winter Cap (MW)],GeneratorListADSv2.1[[#This Row],[Index in L&R Update Mapping]]),0),1*INDEX(LnRUpdate[L&R Nameplate (MW)],GeneratorListADSv2.1[[#This Row],[Index in L&R Update Mapping]])) -> 0 | L71: =IF(GeneratorListADSv2.1[[#This Row],[Index in L&R Update Mapping]]>0,1*INDEX(LnRUpdate[L&R Nameplate (MW)],GeneratorListADSv2.1[[#This Row],[Index in L&R Update Mapping]]),0) -> 0 | M71: =IFERROR(IF(GeneratorListADSv2.1[[#This Row],[Index in L&R Mapping]]>0,1*INDEX(MappingLandR[Summer Cap (MW)],GeneratorListADSv2.1[[#This Row],[Index in L&R Mapping]]),0),1*INDEX(MappingLandR[L&R Nameplate (MW)],GeneratorListADSv2.1[[#This Row],[Index in L&R Mapping]])) -> 0 | N71: =IFERROR(IF(GeneratorListADSv2.1[[#This Row],[Index in L&R Mapping]]>0,1*INDEX(MappingLandR[Winter Cap (MW)],GeneratorListADSv2.1[[#This Row],[Index in L&R Mapping]]),0),1*INDEX(MappingLandR[L&R Nameplate (MW)],GeneratorListADSv2.1[[#This Row],[Index in L&R Mapping]])) -> 0 | O71: =IF(GeneratorListADSv2.1[[#This Row],[Index in L&R Mapping]]>0,1*INDEX(MappingLandR[L&R Nameplate (MW)],GeneratorListADSv2.1[[#This Row],[Index in L&R Mapping]]),0) -> 0 | W71: =IFERROR(MATCH(GeneratorListADSv2.1[[#This Row],[Bus ID]],Buses32HS1[BUS-NO],0),0) -> 3682 | X71: =IFERROR(MATCH(GeneratorListADSv2.1[[#This Row],[Name]],LnRUpdate[2032 ADS PCM Generator Name],0),0) -> 0 | Y71: =IFERROR(MATCH(GeneratorListADSv2.1[[#This Row],[Name]],MappingLandR[2032 ADS PCM Generator Name],0),0) -> 0 | Z71: =IFERROR(MATCH(GeneratorListADSv2.1[[#This Row],[BusNo-UnitID]],ADS32HS1PFv7[BusNo-UnitID],0),0) -> 0 | AA71: =GeneratorListADSv2.1[[#This Row],[Bus ID]] & "_" & MID(GeneratorListADSv2.1[[#This Row],[Unit ID]],2,10) -> 24581_CC | AB71: =AND(GeneratorListADSv2.1[[#This Row],[Service Status]],GeneratorListADSv2.1[[#This Row],[Commission Date]]<DATEVALUE("1/1/2033"),GeneratorListADSv2.1[[#This Row],[Retirement Date]]>DATEVALUE("12/31/2031")) -> TRUE | AC71: =LEN(GeneratorListADSv2.1[[#This Row],[Name]]) -> 21 | AD71: 15978 | AE71: Huntington Beach CC1b | AF71: 24581 | AG71: HUNTBCH CTG2 | AH71: 18 | AI71: 'CC | AJ71: 1 | AK71: CCWhole-NatGas-Industrial | AL71: CA-62116-CC | AM71: HuntingtonBeachCC-OTC replacement | AN71: TRUE | AO71: 2020-02-04 | AP71: 2050-12-31 | AQ71: Existing | AR71: CISC | AS71: CA_CISO | AT71: 96.6 | AU71: 322 | AV71: 0 | AW71: YES | AX71: CA | AY71: NA | AZ71: NA | BA71: NA | BB71: NA | BC71: NA | BD71: FALSE | BE71: NA
D72: =IF(SUBTOTAL(103,GeneratorListADSv2.1[[#This Row],[Name]])=1,1,0) -> 0 | E72: =COUNTIF(GenDistnADSv2.1[Unit Name],GeneratorListADSv2.1[[#This Row],[Name]]) -> 2 | F72: =GeneratorListADSv2.1[[#This Row],[ADS PCM Max Cap]]-GeneratorListADSv2.1[[#This Row],[PF Pmax]] -> 315 | G72: =GeneratorListADSv2.1[[#This Row],[ADS PCM Max Cap]]-MAX(GeneratorListADSv2.1[[#This Row],[L&R Update Summer Cap]:[L&R Update Nameplate]]) -> 315 | H72: =GeneratorListADSv2.1[[#This Row],[MaxCap (MW)]] -> 315 | I72: =IF(GeneratorListADSv2.1[[#This Row],[Index in PF Table v7]]=0,0,INDEX(ADS32HS1PFv7[PMAX],GeneratorListADSv2.1[[#This Row],[Index in PF Table v7]])) -> 0 | J72: =IFERROR(IF(GeneratorListADSv2.1[[#This Row],[Index in L&R Update Mapping]]>0,1*INDEX(LnRUpdate[Summer Cap (MW)],GeneratorListADSv2.1[[#This Row],[Index in L&R Update Mapping]]),0),1*INDEX(LnRUpdate[L&R Nameplate (MW)],GeneratorListADSv2.1[[#This Row],[Index in L&R Update Mapping]])) -> 0 | K72: =IFERROR(IF(GeneratorListADSv2.1[[#This Row],[Index in L&R Update Mapping]]>0,1*INDEX(LnRUpdate[Winter Cap (MW)],GeneratorListADSv2.1[[#This Row],[Index in L&R Update Mapping]]),0),1*INDEX(LnRUpdate[L&R Nameplate (MW)],GeneratorListADSv2.1[[#This Row],[Index in L&R Update Mapping]])) -> 0 | L72: =IF(GeneratorListADSv2.1[[#This Row],[Index in L&R Update Mapping]]>0,1*INDEX(LnRUpdate[L&R Nameplate (MW)],GeneratorListADSv2.1[[#This Row],[Index in L&R Update Mapping]]),0) -> 0 | M72: =IFERROR(IF(GeneratorListADSv2.1[[#This Row],[Index in L&R Mapping]]>0,1*INDEX(MappingLandR[Summer Cap (MW)],GeneratorListADSv2.1[[#This Row],[Index in L&R Mapping]]),0),1*INDEX(MappingLandR[L&R Nameplate (MW)],GeneratorListADSv2.1[[#This Row],[Index in L&R Mapping]])) -> 0 | N72: =IFERROR(IF(GeneratorListADSv2.1[[#This Row],[Index in L&R Mapping]]>0,1*INDEX(MappingLandR[Winter Cap (MW)],GeneratorListADSv2.1[[#This Row],[Index in L&R Mapping]]),0),1*INDEX(MappingLandR[L&R Nameplate (MW)],GeneratorListADSv2.1[[#This Row],[Index in L&R Mapping]])) -> 0 | O72: =IF(GeneratorListADSv2.1[[#This Row],[Index in L&R Mapping]]>0,1*INDEX(MappingLandR[L&R Nameplate (MW)],GeneratorListADSv2.1[[#This Row],[Index in L&R Mapping]]),0) -> 0 | W72: =IFERROR(MATCH(GeneratorListADSv2.1[[#This Row],[Bus ID]],Buses32HS1[BUS-NO],0),0) -> 8036 | X72: =IFERROR(MATCH(GeneratorListADSv2.1[[#This Row],[Name]],LnRUpdate[2032 ADS PCM Generator Name],0),0) -> 0 | Y72: =IFERROR(MATCH(GeneratorListADSv2.1[[#This Row],[Name]],MappingLandR[2032 ADS PCM Generator Name],0),0) -> 0 | Z72: =IFERROR(MATCH(GeneratorListADSv2.1[[#This Row],[BusNo-UnitID]],ADS32HS1PFv7[BusNo-UnitID],0),0) -> 0 | AA72: =GeneratorListADSv2.1[[#This Row],[Bus ID]] & "_" & MID(GeneratorListADSv2.1[[#This Row],[Unit ID]],2,10) -> 35304_CC | AB72: =AND(GeneratorListADSv2.1[[#This Row],[Service Status]],GeneratorListADSv2.1[[#This Row],[Commission Date]]<DATEVALUE("1/1/2033"),GeneratorListADSv2.1[[#This Row],[Retirement Date]]>DATEVALUE("12/31/2031")) -> TRUE | AC72: =LEN(GeneratorListADSv2.1[[#This Row],[Name]]) -> 17 | AD72: 16048 | AE72: Russell City CC1a | AF72: 35304 | AG72: RUSCTYECCT1 | AH72: 15 | AI72: 'CC | AJ72: 1 | AK72: CCWhole-NatGas-Industrial | AL72: CA-56467-AG | AM72: RussellCityEnergyCC (Total CC Plant) | AN72: TRUE | AO72: 2013-08-08 | AP72: 2050-12-31 | AQ72: Existing | AR72: CIPB | AS72: CA_CISO | AT72: 157.74 | AU72: 315 | AV72: 0 | AW72: YES | AX72: CA | AY72: NA | AZ72: NA | BA72: NA | BB72: NA | BC72: NA | BD72: FALSE | BE72: NA
D73: =IF(SUBTOTAL(103,GeneratorListADSv2.1[[#This Row],[Name]])=1,1,0) -> 0 | E73: =COUNTIF(GenDistnADSv2.1[Unit Name],GeneratorListADSv2.1[[#This Row],[Name]]) -> 2 | F73: =GeneratorListADSv2.1[[#This Row],[ADS PCM Max Cap]]-GeneratorListADSv2.1[[#This Row],[PF Pmax]] -> 315 | G73: =GeneratorListADSv2.1[[#This Row],[ADS PCM Max Cap]]-MAX(GeneratorListADSv2.1[[#This Row],[L&R Update Summer Cap]:[L&R Update Nameplate]]) -> 315 | H73: =GeneratorListADSv2.1[[#This Row],[MaxCap (MW)]] -> 315 | I73: =IF(GeneratorListADSv2.1[[#This Row],[Index in PF Table v7]]=0,0,INDEX(ADS32HS1PFv7[PMAX],GeneratorListADSv2.1[[#This Row],[Index in PF Table v7]])) -> 0 | J73: =IFERROR(IF(GeneratorListADSv2.1[[#This Row],[Index in L&R Update Mapping]]>0,1*INDEX(LnRUpdate[Summer Cap (MW)],GeneratorListADSv2.1[[#This Row],[Index in L&R Update Mapping]]),0),1*INDEX(LnRUpdate[L&R Nameplate (MW)],GeneratorListADSv2.1[[#This Row],[Index in L&R Update Mapping]])) -> 0 | K73: =IFERROR(IF(GeneratorListADSv2.1[[#This Row],[Index in L&R Update Mapping]]>0,1*INDEX(LnRUpdate[Winter Cap (MW)],GeneratorListADSv2.1[[#This Row],[Index in L&R Update Mapping]]),0),1*INDEX(LnRUpdate[L&R Nameplate (MW)],GeneratorListADSv2.1[[#This Row],[Index in L&R Update Mapping]])) -> 0 | L73: =IF(GeneratorListADSv2.1[[#This Row],[Index in L&R Update Mapping]]>0,1*INDEX(LnRUpdate[L&R Nameplate (MW)],GeneratorListADSv2.1[[#This Row],[Index in L&R Update Mapping]]),0) -> 0 | M73: =IFERROR(IF(GeneratorListADSv2.1[[#This Row],[Index in L&R Mapping]]>0,1*INDEX(MappingLandR[Summer Cap (MW)],GeneratorListADSv2.1[[#This Row],[Index in L&R Mapping]]),0),1*INDEX(MappingLandR[L&R Nameplate (MW)],GeneratorListADSv2.1[[#This Row],[Index in L&R Mapping]])) -> 0 | N73: =IFERROR(IF(GeneratorListADSv2.1[[#This Row],[Index in L&R Mapping]]>0,1*INDEX(MappingLandR[Winter Cap (MW)],GeneratorListADSv2.1[[#This Row],[Index in L&R Mapping]]),0),1*INDEX(MappingLandR[L&R Nameplate (MW)],GeneratorListADSv2.1[[#This Row],[Index in L&R Mapping]])) -> 0 | O73: =IF(GeneratorListADSv2.1[[#This Row],[Index in L&R Mapping]]>0,1*INDEX(MappingLandR[L&R Nameplate (MW)],GeneratorListADSv2.1[[#This Row],[Index in L&R Mapping]]),0) -> 0 | W73: =IFERROR(MATCH(GeneratorListADSv2.1[[#This Row],[Bus ID]],Buses32HS1[BUS-NO],0),0) -> 8037 | X73: =IFERROR(MATCH(GeneratorListADSv2.1[[#This Row],[Name]],LnRUpdate[2032 ADS PCM Generator Name],0),0) -> 0 | Y73: =IFERROR(MATCH(GeneratorListADSv2.1[[#This Row],[Name]],MappingLandR[2032 ADS PCM Generator Name],0),0) -> 0 | Z73: =IFERROR(MATCH(GeneratorListADSv2.1[[#This Row],[BusNo-UnitID]],ADS32HS1PFv7[BusNo-UnitID],0),0) -> 0 | AA73: =GeneratorListADSv2.1[[#This Row],[Bus ID]] & "_" & MID(GeneratorListADSv2.1[[#This Row],[Unit ID]],2,10) -> 35305_CC | AB73: =AND(GeneratorListADSv2.1[[#This Row],[Service Status]],GeneratorListADSv2.1[[#This Row],[Commission Date]]<DATEVALUE("1/1/2033"),GeneratorListADSv2.1[[#This Row],[Retirement Date]]>DATEVALUE("12/31/2031")) -> TRUE | AC73: =LEN(GeneratorListADSv2.1[[#This Row],[Name]]) -> 17 | AD73: 16049 | AE73: Russell City CC1b | AF73: 35305 | AG73: RUSCTYECCT2 | AH73: 15 | AI73: 'CC | AJ73: 1 | AK73: CCWhole-NatGas-Industrial | AL73: CA-56467-AG | AM73: RussellCityEnergyCC (Total CC Plant) | AN73: TRUE | AO73: 2013-08-08 | AP73: 2050-12-31 | AQ73: Existing | AR73: CIPB | AS73: CA_CISO | AT73: 157.74 | AU73: 315 | AV73: 0 | AW73: YES | AX73: CA | AY73: NA | AZ73: NA | BA73: NA | BB73: NA | BC73: NA | BD73: FALSE | BE73: NA
D74: =IF(SUBTOTAL(103,GeneratorListADSv2.1[[#This Row],[Name]])=1,1,0) -> 0 | E74: =COUNTIF(GenDistnADSv2.1[Unit Name],GeneratorListADSv2.1[[#This Row],[Name]]) -> 3 | F74: =GeneratorListADSv2.1[[#This Row],[ADS PCM Max Cap]]-GeneratorListADSv2.1[[#This Row],[PF Pmax]] -> 318 | G74: =GeneratorListADSv2.1[[#This Row],[ADS PCM Max Cap]]-MAX(GeneratorListADSv2.1[[#This Row],[L&R Update Summer Cap]:[L&R Update Nameplate]]) -> 313 | H74: =GeneratorListADSv2.1[[#This Row],[MaxCap (MW)]] -> 451 | I74: =IF(GeneratorListADSv2.1[[#This Row],[Index in PF Table v7]]=0,0,INDEX(ADS32HS1PFv7[PMAX],GeneratorListADSv2.1[[#This Row],[Index in PF Table v7]])) -> 133 | J74: =IFERROR(IF(GeneratorListADSv2.1[[#This Row],[Index in L&R Update Mapping]]>0,1*INDEX(LnRUpdate[Summer Cap (MW)],GeneratorListADSv2.1[[#This Row],[Index in L&R Update Mapping]]),0),1*INDEX(LnRUpdate[L&R Nameplate (MW)],GeneratorListADSv2.1[[#This Row],[Index in L&R Update Mapping]])) -> 138 | K74: =IFERROR(IF(GeneratorListADSv2.1[[#This Row],[Index in L&R Update Mapping]]>0,1*INDEX(LnRUpdate[Winter Cap (MW)],GeneratorListADSv2.1[[#This Row],[Index in L&R Update Mapping]]),0),1*INDEX(LnRUpdate[L&R Nameplate (MW)],GeneratorListADSv2.1[[#This Row],[Index in L&R Update Mapping]])) -> 138 | L74: =IF(GeneratorListADSv2.1[[#This Row],[Index in L&R Update Mapping]]>0,1*INDEX(LnRUpdate[L&R Nameplate (MW)],GeneratorListADSv2.1[[#This Row],[Index in L&R Update Mapping]]),0) -> 138 | M74: =IFERROR(IF(GeneratorListADSv2.1[[#This Row],[Index in L&R Mapping]]>0,1*INDEX(MappingLandR[Summer Cap (MW)],GeneratorListADSv2.1[[#This Row],[Index in L&R Mapping]]),0),1*INDEX(MappingLandR[L&R Nameplate (MW)],GeneratorListADSv2.1[[#This Row],[Index in L&R Mapping]])) -> 138 | N74: =IFERROR(IF(GeneratorListADSv2.1[[#This Row],[Index in L&R Mapping]]>0,1*INDEX(MappingLandR[Winter Cap (MW)],GeneratorListADSv2.1[[#This Row],[Index in L&R Mapping]]),0),1*INDEX(MappingLandR[L&R Nameplate (MW)],GeneratorListADSv2.1[[#This Row],[Index in L&R Mapping]])) -> 138 | O74: =IF(GeneratorListADSv2.1[[#This Row],[Index in L&R Mapping]]>0,1*INDEX(MappingLandR[L&R Nameplate (MW)],GeneratorListADSv2.1[[#This Row],[Index in L&R Mapping]]),0) -> 138 | W74: =IFERROR(MATCH(GeneratorListADSv2.1[[#This Row],[Bus ID]],Buses32HS1[BUS-NO],0),0) -> 16046 | X74: =IFERROR(MATCH(GeneratorListADSv2.1[[#This Row],[Name]],LnRUpdate[2032 ADS PCM Generator Name],0),0) -> 3262 | Y74: =IFERROR(MATCH(GeneratorListADSv2.1[[#This Row],[Name]],MappingLandR[2032 ADS PCM Generator Name],0),0) -> 3262 | Z74: =IFERROR(MATCH(GeneratorListADSv2.1[[#This Row],[BusNo-UnitID]],ADS32HS1PFv7[BusNo-UnitID],0),0) -> 173 | AA74: =GeneratorListADSv2.1[[#This Row],[Bus ID]] & "_" & MID(GeneratorListADSv2.1[[#This Row],[Unit ID]],2,10) -> 56357_3 | AB74: =AND(GeneratorListADSv2.1[[#This Row],[Service Status]],GeneratorListADSv2.1[[#This Row],[Commission Date]]<DATEVALUE("1/1/2033"),GeneratorListADSv2.1[[#This Row],[Retirement Date]]>DATEVALUE("12/31/2031")) -> TRUE | AC74: =LEN(GeneratorListADSv2.1[[#This Row],[Name]]) -> 18 | AD74: 8044 | AE74: NovaJoffreCC-Total | AF74: 56357 | AG74: NOVA ST1 | AH74: 18 | AI74: '3 | AJ74: 4 | AK74: CC-AB-Cogen | AL74: AB-- | AM74: NovaJoffreCC (Total CC Plant) | AN74: TRUE | AO74: 1999-09-01 | AP74: 2050-12-31 | AQ74: Existing | AR74: AESO | AS74: AB_AESO | AT74: 352.8 | AU74: 451 | AV74: 0 | AW74: YES | AX74: AB | AY74: NA | AZ74: NA | BA74: NA | BB74: NG | BC74: N/A | BD74: FALSE | BE74: NA
D75: =IF(SUBTOTAL(103,GeneratorListADSv2.1[[#This Row],[Name]])=1,1,0) -> 0 | E75: =COUNTIF(GenDistnADSv2.1[Unit Name],GeneratorListADSv2.1[[#This Row],[Name]]) -> 2 | F75: =GeneratorListADSv2.1[[#This Row],[ADS PCM Max Cap]]-GeneratorListADSv2.1[[#This Row],[PF Pmax]] -> 305 | G75: =GeneratorListADSv2.1[[#This Row],[ADS PCM Max Cap]]-MAX(GeneratorListADSv2.1[[#This Row],[L&R Update Summer Cap]:[L&R Update Nameplate]]) -> 305 | H75: =GeneratorListADSv2.1[[#This Row],[MaxCap (MW)]] -> 305 | I75: =IF(GeneratorListADSv2.1[[#This Row],[Index in PF Table v7]]=0,0,INDEX(ADS32HS1PFv7[PMAX],GeneratorListADSv2.1[[#This Row],[Index in PF Table v7]])) -> 0 | J75: =IFERROR(IF(GeneratorListADSv2.1[[#This Row],[Index in L&R Update Mapping]]>0,1*INDEX(LnRUpdate[Summer Cap (MW)],GeneratorListADSv2.1[[#This Row],[Index in L&R Update Mapping]]),0),1*INDEX(LnRUpdate[L&R Nameplate (MW)],GeneratorListADSv2.1[[#This Row],[Index in L&R Update Mapping]])) -> 0 | K75: =IFERROR(IF(GeneratorListADSv2.1[[#This Row],[Index in L&R Update Mapping]]>0,1*INDEX(LnRUpdate[Winter Cap (MW)],GeneratorListADSv2.1[[#This Row],[Index in L&R Update Mapping]]),0),1*INDEX(LnRUpdate[L&R Nameplate (MW)],GeneratorListADSv2.1[[#This Row],[Index in L&R Update Mapping]])) -> 0 | L75: =IF(GeneratorListADSv2.1[[#This Row],[Index in L&R Update Mapping]]>0,1*INDEX(LnRUpdate[L&R Nameplate (MW)],GeneratorListADSv2.1[[#This Row],[Index in L&R Update Mapping]]),0) -> 0 | M75: =IFERROR(IF(GeneratorListADSv2.1[[#This Row],[Index in L&R Mapping]]>0,1*INDEX(MappingLandR[Summer Cap (MW)],GeneratorListADSv2.1[[#This Row],[Index in L&R Mapping]]),0),1*INDEX(MappingLandR[L&R Nameplate (MW)],GeneratorListADSv2.1[[#This Row],[Index in L&R Mapping]])) -> 0 | N75: =IFERROR(IF(GeneratorListADSv2.1[[#This Row],[Index in L&R Mapping]]>0,1*INDEX(MappingLandR[Winter Cap (MW)],GeneratorListADSv2.1[[#This Row],[Index in L&R Mapping]]),0),1*INDEX(MappingLandR[L&R Nameplate (MW)],GeneratorListADSv2.1[[#This Row],[Index in L&R Mapping]])) -> 0 | O75: =IF(GeneratorListADSv2.1[[#This Row],[Index in L&R Mapping]]>0,1*INDEX(MappingLandR[L&R Nameplate (MW)],GeneratorListADSv2.1[[#This Row],[Index in L&R Mapping]]),0) -> 0 | W75: =IFERROR(MATCH(GeneratorListADSv2.1[[#This Row],[Bus ID]],Buses32HS1[BUS-NO],0),0) -> 3020 | X75: =IFERROR(MATCH(GeneratorListADSv2.1[[#This Row],[Name]],LnRUpdate[2032 ADS PCM Generator Name],0),0) -> 0 | Y75: =IFERROR(MATCH(GeneratorListADSv2.1[[#This Row],[Name]],MappingLandR[2032 ADS PCM Generator Name],0),0) -> 0 | Z75: =IFERROR(MATCH(GeneratorListADSv2.1[[#This Row],[BusNo-UnitID]],ADS32HS1PFv7[BusNo-UnitID],0),0) -> 0 | AA75: =GeneratorListADSv2.1[[#This Row],[Bus ID]] & "_" & MID(GeneratorListADSv2.1[[#This Row],[Unit ID]],2,10) -> 22605_CC | AB75: =AND(GeneratorListADSv2.1[[#This Row],[Service Status]],GeneratorListADSv2.1[[#This Row],[Commission Date]]<DATEVALUE("1/1/2033"),GeneratorListADSv2.1[[#This Row],[Retirement Date]]>DATEVALUE("12/31/2031")) -> TRUE | AC75: =LEN(GeneratorListADSv2.1[[#This Row],[Name]]) -> 14 | AD75: 16030 | AE75: Otay Mesa CC1a | AF75: 22605 | AG75: OTAYMGT1 | AH75: 18 | AI75: 'CC | AJ75: 1 | AK75: CCWhole-NatGas-Industrial | AL75: CA-55345-AG | AM75: OtayMesaCC (Total CC Plant) | AN75: TRUE | AO75: 2009-10-02 | AP75: 2050-12-31 | AQ75: Existing | AR75: CISD | AS75: CA_CISO | AT75: 150 | AU75: 305 | AV75: 0 | AW75: YES | AX75: CA | AY75: NA | AZ75: NA | BA75: NA | BB75: NA | BC75: NA | BD75: FALSE | BE75: NA
D76: =IF(SUBTOTAL(103,GeneratorListADSv2.1[[#This Row],[Name]])=1,1,0) -> 0 | E76: =COUNTIF(GenDistnADSv2.1[Unit Name],GeneratorListADSv2.1[[#This Row],[Name]]) -> 2 | F76: =GeneratorListADSv2.1[[#This Row],[ADS PCM Max Cap]]-GeneratorListADSv2.1[[#This Row],[PF Pmax]] -> 305 | G76: =GeneratorListADSv2.1[[#This Row],[ADS PCM Max Cap]]-MAX(GeneratorListADSv2.1[[#This Row],[L&R Update Summer Cap]:[L&R Update Nameplate]]) -> 305 | H76: =GeneratorListADSv2.1[[#This Row],[MaxCap (MW)]] -> 305 | I76: =IF(GeneratorListADSv2.1[[#This Row],[Index in PF Table v7]]=0,0,INDEX(ADS32HS1PFv7[PMAX],GeneratorListADSv2.1[[#This Row],[Index in PF Table v7]])) -> 0 | J76: =IFERROR(IF(GeneratorListADSv2.1[[#This Row],[Index in L&R Update Mapping]]>0,1*INDEX(LnRUpdate[Summer Cap (MW)],GeneratorListADSv2.1[[#This Row],[Index in L&R Update Mapping]]),0),1*INDEX(LnRUpdate[L&R Nameplate (MW)],GeneratorListADSv2.1[[#This Row],[Index in L&R Update Mapping]])) -> 0 | K76: =IFERROR(IF(GeneratorListADSv2.1[[#This Row],[Index in L&R Update Mapping]]>0,1*INDEX(LnRUpdate[Winter Cap (MW)],GeneratorListADSv2.1[[#This Row],[Index in L&R Update Mapping]]),0),1*INDEX(LnRUpdate[L&R Nameplate (MW)],GeneratorListADSv2.1[[#This Row],[Index in L&R Update Mapping]])) -> 0 | L76: =IF(GeneratorListADSv2.1[[#This Row],[Index in L&R Update Mapping]]>0,1*INDEX(LnRUpdate[L&R Nameplate (MW)],GeneratorListADSv2.1[[#This Row],[Index in L&R Update Mapping]]),0) -> 0 | M76: =IFERROR(IF(GeneratorListADSv2.1[[#This Row],[Index in L&R Mapping]]>0,1*INDEX(MappingLandR[Summer Cap (MW)],GeneratorListADSv2.1[[#This Row],[Index in L&R Mapping]]),0),1*INDEX(MappingLandR[L&R Nameplate (MW)],GeneratorListADSv2.1[[#This Row],[Index in L&R Mapping]])) -> 0 | N76: =IFERROR(IF(GeneratorListADSv2.1[[#This Row],[Index in L&R Mapping]]>0,1*INDEX(MappingLandR[Winter Cap (MW)],GeneratorListADSv2.1[[#This Row],[Index in L&R Mapping]]),0),1*INDEX(MappingLandR[L&R Nameplate (MW)],GeneratorListADSv2.1[[#This Row],[Index in L&R Mapping]])) -> 0 | O76: =IF(GeneratorListADSv2.1[[#This Row],[Index in L&R Mapping]]>0,1*INDEX(MappingLandR[L&R Nameplate (MW)],GeneratorListADSv2.1[[#This Row],[Index in L&R Mapping]]),0) -> 0 | W76: =IFERROR(MATCH(GeneratorListADSv2.1[[#This Row],[Bus ID]],Buses32HS1[BUS-NO],0),0) -> 3021 | X76: =IFERROR(MATCH(GeneratorListADSv2.1[[#This Row],[Name]],LnRUpdate[2032 ADS PCM Generator Name],0),0) -> 0 | Y76: =IFERROR(MATCH(GeneratorListADSv2.1[[#This Row],[Name]],MappingLandR[2032 ADS PCM Generator Name],0),0) -> 0 | Z76: =IFERROR(MATCH(GeneratorListADSv2.1[[#This Row],[BusNo-UnitID]],ADS32HS1PFv7[BusNo-UnitID],0),0) -> 0 | AA76: =GeneratorListADSv2.1[[#This Row],[Bus ID]] & "_" & MID(GeneratorListADSv2.1[[#This Row],[Unit ID]],2,10) -> 22606_CC | AB76: =AND(GeneratorListADSv2.1[[#This Row],[Service Status]],GeneratorListADSv2.1[[#This Row],[Commission Date]]<DATEVALUE("1/1/2033"),GeneratorListADSv2.1[[#This Row],[Retirement Date]]>DATEVALUE("12/31/2031")) -> TRUE | AC76: =LEN(GeneratorListADSv2.1[[#This Row],[Name]]) -> 14 | AD76: 16031 | AE76: Otay Mesa CC1b | AF76: 22606 | AG76: OTAYMGT2 | AH76: 18 | AI76: 'CC | AJ76: 1 | AK76: CCWhole-NatGas-Industrial | AL76: CA-55345-AG | AM76: OtayMesaCC (Total CC Plant) | AN76: TRUE | AO76: 2009-10-02 | AP76: 2050-12-31 | AQ76: Existing | AR76: CISD | AS76: CA_CISO | AT76: 150 | AU76: 305 | AV76: 0 | AW76: YES | AX76: CA | AY76: NA | AZ76: NA | BA76: NA | BB76: NA | BC76: NA | BD76: FALSE | BE76: NA
D77: =IF(SUBTOTAL(103,GeneratorListADSv2.1[[#This Row],[Name]])=1,1,0) -> 0 | E77: =COUNTIF(GenDistnADSv2.1[Unit Name],GeneratorListADSv2.1[[#This Row],[Name]]) -> 2 | F77: =GeneratorListADSv2.1[[#This Row],[ADS PCM Max Cap]]-GeneratorListADSv2.1[[#This Row],[PF Pmax]] -> 302 | G77: =GeneratorListADSv2.1[[#This Row],[ADS PCM Max Cap]]-MAX(GeneratorListADSv2.1[[#This Row],[L&R Update Summer Cap]:[L&R Update Nameplate]]) -> 302 | H77: =GeneratorListADSv2.1[[#This Row],[MaxCap (MW)]] -> 302 | I77: =IF(GeneratorListADSv2.1[[#This Row],[Index in PF Table v7]]=0,0,INDEX(ADS32HS1PFv7[PMAX],GeneratorListADSv2.1[[#This Row],[Index in PF Table v7]])) -> 0 | J77: =IFERROR(IF(GeneratorListADSv2.1[[#This Row],[Index in L&R Update Mapping]]>0,1*INDEX(LnRUpdate[Summer Cap (MW)],GeneratorListADSv2.1[[#This Row],[Index in L&R Update Mapping]]),0),1*INDEX(LnRUpdate[L&R Nameplate (MW)],GeneratorListADSv2.1[[#This Row],[Index in L&R Update Mapping]])) -> 0 | K77: =IFERROR(IF(GeneratorListADSv2.1[[#This Row],[Index in L&R Update Mapping]]>0,1*INDEX(LnRUpdate[Winter Cap (MW)],GeneratorListADSv2.1[[#This Row],[Index in L&R Update Mapping]]),0),1*INDEX(LnRUpdate[L&R Nameplate (MW)],GeneratorListADSv2.1[[#This Row],[Index in L&R Update Mapping]])) -> 0 | L77: =IF(GeneratorListADSv2.1[[#This Row],[Index in L&R Update Mapping]]>0,1*INDEX(LnRUpdate[L&R Nameplate (MW)],GeneratorListADSv2.1[[#This Row],[Index in L&R Update Mapping]]),0) -> 0 | M77: =IFERROR(IF(GeneratorListADSv2.1[[#This Row],[Index in L&R Mapping]]>0,1*INDEX(MappingLandR[Summer Cap (MW)],GeneratorListADSv2.1[[#This Row],[Index in L&R Mapping]]),0),1*INDEX(MappingLandR[L&R Nameplate (MW)],GeneratorListADSv2.1[[#This Row],[Index in L&R Mapping]])) -> 0 | N77: =IFERROR(IF(GeneratorListADSv2.1[[#This Row],[Index in L&R Mapping]]>0,1*INDEX(MappingLandR[Winter Cap (MW)],GeneratorListADSv2.1[[#This Row],[Index in L&R Mapping]]),0),1*INDEX(MappingLandR[L&R Nameplate (MW)],GeneratorListADSv2.1[[#This Row],[Index in L&R Mapping]])) -> 0 | O77: =IF(GeneratorListADSv2.1[[#This Row],[Index in L&R Mapping]]>0,1*INDEX(MappingLandR[L&R Nameplate (MW)],GeneratorListADSv2.1[[#This Row],[Index in L&R Mapping]]),0) -> 0 | W77: =IFERROR(MATCH(GeneratorListADSv2.1[[#This Row],[Bus ID]],Buses32HS1[BUS-NO],0),0) -> 6756 | X77: =IFERROR(MATCH(GeneratorListADSv2.1[[#This Row],[Name]],LnRUpdate[2032 ADS PCM Generator Name],0),0) -> 0 | Y77: =IFERROR(MATCH(GeneratorListADSv2.1[[#This Row],[Name]],MappingLandR[2032 ADS PCM Generator Name],0),0) -> 0 | Z77: =IFERROR(MATCH(GeneratorListADSv2.1[[#This Row],[BusNo-UnitID]],ADS32HS1PFv7[BusNo-UnitID],0),0) -> 0 | AA77: =GeneratorListADSv2.1[[#This Row],[Bus ID]] & "_" & MID(GeneratorListADSv2.1[[#This Row],[Unit ID]],2,10) -> 33112_CC | AB77: =AND(GeneratorListADSv2.1[[#This Row],[Service Status]],GeneratorListADSv2.1[[#This Row],[Commission Date]]<DATEVALUE("1/1/2033"),GeneratorListADSv2.1[[#This Row],[Retirement Date]]>DATEVALUE("12/31/2031")) -> TRUE | AC77: =LEN(GeneratorListADSv2.1[[#This Row],[Name]]) -> 19 | AD77: 16002 | AE77: Los Medanos EC CC1a | AF77: 33112 | AG77: LMECCT1 | AH77: 18 | AI77: 'CC | AJ77: 1 | AK77: CCWhole-NatGas-Industrial | AL77: CA-55217-AG | AM77: LosMedanosCC (Total CC Plant) | AN77: TRUE | AO77: 2001-06-09 | AP77: 2050-12-31 | AQ77: Existing | AR77: CIPB | AS77: CA_CISO | AT77: 140.69 | AU77: 302 | AV77: 0 | AW77: YES | AX77: CA | AY77: NA | AZ77: NA | BA77: NA | BB77: NA | BC77: NA | BD77: FALSE | BE77: NA
D78: =IF(SUBTOTAL(103,GeneratorListADSv2.1[[#This Row],[Name]])=1,1,0) -> 0 | E78: =COUNTIF(GenDistnADSv2.1[Unit Name],GeneratorListADSv2.1[[#This Row],[Name]]) -> 2 | F78: =GeneratorListADSv2.1[[#This Row],[ADS PCM Max Cap]]-GeneratorListADSv2.1[[#This Row],[PF Pmax]] -> 302 | G78: =GeneratorListADSv2.1[[#This Row],[ADS PCM Max Cap]]-MAX(GeneratorListADSv2.1[[#This Row],[L&R Update Summer Cap]:[L&R Update Nameplate]]) -> 302 | H78: =GeneratorListADSv2.1[[#This Row],[MaxCap (MW)]] -> 302 | I78: =IF(GeneratorListADSv2.1[[#This Row],[Index in PF Table v7]]=0,0,INDEX(ADS32HS1PFv7[PMAX],GeneratorListADSv2.1[[#This Row],[Index in PF Table v7]])) -> 0 | J78: =IFERROR(IF(GeneratorListADSv2.1[[#This Row],[Index in L&R Update Mapping]]>0,1*INDEX(LnRUpdate[Summer Cap (MW)],GeneratorListADSv2.1[[#This Row],[Index in L&R Update Mapping]]),0),1*INDEX(LnRUpdate[L&R Nameplate (MW)],GeneratorListADSv2.1[[#This Row],[Index in L&R Update Mapping]])) -> 0 | K78: =IFERROR(IF(GeneratorListADSv2.1[[#This Row],[Index in L&R Update Mapping]]>0,1*INDEX(LnRUpdate[Winter Cap (MW)],GeneratorListADSv2.1[[#This Row],[Index in L&R Update Mapping]]),0),1*INDEX(LnRUpdate[L&R Nameplate (MW)],GeneratorListADSv2.1[[#This Row],[Index in L&R Update Mapping]])) -> 0 | L78: =IF(GeneratorListADSv2.1[[#This Row],[Index in L&R Update Mapping]]>0,1*INDEX(LnRUpdate[L&R Nameplate (MW)],GeneratorListADSv2.1[[#This Row],[Index in L&R Update Mapping]]),0) -> 0 | M78: =IFERROR(IF(GeneratorListADSv2.1[[#This Row],[Index in L&R Mapping]]>0,1*INDEX(MappingLandR[Summer Cap (MW)],GeneratorListADSv2.1[[#This Row],[Index in L&R Mapping]]),0),1*INDEX(MappingLandR[L&R Nameplate (MW)],GeneratorListADSv2.1[[#This Row],[Index in L&R Mapping]])) -> 0 | N78: =IFERROR(IF(GeneratorListADSv2.1[[#This Row],[Index in L&R Mapping]]>0,1*INDEX(MappingLandR[Winter Cap (MW)],GeneratorListADSv2.1[[#This Row],[Index in L&R Mapping]]),0),1*INDEX(MappingLandR[L&R Nameplate (MW)],GeneratorListADSv2.1[[#This Row],[Index in L&R Mapping]])) -> 0 | O78: =IF(GeneratorListADSv2.1[[#This Row],[Index in L&R Mapping]]>0,1*INDEX(MappingLandR[L&R Nameplate (MW)],GeneratorListADSv2.1[[#This Row],[Index in L&R Mapping]]),0) -> 0 | W78: =IFERROR(MATCH(GeneratorListADSv2.1[[#This Row],[Bus ID]],Buses32HS1[BUS-NO],0),0) -> 6755 | X78: =IFERROR(MATCH(GeneratorListADSv2.1[[#This Row],[Name]],LnRUpdate[2032 ADS PCM Generator Name],0),0) -> 0 | Y78: =IFERROR(MATCH(GeneratorListADSv2.1[[#This Row],[Name]],MappingLandR[2032 ADS PCM Generator Name],0),0) -> 0 | Z78: =IFERROR(MATCH(GeneratorListADSv2.1[[#This Row],[BusNo-UnitID]],ADS32HS1PFv7[BusNo-UnitID],0),0) -> 0 | AA78: =GeneratorListADSv2.1[[#This Row],[Bus ID]] & "_" & MID(GeneratorListADSv2.1[[#This Row],[Unit ID]],2,10) -> 33111_CC | AB78: =AND(GeneratorListADSv2.1[[#This Row],[Service Status]],GeneratorListADSv2.1[[#This Row],[Commission Date]]<DATEVALUE("1/1/2033"),GeneratorListADSv2.1[[#This Row],[Retirement Date]]>DATEVALUE("12/31/2031")) -> TRUE | AC78: =LEN(GeneratorListADSv2.1[[#This Row],[Name]]) -> 19 | AD78: 16003 | AE78: Los Medanos EC CC1b | AF78: 33111 | AG78: LMECCT2 | AH78: 18 | AI78: 'CC | AJ78: 1 | AK78: CCWhole-NatGas-Industrial | AL78: CA-55217-AG | AM78: LosMedanosCC (Total CC Plant) | AN78: TRUE | AO78: 2001-06-09 | AP78: 2050-12-31 | AQ78: Existing | AR78: CIPB | AS78: CA_CISO | AT78: 140.69 | AU78: 302 | AV78: 0 | AW78: YES | AX78: CA | AY78: NA | AZ78: NA | BA78: NA | BB78: NA | BC78: NA | BD78: FALSE | BE78: NA
D79: =IF(SUBTOTAL(103,GeneratorListADSv2.1[[#This Row],[Name]])=1,1,0) -> 0 | E79: =COUNTIF(GenDistnADSv2.1[Unit Name],GeneratorListADSv2.1[[#This Row],[Name]]) -> 35 | F79: =GeneratorListADSv2.1[[#This Row],[ADS PCM Max Cap]]-GeneratorListADSv2.1[[#This Row],[PF Pmax]] -> 299.0148 | G79: =GeneratorListADSv2.1[[#This Row],[ADS PCM Max Cap]]-MAX(GeneratorListADSv2.1[[#This Row],[L&R Update Summer Cap]:[L&R Update Nameplate]]) -> 299.0148 | H79: =GeneratorListADSv2.1[[#This Row],[MaxCap (MW)]] -> 299.0148 | I79: =IF(GeneratorListADSv2.1[[#This Row],[Index in PF Table v7]]=0,0,INDEX(ADS32HS1PFv7[PMAX],GeneratorListADSv2.1[[#This Row],[Index in PF Table v7]])) -> 0 | J79: =IFERROR(IF(GeneratorListADSv2.1[[#This Row],[Index in L&R Update Mapping]]>0,1*INDEX(LnRUpdate[Summer Cap (MW)],GeneratorListADSv2.1[[#This Row],[Index in L&R Update Mapping]]),0),1*INDEX(LnRUpdate[L&R Nameplate (MW)],GeneratorListADSv2.1[[#This Row],[Index in L&R Update Mapping]])) -> 0 | K79: =IFERROR(IF(GeneratorListADSv2.1[[#This Row],[Index in L&R Update Mapping]]>0,1*INDEX(LnRUpdate[Winter Cap (MW)],GeneratorListADSv2.1[[#This Row],[Index in L&R Update Mapping]]),0),1*INDEX(LnRUpdate[L&R Nameplate (MW)],GeneratorListADSv2.1[[#This Row],[Index in L&R Update Mapping]])) -> 0 | L79: =IF(GeneratorListADSv2.1[[#This Row],[Index in L&R Update Mapping]]>0,1*INDEX(LnRUpdate[L&R Nameplate (MW)],GeneratorListADSv2.1[[#This Row],[Index in L&R Update Mapping]]),0) -> 0 | M79: =IFERROR(IF(GeneratorListADSv2.1[[#This Row],[Index in L&R Mapping]]>0,1*INDEX(MappingLandR[Summer Cap (MW)],GeneratorListADSv2.1[[#This Row],[Index in L&R Mapping]]),0),1*INDEX(MappingLandR[L&R Nameplate (MW)],GeneratorListADSv2.1[[#This Row],[Index in L&R Mapping]])) -> 0 | N79: =IFERROR(IF(GeneratorListADSv2.1[[#This Row],[Index in L&R Mapping]]>0,1*INDEX(MappingLandR[Winter Cap (MW)],GeneratorListADSv2.1[[#This Row],[Index in L&R Mapping]]),0),1*INDEX(MappingLandR[L&R Nameplate (MW)],GeneratorListADSv2.1[[#This Row],[Index in L&R Mapping]])) -> 0 | O79: =IF(GeneratorListADSv2.1[[#This Row],[Index in L&R Mapping]]>0,1*INDEX(MappingLandR[L&R Nameplate (MW)],GeneratorListADSv2.1[[#This Row],[Index in L&R Mapping]]),0) -> 0 | W79: =IFERROR(MATCH(GeneratorListADSv2.1[[#This Row],[Bus ID]],Buses32HS1[BUS-NO],0),0) -> 23123 | X79: =IFERROR(MATCH(GeneratorListADSv2.1[[#This Row],[Name]],LnRUpdate[2032 ADS PCM Generator Name],0),0) -> 0 | Y79: =IFERROR(MATCH(GeneratorListADSv2.1[[#This Row],[Name]],MappingLandR[2032 ADS PCM Generator Name],0),0) -> 0 | Z79: =IFERROR(MATCH(GeneratorListADSv2.1[[#This Row],[BusNo-UnitID]],ADS32HS1PFv7[BusNo-UnitID],0),0) -> 0 | AA79: =GeneratorListADSv2.1[[#This Row],[Bus ID]] & "_" & MID(GeneratorListADSv2.1[[#This Row],[Unit ID]],2,10) -> 85637_W9 | AB79: =AND(GeneratorListADSv2.1[[#This Row],[Service Status]],GeneratorListADSv2.1[[#This Row],[Commission Date]]<DATEVALUE("1/1/2033"),GeneratorListADSv2.1[[#This Row],[Retirement Date]]>DATEVALUE("12/31/2031")) -> TRUE | AC79: =LEN(GeneratorListADSv2.1[[#This Row],[Name]]) -> 22 | AD79: 18615 | AE79: DG-BTM_AZPS_AZ_Yavapai | AF79: 85637 | AG79: SUNDOG11 | AH79: 12.5 | AI79: 'W9 | AJ79: 4 | AK79: DG-BTM | AL79: G0-- | AM79: DG-BTM_AZPS_AZ_Yavapai | AN79: TRUE | AO79: 2023-04-15 | AP79: 2050-01-01 | AQ79: Future-Conceptual | AR79: AZPS | AS79: SW_AZPS | AT79: 0 | AU79: 299.0148 | AV79: 0 | AW79: YES | AX79: ID | AY79: NA | AZ79: NA | BA79: NA | BB79: Solar | BC79: N/A | BD79: TRUE | BE79: NA
D80: =IF(SUBTOTAL(103,GeneratorListADSv2.1[[#This Row],[Name]])=1,1,0) -> 0 | E80: =COUNTIF(GenDistnADSv2.1[Unit Name],GeneratorListADSv2.1[[#This Row],[Name]]) -> 2 | F80: =GeneratorListADSv2.1[[#This Row],[ADS PCM Max Cap]]-GeneratorListADSv2.1[[#This Row],[PF Pmax]] -> 298 | G80: =GeneratorListADSv2.1[[#This Row],[ADS PCM Max Cap]]-MAX(GeneratorListADSv2.1[[#This Row],[L&R Update Summer Cap]:[L&R Update Nameplate]]) -> 298 | H80: =GeneratorListADSv2.1[[#This Row],[MaxCap (MW)]] -> 298 | I80: =IF(GeneratorListADSv2.1[[#This Row],[Index in PF Table v7]]=0,0,INDEX(ADS32HS1PFv7[PMAX],GeneratorListADSv2.1[[#This Row],[Index in PF Table v7]])) -> 0 | J80: =IFERROR(IF(GeneratorListADSv2.1[[#This Row],[Index in L&R Update Mapping]]>0,1*INDEX(LnRUpdate[Summer Cap (MW)],GeneratorListADSv2.1[[#This Row],[Index in L&R Update Mapping]]),0),1*INDEX(LnRUpdate[L&R Nameplate (MW)],GeneratorListADSv2.1[[#This Row],[Index in L&R Update Mapping]])) -> 0 | K80: =IFERROR(IF(GeneratorListADSv2.1[[#This Row],[Index in L&R Update Mapping]]>0,1*INDEX(LnRUpdate[Winter Cap (MW)],GeneratorListADSv2.1[[#This Row],[Index in L&R Update Mapping]]),0),1*INDEX(LnRUpdate[L&R Nameplate (MW)],GeneratorListADSv2.1[[#This Row],[Index in L&R Update Mapping]])) -> 0 | L80: =IF(GeneratorListADSv2.1[[#This Row],[Index in L&R Update Mapping]]>0,1*INDEX(LnRUpdate[L&R Nameplate (MW)],GeneratorListADSv2.1[[#This Row],[Index in L&R Update Mapping]]),0) -> 0 | M80: =IFERROR(IF(GeneratorListADSv2.1[[#This Row],[Index in L&R Mapping]]>0,1*INDEX(MappingLandR[Summer Cap (MW)],GeneratorListADSv2.1[[#This Row],[Index in L&R Mapping]]),0),1*INDEX(MappingLandR[L&R Nameplate (MW)],GeneratorListADSv2.1[[#This Row],[Index in L&R Mapping]])) -> 0 | N80: =IFERROR(IF(GeneratorListADSv2.1[[#This Row],[Index in L&R Mapping]]>0,1*INDEX(MappingLandR[Winter Cap (MW)],GeneratorListADSv2.1[[#This Row],[Index in L&R Mapping]]),0),1*INDEX(MappingLandR[L&R Nameplate (MW)],GeneratorListADSv2.1[[#This Row],[Index in L&R Mapping]])) -> 0 | O80: =IF(GeneratorListADSv2.1[[#This Row],[Index in L&R Mapping]]>0,1*INDEX(MappingLandR[L&R Nameplate (MW)],GeneratorListADSv2.1[[#This Row],[Index in L&R Mapping]]),0) -> 0 | W80: =IFERROR(MATCH(GeneratorListADSv2.1[[#This Row],[Bus ID]],Buses32HS1[BUS-NO],0),0) -> 8156 | X80: =IFERROR(MATCH(GeneratorListADSv2.1[[#This Row],[Name]],LnRUpdate[2032 ADS PCM Generator Name],0),0) -> 0 | Y80: =IFERROR(MATCH(GeneratorListADSv2.1[[#This Row],[Name]],MappingLandR[2032 ADS PCM Generator Name],0),0) -> 0 | Z80: =IFERROR(MATCH(GeneratorListADSv2.1[[#This Row],[BusNo-UnitID]],ADS32HS1PFv7[BusNo-UnitID],0),0) -> 0 | AA80: =GeneratorListADSv2.1[[#This Row],[Bus ID]] & "_" & MID(GeneratorListADSv2.1[[#This Row],[Unit ID]],2,10) -> 35881_CC | AB80: =AND(GeneratorListADSv2.1[[#This Row],[Service Status]],GeneratorListADSv2.1[[#This Row],[Commission Date]]<DATEVALUE("1/1/2033"),GeneratorListADSv2.1[[#This Row],[Retirement Date]]>DATEVALUE("12/31/2031")) -> TRUE | AC80: =LEN(GeneratorListADSv2.1[[#This Row],[Name]]) -> 12 | AD80: 16012 | AE80: Metcalf CC1a | AF80: 35881 | AG80: MEC CTG1 | AH80: 18 | AI80: 'CC | AJ80: 1 | AK80: CCWhole-NatGas-Industrial | AL80: CA-55393-AG | AM80: MetcalfEnergyCC (Total CC Plant) | AN80: TRUE | AO80: 2005-05-27 | AP80: 2050-12-31 | AQ80: Existing | AR80: CIPB | AS80: CA_CISO | AT80: 146.658 | AU80: 298 | AV80: 0 | AW80: YES | AX80: CA | AY80: NA | AZ80: NA | BA80: NA | BB80: NA | BC80: NA | BD80: FALSE | BE80: NA
D81: =IF(SUBTOTAL(103,GeneratorListADSv2.1[[#This Row],[Name]])=1,1,0) -> 0 | E81: =COUNTIF(GenDistnADSv2.1[Unit Name],GeneratorListADSv2.1[[#This Row],[Name]]) -> 2 | F81: =GeneratorListADSv2.1[[#This Row],[ADS PCM Max Cap]]-GeneratorListADSv2.1[[#This Row],[PF Pmax]] -> 297.5 | G81: =GeneratorListADSv2.1[[#This Row],[ADS PCM Max Cap]]-MAX(GeneratorListADSv2.1[[#This Row],[L&R Update Summer Cap]:[L&R Update Nameplate]]) -> 297.5 | H81: =GeneratorListADSv2.1[[#This Row],[MaxCap (MW)]] -> 297.5 | I81: =IF(GeneratorListADSv2.1[[#This Row],[Index in PF Table v7]]=0,0,INDEX(ADS32HS1PFv7[PMAX],GeneratorListADSv2.1[[#This Row],[Index in PF Table v7]])) -> 0 | J81: =IFERROR(IF(GeneratorListADSv2.1[[#This Row],[Index in L&R Update Mapping]]>0,1*INDEX(LnRUpdate[Summer Cap (MW)],GeneratorListADSv2.1[[#This Row],[Index in L&R Update Mapping]]),0),1*INDEX(LnRUpdate[L&R Nameplate (MW)],GeneratorListADSv2.1[[#This Row],[Index in L&R Update Mapping]])) -> 0 | K81: =IFERROR(IF(GeneratorListADSv2.1[[#This Row],[Index in L&R Update Mapping]]>0,1*INDEX(LnRUpdate[Winter Cap (MW)],GeneratorListADSv2.1[[#This Row],[Index in L&R Update Mapping]]),0),1*INDEX(LnRUpdate[L&R Nameplate (MW)],GeneratorListADSv2.1[[#This Row],[Index in L&R Update Mapping]])) -> 0 | L81: =IF(GeneratorListADSv2.1[[#This Row],[Index in L&R Update Mapping]]>0,1*INDEX(LnRUpdate[L&R Nameplate (MW)],GeneratorListADSv2.1[[#This Row],[Index in L&R Update Mapping]]),0) -> 0 | M81: =IFERROR(IF(GeneratorListADSv2.1[[#This Row],[Index in L&R Mapping]]>0,1*INDEX(MappingLandR[Summer Cap (MW)],GeneratorListADSv2.1[[#This Row],[Index in L&R Mapping]]),0),1*INDEX(MappingLandR[L&R Nameplate (MW)],GeneratorListADSv2.1[[#This Row],[Index in L&R Mapping]])) -> 0 | N81: =IFERROR(IF(GeneratorListADSv2.1[[#This Row],[Index in L&R Mapping]]>0,1*INDEX(MappingLandR[Winter Cap (MW)],GeneratorListADSv2.1[[#This Row],[Index in L&R Mapping]]),0),1*INDEX(MappingLandR[L&R Nameplate (MW)],GeneratorListADSv2.1[[#This Row],[Index in L&R Mapping]])) -> 0 | O81: =IF(GeneratorListADSv2.1[[#This Row],[Index in L&R Mapping]]>0,1*INDEX(MappingLandR[L&R Nameplate (MW)],GeneratorListADSv2.1[[#This Row],[Index in L&R Mapping]]),0) -> 0 | W81: =IFERROR(MATCH(GeneratorListADSv2.1[[#This Row],[Bus ID]],Buses32HS1[BUS-NO],0),0) -> 7962 | X81: =IFERROR(MATCH(GeneratorListADSv2.1[[#This Row],[Name]],LnRUpdate[2032 ADS PCM Generator Name],0),0) -> 0 | Y81: =IFERROR(MATCH(GeneratorListADSv2.1[[#This Row],[Name]],MappingLandR[2032 ADS PCM Generator Name],0),0) -> 0 | Z81: =IFERROR(MATCH(GeneratorListADSv2.1[[#This Row],[BusNo-UnitID]],ADS32HS1PFv7[BusNo-UnitID],0),0) -> 0 | AA81: =GeneratorListADSv2.1[[#This Row],[Bus ID]] & "_" & MID(GeneratorListADSv2.1[[#This Row],[Unit ID]],2,10) -> 35074_CC | AB81: =AND(GeneratorListADSv2.1[[#This Row],[Service Status]],GeneratorListADSv2.1[[#This Row],[Commission Date]]<DATEVALUE("1/1/2033"),GeneratorListADSv2.1[[#This Row],[Retirement Date]]>DATEVALUE("12/31/2031")) -> TRUE | AC81: =LEN(GeneratorListADSv2.1[[#This Row],[Name]]) -> 12 | AD81: 16058 | AE81: Sunrise CC1a | AF81: 35074 | AG81: TEXSUN1G | AH81: 18 | AI81: 'CC | AJ81: 1 | AK81: CCWhole-NatGas-Industrial | AL81: CA-55182-AG | AM81: SunriseCC (Total CC Plant) | AN81: TRUE | AO81: 2001-06-07 | AP81: 2050-12-31 | AQ81: Existing | AR81: CIPV | AS81: CA_CISO | AT81: 127.903 | AU81: 297.5 | AV81: 0 | AW81: YES | AX81: CA | AY81: NA | AZ81: NA | BA81: NA | BB81: NA | BC81: NA | BD81: FALSE | BE81: NA
D82: =IF(SUBTOTAL(103,GeneratorListADSv2.1[[#This Row],[Name]])=1,1,0) -> 0 | E82: =COUNTIF(GenDistnADSv2.1[Unit Name],GeneratorListADSv2.1[[#This Row],[Name]]) -> 2 | F82: =GeneratorListADSv2.1[[#This Row],[ADS PCM Max Cap]]-GeneratorListADSv2.1[[#This Row],[PF Pmax]] -> 297.5 | G82: =GeneratorListADSv2.1[[#This Row],[ADS PCM Max Cap]]-MAX(GeneratorListADSv2.1[[#This Row],[L&R Update Summer Cap]:[L&R Update Nameplate]]) -> 297.5 | H82: =GeneratorListADSv2.1[[#This Row],[MaxCap (MW)]] -> 297.5 | I82: =IF(GeneratorListADSv2.1[[#This Row],[Index in PF Table v7]]=0,0,INDEX(ADS32HS1PFv7[PMAX],GeneratorListADSv2.1[[#This Row],[Index in PF Table v7]])) -> 0 | J82: =IFERROR(IF(GeneratorListADSv2.1[[#This Row],[Index in L&R Update Mapping]]>0,1*INDEX(LnRUpdate[Summer Cap (MW)],GeneratorListADSv2.1[[#This Row],[Index in L&R Update Mapping]]),0),1*INDEX(LnRUpdate[L&R Nameplate (MW)],GeneratorListADSv2.1[[#This Row],[Index in L&R Update Mapping]])) -> 0 | K82: =IFERROR(IF(GeneratorListADSv2.1[[#This Row],[Index in L&R Update Mapping]]>0,1*INDEX(LnRUpdate[Winter Cap (MW)],GeneratorListADSv2.1[[#This Row],[Index in L&R Update Mapping]]),0),1*INDEX(LnRUpdate[L&R Nameplate (MW)],GeneratorListADSv2.1[[#This Row],[Index in L&R Update Mapping]])) -> 0 | L82: =IF(GeneratorListADSv2.1[[#This Row],[Index in L&R Update Mapping]]>0,1*INDEX(LnRUpdate[L&R Nameplate (MW)],GeneratorListADSv2.1[[#This Row],[Index in L&R Update Mapping]]),0) -> 0 | M82: =IFERROR(IF(GeneratorListADSv2.1[[#This Row],[Index in L&R Mapping]]>0,1*INDEX(MappingLandR[Summer Cap (MW)],GeneratorListADSv2.1[[#This Row],[Index in L&R Mapping]]),0),1*INDEX(MappingLandR[L&R Nameplate (MW)],GeneratorListADSv2.1[[#This Row],[Index in L&R Mapping]])) -> 0 | N82: =IFERROR(IF(GeneratorListADSv2.1[[#This Row],[Index in L&R Mapping]]>0,1*INDEX(MappingLandR[Winter Cap (MW)],GeneratorListADSv2.1[[#This Row],[Index in L&R Mapping]]),0),1*INDEX(MappingLandR[L&R Nameplate (MW)],GeneratorListADSv2.1[[#This Row],[Index in L&R Mapping]])) -> 0 | O82: =IF(GeneratorListADSv2.1[[#This Row],[Index in L&R Mapping]]>0,1*INDEX(MappingLandR[L&R Nameplate (MW)],GeneratorListADSv2.1[[#This Row],[Index in L&R Mapping]]),0) -> 0 | W82: =IFERROR(MATCH(GeneratorListADSv2.1[[#This Row],[Bus ID]],Buses32HS1[BUS-NO],0),0) -> 7963 | X82: =IFERROR(MATCH(GeneratorListADSv2.1[[#This Row],[Name]],LnRUpdate[2032 ADS PCM Generator Name],0),0) -> 0 | Y82: =IFERROR(MATCH(GeneratorListADSv2.1[[#This Row],[Name]],MappingLandR[2032 ADS PCM Generator Name],0),0) -> 0 | Z82: =IFERROR(MATCH(GeneratorListADSv2.1[[#This Row],[BusNo-UnitID]],ADS32HS1PFv7[BusNo-UnitID],0),0) -> 0 | AA82: =GeneratorListADSv2.1[[#This Row],[Bus ID]] & "_" & MID(GeneratorListADSv2.1[[#This Row],[Unit ID]],2,10) -> 35075_CC | AB82: =AND(GeneratorListADSv2.1[[#This Row],[Service Status]],GeneratorListADSv2.1[[#This Row],[Commission Date]]<DATEVALUE("1/1/2033"),GeneratorListADSv2.1[[#This Row],[Retirement Date]]>DATEVALUE("12/31/2031")) -> TRUE | AC82: =LEN(GeneratorListADSv2.1[[#This Row],[Name]]) -> 12 | AD82: 16059 | AE82: Sunrise CC1b | AF82: 35075 | AG82: TEXSUN2G | AH82: 18 | AI82: 'CC | AJ82: 1 | AK82: CCWhole-NatGas-Industrial | AL82: CA-55182-AG | AM82: SunriseCC (Total CC Plant) | AN82: TRUE | AO82: 2001-06-07 | AP82: 2050-12-31 | AQ82: Existing | AR82: CIPV | AS82: CA_CISO | AT82: 127.903 | AU82: 297.5 | AV82: 0 | AW82: YES | AX82: CA | AY82: NA | AZ82: NA | BA82: NA | BB82: NA | BC82: NA | BD82: FALSE | BE82: NA
D83: =IF(SUBTOTAL(103,GeneratorListADSv2.1[[#This Row],[Name]])=1,1,0) -> 0 | E83: =COUNTIF(GenDistnADSv2.1[Unit Name],GeneratorListADSv2.1[[#This Row],[Name]]) -> 2 | F83: =GeneratorListADSv2.1[[#This Row],[ADS PCM Max Cap]]-GeneratorListADSv2.1[[#This Row],[PF Pmax]] -> 295 | G83: =GeneratorListADSv2.1[[#This Row],[ADS PCM Max Cap]]-MAX(GeneratorListADSv2.1[[#This Row],[L&R Update Summer Cap]:[L&R Update Nameplate]]) -> 295 | H83: =GeneratorListADSv2.1[[#This Row],[MaxCap (MW)]] -> 295 | I83: =IF(GeneratorListADSv2.1[[#This Row],[Index in PF Table v7]]=0,0,INDEX(ADS32HS1PFv7[PMAX],GeneratorListADSv2.1[[#This Row],[Index in PF Table v7]])) -> 0 | J83: =IFERROR(IF(GeneratorListADSv2.1[[#This Row],[Index in L&R Update Mapping]]>0,1*INDEX(LnRUpdate[Summer Cap (MW)],GeneratorListADSv2.1[[#This Row],[Index in L&R Update Mapping]]),0),1*INDEX(LnRUpdate[L&R Nameplate (MW)],GeneratorListADSv2.1[[#This Row],[Index in L&R Update Mapping]])) -> 0 | K83: =IFERROR(IF(GeneratorListADSv2.1[[#This Row],[Index in L&R Update Mapping]]>0,1*INDEX(LnRUpdate[Winter Cap (MW)],GeneratorListADSv2.1[[#This Row],[Index in L&R Update Mapping]]),0),1*INDEX(LnRUpdate[L&R Nameplate (MW)],GeneratorListADSv2.1[[#This Row],[Index in L&R Update Mapping]])) -> 0 | L83: =IF(GeneratorListADSv2.1[[#This Row],[Index in L&R Update Mapping]]>0,1*INDEX(LnRUpdate[L&R Nameplate (MW)],GeneratorListADSv2.1[[#This Row],[Index in L&R Update Mapping]]),0) -> 0 | M83: =IFERROR(IF(GeneratorListADSv2.1[[#This Row],[Index in L&R Mapping]]>0,1*INDEX(MappingLandR[Summer Cap (MW)],GeneratorListADSv2.1[[#This Row],[Index in L&R Mapping]]),0),1*INDEX(MappingLandR[L&R Nameplate (MW)],GeneratorListADSv2.1[[#This Row],[Index in L&R Mapping]])) -> 0 | N83: =IFERROR(IF(GeneratorListADSv2.1[[#This Row],[Index in L&R Mapping]]>0,1*INDEX(MappingLandR[Winter Cap (MW)],GeneratorListADSv2.1[[#This Row],[Index in L&R Mapping]]),0),1*INDEX(MappingLandR[L&R Nameplate (MW)],GeneratorListADSv2.1[[#This Row],[Index in L&R Mapping]])) -> 0 | O83: =IF(GeneratorListADSv2.1[[#This Row],[Index in L&R Mapping]]>0,1*INDEX(MappingLandR[L&R Nameplate (MW)],GeneratorListADSv2.1[[#This Row],[Index in L&R Mapping]]),0) -> 0 | W83: =IFERROR(MATCH(GeneratorListADSv2.1[[#This Row],[Bus ID]],Buses32HS1[BUS-NO],0),0) -> 6758 | X83: =IFERROR(MATCH(GeneratorListADSv2.1[[#This Row],[Name]],LnRUpdate[2032 ADS PCM Generator Name],0),0) -> 0 | Y83: =IFERROR(MATCH(GeneratorListADSv2.1[[#This Row],[Name]],MappingLandR[2032 ADS PCM Generator Name],0),0) -> 0 | Z83: =IFERROR(MATCH(GeneratorListADSv2.1[[#This Row],[BusNo-UnitID]],ADS32HS1PFv7[BusNo-UnitID],0),0) -> 0 | AA83: =GeneratorListADSv2.1[[#This Row],[Bus ID]] & "_" & MID(GeneratorListADSv2.1[[#This Row],[Unit ID]],2,10) -> 33118_CC | AB83: =AND(GeneratorListADSv2.1[[#This Row],[Service Status]],GeneratorListADSv2.1[[#This Row],[Commission Date]]<DATEVALUE("1/1/2033"),GeneratorListADSv2.1[[#This Row],[Retirement Date]]>DATEVALUE("12/31/2031")) -> TRUE | AC83: =LEN(GeneratorListADSv2.1[[#This Row],[Name]]) -> 12 | AD83: 15950 | AE83: Gateway CC1a | AF83: 33118 | AG83: GATEWAY1 | AH83: 18 | AI83: 'CC | AJ83: 1 | AK83: CCWhole-NatGas-Industrial | AL83: CA-56476-AG | AM83: GatewayCC (Total CC Plant) | AN83: TRUE | AO83: 2009-01-06 | AP83: 2050-12-31 | AQ83: Existing | AR83: CIPB | AS83: CA_CISO | AT83: 150.92 | AU83: 295 | AV83: 0 | AW83: YES | AX83: CA | AY83: NA | AZ83: NA | BA83: NA | BB83: NA | BC83: NA | BD83: FALSE | BE83: NA
D84: =IF(SUBTOTAL(103,GeneratorListADSv2.1[[#This Row],[Name]])=1,1,0) -> 0 | E84: =COUNTIF(GenDistnADSv2.1[Unit Name],GeneratorListADSv2.1[[#This Row],[Name]]) -> 2 | F84: =GeneratorListADSv2.1[[#This Row],[ADS PCM Max Cap]]-GeneratorListADSv2.1[[#This Row],[PF Pmax]] -> 295 | G84: =GeneratorListADSv2.1[[#This Row],[ADS PCM Max Cap]]-MAX(GeneratorListADSv2.1[[#This Row],[L&R Update Summer Cap]:[L&R Update Nameplate]]) -> 295 | H84: =GeneratorListADSv2.1[[#This Row],[MaxCap (MW)]] -> 295 | I84: =IF(GeneratorListADSv2.1[[#This Row],[Index in PF Table v7]]=0,0,INDEX(ADS32HS1PFv7[PMAX],GeneratorListADSv2.1[[#This Row],[Index in PF Table v7]])) -> 0 | J84: =IFERROR(IF(GeneratorListADSv2.1[[#This Row],[Index in L&R Update Mapping]]>0,1*INDEX(LnRUpdate[Summer Cap (MW)],GeneratorListADSv2.1[[#This Row],[Index in L&R Update Mapping]]),0),1*INDEX(LnRUpdate[L&R Nameplate (MW)],GeneratorListADSv2.1[[#This Row],[Index in L&R Update Mapping]])) -> 0 | K84: =IFERROR(IF(GeneratorListADSv2.1[[#This Row],[Index in L&R Update Mapping]]>0,1*INDEX(LnRUpdate[Winter Cap (MW)],GeneratorListADSv2.1[[#This Row],[Index in L&R Update Mapping]]),0),1*INDEX(LnRUpdate[L&R Nameplate (MW)],GeneratorListADSv2.1[[#This Row],[Index in L&R Update Mapping]])) -> 0 | L84: =IF(GeneratorListADSv2.1[[#This Row],[Index in L&R Update Mapping]]>0,1*INDEX(LnRUpdate[L&R Nameplate (MW)],GeneratorListADSv2.1[[#This Row],[Index in L&R Update Mapping]]),0) -> 0 | M84: =IFERROR(IF(GeneratorListADSv2.1[[#This Row],[Index in L&R Mapping]]>0,1*INDEX(MappingLandR[Summer Cap (MW)],GeneratorListADSv2.1[[#This Row],[Index in L&R Mapping]]),0),1*INDEX(MappingLandR[L&R Nameplate (MW)],GeneratorListADSv2.1[[#This Row],[Index in L&R Mapping]])) -> 0 | N84: =IFERROR(IF(GeneratorListADSv2.1[[#This Row],[Index in L&R Mapping]]>0,1*INDEX(MappingLandR[Winter Cap (MW)],GeneratorListADSv2.1[[#This Row],[Index in L&R Mapping]]),0),1*INDEX(MappingLandR[L&R Nameplate (MW)],GeneratorListADSv2.1[[#This Row],[Index in L&R Mapping]])) -> 0 | O84: =IF(GeneratorListADSv2.1[[#This Row],[Index in L&R Mapping]]>0,1*INDEX(MappingLandR[L&R Nameplate (MW)],GeneratorListADSv2.1[[#This Row],[Index in L&R Mapping]]),0) -> 0 | W84: =IFERROR(MATCH(GeneratorListADSv2.1[[#This Row],[Bus ID]],Buses32HS1[BUS-NO],0),0) -> 6759 | X84: =IFERROR(MATCH(GeneratorListADSv2.1[[#This Row],[Name]],LnRUpdate[2032 ADS PCM Generator Name],0),0) -> 0 | Y84: =IFERROR(MATCH(GeneratorListADSv2.1[[#This Row],[Name]],MappingLandR[2032 ADS PCM Generator Name],0),0) -> 0 | Z84: =IFERROR(MATCH(GeneratorListADSv2.1[[#This Row],[BusNo-UnitID]],ADS32HS1PFv7[BusNo-UnitID],0),0) -> 0 | AA84: =GeneratorListADSv2.1[[#This Row],[Bus ID]] & "_" & MID(GeneratorListADSv2.1[[#This Row],[Unit ID]],2,10) -> 33119_CC | AB84: =AND(GeneratorListADSv2.1[[#This Row],[Service Status]],GeneratorListADSv2.1[[#This Row],[Commission Date]]<DATEVALUE("1/1/2033"),GeneratorListADSv2.1[[#This Row],[Retirement Date]]>DATEVALUE("12/31/2031")) -> TRUE | AC84: =LEN(GeneratorListADSv2.1[[#This Row],[Name]]) -> 12 | AD84: 15951 | AE84: Gateway CC1b | AF84: 33119 | AG84: GATEWAY2 | AH84: 18 | AI84: 'CC | AJ84: 1 | AK84: CCWhole-NatGas-Industrial | AL84: CA-56476-AG | AM84: GatewayCC (Total CC Plant) | AN84: TRUE | AO84: 2009-01-06 | AP84: 2050-12-31 | AQ84: Existing | AR84: CIPB | AS84: CA_CISO | AT84: 150.92 | AU84: 295 | AV84: 0 | AW84: YES | AX84: CA | AY84: NA | AZ84: NA | BA84: NA | BB84: NA | BC84: NA | BD84: FALSE | BE84: NA
D85: =IF(SUBTOTAL(103,GeneratorListADSv2.1[[#This Row],[Name]])=1,1,0) -> 0 | E85: =COUNTIF(GenDistnADSv2.1[Unit Name],GeneratorListADSv2.1[[#This Row],[Name]]) -> 2 | F85: =GeneratorListADSv2.1[[#This Row],[ADS PCM Max Cap]]-GeneratorListADSv2.1[[#This Row],[PF Pmax]] -> 287.5 | G85: =GeneratorListADSv2.1[[#This Row],[ADS PCM Max Cap]]-MAX(GeneratorListADSv2.1[[#This Row],[L&R Update Summer Cap]:[L&R Update Nameplate]]) -> 287.5 | H85: =GeneratorListADSv2.1[[#This Row],[MaxCap (MW)]] -> 287.5 | I85: =IF(GeneratorListADSv2.1[[#This Row],[Index in PF Table v7]]=0,0,INDEX(ADS32HS1PFv7[PMAX],GeneratorListADSv2.1[[#This Row],[Index in PF Table v7]])) -> 0 | J85: =IFERROR(IF(GeneratorListADSv2.1[[#This Row],[Index in L&R Update Mapping]]>0,1*INDEX(LnRUpdate[Summer Cap (MW)],GeneratorListADSv2.1[[#This Row],[Index in L&R Update Mapping]]),0),1*INDEX(LnRUpdate[L&R Nameplate (MW)],GeneratorListADSv2.1[[#This Row],[Index in L&R Update Mapping]])) -> 0 | K85: =IFERROR(IF(GeneratorListADSv2.1[[#This Row],[Index in L&R Update Mapping]]>0,1*INDEX(LnRUpdate[Winter Cap (MW)],GeneratorListADSv2.1[[#This Row],[Index in L&R Update Mapping]]),0),1*INDEX(LnRUpdate[L&R Nameplate (MW)],GeneratorListADSv2.1[[#This Row],[Index in L&R Update Mapping]])) -> 0 | L85: =IF(GeneratorListADSv2.1[[#This Row],[Index in L&R Update Mapping]]>0,1*INDEX(LnRUpdate[L&R Nameplate (MW)],GeneratorListADSv2.1[[#This Row],[Index in L&R Update Mapping]]),0) -> 0 | M85: =IFERROR(IF(GeneratorListADSv2.1[[#This Row],[Index in L&R Mapping]]>0,1*INDEX(MappingLandR[Summer Cap (MW)],GeneratorListADSv2.1[[#This Row],[Index in L&R Mapping]]),0),1*INDEX(MappingLandR[L&R Nameplate (MW)],GeneratorListADSv2.1[[#This Row],[Index in L&R Mapping]])) -> 0 | N85: =IFERROR(IF(GeneratorListADSv2.1[[#This Row],[Index in L&R Mapping]]>0,1*INDEX(MappingLandR[Winter Cap (MW)],GeneratorListADSv2.1[[#This Row],[Index in L&R Mapping]]),0),1*INDEX(MappingLandR[L&R Nameplate (MW)],GeneratorListADSv2.1[[#This Row],[Index in L&R Mapping]])) -> 0 | O85: =IF(GeneratorListADSv2.1[[#This Row],[Index in L&R Mapping]]>0,1*INDEX(MappingLandR[L&R Nameplate (MW)],GeneratorListADSv2.1[[#This Row],[Index in L&R Mapping]]),0) -> 0 | W85: =IFERROR(MATCH(GeneratorListADSv2.1[[#This Row],[Bus ID]],Buses32HS1[BUS-NO],0),0) -> 8157 | X85: =IFERROR(MATCH(GeneratorListADSv2.1[[#This Row],[Name]],LnRUpdate[2032 ADS PCM Generator Name],0),0) -> 0 | Y85: =IFERROR(MATCH(GeneratorListADSv2.1[[#This Row],[Name]],MappingLandR[2032 ADS PCM Generator Name],0),0) -> 0 | Z85: =IFERROR(MATCH(GeneratorListADSv2.1[[#This Row],[BusNo-UnitID]],ADS32HS1PFv7[BusNo-UnitID],0),0) -> 0 | AA85: =GeneratorListADSv2.1[[#This Row],[Bus ID]] & "_" & MID(GeneratorListADSv2.1[[#This Row],[Unit ID]],2,10) -> 35882_CC | AB85: =AND(GeneratorListADSv2.1[[#This Row],[Service Status]],GeneratorListADSv2.1[[#This Row],[Commission Date]]<DATEVALUE("1/1/2033"),GeneratorListADSv2.1[[#This Row],[Retirement Date]]>DATEVALUE("12/31/2031")) -> TRUE | AC85: =LEN(GeneratorListADSv2.1[[#This Row],[Name]]) -> 12 | AD85: 16013 | AE85: Metcalf CC1b | AF85: 35882 | AG85: MEC CTG2 | AH85: 18 | AI85: 'CC | AJ85: 1 | AK85: CCWhole-NatGas-Industrial | AL85: CA-55393-AG | AM85: MetcalfEnergyCC (Total CC Plant) | AN85: TRUE | AO85: 2005-05-27 | AP85: 2050-12-31 | AQ85: Existing | AR85: CIPB | AS85: CA_CISO | AT85: 146.658 | AU85: 287.5 | AV85: 0 | AW85: YES | AX85: CA | AY85: NA | AZ85: NA | BA85: NA | BB85: NA | BC85: NA | BD85: FALSE | BE85: NA
D86: =IF(SUBTOTAL(103,GeneratorListADSv2.1[[#This Row],[Name]])=1,1,0) -> 0 | E86: =COUNTIF(GenDistnADSv2.1[Unit Name],GeneratorListADSv2.1[[#This Row],[Name]]) -> 20 | F86: =GeneratorListADSv2.1[[#This Row],[ADS PCM Max Cap]]-GeneratorListADSv2.1[[#This Row],[PF Pmax]] -> 286.6599 | G86: =GeneratorListADSv2.1[[#This Row],[ADS PCM Max Cap]]-MAX(GeneratorListADSv2.1[[#This Row],[L&R Update Summer Cap]:[L&R Update Nameplate]]) -> 286.6599 | H86: =GeneratorListADSv2.1[[#This Row],[MaxCap (MW)]] -> 286.6599 | I86: =IF(GeneratorListADSv2.1[[#This Row],[Index in PF Table v7]]=0,0,INDEX(ADS32HS1PFv7[PMAX],GeneratorListADSv2.1[[#This Row],[Index in PF Table v7]])) -> 0 | J86: =IFERROR(IF(GeneratorListADSv2.1[[#This Row],[Index in L&R Update Mapping]]>0,1*INDEX(LnRUpdate[Summer Cap (MW)],GeneratorListADSv2.1[[#This Row],[Index in L&R Update Mapping]]),0),1*INDEX(LnRUpdate[L&R Nameplate (MW)],GeneratorListADSv2.1[[#This Row],[Index in L&R Update Mapping]])) -> 0 | K86: =IFERROR(IF(GeneratorListADSv2.1[[#This Row],[Index in L&R Update Mapping]]>0,1*INDEX(LnRUpdate[Winter Cap (MW)],GeneratorListADSv2.1[[#This Row],[Index in L&R Update Mapping]]),0),1*INDEX(LnRUpdate[L&R Nameplate (MW)],GeneratorListADSv2.1[[#This Row],[Index in L&R Update Mapping]])) -> 0 | L86: =IF(GeneratorListADSv2.1[[#This Row],[Index in L&R Update Mapping]]>0,1*INDEX(LnRUpdate[L&R Nameplate (MW)],GeneratorListADSv2.1[[#This Row],[Index in L&R Update Mapping]]),0) -> 0 | M86: =IFERROR(IF(GeneratorListADSv2.1[[#This Row],[Index in L&R Mapping]]>0,1*INDEX(MappingLandR[Summer Cap (MW)],GeneratorListADSv2.1[[#This Row],[Index in L&R Mapping]]),0),1*INDEX(MappingLandR[L&R Nameplate (MW)],GeneratorListADSv2.1[[#This Row],[Index in L&R Mapping]])) -> 0 | N86: =IFERROR(IF(GeneratorListADSv2.1[[#This Row],[Index in L&R Mapping]]>0,1*INDEX(MappingLandR[Winter Cap (MW)],GeneratorListADSv2.1[[#This Row],[Index in L&R Mapping]]),0),1*INDEX(MappingLandR[L&R Nameplate (MW)],GeneratorListADSv2.1[[#This Row],[Index in L&R Mapping]])) -> 0 | O86: =IF(GeneratorListADSv2.1[[#This Row],[Index in L&R Mapping]]>0,1*INDEX(MappingLandR[L&R Nameplate (MW)],GeneratorListADSv2.1[[#This Row],[Index in L&R Mapping]]),0) -> 0 | W86: =IFERROR(MATCH(GeneratorListADSv2.1[[#This Row],[Bus ID]],Buses32HS1[BUS-NO],0),0) -> 5986 | X86: =IFERROR(MATCH(GeneratorListADSv2.1[[#This Row],[Name]],LnRUpdate[2032 ADS PCM Generator Name],0),0) -> 0 | Y86: =IFERROR(MATCH(GeneratorListADSv2.1[[#This Row],[Name]],MappingLandR[2032 ADS PCM Generator Name],0),0) -> 0 | Z86: =IFERROR(MATCH(GeneratorListADSv2.1[[#This Row],[BusNo-UnitID]],ADS32HS1PFv7[BusNo-UnitID],0),0) -> 0 | AA86: =GeneratorListADSv2.1[[#This Row],[Bus ID]] & "_" & MID(GeneratorListADSv2.1[[#This Row],[Unit ID]],2,10) -> 31475_N9 | AB86: =AND(GeneratorListADSv2.1[[#This Row],[Service Status]],GeneratorListADSv2.1[[#This Row],[Commission Date]]<DATEVALUE("1/1/2033"),GeneratorListADSv2.1[[#This Row],[Retirement Date]]>DATEVALUE("12/31/2031")) -> TRUE | AC86: =LEN(GeneratorListADSv2.1[[#This Row],[Name]]) -> 20 | AD86: 18705 | AE86: DG-BTM_CIPV_CA_Butte | AF86: 31475 | AG86: KANAKAJT | AH86: 115 | AI86: 'N9 | AJ86: 4 | AK86: DG-BTM | AL86: G0-- | AM86: DG-BTM_CIPV_CA_Butte | AN86: TRUE | AO86: 2023-04-15 | AP86: 2050-01-01 | AQ86: Future-Conceptual | AR86: CIPV | AS86: CA_CISO | AT86: 0 | AU86: 286.6599 | AV86: 0 | AW86: YES | AX86: ID | AY86: NA | AZ86: NA | BA86: NA | BB86: Solar | BC86: N/A | BD86: TRUE | BE86: NA
D87: =IF(SUBTOTAL(103,GeneratorListADSv2.1[[#This Row],[Name]])=1,1,0) -> 0 | E87: =COUNTIF(GenDistnADSv2.1[Unit Name],GeneratorListADSv2.1[[#This Row],[Name]]) -> 2 | F87: =GeneratorListADSv2.1[[#This Row],[ADS PCM Max Cap]]-GeneratorListADSv2.1[[#This Row],[PF Pmax]] -> 285 | G87: =GeneratorListADSv2.1[[#This Row],[ADS PCM Max Cap]]-MAX(GeneratorListADSv2.1[[#This Row],[L&R Update Summer Cap]:[L&R Update Nameplate]]) -> 285 | H87: =GeneratorListADSv2.1[[#This Row],[MaxCap (MW)]] -> 285 | I87: =IF(GeneratorListADSv2.1[[#This Row],[Index in PF Table v7]]=0,0,INDEX(ADS32HS1PFv7[PMAX],GeneratorListADSv2.1[[#This Row],[Index in PF Table v7]])) -> 0 | J87: =IFERROR(IF(GeneratorListADSv2.1[[#This Row],[Index in L&R Update Mapping]]>0,1*INDEX(LnRUpdate[Summer Cap (MW)],GeneratorListADSv2.1[[#This Row],[Index in L&R Update Mapping]]),0),1*INDEX(LnRUpdate[L&R Nameplate (MW)],GeneratorListADSv2.1[[#This Row],[Index in L&R Update Mapping]])) -> 0 | K87: =IFERROR(IF(GeneratorListADSv2.1[[#This Row],[Index in L&R Update Mapping]]>0,1*INDEX(LnRUpdate[Winter Cap (MW)],GeneratorListADSv2.1[[#This Row],[Index in L&R Update Mapping]]),0),1*INDEX(LnRUpdate[L&R Nameplate (MW)],GeneratorListADSv2.1[[#This Row],[Index in L&R Update Mapping]])) -> 0 | L87: =IF(GeneratorListADSv2.1[[#This Row],[Index in L&R Update Mapping]]>0,1*INDEX(LnRUpdate[L&R Nameplate (MW)],GeneratorListADSv2.1[[#This Row],[Index in L&R Update Mapping]]),0) -> 0 | M87: =IFERROR(IF(GeneratorListADSv2.1[[#This Row],[Index in L&R Mapping]]>0,1*INDEX(MappingLandR[Summer Cap (MW)],GeneratorListADSv2.1[[#This Row],[Index in L&R Mapping]]),0),1*INDEX(MappingLandR[L&R Nameplate (MW)],GeneratorListADSv2.1[[#This Row],[Index in L&R Mapping]])) -> 0 | N87: =IFERROR(IF(GeneratorListADSv2.1[[#This Row],[Index in L&R Mapping]]>0,1*INDEX(MappingLandR[Winter Cap (MW)],GeneratorListADSv2.1[[#This Row],[Index in L&R Mapping]]),0),1*INDEX(MappingLandR[L&R Nameplate (MW)],GeneratorListADSv2.1[[#This Row],[Index in L&R Mapping]])) -> 0 | O87: =IF(GeneratorListADSv2.1[[#This Row],[Index in L&R Mapping]]>0,1*INDEX(MappingLandR[L&R Nameplate (MW)],GeneratorListADSv2.1[[#This Row],[Index in L&R Mapping]]),0) -> 0 | W87: =IFERROR(MATCH(GeneratorListADSv2.1[[#This Row],[Bus ID]],Buses32HS1[BUS-NO],0),0) -> 2930 | X87: =IFERROR(MATCH(GeneratorListADSv2.1[[#This Row],[Name]],LnRUpdate[2032 ADS PCM Generator Name],0),0) -> 0 | Y87: =IFERROR(MATCH(GeneratorListADSv2.1[[#This Row],[Name]],MappingLandR[2032 ADS PCM Generator Name],0),0) -> 0 | Z87: =IFERROR(MATCH(GeneratorListADSv2.1[[#This Row],[BusNo-UnitID]],ADS32HS1PFv7[BusNo-UnitID],0),0) -> 0 | AA87: =GeneratorListADSv2.1[[#This Row],[Bus ID]] & "_" & MID(GeneratorListADSv2.1[[#This Row],[Unit ID]],2,10) -> 22262_CC | AB87: =AND(GeneratorListADSv2.1[[#This Row],[Service Status]],GeneratorListADSv2.1[[#This Row],[Commission Date]]<DATEVALUE("1/1/2033"),GeneratorListADSv2.1[[#This Row],[Retirement Date]]>DATEVALUE("12/31/2031")) -> TRUE | AC87: =LEN(GeneratorListADSv2.1[[#This Row],[Name]]) -> 12 | AD87: 16032 | AE87: Palomar CC1a | AF87: 22262 | AG87: PEN_CT1 | AH87: 18 | AI87: 'CC | AJ87: 1 | AK87: CCWhole-NatGas-Industrial | AL87: CA-55985-AG | AM87: PalomarCC (Total CC Plant) | AN87: TRUE | AO87: 2005-10-14 | AP87: 2050-12-31 | AQ87: Existing | AR87: CISD | AS87: CA_CISO | AT87: 138 | AU87: 285 | AV87: 0 | AW87: YES | AX87: CA | AY87: NA | AZ87: NA | BA87: NA | BB87: NA | BC87: NA | BD87: FALSE | BE87: NA
D88: =IF(SUBTOTAL(103,GeneratorListADSv2.1[[#This Row],[Name]])=1,1,0) -> 0 | E88: =COUNTIF(GenDistnADSv2.1[Unit Name],GeneratorListADSv2.1[[#This Row],[Name]]) -> 0 | F88: =GeneratorListADSv2.1[[#This Row],[ADS PCM Max Cap]]-GeneratorListADSv2.1[[#This Row],[PF Pmax]] -> 0 | G88: =GeneratorListADSv2.1[[#This Row],[ADS PCM Max Cap]]-MAX(GeneratorListADSv2.1[[#This Row],[L&R Update Summer Cap]:[L&R Update Nameplate]]) -> 101.2 | H88: =GeneratorListADSv2.1[[#This Row],[MaxCap (MW)]] -> 101.2 | I88: =IF(GeneratorListADSv2.1[[#This Row],[Index in PF Table v7]]=0,0,INDEX(ADS32HS1PFv7[PMAX],GeneratorListADSv2.1[[#This Row],[Index in PF Table v7]])) -> 101.2 | J88: =IFERROR(IF(GeneratorListADSv2.1[[#This Row],[Index in L&R Update Mapping]]>0,1*INDEX(LnRUpdate[Summer Cap (MW)],GeneratorListADSv2.1[[#This Row],[Index in L&R Update Mapping]]),0),1*INDEX(LnRUpdate[L&R Nameplate (MW)],GeneratorListADSv2.1[[#This Row],[Index in L&R Update Mapping]])) -> 0 | K88: =IFERROR(IF(GeneratorListADSv2.1[[#This Row],[Index in L&R Update Mapping]]>0,1*INDEX(LnRUpdate[Winter Cap (MW)],GeneratorListADSv2.1[[#This Row],[Index in L&R Update Mapping]]),0),1*INDEX(LnRUpdate[L&R Nameplate (MW)],GeneratorListADSv2.1[[#This Row],[Index in L&R Update Mapping]])) -> 0 | L88: =IF(GeneratorListADSv2.1[[#This Row],[Index in L&R Update Mapping]]>0,1*INDEX(LnRUpdate[L&R Nameplate (MW)],GeneratorListADSv2.1[[#This Row],[Index in L&R Update Mapping]]),0) -> 0 | M88: =IFERROR(IF(GeneratorListADSv2.1[[#This Row],[Index in L&R Mapping]]>0,1*INDEX(MappingLandR[Summer Cap (MW)],GeneratorListADSv2.1[[#This Row],[Index in L&R Mapping]]),0),1*INDEX(MappingLandR[L&R Nameplate (MW)],GeneratorListADSv2.1[[#This Row],[Index in L&R Mapping]])) -> 0 | N88: =IFERROR(IF(GeneratorListADSv2.1[[#This Row],[Index in L&R Mapping]]>0,1*INDEX(MappingLandR[Winter Cap (MW)],GeneratorListADSv2.1[[#This Row],[Index in L&R Mapping]]),0),1*INDEX(MappingLandR[L&R Nameplate (MW)],GeneratorListADSv2.1[[#This Row],[Index in L&R Mapping]])) -> 0 | O88: =IF(GeneratorListADSv2.1[[#This Row],[Index in L&R Mapping]]>0,1*INDEX(MappingLandR[L&R Nameplate (MW)],GeneratorListADSv2.1[[#This Row],[Index in L&R Mapping]]),0) -> 0 | W88: =IFERROR(MATCH(GeneratorListADSv2.1[[#This Row],[Bus ID]],Buses32HS1[BUS-NO],0),0) -> 18912 | X88: =IFERROR(MATCH(GeneratorListADSv2.1[[#This Row],[Name]],LnRUpdate[2032 ADS PCM Generator Name],0),0) -> 0 | Y88: =IFERROR(MATCH(GeneratorListADSv2.1[[#This Row],[Name]],MappingLandR[2032 ADS PCM Generator Name],0),0) -> 0 | Z88: =IFERROR(MATCH(GeneratorListADSv2.1[[#This Row],[BusNo-UnitID]],ADS32HS1PFv7[BusNo-UnitID],0),0) -> 2481 | AA88: =GeneratorListADSv2.1[[#This Row],[Bus ID]] & "_" & MID(GeneratorListADSv2.1[[#This Row],[Unit ID]],2,10) -> 69511_1 | AB88: =AND(GeneratorListADSv2.1[[#This Row],[Service Status]],GeneratorListADSv2.1[[#This Row],[Commission Date]]<DATEVALUE("1/1/2033"),GeneratorListADSv2.1[[#This Row],[Retirement Date]]>DATEVALUE("12/31/2031")) -> FALSE | AC88: =LEN(GeneratorListADSv2.1[[#This Row],[Name]]) -> 27 | AD88: 3755 | AE88: Top of the World Wind LLC 1 | AF88: 69511 | AG88: TOPW_SE_WG | AH88: 0.69 | AI88: '1 | AJ88: 4 | AK88: WT-Onshore | AL88: WY-57327-TOTW1 | AM88: Top of the World Windpower Project-TOTW1 | AN88: TRUE | AO88: 2010-10-01 | AP88: 2030-12-30 | AQ88: Existing | AR88: PAWY | AS88: BS_PACE | AT88: 0 | AU88: 101.2 | AV88: 15 | AW88: YES | AX88: WY | AY88: NA | AZ88: NA | BA88: NA | BB88: Wind | BC88: Onshore | BD88: FALSE | BE88: NA
D89: =IF(SUBTOTAL(103,GeneratorListADSv2.1[[#This Row],[Name]])=1,1,0) -> 0 | E89: =COUNTIF(GenDistnADSv2.1[Unit Name],GeneratorListADSv2.1[[#This Row],[Name]]) -> 2 | F89: =GeneratorListADSv2.1[[#This Row],[ADS PCM Max Cap]]-GeneratorListADSv2.1[[#This Row],[PF Pmax]] -> 285 | G89: =GeneratorListADSv2.1[[#This Row],[ADS PCM Max Cap]]-MAX(GeneratorListADSv2.1[[#This Row],[L&R Update Summer Cap]:[L&R Update Nameplate]]) -> 285 | H89: =GeneratorListADSv2.1[[#This Row],[MaxCap (MW)]] -> 285 | I89: =IF(GeneratorListADSv2.1[[#This Row],[Index in PF Table v7]]=0,0,INDEX(ADS32HS1PFv7[PMAX],GeneratorListADSv2.1[[#This Row],[Index in PF Table v7]])) -> 0 | J89: =IFERROR(IF(GeneratorListADSv2.1[[#This Row],[Index in L&R Update Mapping]]>0,1*INDEX(LnRUpdate[Summer Cap (MW)],GeneratorListADSv2.1[[#This Row],[Index in L&R Update Mapping]]),0),1*INDEX(LnRUpdate[L&R Nameplate (MW)],GeneratorListADSv2.1[[#This Row],[Index in L&R Update Mapping]])) -> 0 | K89: =IFERROR(IF(GeneratorListADSv2.1[[#This Row],[Index in L&R Update Mapping]]>0,1*INDEX(LnRUpdate[Winter Cap (MW)],GeneratorListADSv2.1[[#This Row],[Index in L&R Update Mapping]]),0),1*INDEX(LnRUpdate[L&R Nameplate (MW)],GeneratorListADSv2.1[[#This Row],[Index in L&R Update Mapping]])) -> 0 | L89: =IF(GeneratorListADSv2.1[[#This Row],[Index in L&R Update Mapping]]>0,1*INDEX(LnRUpdate[L&R Nameplate (MW)],GeneratorListADSv2.1[[#This Row],[Index in L&R Update Mapping]]),0) -> 0 | M89: =IFERROR(IF(GeneratorListADSv2.1[[#This Row],[Index in L&R Mapping]]>0,1*INDEX(MappingLandR[Summer Cap (MW)],GeneratorListADSv2.1[[#This Row],[Index in L&R Mapping]]),0),1*INDEX(MappingLandR[L&R Nameplate (MW)],GeneratorListADSv2.1[[#This Row],[Index in L&R Mapping]])) -> 0 | N89: =IFERROR(IF(GeneratorListADSv2.1[[#This Row],[Index in L&R Mapping]]>0,1*INDEX(MappingLandR[Winter Cap (MW)],GeneratorListADSv2.1[[#This Row],[Index in L&R Mapping]]),0),1*INDEX(MappingLandR[L&R Nameplate (MW)],GeneratorListADSv2.1[[#This Row],[Index in L&R Mapping]])) -> 0 | O89: =IF(GeneratorListADSv2.1[[#This Row],[Index in L&R Mapping]]>0,1*INDEX(MappingLandR[L&R Nameplate (MW)],GeneratorListADSv2.1[[#This Row],[Index in L&R Mapping]]),0) -> 0 | W89: =IFERROR(MATCH(GeneratorListADSv2.1[[#This Row],[Bus ID]],Buses32HS1[BUS-NO],0),0) -> 2931 | X89: =IFERROR(MATCH(GeneratorListADSv2.1[[#This Row],[Name]],LnRUpdate[2032 ADS PCM Generator Name],0),0) -> 0 | Y89: =IFERROR(MATCH(GeneratorListADSv2.1[[#This Row],[Name]],MappingLandR[2032 ADS PCM Generator Name],0),0) -> 0 | Z89: =IFERROR(MATCH(GeneratorListADSv2.1[[#This Row],[BusNo-UnitID]],ADS32HS1PFv7[BusNo-UnitID],0),0) -> 0 | AA89: =GeneratorListADSv2.1[[#This Row],[Bus ID]] & "_" & MID(GeneratorListADSv2.1[[#This Row],[Unit ID]],2,10) -> 22263_CC | AB89: =AND(GeneratorListADSv2.1[[#This Row],[Service Status]],GeneratorListADSv2.1[[#This Row],[Commission Date]]<DATEVALUE("1/1/2033"),GeneratorListADSv2.1[[#This Row],[Retirement Date]]>DATEVALUE("12/31/2031")) -> TRUE | AC89: =LEN(GeneratorListADSv2.1[[#This Row],[Name]]) -> 12 | AD89: 16033 | AE89: Palomar CC1b | AF89: 22263 | AG89: PEN_CT2 | AH89: 18 | AI89: 'CC | AJ89: 1 | AK89: CCWhole-NatGas-Industrial | AL89: CA-55985-AG | AM89: PalomarCC (Total CC Plant) | AN89: TRUE | AO89: 2005-10-14 | AP89: 2050-12-31 | AQ89: Existing | AR89: CISD | AS89: CA_CISO | AT89: 138 | AU89: 285 | AV89: 0 | AW89: YES | AX89: CA | AY89: NA | AZ89: NA | BA89: NA | BB89: NA | BC89: NA | BD89: FALSE | BE89: NA
D90: =IF(SUBTOTAL(103,GeneratorListADSv2.1[[#This Row],[Name]])=1,1,0) -> 0 | E90: =COUNTIF(GenDistnADSv2.1[Unit Name],GeneratorListADSv2.1[[#This Row],[Name]]) -> 11 | F90: =GeneratorListADSv2.1[[#This Row],[ADS PCM Max Cap]]-GeneratorListADSv2.1[[#This Row],[PF Pmax]] -> 282.4 | G90: =GeneratorListADSv2.1[[#This Row],[ADS PCM Max Cap]]-MAX(GeneratorListADSv2.1[[#This Row],[L&R Update Summer Cap]:[L&R Update Nameplate]]) -> 282.4 | H90: =GeneratorListADSv2.1[[#This Row],[MaxCap (MW)]] -> 282.4 | I90: =IF(GeneratorListADSv2.1[[#This Row],[Index in PF Table v7]]=0,0,INDEX(ADS32HS1PFv7[PMAX],GeneratorListADSv2.1[[#This Row],[Index in PF Table v7]])) -> 0 | J90: =IFERROR(IF(GeneratorListADSv2.1[[#This Row],[Index in L&R Update Mapping]]>0,1*INDEX(LnRUpdate[Summer Cap (MW)],GeneratorListADSv2.1[[#This Row],[Index in L&R Update Mapping]]),0),1*INDEX(LnRUpdate[L&R Nameplate (MW)],GeneratorListADSv2.1[[#This Row],[Index in L&R Update Mapping]])) -> 0 | K90: =IFERROR(IF(GeneratorListADSv2.1[[#This Row],[Index in L&R Update Mapping]]>0,1*INDEX(LnRUpdate[Winter Cap (MW)],GeneratorListADSv2.1[[#This Row],[Index in L&R Update Mapping]]),0),1*INDEX(LnRUpdate[L&R Nameplate (MW)],GeneratorListADSv2.1[[#This Row],[Index in L&R Update Mapping]])) -> 0 | L90: =IF(GeneratorListADSv2.1[[#This Row],[Index in L&R Update Mapping]]>0,1*INDEX(LnRUpdate[L&R Nameplate (MW)],GeneratorListADSv2.1[[#This Row],[Index in L&R Update Mapping]]),0) -> 0 | M90: =IFERROR(IF(GeneratorListADSv2.1[[#This Row],[Index in L&R Mapping]]>0,1*INDEX(MappingLandR[Summer Cap (MW)],GeneratorListADSv2.1[[#This Row],[Index in L&R Mapping]]),0),1*INDEX(MappingLandR[L&R Nameplate (MW)],GeneratorListADSv2.1[[#This Row],[Index in L&R Mapping]])) -> 0 | N90: =IFERROR(IF(GeneratorListADSv2.1[[#This Row],[Index in L&R Mapping]]>0,1*INDEX(MappingLandR[Winter Cap (MW)],GeneratorListADSv2.1[[#This Row],[Index in L&R Mapping]]),0),1*INDEX(MappingLandR[L&R Nameplate (MW)],GeneratorListADSv2.1[[#This Row],[Index in L&R Mapping]])) -> 0 | O90: =IF(GeneratorListADSv2.1[[#This Row],[Index in L&R Mapping]]>0,1*INDEX(MappingLandR[L&R Nameplate (MW)],GeneratorListADSv2.1[[#This Row],[Index in L&R Mapping]]),0) -> 0 | W90: =IFERROR(MATCH(GeneratorListADSv2.1[[#This Row],[Bus ID]],Buses32HS1[BUS-NO],0),0) -> 8944 | X90: =IFERROR(MATCH(GeneratorListADSv2.1[[#This Row],[Name]],LnRUpdate[2032 ADS PCM Generator Name],0),0) -> 0 | Y90: =IFERROR(MATCH(GeneratorListADSv2.1[[#This Row],[Name]],MappingLandR[2032 ADS PCM Generator Name],0),0) -> 0 | Z90: =IFERROR(MATCH(GeneratorListADSv2.1[[#This Row],[BusNo-UnitID]],ADS32HS1PFv7[BusNo-UnitID],0),0) -> 3285 | AA90: =GeneratorListADSv2.1[[#This Row],[Bus ID]] & "_" & MID(GeneratorListADSv2.1[[#This Row],[Unit ID]],2,10) -> 38760_10 | AB90: =AND(GeneratorListADSv2.1[[#This Row],[Service Status]],GeneratorListADSv2.1[[#This Row],[Commission Date]]<DATEVALUE("1/1/2033"),GeneratorListADSv2.1[[#This Row],[Retirement Date]]>DATEVALUE("12/31/2031")) -> TRUE | AC90: =LEN(GeneratorListADSv2.1[[#This Row],[Name]]) -> 15 | AD90: 6504 | AE90: DeltaPump-Total | AF90: 38760 | AG90: DELTA E | AH90: 13.2 | AI90: '10 | AJ90: 4 | AK90: MotorLoad | AL90: CA-- | AM90: Delta Pump Total | AN90: TRUE | AO90: 1980-01-01 | AP90: 2050-01-01 | AQ90: Existing | AR90: CIPB | AS90: CA_CISO | AT90: -8.9 | AU90: 282.4 | AV90: -8 | AW90: YES | AX90: CA | AY90: NA | AZ90: NA | BA90: NA | BB90: Electricity | BC90: N/A | BD90: FALSE | BE90: NA
D91: =IF(SUBTOTAL(103,GeneratorListADSv2.1[[#This Row],[Name]])=1,1,0) -> 0 | E91: =COUNTIF(GenDistnADSv2.1[Unit Name],GeneratorListADSv2.1[[#This Row],[Name]]) -> 2 | F91: =GeneratorListADSv2.1[[#This Row],[ADS PCM Max Cap]]-GeneratorListADSv2.1[[#This Row],[PF Pmax]] -> 280 | G91: =GeneratorListADSv2.1[[#This Row],[ADS PCM Max Cap]]-MAX(GeneratorListADSv2.1[[#This Row],[L&R Update Summer Cap]:[L&R Update Nameplate]]) -> 280 | H91: =GeneratorListADSv2.1[[#This Row],[MaxCap (MW)]] -> 280 | I91: =IF(GeneratorListADSv2.1[[#This Row],[Index in PF Table v7]]=0,0,INDEX(ADS32HS1PFv7[PMAX],GeneratorListADSv2.1[[#This Row],[Index in PF Table v7]])) -> 0 | J91: =IFERROR(IF(GeneratorListADSv2.1[[#This Row],[Index in L&R Update Mapping]]>0,1*INDEX(LnRUpdate[Summer Cap (MW)],GeneratorListADSv2.1[[#This Row],[Index in L&R Update Mapping]]),0),1*INDEX(LnRUpdate[L&R Nameplate (MW)],GeneratorListADSv2.1[[#This Row],[Index in L&R Update Mapping]])) -> 0 | K91: =IFERROR(IF(GeneratorListADSv2.1[[#This Row],[Index in L&R Update Mapping]]>0,1*INDEX(LnRUpdate[Winter Cap (MW)],GeneratorListADSv2.1[[#This Row],[Index in L&R Update Mapping]]),0),1*INDEX(LnRUpdate[L&R Nameplate (MW)],GeneratorListADSv2.1[[#This Row],[Index in L&R Update Mapping]])) -> 0 | L91: =IF(GeneratorListADSv2.1[[#This Row],[Index in L&R Update Mapping]]>0,1*INDEX(LnRUpdate[L&R Nameplate (MW)],GeneratorListADSv2.1[[#This Row],[Index in L&R Update Mapping]]),0) -> 0 | M91: =IFERROR(IF(GeneratorListADSv2.1[[#This Row],[Index in L&R Mapping]]>0,1*INDEX(MappingLandR[Summer Cap (MW)],GeneratorListADSv2.1[[#This Row],[Index in L&R Mapping]]),0),1*INDEX(MappingLandR[L&R Nameplate (MW)],GeneratorListADSv2.1[[#This Row],[Index in L&R Mapping]])) -> 0 | N91: =IFERROR(IF(GeneratorListADSv2.1[[#This Row],[Index in L&R Mapping]]>0,1*INDEX(MappingLandR[Winter Cap (MW)],GeneratorListADSv2.1[[#This Row],[Index in L&R Mapping]]),0),1*INDEX(MappingLandR[L&R Nameplate (MW)],GeneratorListADSv2.1[[#This Row],[Index in L&R Mapping]])) -> 0 | O91: =IF(GeneratorListADSv2.1[[#This Row],[Index in L&R Mapping]]>0,1*INDEX(MappingLandR[L&R Nameplate (MW)],GeneratorListADSv2.1[[#This Row],[Index in L&R Mapping]]),0) -> 0 | W91: =IFERROR(MATCH(GeneratorListADSv2.1[[#This Row],[Bus ID]],Buses32HS1[BUS-NO],0),0) -> 6752 | X91: =IFERROR(MATCH(GeneratorListADSv2.1[[#This Row],[Name]],LnRUpdate[2032 ADS PCM Generator Name],0),0) -> 0 | Y91: =IFERROR(MATCH(GeneratorListADSv2.1[[#This Row],[Name]],MappingLandR[2032 ADS PCM Generator Name],0),0) -> 0 | Z91: =IFERROR(MATCH(GeneratorListADSv2.1[[#This Row],[BusNo-UnitID]],ADS32HS1PFv7[BusNo-UnitID],0),0) -> 0 | AA91: =GeneratorListADSv2.1[[#This Row],[Bus ID]] & "_" & MID(GeneratorListADSv2.1[[#This Row],[Unit ID]],2,10) -> 33108_CC | AB91: =AND(GeneratorListADSv2.1[[#This Row],[Service Status]],GeneratorListADSv2.1[[#This Row],[Commission Date]]<DATEVALUE("1/1/2033"),GeneratorListADSv2.1[[#This Row],[Retirement Date]]>DATEVALUE("12/31/2031")) -> TRUE | AC91: =LEN(GeneratorListADSv2.1[[#This Row],[Name]]) -> 13 | AD91: 15934 | AE91: Delta EC CC1a | AF91: 33108 | AG91: DEC CTG1 | AH91: 18 | AI91: 'CC | AJ91: 1 | AK91: CCWhole-NatGas-Industrial | AL91: CA-55333-AG | AM91: DeltaEnergyCC (Total CC Plant) | AN91: TRUE | AO91: 2002-06-17 | AP91: 2050-12-31 | AQ91: Existing | AR91: CIPB | AS91: CA_CISO | AT91: 143.825 | AU91: 280 | AV91: 0 | AW91: YES | AX91: CA | AY91: NA | AZ91: NA | BA91: NA | BB91: NA | BC91: NA | BD91: FALSE | BE91: NA
D92: =IF(SUBTOTAL(103,GeneratorListADSv2.1[[#This Row],[Name]])=1,1,0) -> 0 | E92: =COUNTIF(GenDistnADSv2.1[Unit Name],GeneratorListADSv2.1[[#This Row],[Name]]) -> 0 | F92: =GeneratorListADSv2.1[[#This Row],[ADS PCM Max Cap]]-GeneratorListADSv2.1[[#This Row],[PF Pmax]] -> 0 | G92: =GeneratorListADSv2.1[[#This Row],[ADS PCM Max Cap]]-MAX(GeneratorListADSv2.1[[#This Row],[L&R Update Summer Cap]:[L&R Update Nameplate]]) -> 99 | H92: =GeneratorListADSv2.1[[#This Row],[MaxCap (MW)]] -> 99 | I92: =IF(GeneratorListADSv2.1[[#This Row],[Index in PF Table v7]]=0,0,INDEX(ADS32HS1PFv7[PMAX],GeneratorListADSv2.1[[#This Row],[Index in PF Table v7]])) -> 99 | J92: =IFERROR(IF(GeneratorListADSv2.1[[#This Row],[Index in L&R Update Mapping]]>0,1*INDEX(LnRUpdate[Summer Cap (MW)],GeneratorListADSv2.1[[#This Row],[Index in L&R Update Mapping]]),0),1*INDEX(LnRUpdate[L&R Nameplate (MW)],GeneratorListADSv2.1[[#This Row],[Index in L&R Update Mapping]])) -> 0 | K92: =IFERROR(IF(GeneratorListADSv2.1[[#This Row],[Index in L&R Update Mapping]]>0,1*INDEX(LnRUpdate[Winter Cap (MW)],GeneratorListADSv2.1[[#This Row],[Index in L&R Update Mapping]]),0),1*INDEX(LnRUpdate[L&R Nameplate (MW)],GeneratorListADSv2.1[[#This Row],[Index in L&R Update Mapping]])) -> 0 | L92: =IF(GeneratorListADSv2.1[[#This Row],[Index in L&R Update Mapping]]>0,1*INDEX(LnRUpdate[L&R Nameplate (MW)],GeneratorListADSv2.1[[#This Row],[Index in L&R Update Mapping]]),0) -> 0 | M92: =IFERROR(IF(GeneratorListADSv2.1[[#This Row],[Index in L&R Mapping]]>0,1*INDEX(MappingLandR[Summer Cap (MW)],GeneratorListADSv2.1[[#This Row],[Index in L&R Mapping]]),0),1*INDEX(MappingLandR[L&R Nameplate (MW)],GeneratorListADSv2.1[[#This Row],[Index in L&R Mapping]])) -> 0 | N92: =IFERROR(IF(GeneratorListADSv2.1[[#This Row],[Index in L&R Mapping]]>0,1*INDEX(MappingLandR[Winter Cap (MW)],GeneratorListADSv2.1[[#This Row],[Index in L&R Mapping]]),0),1*INDEX(MappingLandR[L&R Nameplate (MW)],GeneratorListADSv2.1[[#This Row],[Index in L&R Mapping]])) -> 0 | O92: =IF(GeneratorListADSv2.1[[#This Row],[Index in L&R Mapping]]>0,1*INDEX(MappingLandR[L&R Nameplate (MW)],GeneratorListADSv2.1[[#This Row],[Index in L&R Mapping]]),0) -> 0 | W92: =IFERROR(MATCH(GeneratorListADSv2.1[[#This Row],[Bus ID]],Buses32HS1[BUS-NO],0),0) -> 18906 | X92: =IFERROR(MATCH(GeneratorListADSv2.1[[#This Row],[Name]],LnRUpdate[2032 ADS PCM Generator Name],0),0) -> 0 | Y92: =IFERROR(MATCH(GeneratorListADSv2.1[[#This Row],[Name]],MappingLandR[2032 ADS PCM Generator Name],0),0) -> 0 | Z92: =IFERROR(MATCH(GeneratorListADSv2.1[[#This Row],[BusNo-UnitID]],ADS32HS1PFv7[BusNo-UnitID],0),0) -> 2480 | AA92: =GeneratorListADSv2.1[[#This Row],[Bus ID]] & "_" & MID(GeneratorListADSv2.1[[#This Row],[Unit ID]],2,10) -> 69505_1 | AB92: =AND(GeneratorListADSv2.1[[#This Row],[Service Status]],GeneratorListADSv2.1[[#This Row],[Commission Date]]<DATEVALUE("1/1/2033"),GeneratorListADSv2.1[[#This Row],[Retirement Date]]>DATEVALUE("12/31/2031")) -> FALSE | AC92: =LEN(GeneratorListADSv2.1[[#This Row],[Name]]) -> 27 | AD92: 16444 | AE92: Top of the World Wind LLC 2 | AF92: 69505 | AG92: TOPW_GE_WG | AH92: 0.69 | AI92: '1 | AJ92: 4 | AK92: WT-Onshore | AL92: WY-57327-TOTW1 | AM92: Top of the World Windpower Project-TOTW1 | AN92: TRUE | AO92: 2010-10-01 | AP92: 2030-12-30 | AQ92: Existing | AR92: PAWY | AS92: BS_PACE | AT92: 0 | AU92: 99 | AV92: 14.5 | AW92: YES | AX92: WY | AY92: NA | AZ92: NA | BA92: NA | BB92: Wind | BC92: Onshore | BD92: FALSE | BE92: NA
D93: =IF(SUBTOTAL(103,GeneratorListADSv2.1[[#This Row],[Name]])=1,1,0) -> 0 | E93: =COUNTIF(GenDistnADSv2.1[Unit Name],GeneratorListADSv2.1[[#This Row],[Name]]) -> 2 | F93: =GeneratorListADSv2.1[[#This Row],[ADS PCM Max Cap]]-GeneratorListADSv2.1[[#This Row],[PF Pmax]] -> 280 | G93: =GeneratorListADSv2.1[[#This Row],[ADS PCM Max Cap]]-MAX(GeneratorListADSv2.1[[#This Row],[L&R Update Summer Cap]:[L&R Update Nameplate]]) -> 280 | H93: =GeneratorListADSv2.1[[#This Row],[MaxCap (MW)]] -> 280 | I93: =IF(GeneratorListADSv2.1[[#This Row],[Index in PF Table v7]]=0,0,INDEX(ADS32HS1PFv7[PMAX],GeneratorListADSv2.1[[#This Row],[Index in PF Table v7]])) -> 0 | J93: =IFERROR(IF(GeneratorListADSv2.1[[#This Row],[Index in L&R Update Mapping]]>0,1*INDEX(LnRUpdate[Summer Cap (MW)],GeneratorListADSv2.1[[#This Row],[Index in L&R Update Mapping]]),0),1*INDEX(LnRUpdate[L&R Nameplate (MW)],GeneratorListADSv2.1[[#This Row],[Index in L&R Update Mapping]])) -> 0 | K93: =IFERROR(IF(GeneratorListADSv2.1[[#This Row],[Index in L&R Update Mapping]]>0,1*INDEX(LnRUpdate[Winter Cap (MW)],GeneratorListADSv2.1[[#This Row],[Index in L&R Update Mapping]]),0),1*INDEX(LnRUpdate[L&R Nameplate (MW)],GeneratorListADSv2.1[[#This Row],[Index in L&R Update Mapping]])) -> 0 | L93: =IF(GeneratorListADSv2.1[[#This Row],[Index in L&R Update Mapping]]>0,1*INDEX(LnRUpdate[L&R Nameplate (MW)],GeneratorListADSv2.1[[#This Row],[Index in L&R Update Mapping]]),0) -> 0 | M93: =IFERROR(IF(GeneratorListADSv2.1[[#This Row],[Index in L&R Mapping]]>0,1*INDEX(MappingLandR[Summer Cap (MW)],GeneratorListADSv2.1[[#This Row],[Index in L&R Mapping]]),0),1*INDEX(MappingLandR[L&R Nameplate (MW)],GeneratorListADSv2.1[[#This Row],[Index in L&R Mapping]])) -> 0 | N93: =IFERROR(IF(GeneratorListADSv2.1[[#This Row],[Index in L&R Mapping]]>0,1*INDEX(MappingLandR[Winter Cap (MW)],GeneratorListADSv2.1[[#This Row],[Index in L&R Mapping]]),0),1*INDEX(MappingLandR[L&R Nameplate (MW)],GeneratorListADSv2.1[[#This Row],[Index in L&R Mapping]])) -> 0 | O93: =IF(GeneratorListADSv2.1[[#This Row],[Index in L&R Mapping]]>0,1*INDEX(MappingLandR[L&R Nameplate (MW)],GeneratorListADSv2.1[[#This Row],[Index in L&R Mapping]]),0) -> 0 | W93: =IFERROR(MATCH(GeneratorListADSv2.1[[#This Row],[Bus ID]],Buses32HS1[BUS-NO],0),0) -> 6753 | X93: =IFERROR(MATCH(GeneratorListADSv2.1[[#This Row],[Name]],LnRUpdate[2032 ADS PCM Generator Name],0),0) -> 0 | Y93: =IFERROR(MATCH(GeneratorListADSv2.1[[#This Row],[Name]],MappingLandR[2032 ADS PCM Generator Name],0),0) -> 0 | Z93: =IFERROR(MATCH(GeneratorListADSv2.1[[#This Row],[BusNo-UnitID]],ADS32HS1PFv7[BusNo-UnitID],0),0) -> 0 | AA93: =GeneratorListADSv2.1[[#This Row],[Bus ID]] & "_" & MID(GeneratorListADSv2.1[[#This Row],[Unit ID]],2,10) -> 33109_CC | AB93: =AND(GeneratorListADSv2.1[[#This Row],[Service Status]],GeneratorListADSv2.1[[#This Row],[Commission Date]]<DATEVALUE("1/1/2033"),GeneratorListADSv2.1[[#This Row],[Retirement Date]]>DATEVALUE("12/31/2031")) -> TRUE | AC93: =LEN(GeneratorListADSv2.1[[#This Row],[Name]]) -> 13 | AD93: 15935 | AE93: Delta EC CC1b | AF93: 33109 | AG93: DEC CTG2 | AH93: 18 | AI93: 'CC | AJ93: 1 | AK93: CCWhole-NatGas-Industrial | AL93: CA-55333-AG | AM93: DeltaEnergyCC (Total CC Plant) | AN93: TRUE | AO93: 2002-06-17 | AP93: 2050-12-31 | AQ93: Existing | AR93: CIPB | AS93: CA_CISO | AT93: 143.825 | AU93: 280 | AV93: 0 | AW93: YES | AX93: CA | AY93: NA | AZ93: NA | BA93: NA | BB93: NA | BC93: NA | BD93: FALSE | BE93: NA
